Workbook

Sheet Voorblad
N24: Voorbeeld materiaal - GapMinder
N33: © 2015, G-Info/G. Verbruggen
N34: www.ginfo.nl

Sheet Landen
A1: Entity | B1: Group | C1: ID
A2: Angola | B2: Sub-Saharan Africa | C2: AO
A3: Benin | B3: Sub-Saharan Africa | C3: BJ
A4: Botswana | B4: Sub-Saharan Africa | C4: BW
A5: Burkina Faso | B5: Sub-Saharan Africa | C5: BF
A6: Burundi | B6: Sub-Saharan Africa | C6: BI
A7: Cameroon | B7: Sub-Saharan Africa | C7: CM
A8: Cape Verde | B8: Sub-Saharan Africa | C8: CV
A9: Central African Rep. | B9: Sub-Saharan Africa | C9: CF
A10: Chad | B10: Sub-Saharan Africa | C10: TD
A11: Comoros | B11: Sub-Saharan Africa | C11: KM
A12: Congo, Dem. Rep. | B12: Sub-Saharan Africa | C12: CD
A13: Congo, Rep. | B13: Sub-Saharan Africa | C13: CG
A14: Cote d'Ivoire | B14: Sub-Saharan Africa | C14: CI
A15: Equatorial Guinea | B15: Sub-Saharan Africa | C15: GQ
A16: Eritrea | B16: Sub-Saharan Africa | C16: ER
A17: Eritrea and Ethiopia | B17: Sub-Saharan Africa | C17: Eritrea_Ethiopia
A18: Ethiopia | B18: Sub-Saharan Africa | C18: ET
A19: Gabon | B19: Sub-Saharan Africa | C19: GA
A20: Gambia | B20: Sub-Saharan Africa | C20: GM
A21: Ghana | B21: Sub-Saharan Africa | C21: GH
A22: Guinea | B22: Sub-Saharan Africa | C22: GN
A23: Guinea-Bissau | B23: Sub-Saharan Africa | C23: GW
A24: Kenya | B24: Sub-Saharan Africa | C24: KE
A25: Lesotho | B25: Sub-Saharan Africa | C25: LS
A26: Liberia | B26: Sub-Saharan Africa | C26: LR
A27: Madagascar | B27: Sub-Saharan Africa | C27: MG
A28: Malawi | B28: Sub-Saharan Africa | C28: MW
A29: Mali | B29: Sub-Saharan Africa | C29: ML
A30: Mauritania | B30: Sub-Saharan Africa | C30: MR
A31: Mauritius | B31: Sub-Saharan Africa | C31: MU
A32: Mayotte | B32: Sub-Saharan Africa | C32: YT
A33: Mozambique | B33: Sub-Saharan Africa | C33: MZ
A34: Namibia | B34: Sub-Saharan Africa | C34: NA
A35: Niger | B35: Sub-Saharan Africa | C35: NE
A36: Nigeria | B36: Sub-Saharan Africa | C36: NG
A37: Reunion | B37: Sub-Saharan Africa | C37: RE
A38: Rwanda | B38: Sub-Saharan Africa | C38: RW
A39: Saint Helena | B39: Sub-Saharan Africa | C39: SH
A40: Sao Tome and Principe | B40: Sub-Saharan Africa | C40: ST
A41: Senegal | B41: Sub-Saharan Africa | C41: SN
A42: Seychelles | B42: Sub-Saharan Africa | C42: SC
A43: Sierra Leone | B43: Sub-Saharan Africa | C43: SL
A44: Somalia | B44: Sub-Saharan Africa | C44: SO
A45: Somaliland | B45: Sub-Saharan Africa | C45: Somaliland
A46: South Africa | B46: Sub-Saharan Africa | C46: ZA
A47: South Sudan | B47: Sub-Saharan Africa | C47: South Sudan
A48: Sudan | B48: Sub-Saharan Africa | C48: SD
A49: Swaziland | B49: Sub-Saharan Africa | C49: SZ
A50: Tanzania | B50: Sub-Saharan Africa | C50: TZ
A51: Togo | B51: Sub-Saharan Africa | C51: TG
A52: Uganda | B52: Sub-Saharan Africa | C52: UG
A53: Zambia | B53: Sub-Saharan Africa | C53: ZM
A54: Zimbabwe | B54: Sub-Saharan Africa | C54: ZW
A55: Afghanistan | B55: South Asia | C55: AF
A56: Bangladesh | B56: South Asia | C56: BD
A57: Bhutan | B57: South Asia | C57: BT
A58: India | B58: South Asia | C58: IN
A59: Maldives | B59: South Asia | C59: MV
A60: Nepal | B60: South Asia | C60: NP
A61: Pakistan | B61: South Asia | C61: PK
A62: Sri Lanka | B62: South Asia | C62: LK
A63: Algeria | B63: Middle East & North Africa | C63: DZ
A64: Bahrain | B64: Middle East & North Africa | C64: BH
A65: Djibouti | B65: Middle East & North Africa | C65: DJ
A66: Egypt | B66: Middle East & North Africa | C66: EG
A67: Iran | B67: Middle East & North Africa | C67: IR
A68: Iraq | B68: Middle East & North Africa | C68: IQ
A69: Israel | B69: Middle East & North Africa | C69: IL
A70: Jordan | B70: Middle East & North Africa | C70: JO
A71: Kuwait | B71: Middle East & North Africa | C71: KW
A72: Lebanon | B72: Middle East & North Africa | C72: LB
A73: Libya | B73: Middle East & North Africa | C73: LY
A74: Morocco | B74: Middle East & North Africa | C74: MA
A75: Oman | B75: Middle East & North Africa | C75: OM
A76: Qatar | B76: Middle East & North Africa | C76: QA
A77: Saudi Arabia | B77: Middle East & North Africa | C77: SA
A78: Syria | B78: Middle East & North Africa | C78: SY
A79: Tunisia | B79: Middle East & North Africa | C79: TN
A80: United Arab Emirates | B80: Middle East & North Africa | C80: AE
A81: West Bank and Gaza | B81: Middle East & North Africa | C81: PS
A82: Yemen, Rep. | B82: Middle East & North Africa | C82: YE
A83: Yemen Arab Republic (Former) | B83: Middle East & North Africa | C83: North_Yemen
A84: Yemen Democratic (Former) | B84: Middle East & North Africa | C84: South_Yemen
A85: Anguilla | B85: America | C85: AI
A86: Antigua and Barbuda | B86: America | C86: AG
A87: Argentina | B87: America | C87: AR
A88: Aruba | B88: America | C88: AW
A89: Bahamas | B89: America | C89: BS
A90: Barbados | B90: America | C90: BB
A91: Belize | B91: America | C91: BZ
A92: Bermuda | B92: America | C92: BM
A93: Bolivia | B93: America | C93: BO
A94: Brazil | B94: America | C94: BR
A95: British Virgin Islands | B95: America | C95: VG
A96: Canada | B96: America | C96: CA
A97: Cayman Islands | B97: America | C97: KY
A98: Chile | B98: America | C98: CL
A99: Colombia | B99: America | C99: CO
A100: Costa Rica | B100: America | C100: CR
A101: Cuba | B101: America | C101: CU
A102: Dominica | B102: America | C102: DM
A103: Dominican Rep. | B103: America | C103: DO
A104: Ecuador | B104: America | C104: EC
A105: El Salvador | B105: America | C105: SV
A106: Falkland Islands (Malvinas) | B106: America | C106: FK
A107: French Guiana | B107: America | C107: GF
A108: Grenada | B108: America | C108: GD
A109: Guadeloupe | B109: America | C109: GP
A110: Guatemala | B110: America | C110: GT
A111: Guyana | B111: America | C111: GY
A112: Haiti | B112: America | C112: HT
A113: Honduras | B113: America | C113: HN
A114: Jamaica | B114: America | C114: JM
A115: Martinique | B115: America | C115: MQ
A116: Mexico | B116: America | C116: MX
A117: Montserrat | B117: America | C117: MS
A118: Netherlands Antilles | B118: America | C118: AN
A119: Nicaragua | B119: America | C119: NI
A120: Panama | B120: America | C120: PA
A121: Paraguay | B121: America | C121: PY
A122: Peru | B122: America | C122: PE
A123: Puerto Rico | B123: America | C123: PR
A124: Saint Barthélemy | B124: America | C124: BL
A125: Saint Martin | B125: America | C125: MF
A126: Saint-Pierre-et-Miquelon | B126: America | C126: PM
A127: Saint Kitts and Nevis | B127: America | C127: KN
A128: Saint Lucia | B128: America | C128: LC
A129: Saint Vincent and the Grenadines | B129: America | C129: VC
A130: Suriname | B130: America | C130: SR
A131: Trinidad and Tobago | B131: America | C131: TT
A132: Turks and Caicos Islands | B132: America | C132: TC
A133: United States | B133: America | C133: US
A134: Uruguay | B134: America | C134: UY
A135: Abkhazia | B135: Europe & Central Asia | C135: Abkhazia
A136: Akrotiri and Dhekelia | B136: Europe & Central Asia | C136: Akrotiri_Dhekelia
A137: Albania | B137: Europe & Central Asia | C137: AL
A138: Andorra | B138: Europe & Central Asia | C138: AD
A139: Armenia | B139: Europe & Central Asia | C139: AM
A140: Austria | B140: Europe & Central Asia | C140: AT
A141: Azerbaijan | B141: Europe & Central Asia | C141: AZ
A142: Belarus | B142: Europe & Central Asia | C142: BY
A143: Belgium | B143: Europe & Central Asia | C143: BE
A144: Bosnia and Herzegovina | B144: Europe & Central Asia | C144: BA
A145: Bulgaria | B145: Europe & Central Asia | C145: BG
A146: Channel Islands | B146: Europe & Central Asia | C146: Channel_Islands
A147: Croatia | B147: Europe & Central Asia | C147: HR
A148: Cyprus | B148: Europe & Central Asia | C148: CY
A149: Czech Rep. | B149: Europe & Central Asia | C149: CZ
A150: Czechoslovakia | B150: Europe & Central Asia | C150: Czechoslovakia
A151: Denmark | B151: Europe & Central Asia | C151: DK
A152: East Germany | B152: Europe & Central Asia | C152: East_Germany
A153: Estonia | B153: Europe & Central Asia | C153: EE
A154: Faeroe Islands | B154: Europe & Central Asia | C154: FO
A155: Finland | B155: Europe & Central Asia | C155: FI
A156: France | B156: Europe & Central Asia | C156: FR
A157: Georgia | B157: Europe & Central Asia | C157: GE
A158: Germany | B158: Europe & Central Asia | C158: DE
A159: Gibraltar | B159: Europe & Central Asia | C159: GI
A160: Greece | B160: Europe & Central Asia | C160: GR
A161: Greenland | B161: Europe & Central Asia | C161: GL
A162: Guernsey | B162: Europe & Central Asia | C162: GG
A163: Holy See | B163: Europe & Central Asia | C163: Holy_See
A164: Hungary | B164: Europe & Central Asia | C164: HU
A165: Iceland | B165: Europe & Central Asia | C165: IS
A166: Ireland | B166: Europe & Central Asia | C166: IE
A167: Isle of Man | B167: Europe & Central Asia | C167: IM
A168: Italy | B168: Europe & Central Asia | C168: IT
A169: Jersey | B169: Europe & Central Asia | C169: JE
A170: Kazakhstan | B170: Europe & Central Asia | C170: KZ
A171: Kosovo | B171: Europe & Central Asia | C171: Kosovo
A172: Kyrgyzstan | B172: Europe & Central Asia | C172: KG
A173: Latvia | B173: Europe & Central Asia | C173: LV
A174: Liechtenstein | B174: Europe & Central Asia | C174: LI
A175: Lithuania | B175: Europe & Central Asia | C175: LT
A176: Luxembourg | B176: Europe & Central Asia | C176: LU
A177: Macedonia, FYR | B177: Europe & Central Asia | C177: MK
A178: Malta | B178: Europe & Central Asia | C178: MT
A179: Moldova | B179: Europe & Central Asia | C179: MD
A180: Monaco | B180: Europe & Central Asia | C180: MC
A181: Montenegro | B181: Europe & Central Asia | C181: ME
A182: Netherlands | B182: Europe & Central Asia | C182: NL
A183: Ngorno-Karabakh | B183: Europe & Central Asia | C183: Ngorno_Karabakh
A184: Northern Cyprus | B184: Europe & Central Asia | C184: Northern_Cyprus
A185: Norway | B185: Europe & Central Asia | C185: NO
A186: Poland | B186: Europe & Central Asia | C186: PL
A187: Portugal | B187: Europe & Central Asia | C187: PT
A188: Romania | B188: Europe & Central Asia | C188: RO
A189: Russia | B189: Europe & Central Asia | C189: RU
A190: San Marino | B190: Europe & Central Asia | C190: SM
A191: Serbia | B191: Europe & Central Asia | C191: RS
A192: Serbia and Montenegro | B192: Europe & Central Asia | C192: Serbia_Montenegro
A193: Serbia excluding Kosovo | B193: Europe & Central Asia | C193: Serbia_excluding_Kosovo
A194: Slovak Republic | B194: Europe & Central Asia | C194: SK
A195: Slovenia | B195: Europe & Central Asia | C195: SI
A196: South Ossetia | B196: Europe & Central Asia | C196: South_Ossetia
A197: Spain | B197: Europe & Central Asia | C197: ES
A198: Svalbard | B198: Europe & Central Asia | C198: SJ
A199: Sweden | B199: Europe & Central Asia | C199: SE
A200: Switzerland | B200: Europe & Central Asia | C200: CH
... 61 more rows

Sheet Inkomen
A1: GDP per capita | B1: 1800 | C1: 1801 | D1: 1802 | E1: 1803 | F1: 1804 | G1: 1805 | H1: 1806 | I1: 1807 | J1: 1808 | K1: 1809 | L1: 1810 | M1: 1811 | N1: 1812 | O1: 1813 | P1: 1814 | Q1: 1815 | R1: 1816 | S1: 1817 | T1: 1818 | U1: 1819 | V1: 1820 | W1: 1821 | X1: 1822 | Y1: 1823 | Z1: 1824 | AA1: 1825 | AB1: 1826 | AC1: 1827 | AD1: 1828 | AE1: 1829 | AF1: 1830 | AG1: 1831 | AH1: 1832 | AI1: 1833 | AJ1: 1834 | AK1: 1835 | AL1: 1836 | AM1: 1837 | AN1: 1838 | AO1: 1839 | AP1: 1840 | AQ1: 1841 | AR1: 1842 | AS1: 1843 | AT1: 1844 | AU1: 1845 | AV1: 1846 | AW1: 1847 | AX1: 1848 | AY1: 1849 | AZ1: 1850 | BA1: 1851 | BB1: 1852 | BC1: 1853 | BD1: 1854 | BE1: 1855 | BF1: 1856 | BG1: 1857 | BH1: 1858 | BI1: 1859 | BJ1: 1860 | BK1: 1861 | BL1: 1862 | BM1: 1863 | BN1: 1864 | BO1: 1865 | BP1: 1866 | BQ1: 1867 | BR1: 1868 | BS1: 1869 | BT1: 1870 | BU1: 1871 | BV1: 1872 | BW1: 1873 | BX1: 1874 | BY1: 1875 | BZ1: 1876 | CA1: 1877 | CB1: 1878 | CC1: 1879 | CD1: 1880 | CE1: 1881 | CF1: 1882 | CG1: 1883 | CH1: 1884 | CI1: 1885 | CJ1: 1886 | CK1: 1887 | CL1: 1888 | CM1: 1889 | CN1: 1890 | CO1: 1891 | CP1: 1892 | CQ1: 1893 | CR1: 1894 | CS1: 1895 | CT1: 1896 | CU1: 1897 | CV1: 1898 | CW1: 1899 | CX1: 1900 | CY1: 1901 | CZ1: 1902 | DA1: 1903 | DB1: 1904 | DC1: 1905 | DD1: 1906 | DE1: 1907 | DF1: 1908 | DG1: 1909 | DH1: 1910 | DI1: 1911 | DJ1: 1912 | DK1: 1913 | DL1: 1914 | DM1: 1915 | DN1: 1916 | DO1: 1917 | DP1: 1918 | DQ1: 1919 | DR1: 1920 | DS1: 1921 | DT1: 1922 | DU1: 1923 | DV1: 1924 | DW1: 1925 | DX1: 1926 | DY1: 1927 | DZ1: 1928 | EA1: 1929 | EB1: 1930 | EC1: 1931 | ED1: 1932 | EE1: 1933 | EF1: 1934 | EG1: 1935 | EH1: 1936 | EI1: 1937 | EJ1: 1938 | EK1: 1939 | EL1: 1940 | EM1: 1941 | EN1: 1942 | EO1: 1943 | EP1: 1944 | EQ1: 1945 | ER1: 1946 | ES1: 1947 | ET1: 1948 | EU1: 1949 | EV1: 1950 | EW1: 1951 | EX1: 1952 | EY1: 1953 | EZ1: 1954 | FA1: 1955 | FB1: 1956 | FC1: 1957 | FD1: 1958 | FE1: 1959 | FF1: 1960 | FG1: 1961 | FH1: 1962 | FI1: 1963 | FJ1: 1964 | FK1: 1965 | FL1: 1966 | FM1: 1967 | FN1: 1968 | FO1: 1969 | FP1: 1970 | FQ1: 1971 | FR1: 1972 | FS1: 1973 | FT1: 1974 | FU1: 1975 | FV1: 1976 | FW1: 1977 | FX1: 1978 | FY1: 1979 | FZ1: 1980 | GA1: 1981 | GB1: 1982 | GC1: 1983 | GD1: 1984 | GE1: 1985 | GF1: 1986 | GG1: 1987 | GH1: 1988 | GI1: 1989 | GJ1: 1990 | GK1: 1991 | GL1: 1992 | GM1: 1993 | GN1: 1994 | GO1: 1995 | GP1: 1996 | GQ1: 1997 | GR1: 1998 | GS1: 1999 | GT1: 2000 | GU1: 2001 | GV1: 2002 | GW1: 2003 | GX1: 2004 | GY1: 2005 | GZ1: 2006 | HA1: 2007 | HB1: 2008 | HC1: 2009 | HD1: 2010 | HE1: 2011 | HF1: 2012 | HG1: 2013 | HH1: 2014 | HI1: 2015
A2: Abkhazia | B2: 1 | C2: 1 | D2: 1 | E2: 1 | F2: 1 | G2: 1 | H2: 1 | I2: 1 | J2: 1 | K2: 1 | L2: 1 | M2: 1 | N2: 1 | O2: 1 | P2: 1 | Q2: 1 | R2: 1 | S2: 1 | T2: 1 | U2: 1 | V2: 1 | W2: 1 | X2: 1 | Y2: 1 | Z2: 1 | AA2: 1 | AB2: 1 | AC2: 1 | AD2: 1 | AE2: 1 | AF2: 1 | AG2: 1 | AH2: 1 | AI2: 1 | AJ2: 1 | AK2: 1 | AL2: 1 | AM2: 1 | AN2: 1 | AO2: 1 | AP2: 1 | AQ2: 1 | AR2: 1 | AS2: 1 | AT2: 1 | AU2: 1 | AV2: 1 | AW2: 1 | AX2: 1 | AY2: 1 | AZ2: 1 | BA2: 1 | BB2: 1 | BC2: 1 | BD2: 1 | BE2: 1 | BF2: 1 | BG2: 1 | BH2: 1 | BI2: 1 | BJ2: 1 | BK2: 1 | BL2: 1 | BM2: 1 | BN2: 1 | BO2: 1 | BP2: 1 | BQ2: 1 | BR2: 1 | BS2: 1 | BT2: 1 | BU2: 1 | BV2: 1 | BW2: 1 | BX2: 1 | BY2: 1 | BZ2: 1 | CA2: 1 | CB2: 1 | CC2: 1 | CD2: 1 | CE2: 1 | CF2: 1 | CG2: 1 | CH2: 1 | CI2: 1 | CJ2: 1 | CK2: 1 | CL2: 1 | CM2: 1 | CN2: 1 | CO2: 1 | CP2: 1 | CQ2: 1 | CR2: 1 | CS2: 1 | CT2: 1 | CU2: 1 | CV2: 1 | CW2: 1 | CX2: 1 | CY2: 1 | CZ2: 1 | DA2: 1 | DB2: 1 | DC2: 1 | DD2: 1 | DE2: 1 | DF2: 1 | DG2: 1 | DH2: 1 | DI2: 1 | DJ2: 1 | DK2: 1 | DL2: 1 | DM2: 1 | DN2: 1 | DO2: 1 | DP2: 1 | DQ2: 1 | DR2: 1 | DS2: 1 | DT2: 1 | DU2: 1 | DV2: 1 | DW2: 1 | DX2: 1 | DY2: 1 | DZ2: 1 | EA2: 1 | EB2: 1 | EC2: 1 | ED2: 1 | EE2: 1 | EF2: 1 | EG2: 1 | EH2: 1 | EI2: 1 | EJ2: 1 | EK2: 1 | EL2: 1 | EM2: 1 | EN2: 1 | EO2: 1 | EP2: 1 | EQ2: 1 | ER2: 1 | ES2: 1 | ET2: 1 | EU2: 1 | EV2: 1 | EW2: 1 | EX2: 1 | EY2: 1 | EZ2: 1 | FA2: 1 | FB2: 1 | FC2: 1 | FD2: 1 | FE2: 1 | FF2: 1 | FG2: 1 | FH2: 1 | FI2: 1 | FJ2: 1 | FK2: 1 | FL2: 1 | FM2: 1 | FN2: 1 | FO2: 1 | FP2: 1 | FQ2: 1 | FR2: 1 | FS2: 1 | FT2: 1 | FU2: 1 | FV2: 1 | FW2: 1 | FX2: 1 | FY2: 1 | FZ2: 1 | GA2: 1 | GB2: 1 | GC2: 1 | GD2: 1 | GE2: 1 | GF2: 1 | GG2: 1 | GH2: 1 | GI2: 1 | GJ2: 1 | GK2: 1 | GL2: 1 | GM2: 1 | GN2: 1 | GO2: 1 | GP2: 1 | GQ2: 1 | GR2: 1 | GS2: 1 | GT2: 1 | GU2: 1 | GV2: 1 | GW2: 1 | GX2: 1 | GY2: 1 | GZ2: 1 | HA2: 1 | HB2: 1 | HC2: 1 | HD2: 1 | HE2: 1 | HF2: 1 | HG2: 1 | HH2: 1 | HI2: 1
A3: Afghanistan | B3: 603 | C3: 603 | D3: 603 | E3: 603 | F3: 603 | G3: 603 | H3: 603 | I3: 603 | J3: 603 | K3: 603 | L3: 604 | M3: 604 | N3: 604 | O3: 604 | P3: 604 | Q3: 604 | R3: 604 | S3: 604 | T3: 604 | U3: 604 | V3: 604 | W3: 607 | X3: 609 | Y3: 611 | Z3: 613 | AA3: 615 | AB3: 617 | AC3: 619 | AD3: 621 | AE3: 623 | AF3: 625 | AG3: 627 | AH3: 630 | AI3: 632 | AJ3: 634 | AK3: 636 | AL3: 638 | AM3: 640 | AN3: 643 | AO3: 645 | AP3: 647 | AQ3: 649 | AR3: 651 | AS3: 654 | AT3: 656 | AU3: 658 | AV3: 660 | AW3: 663 | AX3: 665 | AY3: 667 | AZ3: 669 | BA3: 672 | BB3: 674 | BC3: 676 | BD3: 678 | BE3: 681 | BF3: 683 | BG3: 685 | BH3: 688 | BI3: 690 | BJ3: 692 | BK3: 695 | BL3: 697 | BM3: 699 | BN3: 702 | BO3: 704 | BP3: 707 | BQ3: 709 | BR3: 711 | BS3: 714 | BT3: 716 | BU3: 719 | BV3: 721 | BW3: 724 | BX3: 726 | BY3: 729 | BZ3: 731 | CA3: 734 | CB3: 736 | CC3: 739 | CD3: 741 | CE3: 744 | CF3: 746 | CG3: 749 | CH3: 751 | CI3: 754 | CJ3: 756 | CK3: 759 | CL3: 761 | CM3: 764 | CN3: 767 | CO3: 769 | CP3: 772 | CQ3: 774 | CR3: 777 | CS3: 780 | CT3: 782 | CU3: 785 | CV3: 788 | CW3: 790 | CX3: 793 | CY3: 796 | CZ3: 798 | DA3: 801 | DB3: 804 | DC3: 807 | DD3: 809 | DE3: 812 | DF3: 815 | DG3: 818 | DH3: 820 | DI3: 823 | DJ3: 826 | DK3: 829 | DL3: 833 | DM3: 837 | DN3: 841 | DO3: 845 | DP3: 849 | DQ3: 853 | DR3: 857 | DS3: 862 | DT3: 868 | DU3: 874 | DV3: 879 | DW3: 885 | DX3: 890 | DY3: 896 | DZ3: 902 | EA3: 908 | EB3: 913 | EC3: 919 | ED3: 925 | EE3: 931 | EF3: 937 | EG3: 943 | EH3: 949 | EI3: 955 | EJ3: 961 | EK3: 967 | EL3: 973 | EM3: 979 | EN3: 985 | EO3: 991 | EP3: 997 | EQ3: 1004 | ER3: 1010 | ES3: 1016 | ET3: 1022 | EU3: 1029 | EV3: 1035 | EW3: 1050 | EX3: 1069 | EY3: 1116 | EZ3: 1122 | FA3: 1125 | FB3: 1155 | FC3: 1134 | FD3: 1176 | FE3: 1187 | FF3: 1206 | FG3: 1192 | FH3: 1188 | FI3: 1185 | FJ3: 1182 | FK3: 1182 | FL3: 1168 | FM3: 1173 | FN3: 1187 | FO3: 1178 | FP3: 1174 | FQ3: 1092 | FR3: 1046 | FS3: 1137 | FT3: 1170 | FU3: 1201 | FV3: 1231 | FW3: 1119 | FX3: 1179 | FY3: 1155 | FZ3: 1158 | GA3: 1284 | GB3: 1402 | GC3: 1454 | GD3: 1429 | GE3: 1384 | GF3: 1486 | GG3: 1230 | GH3: 1113 | GI3: 1087 | GJ3: 1028 | GK3: 1022 | GL3: 941 | GM3: 810 | GN3: 725 | GO3: 872 | GP3: 895 | GQ3: 921 | GR3: 947 | GS3: 972 | GT3: 962 | GU3: 862 | GV3: 1053 | GW3: 1097 | GX3: 1067 | GY3: 1146 | GZ3: 1173 | HA3: 1298 | HB3: 1311 | HC3: 1548 | HD3: 1637 | HE3: 1695 | HF3: 1893 | HG3: 1884 | HH3: 1877 | HI3: 1925
A4: Akrotiri and Dhekelia | B4: 1 | C4: 1 | D4: 1 | E4: 1 | F4: 1 | G4: 1 | H4: 1 | I4: 1 | J4: 1 | K4: 1 | L4: 1 | M4: 1 | N4: 1 | O4: 1 | P4: 1 | Q4: 1 | R4: 1 | S4: 1 | T4: 1 | U4: 1 | V4: 1 | W4: 1 | X4: 1 | Y4: 1 | Z4: 1 | AA4: 1 | AB4: 1 | AC4: 1 | AD4: 1 | AE4: 1 | AF4: 1 | AG4: 1 | AH4: 1 | AI4: 1 | AJ4: 1 | AK4: 1 | AL4: 1 | AM4: 1 | AN4: 1 | AO4: 1 | AP4: 1 | AQ4: 1 | AR4: 1 | AS4: 1 | AT4: 1 | AU4: 1 | AV4: 1 | AW4: 1 | AX4: 1 | AY4: 1 | AZ4: 1 | BA4: 1 | BB4: 1 | BC4: 1 | BD4: 1 | BE4: 1 | BF4: 1 | BG4: 1 | BH4: 1 | BI4: 1 | BJ4: 1 | BK4: 1 | BL4: 1 | BM4: 1 | BN4: 1 | BO4: 1 | BP4: 1 | BQ4: 1 | BR4: 1 | BS4: 1 | BT4: 1 | BU4: 1 | BV4: 1 | BW4: 1 | BX4: 1 | BY4: 1 | BZ4: 1 | CA4: 1 | CB4: 1 | CC4: 1 | CD4: 1 | CE4: 1 | CF4: 1 | CG4: 1 | CH4: 1 | CI4: 1 | CJ4: 1 | CK4: 1 | CL4: 1 | CM4: 1 | CN4: 1 | CO4: 1 | CP4: 1 | CQ4: 1 | CR4: 1 | CS4: 1 | CT4: 1 | CU4: 1 | CV4: 1 | CW4: 1 | CX4: 1 | CY4: 1 | CZ4: 1 | DA4: 1 | DB4: 1 | DC4: 1 | DD4: 1 | DE4: 1 | DF4: 1 | DG4: 1 | DH4: 1 | DI4: 1 | DJ4: 1 | DK4: 1 | DL4: 1 | DM4: 1 | DN4: 1 | DO4: 1 | DP4: 1 | DQ4: 1 | DR4: 1 | DS4: 1 | DT4: 1 | DU4: 1 | DV4: 1 | DW4: 1 | DX4: 1 | DY4: 1 | DZ4: 1 | EA4: 1 | EB4: 1 | EC4: 1 | ED4: 1 | EE4: 1 | EF4: 1 | EG4: 1 | EH4: 1 | EI4: 1 | EJ4: 1 | EK4: 1 | EL4: 1 | EM4: 1 | EN4: 1 | EO4: 1 | EP4: 1 | EQ4: 1 | ER4: 1 | ES4: 1 | ET4: 1 | EU4: 1 | EV4: 1 | EW4: 1 | EX4: 1 | EY4: 1 | EZ4: 1 | FA4: 1 | FB4: 1 | FC4: 1 | FD4: 1 | FE4: 1 | FF4: 1 | FG4: 1 | FH4: 1 | FI4: 1 | FJ4: 1 | FK4: 1 | FL4: 1 | FM4: 1 | FN4: 1 | FO4: 1 | FP4: 1 | FQ4: 1 | FR4: 1 | FS4: 1 | FT4: 1 | FU4: 1 | FV4: 1 | FW4: 1 | FX4: 1 | FY4: 1 | FZ4: 1 | GA4: 1 | GB4: 1 | GC4: 1 | GD4: 1 | GE4: 1 | GF4: 1 | GG4: 1 | GH4: 1 | GI4: 1 | GJ4: 1 | GK4: 1 | GL4: 1 | GM4: 1 | GN4: 1 | GO4: 1 | GP4: 1 | GQ4: 1 | GR4: 1 | GS4: 1 | GT4: 1 | GU4: 1 | GV4: 1 | GW4: 1 | GX4: 1 | GY4: 1 | GZ4: 1 | HA4: 1 | HB4: 1 | HC4: 1 | HD4: 1 | HE4: 1 | HF4: 1 | HG4: 1 | HH4: 1 | HI4: 1
A5: Albania | B5: 667 | C5: 667 | D5: 668 | E5: 668 | F5: 668 | G5: 668 | H5: 668 | I5: 668 | J5: 668 | K5: 668 | L5: 668 | M5: 668 | N5: 669 | O5: 669 | P5: 669 | Q5: 669 | R5: 669 | S5: 669 | T5: 669 | U5: 669 | V5: 669 | W5: 671 | X5: 672 | Y5: 674 | Z5: 676 | AA5: 677 | AB5: 679 | AC5: 680 | AD5: 682 | AE5: 683 | AF5: 685 | AG5: 686 | AH5: 688 | AI5: 689 | AJ5: 691 | AK5: 693 | AL5: 694 | AM5: 696 | AN5: 697 | AO5: 699 | AP5: 701 | AQ5: 702 | AR5: 704 | AS5: 705 | AT5: 707 | AU5: 709 | AV5: 710 | AW5: 712 | AX5: 713 | AY5: 715 | AZ5: 717 | BA5: 718 | BB5: 720 | BC5: 722 | BD5: 723 | BE5: 725 | BF5: 727 | BG5: 728 | BH5: 730 | BI5: 731 | BJ5: 733 | BK5: 735 | BL5: 736 | BM5: 738 | BN5: 740 | BO5: 742 | BP5: 743 | BQ5: 745 | BR5: 747 | BS5: 748 | BT5: 750 | BU5: 761 | BV5: 773 | BW5: 784 | BX5: 796 | BY5: 808 | BZ5: 820 | CA5: 832 | CB5: 844 | CC5: 857 | CD5: 870 | CE5: 882 | CF5: 896 | CG5: 909 | CH5: 922 | CI5: 936 | CJ5: 950 | CK5: 964 | CL5: 979 | CM5: 993 | CN5: 1008 | CO5: 1022 | CP5: 1036 | CQ5: 1051 | CR5: 1065 | CS5: 1080 | CT5: 1095 | CU5: 1110 | CV5: 1125 | CW5: 1141 | CX5: 1157 | CY5: 1172 | CZ5: 1188 | DA5: 1203 | DB5: 1219 | DC5: 1236 | DD5: 1252 | DE5: 1269 | DF5: 1285 | DG5: 1302 | DH5: 1320 | DI5: 1342 | DJ5: 1365 | DK5: 1389 | DL5: 1406 | DM5: 1424 | DN5: 1442 | DO5: 1460 | DP5: 1479 | DQ5: 1498 | DR5: 1516 | DS5: 1535 | DT5: 1554 | DU5: 1572 | DV5: 1591 | DW5: 1610 | DX5: 1629 | DY5: 1647 | DZ5: 1666 | EA5: 1685 | EB5: 1696 | EC5: 1707 | ED5: 1717 | EE5: 1728 | EF5: 1738 | EG5: 1748 | EH5: 1758 | EI5: 1768 | EJ5: 1778 | EK5: 1788 | EL5: 1797 | EM5: 1807 | EN5: 1816 | EO5: 1825 | EP5: 1834 | EQ5: 1842 | ER5: 1851 | ES5: 1859 | ET5: 1867 | EU5: 1875 | EV5: 1883 | EW5: 1965 | EX5: 1968 | EY5: 2048 | EZ5: 2108 | FA5: 2222 | FB5: 2244 | FC5: 2387 | FD5: 2493 | FE5: 2594 | FF5: 2724 | FG5: 2744 | FH5: 2832 | FI5: 2926 | FJ5: 3023 | FK5: 3129 | FL5: 3242 | FM5: 3359 | FN5: 3475 | FO5: 3587 | FP5: 3712 | FQ5: 3849 | FR5: 3988 | FS5: 4174 | FT5: 4177 | FU5: 4178 | FV5: 4182 | FW5: 4188 | FX5: 4194 | FY5: 4201 | FZ5: 4218 | GA5: 4227 | GB5: 4237 | GC5: 4248 | GD5: 4259 | GE5: 4267 | GF5: 4281 | GG5: 4294 | GH5: 4307 | GI5: 4325 | GJ5: 4350 | GK5: 3081 | GL5: 2877 | GM5: 3172 | GN5: 3457 | GO5: 3941 | GP5: 4326 | GQ5: 3909 | GR5: 4434 | GS5: 4912 | GT5: 5305 | GU5: 5730 | GV5: 5913 | GW5: 6274 | GX5: 6672 | GY5: 7075 | GZ5: 7476 | HA5: 7977 | HB5: 8644 | HC5: 8994 | HD5: 9374 | HE5: 9640 | HF5: 9811 | HG5: 9961 | HH5: 10160 | HI5: 10620
A6: Algeria | B6: 716 | C6: 716 | D6: 717 | E6: 718 | F6: 719 | G6: 720 | H6: 721 | I6: 722 | J6: 723 | K6: 724 | L6: 725 | M6: 726 | N6: 727 | O6: 728 | P6: 729 | Q6: 730 | R6: 731 | S6: 732 | T6: 733 | U6: 734 | V6: 735 | W6: 743 | X6: 751 | Y6: 759 | Z6: 768 | AA6: 776 | AB6: 784 | AC6: 793 | AD6: 802 | AE6: 810 | AF6: 819 | AG6: 828 | AH6: 837 | AI6: 846 | AJ6: 855 | AK6: 865 | AL6: 874 | AM6: 884 | AN6: 893 | AO6: 903 | AP6: 913 | AQ6: 923 | AR6: 933 | AS6: 943 | AT6: 953 | AU6: 964 | AV6: 974 | AW6: 985 | AX6: 996 | AY6: 1007 | AZ6: 1017 | BA6: 1029 | BB6: 1040 | BC6: 1051 | BD6: 1063 | BE6: 1074 | BF6: 1086 | BG6: 1098 | BH6: 1110 | BI6: 1122 | BJ6: 1134 | BK6: 1146 | BL6: 1159 | BM6: 1172 | BN6: 1184 | BO6: 1197 | BP6: 1210 | BQ6: 1223 | BR6: 1237 | BS6: 1250 | BT6: 1264 | BU6: 1278 | BV6: 1292 | BW6: 1306 | BX6: 1320 | BY6: 1334 | BZ6: 1349 | CA6: 1364 | CB6: 1378 | CC6: 1393 | CD6: 1409 | CE6: 1424 | CF6: 1440 | CG6: 1455 | CH6: 1471 | CI6: 1487 | CJ6: 1503 | CK6: 1520 | CL6: 1536 | CM6: 1553 | CN6: 1570 | CO6: 1587 | CP6: 1604 | CQ6: 1622 | CR6: 1640 | CS6: 1657 | CT6: 1676 | CU6: 1694 | CV6: 1712 | CW6: 1731 | CX6: 1750 | CY6: 1769 | CZ6: 1788 | DA6: 1808 | DB6: 1827 | DC6: 1847 | DD6: 1867 | DE6: 1888 | DF6: 1908 | DG6: 1929 | DH6: 1950 | DI6: 1998 | DJ6: 2046 | DK6: 2096 | DL6: 2132 | DM6: 2169 | DN6: 2206 | DO6: 2244 | DP6: 2281 | DQ6: 2319 | DR6: 2358 | DS6: 2418 | DT6: 2477 | DU6: 2537 | DV6: 2596 | DW6: 2654 | DX6: 2713 | DY6: 2771 | DZ6: 2828 | EA6: 2885 | EB6: 2942 | EC6: 2998 | ED6: 3054 | EE6: 3110 | EF6: 3165 | EG6: 3220 | EH6: 3274 | EI6: 3328 | EJ6: 3381 | EK6: 3434 | EL6: 3486 | EM6: 3538 | EN6: 3589 | EO6: 3640 | EP6: 3690 | EQ6: 3740 | ER6: 3789 | ES6: 3838 | ET6: 3886 | EU6: 3933 | EV6: 3980 | EW6: 3957 | EX6: 4070 | EY6: 4077 | EZ6: 4307 | FA6: 4359 | FB6: 4712 | FC6: 5166 | FD6: 5273 | FE6: 6147 | FF6: 6470 | FG6: 5602 | FH6: 4481 | FI6: 5551 | FJ6: 5693 | FK6: 5916 | FL6: 5478 | FM6: 5811 | FN6: 6319 | FO6: 6747 | FP6: 7227 | FQ6: 6427 | FR6: 7556 | FS6: 7581 | FT6: 7812 | FU6: 8119 | FV6: 8400 | FW6: 8888 | FX6: 9730 | FY6: 10293 | FZ6: 10166 | GA6: 10160 | GB6: 10477 | GC6: 10696 | GD6: 10947 | GE6: 11030 | GF6: 10722 | GG6: 10378 | GH6: 9888 | GI6: 10115 | GJ6: 10113 | GK6: 9748 | GL6: 9693 | GM6: 9279 | GN6: 9006 | GO6: 9168 | GP6: 9375 | GQ6: 9322 | GR6: 9646 | GS6: 9810 | GT6: 9885 | GU6: 10203 | GV6: 10634 | GW6: 11251 | GX6: 11575 | GY6: 12077 | GZ6: 12088 | HA6: 12289 | HB6: 12314 | HC6: 12285 | HD6: 12494 | HE6: 12606 | HF6: 12779 | HG6: 12893 | HH6: 13179 | HI6: 13434
A7: American Samoa | B7: 1 | C7: 1 | D7: 1 | E7: 1 | F7: 1 | G7: 1 | H7: 1 | I7: 1 | J7: 1 | K7: 1 | L7: 1 | M7: 1 | N7: 1 | O7: 1 | P7: 1 | Q7: 1 | R7: 1 | S7: 1 | T7: 1 | U7: 1 | V7: 1 | W7: 1 | X7: 1 | Y7: 1 | Z7: 1 | AA7: 1 | AB7: 1 | AC7: 1 | AD7: 1 | AE7: 1 | AF7: 1 | AG7: 1 | AH7: 1 | AI7: 1 | AJ7: 1 | AK7: 1 | AL7: 1 | AM7: 1 | AN7: 1 | AO7: 1 | AP7: 1 | AQ7: 1 | AR7: 1 | AS7: 1 | AT7: 1 | AU7: 1 | AV7: 1 | AW7: 1 | AX7: 1 | AY7: 1 | AZ7: 1 | BA7: 1 | BB7: 1 | BC7: 1 | BD7: 1 | BE7: 1 | BF7: 1 | BG7: 1 | BH7: 1 | BI7: 1 | BJ7: 1 | BK7: 1 | BL7: 1 | BM7: 1 | BN7: 1 | BO7: 1 | BP7: 1 | BQ7: 1 | BR7: 1 | BS7: 1 | BT7: 1 | BU7: 1 | BV7: 1 | BW7: 1 | BX7: 1 | BY7: 1 | BZ7: 1 | CA7: 1 | CB7: 1 | CC7: 1 | CD7: 1 | CE7: 1 | CF7: 1 | CG7: 1 | CH7: 1 | CI7: 1 | CJ7: 1 | CK7: 1 | CL7: 1 | CM7: 1 | CN7: 1 | CO7: 1 | CP7: 1 | CQ7: 1 | CR7: 1 | CS7: 1 | CT7: 1 | CU7: 1 | CV7: 1 | CW7: 1 | CX7: 1 | CY7: 1 | CZ7: 1 | DA7: 1 | DB7: 1 | DC7: 1 | DD7: 1 | DE7: 1 | DF7: 1 | DG7: 1 | DH7: 1 | DI7: 1 | DJ7: 1 | DK7: 1 | DL7: 1 | DM7: 1 | DN7: 1 | DO7: 1 | DP7: 1 | DQ7: 1 | DR7: 1 | DS7: 1 | DT7: 1 | DU7: 1 | DV7: 1 | DW7: 1 | DX7: 1 | DY7: 1 | DZ7: 1 | EA7: 1 | EB7: 1 | EC7: 1 | ED7: 1 | EE7: 1 | EF7: 1 | EG7: 1 | EH7: 1 | EI7: 1 | EJ7: 1 | EK7: 1 | EL7: 1 | EM7: 1 | EN7: 1 | EO7: 1 | EP7: 1 | EQ7: 1 | ER7: 1 | ES7: 1 | ET7: 1 | EU7: 1 | EV7: 1 | EW7: 1 | EX7: 1 | EY7: 1 | EZ7: 1 | FA7: 1 | FB7: 1 | FC7: 1 | FD7: 1 | FE7: 1 | FF7: 1 | FG7: 1 | FH7: 1 | FI7: 1 | FJ7: 1 | FK7: 1 | FL7: 1 | FM7: 1 | FN7: 1 | FO7: 1 | FP7: 1 | FQ7: 1 | FR7: 1 | FS7: 1 | FT7: 1 | FU7: 1 | FV7: 1 | FW7: 1 | FX7: 1 | FY7: 1 | FZ7: 1 | GA7: 1 | GB7: 1 | GC7: 1 | GD7: 1 | GE7: 1 | GF7: 1 | GG7: 1 | GH7: 1 | GI7: 1 | GJ7: 1 | GK7: 1 | GL7: 1 | GM7: 1 | GN7: 1 | GO7: 1 | GP7: 1 | GQ7: 1 | GR7: 1 | GS7: 1 | GT7: 1 | GU7: 1 | GV7: 1 | GW7: 1 | GX7: 1 | GY7: 1 | GZ7: 1 | HA7: 1 | HB7: 1 | HC7: 1 | HD7: 1 | HE7: 1 | HF7: 1 | HG7: 1 | HH7: 1 | HI7: 1
A8: Andorra | B8: 1197 | C8: 1199 | D8: 1201 | E8: 1204 | F8: 1206 | G8: 1208 | H8: 1210 | I8: 1212 | J8: 1215 | K8: 1217 | L8: 1219 | M8: 1221 | N8: 1224 | O8: 1226 | P8: 1228 | Q8: 1230 | R8: 1233 | S8: 1235 | T8: 1237 | U8: 1239 | V8: 1242 | W8: 1256 | X8: 1271 | Y8: 1286 | Z8: 1302 | AA8: 1317 | AB8: 1333 | AC8: 1349 | AD8: 1365 | AE8: 1381 | AF8: 1397 | AG8: 1414 | AH8: 1431 | AI8: 1448 | AJ8: 1465 | AK8: 1482 | AL8: 1500 | AM8: 1518 | AN8: 1536 | AO8: 1554 | AP8: 1573 | AQ8: 1591 | AR8: 1610 | AS8: 1629 | AT8: 1649 | AU8: 1668 | AV8: 1688 | AW8: 1708 | AX8: 1728 | AY8: 1749 | AZ8: 1770 | BA8: 1791 | BB8: 1812 | BC8: 1834 | BD8: 1855 | BE8: 1877 | BF8: 1900 | BG8: 1922 | BH8: 1945 | BI8: 1968 | BJ8: 1992 | BK8: 2015 | BL8: 2039 | BM8: 2064 | BN8: 2088 | BO8: 2113 | BP8: 2138 | BQ8: 2164 | BR8: 2189 | BS8: 2215 | BT8: 2242 | BU8: 2268 | BV8: 2295 | BW8: 2322 | BX8: 2350 | BY8: 2378 | BZ8: 2406 | CA8: 2435 | CB8: 2464 | CC8: 2493 | CD8: 2523 | CE8: 2553 | CF8: 2583 | CG8: 2614 | CH8: 2645 | CI8: 2676 | CJ8: 2708 | CK8: 2740 | CL8: 2773 | CM8: 2806 | CN8: 2839 | CO8: 2873 | CP8: 2907 | CQ8: 2942 | CR8: 2977 | CS8: 3012 | CT8: 3048 | CU8: 3084 | CV8: 3121 | CW8: 3158 | CX8: 3195 | CY8: 3233 | CZ8: 3272 | DA8: 3310 | DB8: 3350 | DC8: 3390 | DD8: 3430 | DE8: 3471 | DF8: 3512 | DG8: 3554 | DH8: 3596 | DI8: 3639 | DJ8: 3682 | DK8: 3726 | DL8: 3788 | DM8: 3852 | DN8: 3916 | DO8: 3982 | DP8: 4049 | DQ8: 4117 | DR8: 4186 | DS8: 4258 | DT8: 4332 | DU8: 4407 | DV8: 4483 | DW8: 4560 | DX8: 4639 | DY8: 4719 | DZ8: 4800 | EA8: 4883 | EB8: 4967 | EC8: 5052 | ED8: 5139 | EE8: 5228 | EF8: 5318 | EG8: 5410 | EH8: 5503 | EI8: 5597 | EJ8: 5693 | EK8: 5791 | EL8: 5891 | EM8: 5992 | EN8: 6095 | EO8: 6200 | EP8: 6306 | EQ8: 6414 | ER8: 6524 | ES8: 6636 | ET8: 6750 | EU8: 6866 | EV8: 6984 | EW8: 7550 | EX8: 8163 | EY8: 8825 | EZ8: 9541 | FA8: 10315 | FB8: 11152 | FC8: 12056 | FD8: 13034 | FE8: 14091 | FF8: 15234 | FG8: 16469 | FH8: 17805 | FI8: 19248 | FJ8: 20809 | FK8: 22496 | FL8: 24320 | FM8: 26291 | FN8: 28422 | FO8: 30726 | FP8: 33216 | FQ8: 33032 | FR8: 33969 | FS8: 34892 | FT8: 35264 | FU8: 34092 | FV8: 34041 | FW8: 33964 | FX8: 33476 | FY8: 32471 | FZ8: 32055 | GA8: 30795 | GB8: 29907 | GC8: 29143 | GD8: 28394 | GE8: 27829 | GF8: 27560 | GG8: 27932 | GH8: 28216 | GI8: 28449 | GJ8: 28417 | GK8: 28029 | GL8: 27218 | GM8: 26011 | GN8: 25907 | GO8: 26143 | GP8: 27180 | GQ8: 29729 | GR8: 30819 | GS8: 31940 | GT8: 31662 | GU8: 31794 | GV8: 31866 | GW8: 34500 | GX8: 36330 | GY8: 39787 | GZ8: 42738 | HA8: 43442 | HB8: 41426 | HC8: 41735 | HD8: 38982 | HE8: 41958 | HF8: 41926 | HG8: 43735 | HH8: 44929 | HI8: 46577
A9: Angola | B9: 618 | C9: 620 | D9: 623 | E9: 626 | F9: 628 | G9: 631 | H9: 634 | I9: 637 | J9: 640 | K9: 642 | L9: 645 | M9: 648 | N9: 651 | O9: 654 | P9: 657 | Q9: 660 | R9: 662 | S9: 665 | T9: 668 | U9: 671 | V9: 674 | W9: 677 | X9: 680 | Y9: 683 | Z9: 686 | AA9: 689 | AB9: 692 | AC9: 695 | AD9: 698 | AE9: 701 | AF9: 704 | AG9: 708 | AH9: 711 | AI9: 714 | AJ9: 717 | AK9: 720 | AL9: 723 | AM9: 726 | AN9: 730 | AO9: 733 | AP9: 736 | AQ9: 739 | AR9: 743 | AS9: 746 | AT9: 749 | AU9: 752 | AV9: 756 | AW9: 759 | AX9: 762 | AY9: 766 | AZ9: 769 | BA9: 773 | BB9: 776 | BC9: 779 | BD9: 783 | BE9: 786 | BF9: 790 | BG9: 793 | BH9: 797 | BI9: 800 | BJ9: 804 | BK9: 807 | BL9: 811 | BM9: 814 | BN9: 818 | BO9: 822 | BP9: 825 | BQ9: 829 | BR9: 832 | BS9: 836 | BT9: 840 | BU9: 844 | BV9: 847 | BW9: 851 | BX9: 855 | BY9: 858 | BZ9: 862 | CA9: 866 | CB9: 870 | CC9: 874 | CD9: 878 | CE9: 881 | CF9: 885 | CG9: 889 | CH9: 893 | CI9: 897 | CJ9: 901 | CK9: 905 | CL9: 909 | CM9: 913 | CN9: 917 | CO9: 921 | CP9: 925 | CQ9: 929 | CR9: 933 | CS9: 937 | CT9: 941 | CU9: 946 | CV9: 950 | CW9: 954 | CX9: 958 | CY9: 962 | CZ9: 967 | DA9: 971 | DB9: 975 | DC9: 979 | DD9: 984 | DE9: 988 | DF9: 992 | DG9: 997 | DH9: 1001 | DI9: 1006 | DJ9: 1010 | DK9: 1014 | DL9: 1045 | DM9: 1076 | DN9: 1108 | DO9: 1141 | DP9: 1174 | DQ9: 1209 | DR9: 1245 | DS9: 1284 | DT9: 1324 | DU9: 1366 | DV9: 1408 | DW9: 1452 | DX9: 1498 | DY9: 1544 | DZ9: 1593 | EA9: 1642 | EB9: 1693 | EC9: 1746 | ED9: 1801 | EE9: 1857 | EF9: 1915 | EG9: 1974 | EH9: 2036 | EI9: 2099 | EJ9: 2164 | EK9: 2232 | EL9: 2301 | EM9: 2373 | EN9: 2447 | EO9: 2523 | EP9: 2601 | EQ9: 2682 | ER9: 2765 | ES9: 2851 | ET9: 2940 | EU9: 3031 | EV9: 3125 | EW9: 3202 | EX9: 3281 | EY9: 3359 | EZ9: 3225 | FA9: 3437 | FB9: 3326 | FC9: 3592 | FD9: 3728 | FE9: 3687 | FF9: 3775 | FG9: 4212 | FH9: 4034 | FI9: 4176 | FJ9: 4573 | FK9: 4840 | FL9: 5043 | FM9: 5253 | FN9: 5093 | FO9: 5158 | FP9: 5397 | FQ9: 5614 | FR9: 5511 | FS9: 5831 | FT9: 5880 | FU9: 5454 | FV9: 5044 | FW9: 4956 | FX9: 4572 | FY9: 4458 | FZ9: 4443 | GA9: 4110 | GB9: 3970 | GC9: 3996 | GD9: 4099 | GE9: 4117 | GF9: 4135 | GG9: 4319 | GH9: 4455 | GI9: 4365 | GJ9: 4232 | GK9: 4056 | GL9: 3656 | GM9: 2663 | GN9: 2669 | GO9: 2859 | GP9: 3091 | GQ9: 3246 | GR9: 3376 | GS9: 3389 | GT9: 3387 | GU9: 3417 | GV9: 3759 | GW9: 3819 | GX9: 4087 | GY9: 4667 | GZ9: 5445 | HA9: 6453 | HB9: 7103 | HC9: 7039 | HD9: 7047 | HE9: 7094 | HF9: 7230 | HG9: 7488 | HH9: 7546 | HI9: 7615
A10: Anguilla | B10: 1 | C10: 1 | D10: 1 | E10: 1 | F10: 1 | G10: 1 | H10: 1 | I10: 1 | J10: 1 | K10: 1 | L10: 1 | M10: 1 | N10: 1 | O10: 1 | P10: 1 | Q10: 1 | R10: 1 | S10: 1 | T10: 1 | U10: 1 | V10: 1 | W10: 1 | X10: 1 | Y10: 1 | Z10: 1 | AA10: 1 | AB10: 1 | AC10: 1 | AD10: 1 | AE10: 1 | AF10: 1 | AG10: 1 | AH10: 1 | AI10: 1 | AJ10: 1 | AK10: 1 | AL10: 1 | AM10: 1 | AN10: 1 | AO10: 1 | AP10: 1 | AQ10: 1 | AR10: 1 | AS10: 1 | AT10: 1 | AU10: 1 | AV10: 1 | AW10: 1 | AX10: 1 | AY10: 1 | AZ10: 1 | BA10: 1 | BB10: 1 | BC10: 1 | BD10: 1 | BE10: 1 | BF10: 1 | BG10: 1 | BH10: 1 | BI10: 1 | BJ10: 1 | BK10: 1 | BL10: 1 | BM10: 1 | BN10: 1 | BO10: 1 | BP10: 1 | BQ10: 1 | BR10: 1 | BS10: 1 | BT10: 1 | BU10: 1 | BV10: 1 | BW10: 1 | BX10: 1 | BY10: 1 | BZ10: 1 | CA10: 1 | CB10: 1 | CC10: 1 | CD10: 1 | CE10: 1 | CF10: 1 | CG10: 1 | CH10: 1 | CI10: 1 | CJ10: 1 | CK10: 1 | CL10: 1 | CM10: 1 | CN10: 1 | CO10: 1 | CP10: 1 | CQ10: 1 | CR10: 1 | CS10: 1 | CT10: 1 | CU10: 1 | CV10: 1 | CW10: 1 | CX10: 1 | CY10: 1 | CZ10: 1 | DA10: 1 | DB10: 1 | DC10: 1 | DD10: 1 | DE10: 1 | DF10: 1 | DG10: 1 | DH10: 1 | DI10: 1 | DJ10: 1 | DK10: 1 | DL10: 1 | DM10: 1 | DN10: 1 | DO10: 1 | DP10: 1 | DQ10: 1 | DR10: 1 | DS10: 1 | DT10: 1 | DU10: 1 | DV10: 1 | DW10: 1 | DX10: 1 | DY10: 1 | DZ10: 1 | EA10: 1 | EB10: 1 | EC10: 1 | ED10: 1 | EE10: 1 | EF10: 1 | EG10: 1 | EH10: 1 | EI10: 1 | EJ10: 1 | EK10: 1 | EL10: 1 | EM10: 1 | EN10: 1 | EO10: 1 | EP10: 1 | EQ10: 1 | ER10: 1 | ES10: 1 | ET10: 1 | EU10: 1 | EV10: 1 | EW10: 1 | EX10: 1 | EY10: 1 | EZ10: 1 | FA10: 1 | FB10: 1 | FC10: 1 | FD10: 1 | FE10: 1 | FF10: 1 | FG10: 1 | FH10: 1 | FI10: 1 | FJ10: 1 | FK10: 1 | FL10: 1 | FM10: 1 | FN10: 1 | FO10: 1 | FP10: 1 | FQ10: 1 | FR10: 1 | FS10: 1 | FT10: 1 | FU10: 1 | FV10: 1 | FW10: 1 | FX10: 1 | FY10: 1 | FZ10: 1 | GA10: 1 | GB10: 1 | GC10: 1 | GD10: 1 | GE10: 1 | GF10: 1 | GG10: 1 | GH10: 1 | GI10: 1 | GJ10: 1 | GK10: 1 | GL10: 1 | GM10: 1 | GN10: 1 | GO10: 1 | GP10: 1 | GQ10: 1 | GR10: 1 | GS10: 1 | GT10: 1 | GU10: 1 | GV10: 1 | GW10: 1 | GX10: 1 | GY10: 1 | GZ10: 1 | HA10: 1 | HB10: 1 | HC10: 1 | HD10: 1 | HE10: 1 | HF10: 1 | HG10: 1 | HH10: 1 | HI10: 1
A11: Antigua and Barbuda | B11: 757 | C11: 757 | D11: 757 | E11: 757 | F11: 757 | G11: 757 | H11: 757 | I11: 758 | J11: 758 | K11: 758 | L11: 758 | M11: 758 | N11: 758 | O11: 758 | P11: 758 | Q11: 758 | R11: 759 | S11: 759 | T11: 759 | U11: 759 | V11: 759 | W11: 764 | X11: 769 | Y11: 775 | Z11: 780 | AA11: 785 | AB11: 790 | AC11: 796 | AD11: 801 | AE11: 806 | AF11: 812 | AG11: 817 | AH11: 823 | AI11: 828 | AJ11: 834 | AK11: 840 | AL11: 845 | AM11: 851 | AN11: 857 | AO11: 863 | AP11: 868 | AQ11: 874 | AR11: 880 | AS11: 886 | AT11: 892 | AU11: 898 | AV11: 904 | AW11: 910 | AX11: 917 | AY11: 923 | AZ11: 929 | BA11: 935 | BB11: 942 | BC11: 948 | BD11: 954 | BE11: 961 | BF11: 967 | BG11: 974 | BH11: 980 | BI11: 987 | BJ11: 994 | BK11: 1000 | BL11: 1007 | BM11: 1014 | BN11: 1021 | BO11: 1028 | BP11: 1035 | BQ11: 1042 | BR11: 1049 | BS11: 1056 | BT11: 1063 | BU11: 1070 | BV11: 1077 | BW11: 1085 | BX11: 1092 | BY11: 1099 | BZ11: 1107 | CA11: 1114 | CB11: 1122 | CC11: 1129 | CD11: 1137 | CE11: 1145 | CF11: 1152 | CG11: 1160 | CH11: 1168 | CI11: 1176 | CJ11: 1184 | CK11: 1192 | CL11: 1200 | CM11: 1208 | CN11: 1216 | CO11: 1224 | CP11: 1233 | CQ11: 1241 | CR11: 1249 | CS11: 1258 | CT11: 1266 | CU11: 1275 | CV11: 1283 | CW11: 1292 | CX11: 1301 | CY11: 1310 | CZ11: 1319 | DA11: 1327 | DB11: 1336 | DC11: 1345 | DD11: 1355 | DE11: 1364 | DF11: 1373 | DG11: 1382 | DH11: 1391 | DI11: 1401 | DJ11: 1410 | DK11: 1420 | DL11: 1455 | DM11: 1491 | DN11: 1528 | DO11: 1565 | DP11: 1604 | DQ11: 1643 | DR11: 1684 | DS11: 1726 | DT11: 1770 | DU11: 1814 | DV11: 1860 | DW11: 1907 | DX11: 1955 | DY11: 2004 | DZ11: 2054 | EA11: 2106 | EB11: 2159 | EC11: 2213 | ED11: 2269 | EE11: 2326 | EF11: 2384 | EG11: 2444 | EH11: 2505 | EI11: 2568 | EJ11: 2633 | EK11: 2699 | EL11: 2767 | EM11: 2836 | EN11: 2907 | EO11: 2980 | EP11: 3055 | EQ11: 3131 | ER11: 3210 | ES11: 3290 | ET11: 3373 | EU11: 3457 | EV11: 3544 | EW11: 3633 | EX11: 3723 | EY11: 3817 | EZ11: 3912 | FA11: 4010 | FB11: 4110 | FC11: 4213 | FD11: 4319 | FE11: 4427 | FF11: 4537 | FG11: 4651 | FH11: 4767 | FI11: 4886 | FJ11: 5008 | FK11: 5133 | FL11: 5262 | FM11: 5393 | FN11: 5528 | FO11: 5666 | FP11: 5807 | FQ11: 6088 | FR11: 6378 | FS11: 6770 | FT11: 6888 | FU11: 6458 | FV11: 5885 | FW11: 6371 | FX11: 6691 | FY11: 7536 | FZ11: 8169 | GA11: 8689 | GB11: 8827 | GC11: 9540 | GD11: 10388 | GE11: 11383 | GF11: 12600 | GG11: 14027 | GH11: 15441 | GI11: 16611 | GJ11: 17154 | GK11: 17361 | GL11: 17226 | GM11: 17753 | GN11: 18400 | GO11: 17167 | GP11: 17830 | GQ11: 18186 | GR11: 18483 | GS11: 18780 | GT11: 19319 | GU11: 18388 | GV11: 18676 | GW11: 19566 | GX11: 20395 | GY11: 21414 | GZ11: 24016 | HA11: 26008 | HB11: 25736 | HC11: 22389 | HD11: 20567 | HE11: 19988 | HF11: 20577 | HG11: 20353 | HH11: 20797 | HI11: 21049
A12: Argentina | B12: 1507 | C12: 1508 | D12: 1508 | E12: 1508 | F12: 1508 | G12: 1508 | H12: 1509 | I12: 1509 | J12: 1509 | K12: 1509 | L12: 1510 | M12: 1510 | N12: 1510 | O12: 1510 | P12: 1511 | Q12: 1511 | R12: 1511 | S12: 1511 | T12: 1511 | U12: 1512 | V12: 1512 | W12: 1533 | X12: 1555 | Y12: 1578 | Z12: 1600 | AA12: 1623 | AB12: 1646 | AC12: 1670 | AD12: 1693 | AE12: 1718 | AF12: 1742 | AG12: 1767 | AH12: 1792 | AI12: 1818 | AJ12: 1844 | AK12: 1870 | AL12: 1897 | AM12: 1924 | AN12: 1951 | AO12: 1979 | AP12: 2008 | AQ12: 2036 | AR12: 2065 | AS12: 2095 | AT12: 2125 | AU12: 2155 | AV12: 2186 | AW12: 2217 | AX12: 2249 | AY12: 2281 | AZ12: 2313 | BA12: 2346 | BB12: 2380 | BC12: 2414 | BD12: 2448 | BE12: 2483 | BF12: 2519 | BG12: 2555 | BH12: 2591 | BI12: 2628 | BJ12: 2666 | BK12: 2704 | BL12: 2742 | BM12: 2781 | BN12: 2821 | BO12: 2861 | BP12: 2902 | BQ12: 2944 | BR12: 2986 | BS12: 3028 | BT12: 3072 | BU12: 3115 | BV12: 3160 | BW12: 3205 | BX12: 3251 | BY12: 3297 | BZ12: 3266 | CA12: 3502 | CB12: 3218 | CC12: 3260 | CD12: 3097 | CE12: 3051 | CF12: 3748 | CG12: 4086 | CH12: 4249 | CI12: 4852 | CJ12: 4721 | CK12: 4896 | CL12: 5531 | CM12: 5896 | CN12: 5228 | CO12: 4786 | CP12: 5569 | CQ12: 5728 | CR12: 6427 | CS12: 6927 | CT12: 7449 | CU12: 5820 | CV12: 6139 | CW12: 7040 | CX12: 6002 | CY12: 6340 | CZ12: 6034 | DA12: 6727 | DB12: 7255 | DC12: 8014 | DD12: 8047 | DE12: 7844 | DF12: 8250 | DG12: 8275 | DH12: 8495 | DI12: 8253 | DJ12: 8541 | DK12: 8233 | DL12: 7004 | DM12: 6716 | DN12: 6363 | DO12: 5698 | DP12: 6598 | DQ12: 6680 | DR12: 7002 | DS12: 6886 | DT12: 7142 | DU12: 7622 | DV12: 7892 | DW12: 7531 | DX12: 7600 | DY12: 7840 | DZ12: 8020 | EA12: 8078 | EB12: 7439 | EC12: 6709 | ED12: 6293 | EE12: 6402 | EF12: 6715 | EG12: 6810 | EH12: 6689 | EI12: 6997 | EJ12: 6839 | EK12: 6923 | EL12: 6859 | EM12: 7042 | EN12: 6943 | EO12: 6724 | EP12: 7309 | EQ12: 6898 | ER12: 7289 | ES12: 7862 | ET12: 8041 | EU12: 7687 | EV12: 7540 | EW12: 7612 | EX12: 7019 | EY12: 7198 | EZ12: 7305 | FA12: 7631 | FB12: 7652 | FC12: 7863 | FD12: 8157 | FE12: 7449 | FF12: 7868 | FG12: 8254 | FH12: 7950 | FI12: 7600 | FJ12: 8227 | FK12: 8818 | FL12: 8709 | FM12: 8782 | FN12: 9003 | FO12: 9610 | FP12: 9951 | FQ12: 10167 | FR12: 10209 | FS12: 10419 | FT12: 10809 | FU12: 10571 | FV12: 10408 | FW12: 10918 | FX12: 10406 | FY12: 10976 | FZ12: 10982 | GA12: 10221 | GB12: 9765 | GC12: 10030 | GD12: 10102 | GE12: 9262 | GF12: 9810 | GG12: 9936 | GH12: 9620 | GI12: 8820 | GJ12: 8539 | GK12: 9333 | GL12: 10130 | GM12: 10602 | GN12: 11108 | GO12: 10673 | GP12: 11150 | GQ12: 11935 | GR12: 12268 | GS12: 11722 | GT12: 11504 | GU12: 10875 | GV12: 9574 | GW12: 10318 | GX12: 11135 | GY12: 12039 | GZ12: 12913 | HA12: 13873 | HB12: 14646 | HC12: 14605 | HD12: 15765 | HE12: 16972 | HF12: 17101 | HG12: 17629 | HH12: 17519 | HI12: 17344
A13: Armenia | B13: 514 | C13: 514 | D13: 514 | E13: 514 | F13: 514 | G13: 514 | H13: 514 | I13: 514 | J13: 514 | K13: 514 | L13: 514 | M13: 515 | N13: 515 | O13: 515 | P13: 515 | Q13: 515 | R13: 515 | S13: 515 | T13: 515 | U13: 515 | V13: 515 | W13: 517 | X13: 519 | Y13: 521 | Z13: 523 | AA13: 525 | AB13: 527 | AC13: 529 | AD13: 531 | AE13: 533 | AF13: 535 | AG13: 538 | AH13: 540 | AI13: 542 | AJ13: 544 | AK13: 546 | AL13: 548 | AM13: 550 | AN13: 552 | AO13: 554 | AP13: 556 | AQ13: 559 | AR13: 561 | AS13: 563 | AT13: 565 | AU13: 567 | AV13: 569 | AW13: 572 | AX13: 574 | AY13: 576 | AZ13: 578 | BA13: 581 | BB13: 583 | BC13: 585 | BD13: 587 | BE13: 590 | BF13: 592 | BG13: 594 | BH13: 596 | BI13: 599 | BJ13: 601 | BK13: 603 | BL13: 606 | BM13: 608 | BN13: 610 | BO13: 613 | BP13: 615 | BQ13: 617 | BR13: 620 | BS13: 622 | BT13: 625 | BU13: 627 | BV13: 629 | BW13: 632 | BX13: 634 | BY13: 637 | BZ13: 639 | CA13: 642 | CB13: 644 | CC13: 647 | CD13: 649 | CE13: 652 | CF13: 654 | CG13: 657 | CH13: 659 | CI13: 662 | CJ13: 635 | CK13: 741 | CL13: 711 | CM13: 660 | CN13: 656 | CO13: 599 | CP13: 655 | CQ13: 740 | CR13: 840 | CS13: 776 | CT13: 853 | CU13: 837 | CV13: 857 | CW13: 908 | CX13: 886 | CY13: 906 | CZ13: 983 | DA13: 913 | DB13: 1008 | DC13: 890 | DD13: 849 | DE13: 814 | DF13: 887 | DG13: 919 | DH13: 979 | DI13: 902 | DJ13: 973 | DK13: 1020 | DL13: 972 | DM13: 998 | DN13: 967 | DO13: 806 | DP13: 671 | DQ13: 560 | DR13: 531 | DS13: 504 | DT13: 547 | DU13: 593 | DV13: 642 | DW13: 696 | DX13: 755 | DY13: 818 | DZ13: 887 | EA13: 962 | EB13: 1002 | EC13: 1009 | ED13: 991 | EE13: 1025 | EF13: 1116 | EG13: 1273 | EH13: 1356 | EI13: 1464 | EJ13: 1456 | EK13: 1511 | EL13: 1444 | EM13: 1413 | EN13: 1383 | EO13: 1353 | EP13: 1324 | EQ13: 1296 | ER13: 1268 | ES13: 1405 | ET13: 1583 | EU13: 1724 | EV13: 1862 | EW13: 1834 | EX13: 1914 | EY13: 1958 | EZ13: 2013 | FA13: 2141 | FB13: 2299 | FC13: 2299 | FD13: 2421 | FE13: 2345 | FF13: 2515 | FG13: 2611 | FH13: 2636 | FI13: 2536 | FJ13: 2823 | FK13: 2945 | FL13: 3051 | FM13: 3151 | FN13: 3300 | FO13: 3313 | FP13: 3533 | FQ13: 3589 | FR13: 3571 | FS13: 3832 | FT13: 3871 | FU13: 3810 | FV13: 3917 | FW13: 3937 | FX13: 3964 | FY13: 3877 | FZ13: 3815 | GA13: 3783 | GB13: 3809 | GC13: 3862 | GD13: 3840 | GE13: 3805 | GF13: 3890 | GG13: 3872 | GH13: 3886 | GI13: 3889 | GJ13: 3736 | GK13: 3329 | GL13: 1973 | GM13: 1842 | GN13: 1988 | GO13: 2169 | GP13: 2333 | GQ13: 2438 | GR13: 2636 | GS13: 2740 | GT13: 2919 | GU13: 3214 | GV13: 3654 | GW13: 4182 | GX13: 4635 | GY13: 5297 | GZ13: 6020 | HA13: 6877 | HB13: 7383 | HC13: 6358 | HD13: 6508 | HE13: 6812 | HF13: 7291 | HG13: 7527 | HH13: 7763 | HI13: 7763
A14: Aruba | B14: 833 | C14: 833 | D14: 833 | E14: 833 | F14: 833 | G14: 833 | H14: 833 | I14: 834 | J14: 834 | K14: 834 | L14: 834 | M14: 834 | N14: 834 | O14: 834 | P14: 834 | Q14: 835 | R14: 835 | S14: 835 | T14: 835 | U14: 835 | V14: 835 | W14: 841 | X14: 847 | Y14: 852 | Z14: 858 | AA14: 864 | AB14: 870 | AC14: 876 | AD14: 881 | AE14: 887 | AF14: 893 | AG14: 899 | AH14: 906 | AI14: 912 | AJ14: 918 | AK14: 924 | AL14: 930 | AM14: 937 | AN14: 943 | AO14: 949 | AP14: 956 | AQ14: 962 | AR14: 969 | AS14: 975 | AT14: 982 | AU14: 988 | AV14: 995 | AW14: 1002 | AX14: 1009 | AY14: 1015 | AZ14: 1022 | BA14: 1029 | BB14: 1036 | BC14: 1043 | BD14: 1050 | BE14: 1057 | BF14: 1064 | BG14: 1072 | BH14: 1079 | BI14: 1086 | BJ14: 1093 | BK14: 1101 | BL14: 1108 | BM14: 1116 | BN14: 1123 | BO14: 1131 | BP14: 1139 | BQ14: 1146 | BR14: 1154 | BS14: 1162 | BT14: 1170 | BU14: 1178 | BV14: 1185 | BW14: 1193 | BX14: 1202 | BY14: 1210 | BZ14: 1218 | CA14: 1226 | CB14: 1234 | CC14: 1243 | CD14: 1251 | CE14: 1260 | CF14: 1268 | CG14: 1277 | CH14: 1285 | CI14: 1294 | CJ14: 1303 | CK14: 1311 | CL14: 1320 | CM14: 1329 | CN14: 1338 | CO14: 1347 | CP14: 1356 | CQ14: 1366 | CR14: 1375 | CS14: 1384 | CT14: 1393 | CU14: 1403 | CV14: 1412 | CW14: 1422 | CX14: 1431 | CY14: 1441 | CZ14: 1451 | DA14: 1461 | DB14: 1471 | DC14: 1480 | DD14: 1490 | DE14: 1501 | DF14: 1511 | DG14: 1521 | DH14: 1531 | DI14: 1541 | DJ14: 1552 | DK14: 1562 | DL14: 1601 | DM14: 1640 | DN14: 1681 | DO14: 1722 | DP14: 1765 | DQ14: 1808 | DR14: 1853 | DS14: 1899 | DT14: 1947 | DU14: 1996 | DV14: 2046 | DW14: 2098 | DX14: 2151 | DY14: 2205 | DZ14: 2260 | EA14: 2317 | EB14: 2375 | EC14: 2435 | ED14: 2496 | EE14: 2558 | EF14: 2623 | EG14: 2688 | EH14: 2756 | EI14: 2825 | EJ14: 2896 | EK14: 2968 | EL14: 3043 | EM14: 3119 | EN14: 3197 | EO14: 3277 | EP14: 3359 | EQ14: 3443 | ER14: 3530 | ES14: 3618 | ET14: 3709 | EU14: 3801 | EV14: 3897 | EW14: 3994 | EX14: 4094 | EY14: 4196 | EZ14: 4301 | FA14: 4409 | FB14: 4519 | FC14: 4632 | FD14: 4748 | FE14: 4866 | FF14: 4988 | FG14: 5112 | FH14: 5240 | FI14: 5371 | FJ14: 5505 | FK14: 5642 | FL14: 5783 | FM14: 5927 | FN14: 6075 | FO14: 6227 | FP14: 6382 | FQ14: 6904 | FR14: 7470 | FS14: 8084 | FT14: 8756 | FU14: 9493 | FV14: 10305 | FW14: 11197 | FX14: 12166 | FY14: 13194 | FZ14: 14273 | GA14: 15377 | GB14: 16508 | GC14: 17725 | GD14: 19124 | GE14: 20789 | GF14: 22827 | GG14: 26876 | GH14: 32328 | GI14: 36284 | GJ14: 37014 | GK14: 38310 | GL14: 38238 | GM14: 38477 | GN14: 39318 | GO14: 38602 | GP14: 38003 | GQ14: 40312 | GR14: 42565 | GS14: 42564 | GT14: 43703 | GU14: 42445 | GV14: 40288 | GW14: 39246 | GX14: 41057 | GY14: 40737 | GZ14: 40209 | HA14: 40558 | HB14: 38594 | HC14: 35573 | HD14: 33288 | HE14: 36016 | HF14: 35419 | HG14: 36083 | HH14: 36447 | HI14: 37138
A15: Australia | B15: 815 | C15: 816 | D15: 818 | E15: 820 | F15: 822 | G15: 824 | H15: 826 | I15: 828 | J15: 830 | K15: 832 | L15: 834 | M15: 835 | N15: 837 | O15: 839 | P15: 841 | Q15: 843 | R15: 845 | S15: 847 | T15: 849 | U15: 851 | V15: 853 | W15: 861 | X15: 886 | Y15: 916 | Z15: 968 | AA15: 1015 | AB15: 1034 | AC15: 1066 | AD15: 1092 | AE15: 1153 | AF15: 1399 | AG15: 1446 | AH15: 1479 | AI15: 1485 | AJ15: 1562 | AK15: 1890 | AL15: 1858 | AM15: 1948 | AN15: 1924 | AO15: 1795 | AP15: 2269 | AQ15: 1936 | AR15: 1766 | AS15: 2048 | AT15: 2328 | AU15: 2396 | AV15: 2648 | AW15: 3064 | AX15: 3507 | AY15: 3466 | AZ15: 3267 | BA15: 3879 | BB15: 4549 | BC15: 4981 | BD15: 4363 | BE15: 4141 | BF15: 5054 | BG15: 4461 | BH15: 3804 | BI15: 4912 | BJ15: 4795 | BK15: 4723 | BL15: 4540 | BM15: 4525 | BN15: 4800 | BO15: 4579 | BP15: 4715 | BQ15: 5155 | BR15: 5235 | BS15: 5132 | BT15: 5431 | BU15: 5473 | BV15: 5897 | BW15: 6347 | BX15: 6366 | BY15: 6871 | BZ15: 6654 | CA15: 6703 | CB15: 7105 | CC15: 6986 | CD15: 7120 | CE15: 7403 | CF15: 6752 | CG15: 7439 | CH15: 7155 | CI15: 7353 | CJ15: 7200 | CK15: 7704 | CL15: 7492 | CM15: 7898 | CN15: 7418 | CO15: 7766 | CP15: 6650 | CQ15: 6173 | CR15: 6270 | CS15: 5807 | CT15: 6137 | CU15: 5697 | CV15: 6483 | CW15: 6398 | CX15: 6688 | CY15: 6398 | CZ15: 6372 | DA15: 6796 | DB15: 7161 | DC15: 7141 | DD15: 7518 | DE15: 7701 | DF15: 7830 | DG15: 8311 | DH15: 8695 | DI15: 8509 | DJ15: 8491 | DK15: 8579 | DL15: 8353 | DM15: 8128 | DN15: 8089 | DO15: 7936 | DP15: 7613 | DQ15: 7793 | DR15: 7867 | DS15: 8100 | DT15: 8345 | DU15: 8549 | DV15: 8913 | DW15: 9129 | DX15: 9155 | DY15: 9101 | DZ15: 8944 | EA15: 8628 | EB15: 7714 | EC15: 7129 | ED15: 7469 | EE15: 7921 | EF15: 8272 | EG15: 8689 | EH15: 9010 | EI15: 9381 | EJ15: 9607 | EK15: 9537 | EL15: 10057 | EM15: 11069 | EN15: 12236 | EO15: 12555 | EP15: 11997 | EQ15: 11270 | ER15: 10744 | ES15: 10856 | ET15: 11349 | EU15: 11788 | EV15: 12073 | EW15: 12229 | EX15: 12084 | EY15: 12228 | EZ15: 12694 | FA15: 13082 | FB15: 13217 | FC15: 13191 | FD15: 13545 | FE15: 14076 | FF15: 14346 | FG15: 14126 | FH15: 14742 | FI15: 15357 | FJ15: 16098 | FK15: 16601 | FL15: 16756 | FM15: 17570 | FN15: 18261 | FO15: 18949 | FP15: 19719 | FQ15: 20176 | FR15: 20385 | FS15: 21185 | FT15: 21383 | FU15: 21708 | FV15: 22372 | FW15: 22373 | FX15: 22763 | FY15: 23697 | FZ15: 23872 | GA15: 24308 | GB15: 23884 | GC15: 23584 | GD15: 24934 | GE15: 25875 | GF15: 26057 | GG15: 26969 | GH15: 27757 | GI15: 28556 | GJ15: 28604 | GK15: 28122 | GL15: 27895 | GM15: 28732 | GN15: 29580 | GO15: 30359 | GP15: 31145 | GQ15: 32013 | GR15: 33085 | GS15: 34346 | GT15: 35253 | GU15: 35452 | GV15: 36375 | GW15: 37035 | GX15: 38130 | GY15: 38840 | GZ15: 39416 | HA15: 40643 | HB15: 41312 | HC15: 41170 | HD15: 41330 | HE15: 41706 | HF15: 42522 | HG15: 42840 | HH15: 43219 | HI15: 44056
A16: Austria | B16: 1848 | C16: 1855 | D16: 1863 | E16: 1870 | F16: 1878 | G16: 1885 | H16: 1893 | I16: 1901 | J16: 1908 | K16: 1916 | L16: 1924 | M16: 1932 | N16: 1939 | O16: 1947 | P16: 1955 | Q16: 1963 | R16: 1971 | S16: 1979 | T16: 1987 | U16: 1995 | V16: 2003 | W16: 2035 | X16: 2068 | Y16: 2102 | Z16: 2136 | AA16: 2171 | AB16: 2206 | AC16: 2242 | AD16: 2278 | AE16: 2316 | AF16: 2353 | AG16: 2378 | AH16: 2402 | AI16: 2427 | AJ16: 2452 | AK16: 2477 | AL16: 2503 | AM16: 2529 | AN16: 2555 | AO16: 2581 | AP16: 2608 | AQ16: 2637 | AR16: 2666 | AS16: 2695 | AT16: 2725 | AU16: 2754 | AV16: 2785 | AW16: 2815 | AX16: 2846 | AY16: 2877 | AZ16: 2909 | BA16: 2937 | BB16: 2966 | BC16: 2995 | BD16: 3024 | BE16: 3054 | BF16: 3084 | BG16: 3114 | BH16: 3145 | BI16: 3175 | BJ16: 3206 | BK16: 3229 | BL16: 3252 | BM16: 3274 | BN16: 3297 | BO16: 3321 | BP16: 3344 | BQ16: 3367 | BR16: 3391 | BS16: 3415 | BT16: 3439 | BU16: 3662 | BV16: 3666 | BW16: 3556 | BX16: 3691 | BY16: 3685 | BZ16: 3744 | CA16: 3847 | CB16: 3950 | CC16: 3898 | CD16: 3928 | CE16: 4063 | CF16: 4062 | CG16: 4203 | CH16: 4288 | CI16: 4235 | CJ16: 4345 | CK16: 4617 | CL16: 4580 | CM16: 4509 | CN16: 4725 | CO16: 4858 | CP16: 4925 | CQ16: 4917 | CR16: 5162 | CS16: 5258 | CT16: 5296 | CU16: 5366 | CV16: 5625 | CW16: 5699 | CX16: 5704 | CY16: 5681 | CZ16: 5856 | DA16: 5861 | DB16: 5905 | DC16: 6186 | DD16: 6374 | DE16: 6715 | DF16: 6693 | DG16: 6620 | DH16: 6665 | DI16: 6805 | DJ16: 7076 | DK16: 6984 | DL16: 5786 | DM16: 5329 | DN16: 5269 | DO16: 5177 | DP16: 5105 | DQ16: 4507 | DR16: 4804 | DS16: 5263 | DT16: 5699 | DU16: 5614 | DV16: 6230 | DW16: 6615 | DX16: 6688 | DY16: 6852 | DZ16: 7131 | EA16: 7194 | EB16: 6957 | EC16: 6364 | ED16: 5677 | EE16: 5459 | EF16: 5482 | EG16: 5576 | EH16: 5733 | EI16: 6028 | EJ16: 6786 | EK16: 7793 | EL16: 7518 | EM16: 7993 | EN16: 7534 | EO16: 7675 | EP16: 7175 | EQ16: 3245 | ER16: 3675 | ES16: 4063 | ET16: 5177 | EU16: 6158 | EV16: 6919 | EW16: 7382 | EX16: 7386 | EY16: 7692 | EZ16: 8458 | FA16: 9373 | FB16: 9998 | FC16: 10578 | FD16: 10919 | FE16: 11175 | FF16: 12027 | FG16: 12584 | FH16: 12800 | FI16: 13225 | FJ16: 13915 | FK16: 14213 | FL16: 14898 | FM16: 15228 | FN16: 15814 | FO16: 16743 | FP16: 17865 | FQ16: 18698 | FR16: 19747 | FS16: 20602 | FT16: 21381 | FU16: 21364 | FV16: 22385 | FW16: 23427 | FX16: 23364 | FY16: 24684 | FZ16: 25259 | GA16: 25187 | GB16: 25637 | GC16: 26435 | GD16: 26522 | GE16: 27100 | GF16: 27707 | GG16: 28136 | GH16: 28951 | GI16: 30067 | GJ16: 31053 | GK16: 31802 | GL16: 32113 | GM16: 32017 | GN16: 32660 | GO16: 33480 | GP16: 34237 | GQ16: 34952 | GR16: 36157 | GS16: 37382 | GT16: 38548 | GU16: 38919 | GV16: 39370 | GW16: 39475 | GX16: 40292 | GY16: 40875 | GZ16: 42036 | HA16: 43418 | HB16: 43952 | HC16: 42171 | HD16: 42861 | HE16: 44029 | HF16: 44216 | HG16: 44059 | HH16: 43906 | HI16: 44401
A17: Azerbaijan | B17: 775 | C17: 775 | D17: 775 | E17: 775 | F17: 775 | G17: 776 | H17: 776 | I17: 776 | J17: 776 | K17: 776 | L17: 777 | M17: 777 | N17: 777 | O17: 777 | P17: 777 | Q17: 778 | R17: 778 | S17: 778 | T17: 778 | U17: 778 | V17: 779 | W17: 783 | X17: 787 | Y17: 792 | Z17: 796 | AA17: 800 | AB17: 805 | AC17: 809 | AD17: 814 | AE17: 818 | AF17: 823 | AG17: 827 | AH17: 832 | AI17: 837 | AJ17: 841 | AK17: 846 | AL17: 851 | AM17: 855 | AN17: 860 | AO17: 865 | AP17: 870 | AQ17: 874 | AR17: 879 | AS17: 884 | AT17: 889 | AU17: 894 | AV17: 899 | AW17: 904 | AX17: 909 | AY17: 914 | AZ17: 919 | BA17: 924 | BB17: 929 | BC17: 934 | BD17: 939 | BE17: 945 | BF17: 950 | BG17: 955 | BH17: 960 | BI17: 966 | BJ17: 971 | BK17: 976 | BL17: 982 | BM17: 987 | BN17: 993 | BO17: 998 | BP17: 1004 | BQ17: 1009 | BR17: 1015 | BS17: 1021 | BT17: 1026 | BU17: 1032 | BV17: 1038 | BW17: 1043 | BX17: 1049 | BY17: 1055 | BZ17: 1061 | CA17: 1067 | CB17: 1073 | CC17: 1078 | CD17: 1084 | CE17: 1090 | CF17: 1096 | CG17: 1103 | CH17: 1109 | CI17: 1115 | CJ17: 1071 | CK17: 1251 | CL17: 1203 | CM17: 1117 | CN17: 1112 | CO17: 1018 | CP17: 1113 | CQ17: 1261 | CR17: 1432 | CS17: 1324 | CT17: 1457 | CU17: 1432 | CV17: 1469 | CW17: 1557 | CX17: 1522 | CY17: 1559 | CZ17: 1693 | DA17: 1575 | DB17: 1740 | DC17: 1539 | DD17: 1470 | DE17: 1411 | DF17: 1540 | DG17: 1598 | DH17: 1703 | DI17: 1573 | DJ17: 1698 | DK17: 1782 | DL17: 1700 | DM17: 1749 | DN17: 1553 | DO17: 1363 | DP17: 834 | DQ17: 718 | DR17: 721 | DS17: 660 | DT17: 767 | DU17: 884 | DV17: 1121 | DW17: 1402 | DX17: 1575 | DY17: 1642 | DZ17: 1728 | EA17: 1749 | EB17: 1830 | EC17: 1848 | ED17: 1820 | EE17: 1890 | EF17: 2065 | EG17: 2363 | EH17: 2526 | EI17: 2737 | EJ17: 2731 | EK17: 2844 | EL17: 2727 | EM17: 2678 | EN17: 2629 | EO17: 2582 | EP17: 2535 | EQ17: 2489 | ER17: 2444 | ES17: 2717 | ET17: 3071 | EU17: 3357 | EV17: 3638 | EW17: 3595 | EX17: 3765 | EY17: 3864 | EZ17: 3987 | FA17: 4254 | FB17: 4583 | FC17: 4597 | FD17: 4859 | FE17: 4723 | FF17: 5081 | FG17: 5285 | FH17: 5348 | FI17: 5155 | FJ17: 5751 | FK17: 6012 | FL17: 6241 | FM17: 6458 | FN17: 6778 | FO17: 6819 | FP17: 7285 | FQ17: 7416 | FR17: 7395 | FS17: 7952 | FT17: 8076 | FU17: 7994 | FV17: 8263 | FW17: 8351 | FX17: 8456 | FY17: 8315 | FZ17: 8228 | GA17: 8205 | GB17: 8307 | GC17: 8469 | GD17: 8466 | GE17: 8435 | GF17: 8673 | GG17: 8679 | GH17: 8760 | GI17: 8814 | GJ17: 8513 | GK17: 8323 | GL17: 6346 | GM17: 4806 | GN17: 3808 | GO17: 3320 | GP17: 3329 | GQ17: 3488 | GR17: 3801 | GS17: 4047 | GT17: 4459 | GU17: 4863 | GV17: 5338 | GW17: 5891 | GX17: 6435 | GY17: 8052 | GZ17: 10711 | HA17: 13243 | HB17: 14365 | HC17: 15394 | HD17: 15950 | HE17: 15754 | HF17: 15888 | HG17: 16593 | HH17: 16710 | HI17: 16986
A18: Bahamas | B18: 1445 | C18: 1445 | D18: 1445 | E18: 1446 | F18: 1446 | G18: 1446 | H18: 1446 | I18: 1447 | J18: 1447 | K18: 1447 | L18: 1447 | M18: 1447 | N18: 1448 | O18: 1448 | P18: 1448 | Q18: 1448 | R18: 1449 | S18: 1449 | T18: 1449 | U18: 1449 | V18: 1449 | W18: 1459 | X18: 1469 | Y18: 1479 | Z18: 1489 | AA18: 1499 | AB18: 1509 | AC18: 1519 | AD18: 1530 | AE18: 1540 | AF18: 1550 | AG18: 1561 | AH18: 1571 | AI18: 1582 | AJ18: 1593 | AK18: 1603 | AL18: 1614 | AM18: 1625 | AN18: 1636 | AO18: 1647 | AP18: 1658 | AQ18: 1670 | AR18: 1681 | AS18: 1692 | AT18: 1704 | AU18: 1715 | AV18: 1727 | AW18: 1738 | AX18: 1750 | AY18: 1762 | AZ18: 1774 | BA18: 1786 | BB18: 1798 | BC18: 1810 | BD18: 1822 | BE18: 1835 | BF18: 1847 | BG18: 1860 | BH18: 1872 | BI18: 1885 | BJ18: 1897 | BK18: 1910 | BL18: 1923 | BM18: 1936 | BN18: 1949 | BO18: 1962 | BP18: 1976 | BQ18: 1989 | BR18: 2003 | BS18: 2016 | BT18: 2030 | BU18: 2043 | BV18: 2057 | BW18: 2071 | BX18: 2085 | BY18: 2099 | BZ18: 2113 | CA18: 2128 | CB18: 2142 | CC18: 2156 | CD18: 2171 | CE18: 2186 | CF18: 2200 | CG18: 2215 | CH18: 2230 | CI18: 2245 | CJ18: 2261 | CK18: 2276 | CL18: 2291 | CM18: 2307 | CN18: 2322 | CO18: 2338 | CP18: 2354 | CQ18: 2370 | CR18: 2386 | CS18: 2402 | CT18: 2418 | CU18: 2434 | CV18: 2451 | CW18: 2467 | CX18: 2484 | CY18: 2501 | CZ18: 2518 | DA18: 2535 | DB18: 2552 | DC18: 2569 | DD18: 2586 | DE18: 2604 | DF18: 2622 | DG18: 2639 | DH18: 2657 | DI18: 2675 | DJ18: 2693 | DK18: 2711 | DL18: 2809 | DM18: 2911 | DN18: 3016 | DO18: 3125 | DP18: 3238 | DQ18: 3355 | DR18: 3476 | DS18: 3604 | DT18: 3738 | DU18: 3876 | DV18: 4020 | DW18: 4169 | DX18: 4323 | DY18: 4483 | DZ18: 4649 | EA18: 4821 | EB18: 4999 | EC18: 5184 | ED18: 5375 | EE18: 5574 | EF18: 5780 | EG18: 5994 | EH18: 6215 | EI18: 6445 | EJ18: 6683 | EK18: 6930 | EL18: 7186 | EM18: 7451 | EN18: 7726 | EO18: 8011 | EP18: 8307 | EQ18: 8614 | ER18: 8932 | ES18: 9261 | ET18: 9603 | EU18: 9957 | EV18: 10324 | EW18: 10705 | EX18: 11100 | EY18: 11509 | EZ18: 11933 | FA18: 12373 | FB18: 12829 | FC18: 13302 | FD18: 13792 | FE18: 14300 | FF18: 14826 | FG18: 15618 | FH18: 16405 | FI18: 17248 | FJ18: 18160 | FK18: 19156 | FL18: 20007 | FM18: 21048 | FN18: 21975 | FO18: 23154 | FP18: 21210 | FQ18: 21018 | FR18: 19856 | FS18: 20957 | FT18: 17127 | FU18: 14320 | FV18: 14767 | FW18: 15790 | FX18: 17660 | FY18: 21812 | FZ18: 22747 | GA18: 21634 | GB18: 22519 | GC18: 23560 | GD18: 23646 | GE18: 24154 | GF18: 24343 | GG18: 24818 | GH18: 24959 | GI18: 25109 | GJ18: 24281 | GK18: 22841 | GL18: 21555 | GM18: 21222 | GN18: 21516 | GO18: 22119 | GP18: 22758 | GQ18: 22971 | GR18: 23799 | GS18: 25193 | GT18: 25858 | GU18: 26078 | GV18: 26260 | GW18: 25387 | GX18: 25073 | GY18: 25397 | GZ18: 25530 | HA18: 25412 | HB18: 24373 | HC18: 22950 | HD18: 22915 | HE18: 22689 | HF18: 22841 | HG18: 22518 | HH18: 22439 | HI18: 22818
A19: Bahrain | B19: 1235 | C19: 1240 | D19: 1246 | E19: 1251 | F19: 1256 | G19: 1262 | H19: 1267 | I19: 1273 | J19: 1278 | K19: 1284 | L19: 1289 | M19: 1295 | N19: 1300 | O19: 1306 | P19: 1312 | Q19: 1317 | R19: 1323 | S19: 1329 | T19: 1334 | U19: 1340 | V19: 1346 | W19: 1352 | X19: 1358 | Y19: 1363 | Z19: 1369 | AA19: 1375 | AB19: 1381 | AC19: 1387 | AD19: 1393 | AE19: 1399 | AF19: 1405 | AG19: 1411 | AH19: 1417 | AI19: 1423 | AJ19: 1430 | AK19: 1436 | AL19: 1442 | AM19: 1448 | AN19: 1454 | AO19: 1461 | AP19: 1467 | AQ19: 1473 | AR19: 1480 | AS19: 1486 | AT19: 1492 | AU19: 1499 | AV19: 1505 | AW19: 1512 | AX19: 1518 | AY19: 1525 | AZ19: 1531 | BA19: 1549 | BB19: 1567 | BC19: 1584 | BD19: 1602 | BE19: 1621 | BF19: 1639 | BG19: 1658 | BH19: 1677 | BI19: 1696 | BJ19: 1715 | BK19: 1735 | BL19: 1755 | BM19: 1775 | BN19: 1795 | BO19: 1815 | BP19: 1836 | BQ19: 1857 | BR19: 1878 | BS19: 1900 | BT19: 1921 | BU19: 1943 | BV19: 1965 | BW19: 1988 | BX19: 2010 | BY19: 2033 | BZ19: 2057 | CA19: 2080 | CB19: 2104 | CC19: 2128 | CD19: 2152 | CE19: 2177 | CF19: 2201 | CG19: 2226 | CH19: 2252 | CI19: 2278 | CJ19: 2303 | CK19: 2330 | CL19: 2356 | CM19: 2383 | CN19: 2410 | CO19: 2438 | CP19: 2466 | CQ19: 2494 | CR19: 2522 | CS19: 2551 | CT19: 2580 | CU19: 2610 | CV19: 2639 | CW19: 2669 | CX19: 2700 | CY19: 2701 | CZ19: 2703 | DA19: 2705 | DB19: 2706 | DC19: 2708 | DD19: 2710 | DE19: 2711 | DF19: 2713 | DG19: 2715 | DH19: 2717 | DI19: 2718 | DJ19: 2720 | DK19: 2722 | DL19: 2723 | DM19: 2725 | DN19: 2727 | DO19: 2728 | DP19: 2730 | DQ19: 2732 | DR19: 2733 | DS19: 2748 | DT19: 2763 | DU19: 2778 | DV19: 2793 | DW19: 2808 | DX19: 2823 | DY19: 2838 | DZ19: 2853 | EA19: 2868 | EB19: 2883 | EC19: 2898 | ED19: 2913 | EE19: 2927 | EF19: 2942 | EG19: 3272 | EH19: 3637 | EI19: 4044 | EJ19: 4496 | EK19: 4999 | EL19: 5557 | EM19: 6178 | EN19: 6868 | EO19: 7635 | EP19: 8487 | EQ19: 9434 | ER19: 10487 | ES19: 11656 | ET19: 12956 | EU19: 14401 | EV19: 16007 | EW19: 16689 | EX19: 17391 | EY19: 18107 | EZ19: 18839 | FA19: 19556 | FB19: 20266 | FC19: 20938 | FD19: 21541 | FE19: 22078 | FF19: 22540 | FG19: 22941 | FH19: 23418 | FI19: 24022 | FJ19: 24751 | FK19: 25662 | FL19: 26651 | FM19: 27726 | FN19: 28802 | FO19: 29943 | FP19: 31232 | FQ19: 31102 | FR19: 33824 | FS19: 35688 | FT19: 36456 | FU19: 33509 | FV19: 41062 | FW19: 40589 | FX19: 36597 | FY19: 40292 | FZ19: 44996 | GA19: 42034 | GB19: 38841 | GC19: 38395 | GD19: 41099 | GE19: 32131 | GF19: 29586 | GG19: 28401 | GH19: 31346 | GI19: 32515 | GJ19: 35398 | GK19: 38315 | GL19: 39854 | GM19: 43894 | GN19: 42712 | GO19: 43244 | GP19: 43781 | GQ19: 43798 | GR19: 44399 | GS19: 44619 | GT19: 45063 | GU19: 44169 | GV19: 43654 | GW19: 43914 | GX19: 44206 | GY19: 44031 | GZ19: 43358 | HA19: 43251 | HB19: 42507 | HC19: 40825 | HD19: 40553 | HE19: 40083 | HF19: 40732 | HG19: 42444 | HH19: 43963 | HI19: 44138
A20: Bangladesh | B20: 876 | C20: 876 | D20: 876 | E20: 876 | F20: 876 | G20: 876 | H20: 876 | I20: 876 | J20: 876 | K20: 875 | L20: 875 | M20: 875 | N20: 875 | O20: 875 | P20: 875 | Q20: 875 | R20: 875 | S20: 875 | T20: 875 | U20: 875 | V20: 874 | W20: 875 | X20: 875 | Y20: 875 | Z20: 875 | AA20: 875 | AB20: 875 | AC20: 875 | AD20: 875 | AE20: 876 | AF20: 876 | AG20: 876 | AH20: 876 | AI20: 876 | AJ20: 876 | AK20: 876 | AL20: 876 | AM20: 877 | AN20: 877 | AO20: 877 | AP20: 877 | AQ20: 877 | AR20: 877 | AS20: 877 | AT20: 877 | AU20: 878 | AV20: 878 | AW20: 878 | AX20: 878 | AY20: 878 | AZ20: 878 | BA20: 878 | BB20: 878 | BC20: 879 | BD20: 879 | BE20: 879 | BF20: 879 | BG20: 879 | BH20: 879 | BI20: 879 | BJ20: 880 | BK20: 880 | BL20: 880 | BM20: 880 | BN20: 880 | BO20: 880 | BP20: 880 | BQ20: 881 | BR20: 881 | BS20: 881 | BT20: 881 | BU20: 883 | BV20: 885 | BW20: 887 | BX20: 890 | BY20: 892 | BZ20: 894 | CA20: 896 | CB20: 898 | CC20: 901 | CD20: 903 | CE20: 905 | CF20: 907 | CG20: 909 | CH20: 912 | CI20: 939 | CJ20: 907 | CK20: 947 | CL20: 954 | CM20: 927 | CN20: 968 | CO20: 878 | CP20: 947 | CQ20: 969 | CR20: 982 | CS20: 957 | CT20: 885 | CU20: 1045 | CV20: 1045 | CW20: 962 | CX20: 995 | CY20: 1009 | CZ20: 1087 | DA20: 1096 | DB20: 1094 | DC20: 1068 | DD20: 1092 | DE20: 1020 | DF20: 1028 | DG20: 1163 | DH20: 1158 | DI20: 1148 | DJ20: 1145 | DK20: 1118 | DL20: 1179 | DM20: 1149 | DN20: 1182 | DO20: 1159 | DP20: 1010 | DQ20: 1149 | DR20: 1057 | DS20: 1133 | DT20: 1170 | DU20: 1122 | DV20: 1167 | DW20: 1171 | DX20: 1197 | DY20: 1187 | DZ20: 1188 | EA20: 1227 | EB20: 1225 | EC20: 1202 | ED20: 1200 | EE20: 1186 | EF20: 1182 | EG20: 1156 | EH20: 1186 | EI20: 1152 | EJ20: 1140 | EK20: 1151 | EL20: 1174 | EM20: 1183 | EN20: 1165 | EO20: 1199 | EP20: 1174 | EQ20: 1143 | ER20: 1072 | ES20: 1066 | ET20: 1066 | EU20: 1080 | EV20: 1027 | EW20: 1031 | EX20: 1046 | EY20: 1045 | EZ20: 1046 | FA20: 972 | FB20: 1056 | FC20: 1017 | FD20: 979 | FE20: 1011 | FF20: 1048 | FG20: 1087 | FH20: 1062 | FI20: 1147 | FJ20: 1138 | FK20: 1177 | FL20: 1169 | FM20: 1122 | FN20: 1202 | FO20: 1195 | FP20: 1226 | FQ20: 1142 | FR20: 986 | FS20: 971 | FT20: 1069 | FU20: 1035 | FV20: 1059 | FW20: 1038 | FX20: 1082 | FY20: 1101 | FZ20: 1079 | GA20: 1085 | GB20: 1071 | GC20: 1097 | GD20: 1131 | GE20: 1142 | GF20: 1169 | GG20: 1196 | GH20: 1208 | GI20: 1216 | GJ20: 1274 | GK20: 1287 | GL20: 1327 | GM20: 1360 | GN20: 1383 | GO20: 1424 | GP20: 1457 | GQ20: 1492 | GR20: 1538 | GS20: 1579 | GT20: 1632 | GU20: 1685 | GV20: 1721 | GW20: 1774 | GX20: 1840 | GY20: 1934 | GZ20: 2038 | HA20: 2158 | HB20: 2265 | HC20: 2355 | HD20: 2459 | HE20: 2589 | HF20: 2725 | HG20: 2853 | HH20: 2991 | HI20: 3161
A21: Barbados | B21: 913 | C21: 914 | D21: 914 | E21: 914 | F21: 914 | G21: 914 | H21: 914 | I21: 914 | J21: 915 | K21: 915 | L21: 915 | M21: 915 | N21: 915 | O21: 915 | P21: 915 | Q21: 916 | R21: 916 | S21: 916 | T21: 916 | U21: 916 | V21: 916 | W21: 922 | X21: 929 | Y21: 935 | Z21: 941 | AA21: 948 | AB21: 954 | AC21: 960 | AD21: 967 | AE21: 973 | AF21: 980 | AG21: 987 | AH21: 993 | AI21: 1000 | AJ21: 1007 | AK21: 1014 | AL21: 1020 | AM21: 1027 | AN21: 1034 | AO21: 1041 | AP21: 1048 | AQ21: 1055 | AR21: 1063 | AS21: 1070 | AT21: 1077 | AU21: 1084 | AV21: 1092 | AW21: 1099 | AX21: 1106 | AY21: 1114 | AZ21: 1121 | BA21: 1129 | BB21: 1137 | BC21: 1144 | BD21: 1152 | BE21: 1160 | BF21: 1168 | BG21: 1175 | BH21: 1183 | BI21: 1191 | BJ21: 1199 | BK21: 1208 | BL21: 1216 | BM21: 1224 | BN21: 1232 | BO21: 1241 | BP21: 1249 | BQ21: 1257 | BR21: 1266 | BS21: 1274 | BT21: 1283 | BU21: 1292 | BV21: 1300 | BW21: 1309 | BX21: 1318 | BY21: 1327 | BZ21: 1336 | CA21: 1345 | CB21: 1354 | CC21: 1363 | CD21: 1372 | CE21: 1382 | CF21: 1391 | CG21: 1400 | CH21: 1410 | CI21: 1419 | CJ21: 1429 | CK21: 1439 | CL21: 1448 | CM21: 1458 | CN21: 1468 | CO21: 1478 | CP21: 1488 | CQ21: 1498 | CR21: 1508 | CS21: 1518 | CT21: 1529 | CU21: 1539 | CV21: 1549 | CW21: 1560 | CX21: 1570 | CY21: 1581 | CZ21: 1592 | DA21: 1602 | DB21: 1613 | DC21: 1624 | DD21: 1635 | DE21: 1646 | DF21: 1657 | DG21: 1668 | DH21: 1680 | DI21: 1691 | DJ21: 1702 | DK21: 1714 | DL21: 1740 | DM21: 1766 | DN21: 1792 | DO21: 1819 | DP21: 1847 | DQ21: 1875 | DR21: 1903 | DS21: 1932 | DT21: 1961 | DU21: 1991 | DV21: 2022 | DW21: 2053 | DX21: 2084 | DY21: 2116 | DZ21: 2148 | EA21: 2181 | EB21: 2215 | EC21: 2248 | ED21: 2283 | EE21: 2318 | EF21: 2353 | EG21: 2389 | EH21: 2425 | EI21: 2462 | EJ21: 2500 | EK21: 2538 | EL21: 2577 | EM21: 2616 | EN21: 2656 | EO21: 2696 | EP21: 2737 | EQ21: 2779 | ER21: 2821 | ES21: 2864 | ET21: 2907 | EU21: 2952 | EV21: 2996 | EW21: 3149 | EX21: 3310 | EY21: 3478 | EZ21: 3656 | FA21: 3842 | FB21: 4038 | FC21: 4243 | FD21: 4459 | FE21: 4687 | FF21: 4925 | FG21: 5289 | FH21: 5747 | FI21: 5432 | FJ21: 5681 | FK21: 6309 | FL21: 6544 | FM21: 7223 | FN21: 7705 | FO21: 8261 | FP21: 9013 | FQ21: 9109 | FR21: 9148 | FS21: 9277 | FT21: 10465 | FU21: 10203 | FV21: 10605 | FW21: 10981 | FX21: 11501 | FY21: 12364 | FZ21: 12885 | GA21: 12557 | GB21: 11845 | GC21: 11793 | GD21: 12097 | GE21: 12115 | GF21: 12619 | GG21: 12828 | GH21: 13162 | GI21: 13524 | GJ21: 12992 | GK21: 12573 | GL21: 11911 | GM21: 11995 | GN21: 12437 | GO21: 12587 | GP21: 12783 | GQ21: 13564 | GR21: 14081 | GS21: 14400 | GT21: 14677 | GU21: 14244 | GV21: 14275 | GW21: 14485 | GX21: 14620 | GY21: 15128 | GZ21: 15913 | HA21: 16099 | HB21: 16075 | HC21: 15334 | HD21: 15297 | HE21: 15336 | HF21: 15261 | HG21: 12867 | HH21: 12829 | HI21: 12984
A22: Belarus | B22: 608 | C22: 608 | D22: 608 | E22: 609 | F22: 609 | G22: 609 | H22: 610 | I22: 610 | J22: 610 | K22: 611 | L22: 611 | M22: 611 | N22: 612 | O22: 612 | P22: 612 | Q22: 613 | R22: 613 | S22: 613 | T22: 614 | U22: 614 | V22: 614 | W22: 618 | X22: 622 | Y22: 625 | Z22: 629 | AA22: 633 | AB22: 636 | AC22: 640 | AD22: 644 | AE22: 647 | AF22: 651 | AG22: 655 | AH22: 659 | AI22: 663 | AJ22: 666 | AK22: 670 | AL22: 674 | AM22: 678 | AN22: 682 | AO22: 686 | AP22: 690 | AQ22: 694 | AR22: 698 | AS22: 702 | AT22: 706 | AU22: 710 | AV22: 715 | AW22: 719 | AX22: 723 | AY22: 727 | AZ22: 731 | BA22: 736 | BB22: 740 | BC22: 744 | BD22: 749 | BE22: 753 | BF22: 757 | BG22: 762 | BH22: 766 | BI22: 771 | BJ22: 775 | BK22: 780 | BL22: 784 | BM22: 789 | BN22: 793 | BO22: 798 | BP22: 803 | BQ22: 807 | BR22: 812 | BS22: 817 | BT22: 822 | BU22: 826 | BV22: 831 | BW22: 836 | BX22: 841 | BY22: 846 | BZ22: 851 | CA22: 856 | CB22: 861 | CC22: 866 | CD22: 871 | CE22: 876 | CF22: 881 | CG22: 886 | CH22: 891 | CI22: 896 | CJ22: 861 | CK22: 1007 | CL22: 968 | CM22: 899 | CN22: 895 | CO22: 820 | CP22: 897 | CQ22: 1016 | CR22: 1154 | CS22: 1068 | CT22: 1175 | CU22: 1155 | CV22: 1185 | CW22: 1257 | CX22: 1229 | CY22: 1259 | CZ22: 1368 | DA22: 1273 | DB22: 1407 | DC22: 1245 | DD22: 1189 | DE22: 1142 | DF22: 1246 | DG22: 1293 | DH22: 1380 | DI22: 1274 | DJ22: 1376 | DK22: 1444 | DL22: 1379 | DM22: 1418 | DN22: 1260 | DO22: 1106 | DP22: 677 | DQ22: 583 | DR22: 585 | DS22: 535 | DT22: 621 | DU22: 714 | DV22: 904 | DW22: 1129 | DX22: 1267 | DY22: 1319 | DZ22: 1386 | EA22: 1400 | EB22: 1462 | EC22: 1474 | ED22: 1451 | EE22: 1504 | EF22: 1640 | EG22: 1874 | EH22: 2000 | EI22: 2164 | EJ22: 2156 | EK22: 2241 | EL22: 2146 | EM22: 2104 | EN22: 2063 | EO22: 2022 | EP22: 1982 | EQ22: 1943 | ER22: 1905 | ES22: 2115 | ET22: 2387 | EU22: 2605 | EV22: 2819 | EW22: 2781 | EX22: 2908 | EY22: 2981 | EZ22: 3070 | FA22: 3271 | FB22: 3518 | FC22: 3524 | FD22: 3719 | FE22: 3610 | FF22: 3878 | FG22: 4026 | FH22: 4066 | FI22: 3913 | FJ22: 4357 | FK22: 4547 | FL22: 4712 | FM22: 4866 | FN22: 5099 | FO22: 5120 | FP22: 5461 | FQ22: 5549 | FR22: 5523 | FS22: 5929 | FT22: 6108 | FU22: 6132 | FV22: 6429 | FW22: 6591 | FX22: 6769 | FY22: 6752 | FZ22: 6776 | GA22: 6855 | GB22: 7039 | GC22: 7279 | GD22: 7381 | GE22: 7459 | GF22: 7780 | GG22: 7896 | GH22: 8084 | GI22: 8251 | GJ22: 8084 | GK22: 7983 | GL22: 7201 | GM22: 6639 | GN22: 5869 | GO22: 5275 | GP22: 5441 | GQ22: 6087 | GR22: 6630 | GS22: 6879 | GT22: 7300 | GU22: 7704 | GV22: 8144 | GW22: 8778 | GX22: 9851 | GY22: 10851 | GZ22: 12010 | HA22: 13103 | HB22: 14488 | HC22: 14549 | HD22: 15703 | HE22: 16603 | HF22: 16907 | HG22: 17085 | HH22: 17349 | HI22: 17415
A23: Belgium | B23: 2412 | C23: 2413 | D23: 2413 | E23: 2413 | F23: 2414 | G23: 2414 | H23: 2414 | I23: 2415 | J23: 2415 | K23: 2416 | L23: 2416 | M23: 2416 | N23: 2417 | O23: 2417 | P23: 2417 | Q23: 2418 | R23: 2418 | S23: 2418 | T23: 2419 | U23: 2419 | V23: 2420 | W23: 2426 | X23: 2433 | Y23: 2440 | Z23: 2447 | AA23: 2454 | AB23: 2460 | AC23: 2467 | AD23: 2474 | AE23: 2481 | AF23: 2488 | AG23: 2523 | AH23: 2559 | AI23: 2596 | AJ23: 2633 | AK23: 2670 | AL23: 2708 | AM23: 2747 | AN23: 2786 | AO23: 2826 | AP23: 2866 | AQ23: 2907 | AR23: 2948 | AS23: 2990 | AT23: 3033 | AU23: 3076 | AV23: 3120 | AW23: 3246 | AX23: 3231 | AY23: 3300 | AZ23: 3406 | BA23: 3478 | BB23: 3549 | BC23: 3621 | BD23: 3822 | BE23: 3824 | BF23: 4009 | BG23: 4087 | BH23: 4088 | BI23: 4062 | BJ23: 4240 | BK23: 4273 | BL23: 4355 | BM23: 4449 | BN23: 4566 | BO23: 4533 | BP23: 4635 | BQ23: 4626 | BR23: 4761 | BS23: 4935 | BT23: 4990 | BU23: 4974 | BV23: 5238 | BW23: 5233 | BX23: 5364 | BY23: 5310 | BZ23: 5337 | CA23: 5356 | CB23: 5465 | CC23: 5471 | CD23: 5697 | CE23: 5707 | CF23: 5832 | CG23: 5849 | CH23: 5834 | CI23: 5838 | CJ23: 5868 | CK23: 6050 | CL23: 6046 | CM23: 6293 | CN23: 6387 | CO23: 6326 | CP23: 6415 | CQ23: 6442 | CR23: 6467 | CS23: 6549 | CT23: 6625 | CU23: 6692 | CV23: 6746 | CW23: 6825 | CX23: 6967 | CY23: 6946 | CZ23: 6985 | DA23: 7049 | DB23: 7141 | DC23: 7258 | DD23: 7326 | DE23: 7355 | DF23: 7357 | DG23: 7431 | DH23: 7606 | DI23: 7736 | DJ23: 7816 | DK23: 7811 | DL23: 5700 | DM23: 4652 | DN23: 5187 | DO23: 4303 | DP23: 4005 | DQ23: 4917 | DR23: 7395 | DS23: 7737 | DT23: 8205 | DU23: 8673 | DV23: 9000 | DW23: 8956 | DX23: 9015 | DY23: 8924 | DZ23: 9468 | EA23: 9647 | EB23: 9737 | EC23: 9329 | ED23: 8824 | EE23: 8670 | EF23: 8413 | EG23: 8743 | EH23: 8965 | EI23: 9335 | EJ23: 9103 | EK23: 8687 | EL23: 7097 | EM23: 6030 | EN23: 6157 | EO23: 4965 | EP23: 5014 | EQ23: 5328 | ER23: 8351 | ES23: 9365 | ET23: 9793 | EU23: 10035 | EV23: 10309 | EW23: 10790 | EX23: 10688 | EY23: 11038 | EZ23: 11390 | FA23: 11728 | FB23: 12053 | FC23: 12252 | FD23: 11919 | FE23: 12137 | FF23: 12608 | FG23: 13122 | FH23: 13689 | FI23: 14163 | FJ23: 14995 | FK23: 15360 | FL23: 15721 | FM23: 16225 | FN23: 16816 | FO23: 17868 | FP23: 18903 | FQ23: 19548 | FR23: 20504 | FS23: 21700 | FT23: 22550 | FU23: 22196 | FV23: 23418 | FW23: 23546 | FX23: 24202 | FY23: 24756 | FZ23: 25847 | GA23: 25517 | GB23: 25873 | GC23: 25879 | GD23: 26527 | GE23: 26792 | GF23: 27189 | GG23: 27813 | GH23: 29092 | GI23: 29980 | GJ23: 30798 | GK23: 31247 | GL23: 31596 | GM23: 31170 | GN23: 32077 | GO23: 32774 | GP23: 33217 | GQ23: 34377 | GR23: 34992 | GS23: 36209 | GT23: 37404 | GU23: 37620 | GV23: 38036 | GW23: 38214 | GX23: 39356 | GY23: 39881 | GZ23: 40661 | HA23: 41575 | HB23: 41641 | HC23: 40225 | HD23: 40764 | HE23: 40946 | HF23: 40687 | HG23: 40607 | HH23: 40885 | HI23: 41240
A24: Belize | B24: 579 | C24: 579 | D24: 579 | E24: 579 | F24: 579 | G24: 579 | H24: 579 | I24: 579 | J24: 579 | K24: 579 | L24: 580 | M24: 580 | N24: 580 | O24: 580 | P24: 580 | Q24: 580 | R24: 580 | S24: 580 | T24: 580 | U24: 580 | V24: 580 | W24: 584 | X24: 588 | Y24: 592 | Z24: 596 | AA24: 600 | AB24: 604 | AC24: 608 | AD24: 613 | AE24: 617 | AF24: 621 | AG24: 625 | AH24: 629 | AI24: 634 | AJ24: 638 | AK24: 642 | AL24: 646 | AM24: 651 | AN24: 655 | AO24: 660 | AP24: 664 | AQ24: 669 | AR24: 673 | AS24: 678 | AT24: 682 | AU24: 687 | AV24: 692 | AW24: 696 | AX24: 701 | AY24: 706 | AZ24: 710 | BA24: 715 | BB24: 720 | BC24: 725 | BD24: 730 | BE24: 735 | BF24: 740 | BG24: 745 | BH24: 750 | BI24: 755 | BJ24: 760 | BK24: 765 | BL24: 770 | BM24: 775 | BN24: 781 | BO24: 786 | BP24: 791 | BQ24: 797 | BR24: 802 | BS24: 807 | BT24: 813 | BU24: 818 | BV24: 824 | BW24: 829 | BX24: 835 | BY24: 841 | BZ24: 846 | CA24: 852 | CB24: 858 | CC24: 864 | CD24: 869 | CE24: 875 | CF24: 881 | CG24: 887 | CH24: 893 | CI24: 899 | CJ24: 905 | CK24: 911 | CL24: 918 | CM24: 924 | CN24: 930 | CO24: 936 | CP24: 943 | CQ24: 949 | CR24: 955 | CS24: 962 | CT24: 968 | CU24: 975 | CV24: 981 | CW24: 988 | CX24: 995 | CY24: 1002 | CZ24: 1008 | DA24: 1015 | DB24: 1022 | DC24: 1029 | DD24: 1036 | DE24: 1043 | DF24: 1050 | DG24: 1057 | DH24: 1064 | DI24: 1071 | DJ24: 1079 | DK24: 1086 | DL24: 1102 | DM24: 1119 | DN24: 1136 | DO24: 1153 | DP24: 1170 | DQ24: 1188 | DR24: 1205 | DS24: 1223 | DT24: 1241 | DU24: 1259 | DV24: 1278 | DW24: 1297 | DX24: 1316 | DY24: 1335 | DZ24: 1355 | EA24: 1375 | EB24: 1395 | EC24: 1415 | ED24: 1436 | EE24: 1457 | EF24: 1478 | EG24: 1500 | EH24: 1522 | EI24: 1544 | EJ24: 1567 | EK24: 1590 | EL24: 1613 | EM24: 1637 | EN24: 1661 | EO24: 1685 | EP24: 1710 | EQ24: 1734 | ER24: 1760 | ES24: 1786 | ET24: 1812 | EU24: 1838 | EV24: 1865 | EW24: 1879 | EX24: 1892 | EY24: 1906 | EZ24: 1920 | FA24: 1934 | FB24: 1949 | FC24: 1963 | FD24: 1977 | FE24: 1992 | FF24: 2006 | FG24: 2032 | FH24: 2056 | FI24: 2082 | FJ24: 2114 | FK24: 2153 | FL24: 2196 | FM24: 2248 | FN24: 2362 | FO24: 2435 | FP24: 2509 | FQ24: 2570 | FR24: 2797 | FS24: 2911 | FT24: 3259 | FU24: 3315 | FV24: 3244 | FW24: 3370 | FX24: 3539 | FY24: 3701 | FZ24: 4148 | GA24: 4091 | GB24: 3973 | GC24: 3809 | GD24: 3763 | GE24: 3705 | GF24: 3777 | GG24: 4083 | GH24: 4344 | GI24: 4820 | GJ24: 5166 | GK24: 5594 | GL24: 6154 | GM24: 6424 | GN24: 6310 | GO24: 6209 | GP24: 6137 | GQ24: 6177 | GR24: 6220 | GS24: 6568 | GT24: 7215 | GU24: 7373 | GV24: 7548 | GW24: 8042 | GX24: 8203 | GY24: 8202 | GZ24: 8360 | HA24: 8240 | HB24: 8293 | HC24: 8145 | HD24: 8209 | HE24: 8178 | HF24: 8287 | HG24: 8215 | HH24: 8418 | HI24: 8501
A25: Benin | B25: 597 | C25: 597 | D25: 597 | E25: 597 | F25: 597 | G25: 597 | H25: 597 | I25: 597 | J25: 597 | K25: 597 | L25: 598 | M25: 598 | N25: 598 | O25: 598 | P25: 598 | Q25: 598 | R25: 598 | S25: 598 | T25: 598 | U25: 598 | V25: 598 | W25: 601 | X25: 604 | Y25: 607 | Z25: 610 | AA25: 613 | AB25: 616 | AC25: 619 | AD25: 622 | AE25: 625 | AF25: 628 | AG25: 631 | AH25: 634 | AI25: 637 | AJ25: 640 | AK25: 643 | AL25: 646 | AM25: 650 | AN25: 653 | AO25: 656 | AP25: 659 | AQ25: 662 | AR25: 665 | AS25: 669 | AT25: 672 | AU25: 675 | AV25: 678 | AW25: 682 | AX25: 685 | AY25: 688 | AZ25: 692 | BA25: 695 | BB25: 698 | BC25: 702 | BD25: 705 | BE25: 709 | BF25: 712 | BG25: 715 | BH25: 719 | BI25: 722 | BJ25: 726 | BK25: 729 | BL25: 733 | BM25: 736 | BN25: 740 | BO25: 744 | BP25: 747 | BQ25: 751 | BR25: 754 | BS25: 758 | BT25: 762 | BU25: 765 | BV25: 769 | BW25: 773 | BX25: 777 | BY25: 780 | BZ25: 784 | CA25: 788 | CB25: 792 | CC25: 796 | CD25: 799 | CE25: 803 | CF25: 807 | CG25: 811 | CH25: 815 | CI25: 819 | CJ25: 823 | CK25: 827 | CL25: 831 | CM25: 835 | CN25: 839 | CO25: 843 | CP25: 847 | CQ25: 851 | CR25: 855 | CS25: 859 | CT25: 864 | CU25: 868 | CV25: 872 | CW25: 876 | CX25: 880 | CY25: 885 | CZ25: 889 | DA25: 893 | DB25: 898 | DC25: 902 | DD25: 906 | DE25: 911 | DF25: 915 | DG25: 920 | DH25: 924 | DI25: 928 | DJ25: 933 | DK25: 937 | DL25: 944 | DM25: 951 | DN25: 957 | DO25: 964 | DP25: 971 | DQ25: 978 | DR25: 985 | DS25: 993 | DT25: 1001 | DU25: 1009 | DV25: 1017 | DW25: 1025 | DX25: 1033 | DY25: 1041 | DZ25: 1050 | EA25: 1058 | EB25: 1066 | EC25: 1075 | ED25: 1083 | EE25: 1092 | EF25: 1101 | EG25: 1109 | EH25: 1118 | EI25: 1127 | EJ25: 1136 | EK25: 1145 | EL25: 1154 | EM25: 1163 | EN25: 1172 | EO25: 1182 | EP25: 1191 | EQ25: 1200 | ER25: 1210 | ES25: 1219 | ET25: 1229 | EU25: 1239 | EV25: 1248 | EW25: 1226 | EX25: 1203 | EY25: 1148 | EZ25: 1159 | FA25: 1136 | FB25: 1114 | FC25: 1092 | FD25: 1109 | FE25: 1127 | FF25: 1137 | FG25: 1149 | FH25: 1085 | FI25: 1110 | FJ25: 1159 | FK25: 1191 | FL25: 1206 | FM25: 1189 | FN25: 1204 | FO25: 1210 | FP25: 1205 | FQ25: 1180 | FR25: 1251 | FS25: 1248 | FT25: 1124 | FU25: 1141 | FV25: 1158 | FW25: 1191 | FX25: 1195 | FY25: 1255 | FZ25: 1338 | GA25: 1377 | GB25: 1484 | GC25: 1380 | GD25: 1447 | GE25: 1510 | GF25: 1497 | GG25: 1429 | GH25: 1427 | GI25: 1352 | GJ25: 1362 | GK25: 1370 | GL25: 1359 | GM25: 1386 | GN25: 1364 | GO25: 1398 | GP25: 1414 | GQ25: 1451 | GR25: 1466 | GS25: 1500 | GT25: 1525 | GU25: 1570 | GV25: 1586 | GW25: 1594 | GX25: 1590 | GY25: 1584 | GZ25: 1592 | HA25: 1616 | HB25: 1646 | HC25: 1641 | HD25: 1637 | HE25: 1643 | HF25: 1685 | HG25: 1733 | HH25: 1779 | HI25: 1830
A26: Bermuda | B26: 1227 | C26: 1227 | D26: 1228 | E26: 1228 | F26: 1228 | G26: 1228 | H26: 1228 | I26: 1229 | J26: 1229 | K26: 1229 | L26: 1229 | M26: 1229 | N26: 1229 | O26: 1230 | P26: 1230 | Q26: 1230 | R26: 1230 | S26: 1230 | T26: 1231 | U26: 1231 | V26: 1231 | W26: 1239 | X26: 1248 | Y26: 1256 | Z26: 1265 | AA26: 1273 | AB26: 1282 | AC26: 1290 | AD26: 1299 | AE26: 1308 | AF26: 1317 | AG26: 1326 | AH26: 1335 | AI26: 1344 | AJ26: 1353 | AK26: 1362 | AL26: 1371 | AM26: 1380 | AN26: 1390 | AO26: 1399 | AP26: 1408 | AQ26: 1418 | AR26: 1428 | AS26: 1437 | AT26: 1447 | AU26: 1457 | AV26: 1467 | AW26: 1476 | AX26: 1486 | AY26: 1496 | AZ26: 1507 | BA26: 1517 | BB26: 1527 | BC26: 1537 | BD26: 1548 | BE26: 1558 | BF26: 1569 | BG26: 1579 | BH26: 1590 | BI26: 1601 | BJ26: 1612 | BK26: 1622 | BL26: 1633 | BM26: 1644 | BN26: 1656 | BO26: 1667 | BP26: 1678 | BQ26: 1689 | BR26: 1701 | BS26: 1712 | BT26: 1724 | BU26: 1735 | BV26: 1747 | BW26: 1759 | BX26: 1771 | BY26: 1783 | BZ26: 1795 | CA26: 1807 | CB26: 1819 | CC26: 1832 | CD26: 1844 | CE26: 1856 | CF26: 1869 | CG26: 1882 | CH26: 1894 | CI26: 1907 | CJ26: 1920 | CK26: 1933 | CL26: 1946 | CM26: 1959 | CN26: 1972 | CO26: 1986 | CP26: 1999 | CQ26: 2013 | CR26: 2026 | CS26: 2040 | CT26: 2054 | CU26: 2068 | CV26: 2081 | CW26: 2096 | CX26: 2110 | CY26: 2124 | CZ26: 2138 | DA26: 2153 | DB26: 2167 | DC26: 2182 | DD26: 2197 | DE26: 2212 | DF26: 2226 | DG26: 2242 | DH26: 2257 | DI26: 2272 | DJ26: 2287 | DK26: 2303 | DL26: 2405 | DM26: 2511 | DN26: 2623 | DO26: 2739 | DP26: 2860 | DQ26: 2987 | DR26: 3119 | DS26: 3262 | DT26: 3412 | DU26: 3569 | DV26: 3733 | DW26: 3904 | DX26: 4083 | DY26: 4270 | DZ26: 4466 | EA26: 4671 | EB26: 4885 | EC26: 5108 | ED26: 5343 | EE26: 5587 | EF26: 5843 | EG26: 6111 | EH26: 6391 | EI26: 6683 | EJ26: 6989 | EK26: 7309 | EL26: 7644 | EM26: 7993 | EN26: 8359 | EO26: 8742 | EP26: 9141 | EQ26: 9560 | ER26: 9997 | ES26: 10454 | ET26: 10932 | EU26: 11431 | EV26: 11954 | EW26: 12638 | EX26: 13362 | EY26: 14126 | EZ26: 14935 | FA26: 15789 | FB26: 16693 | FC26: 17648 | FD26: 18658 | FE26: 19725 | FF26: 20853 | FG26: 21331 | FH26: 21789 | FI26: 21544 | FJ26: 23383 | FK26: 23943 | FL26: 26935 | FM26: 29965 | FN26: 30060 | FO26: 30559 | FP26: 31940 | FQ26: 32748 | FR26: 33062 | FS26: 33263 | FT26: 33301 | FU26: 34314 | FV26: 36119 | FW26: 36451 | FX26: 37077 | FY26: 39853 | FZ26: 40660 | GA26: 38250 | GB26: 38851 | GC26: 38854 | GD26: 37552 | GE26: 39853 | GF26: 41112 | GG26: 42539 | GH26: 42481 | GI26: 42255 | GJ26: 40553 | GK26: 39322 | GL26: 39584 | GM26: 40557 | GN26: 40518 | GO26: 41999 | GP26: 42817 | GQ26: 44514 | GR26: 45912 | GS26: 47200 | GT26: 51140 | GU26: 54245 | GV26: 53097 | GW26: 54550 | GX26: 55453 | GY26: 56017 | GZ26: 58785 | HA26: 60117 | HB26: 60676 | HC26: 57152 | HD26: 56395 | HE26: 54985 | HF26: 52137 | HG26: 50669 | HH26: 48728 | HI26: 47081
A27: Bhutan | B27: 629 | C27: 629 | D27: 630 | E27: 630 | F27: 630 | G27: 630 | H27: 630 | I27: 630 | J27: 630 | K27: 630 | L27: 630 | M27: 630 | N27: 631 | O27: 631 | P27: 631 | Q27: 631 | R27: 631 | S27: 631 | T27: 631 | U27: 631 | V27: 631 | W27: 633 | X27: 634 | Y27: 635 | Z27: 636 | AA27: 638 | AB27: 639 | AC27: 640 | AD27: 641 | AE27: 643 | AF27: 644 | AG27: 645 | AH27: 646 | AI27: 648 | AJ27: 649 | AK27: 650 | AL27: 651 | AM27: 653 | AN27: 654 | AO27: 655 | AP27: 657 | AQ27: 658 | AR27: 659 | AS27: 661 | AT27: 662 | AU27: 663 | AV27: 664 | AW27: 666 | AX27: 667 | AY27: 668 | AZ27: 670 | BA27: 671 | BB27: 672 | BC27: 674 | BD27: 675 | BE27: 676 | BF27: 678 | BG27: 679 | BH27: 680 | BI27: 682 | BJ27: 683 | BK27: 684 | BL27: 686 | BM27: 687 | BN27: 688 | BO27: 690 | BP27: 691 | BQ27: 692 | BR27: 694 | BS27: 695 | BT27: 697 | BU27: 698 | BV27: 699 | BW27: 701 | BX27: 702 | BY27: 703 | BZ27: 705 | CA27: 706 | CB27: 708 | CC27: 709 | CD27: 710 | CE27: 712 | CF27: 713 | CG27: 715 | CH27: 716 | CI27: 717 | CJ27: 719 | CK27: 720 | CL27: 722 | CM27: 723 | CN27: 724 | CO27: 726 | CP27: 727 | CQ27: 729 | CR27: 730 | CS27: 732 | CT27: 733 | CU27: 735 | CV27: 736 | CW27: 737 | CX27: 739 | CY27: 740 | CZ27: 742 | DA27: 743 | DB27: 745 | DC27: 746 | DD27: 748 | DE27: 749 | DF27: 751 | DG27: 752 | DH27: 754 | DI27: 755 | DJ27: 757 | DK27: 758 | DL27: 759 | DM27: 761 | DN27: 762 | DO27: 764 | DP27: 765 | DQ27: 767 | DR27: 769 | DS27: 771 | DT27: 774 | DU27: 776 | DV27: 779 | DW27: 782 | DX27: 784 | DY27: 787 | DZ27: 790 | EA27: 792 | EB27: 795 | EC27: 798 | ED27: 800 | EE27: 803 | EF27: 806 | EG27: 808 | EH27: 811 | EI27: 814 | EJ27: 816 | EK27: 819 | EL27: 822 | EM27: 825 | EN27: 827 | EO27: 830 | EP27: 833 | EQ27: 835 | ER27: 838 | ES27: 841 | ET27: 844 | EU27: 846 | EV27: 849 | EW27: 859 | EX27: 869 | EY27: 879 | EZ27: 889 | FA27: 899 | FB27: 910 | FC27: 920 | FD27: 931 | FE27: 941 | FF27: 952 | FG27: 963 | FH27: 974 | FI27: 985 | FJ27: 997 | FK27: 1008 | FL27: 1020 | FM27: 1031 | FN27: 1043 | FO27: 1055 | FP27: 1067 | FQ27: 1059 | FR27: 1034 | FS27: 1011 | FT27: 1026 | FU27: 957 | FV27: 1008 | FW27: 1051 | FX27: 1090 | FY27: 1108 | FZ27: 1131 | GA27: 1228 | GB27: 1227 | GC27: 1297 | GD27: 1345 | GE27: 1385 | GF27: 1534 | GG27: 1948 | GH27: 2004 | GI27: 2111 | GJ27: 2332 | GK27: 2326 | GL27: 2463 | GM27: 2557 | GN27: 2723 | GO27: 2930 | GP27: 3072 | GQ27: 3184 | GR27: 3292 | GS27: 3459 | GT27: 3596 | GU27: 3780 | GV27: 4062 | GW27: 4247 | GX27: 4373 | GY27: 4565 | GZ27: 4767 | HA27: 5507 | HB27: 5663 | HC27: 5934 | HD27: 6516 | HE27: 6909 | HF27: 7138 | HG27: 7167 | HH27: 7500 | HI27: 7983
A28: Bolivia | B28: 854 | C28: 854 | D28: 854 | E28: 854 | F28: 854 | G28: 854 | H28: 854 | I28: 854 | J28: 855 | K28: 855 | L28: 855 | M28: 855 | N28: 855 | O28: 855 | P28: 855 | Q28: 856 | R28: 856 | S28: 856 | T28: 856 | U28: 856 | V28: 856 | W28: 864 | X28: 873 | Y28: 881 | Z28: 889 | AA28: 898 | AB28: 906 | AC28: 915 | AD28: 924 | AE28: 932 | AF28: 941 | AG28: 950 | AH28: 959 | AI28: 968 | AJ28: 977 | AK28: 987 | AL28: 996 | AM28: 1006 | AN28: 1015 | AO28: 1025 | AP28: 1035 | AQ28: 1044 | AR28: 1054 | AS28: 1064 | AT28: 1075 | AU28: 1085 | AV28: 1095 | AW28: 1106 | AX28: 1116 | AY28: 1127 | AZ28: 1137 | BA28: 1148 | BB28: 1159 | BC28: 1170 | BD28: 1181 | BE28: 1193 | BF28: 1204 | BG28: 1215 | BH28: 1227 | BI28: 1239 | BJ28: 1250 | BK28: 1262 | BL28: 1274 | BM28: 1286 | BN28: 1299 | BO28: 1311 | BP28: 1323 | BQ28: 1336 | BR28: 1349 | BS28: 1362 | BT28: 1374 | BU28: 1388 | BV28: 1401 | BW28: 1414 | BX28: 1428 | BY28: 1441 | BZ28: 1455 | CA28: 1469 | CB28: 1483 | CC28: 1497 | CD28: 1511 | CE28: 1525 | CF28: 1540 | CG28: 1554 | CH28: 1569 | CI28: 1584 | CJ28: 1599 | CK28: 1614 | CL28: 1630 | CM28: 1645 | CN28: 1661 | CO28: 1677 | CP28: 1693 | CQ28: 1709 | CR28: 1725 | CS28: 1741 | CT28: 1758 | CU28: 1775 | CV28: 1792 | CW28: 1809 | CX28: 1826 | CY28: 1843 | CZ28: 1861 | DA28: 1878 | DB28: 1896 | DC28: 1914 | DD28: 1933 | DE28: 1951 | DF28: 1970 | DG28: 1988 | DH28: 2007 | DI28: 2026 | DJ28: 2046 | DK28: 2065 | DL28: 2085 | DM28: 2104 | DN28: 2124 | DO28: 2145 | DP28: 2165 | DQ28: 2186 | DR28: 2206 | DS28: 2228 | DT28: 2251 | DU28: 2273 | DV28: 2296 | DW28: 2319 | DX28: 2342 | DY28: 2365 | DZ28: 2389 | EA28: 2412 | EB28: 2436 | EC28: 2460 | ED28: 2485 | EE28: 2510 | EF28: 2534 | EG28: 2560 | EH28: 2585 | EI28: 2611 | EJ28: 2636 | EK28: 2662 | EL28: 2689 | EM28: 2715 | EN28: 2742 | EO28: 2769 | EP28: 2797 | EQ28: 2824 | ER28: 2843 | ES28: 2861 | ET28: 2891 | EU28: 2919 | EV28: 3216 | EW28: 3374 | EX28: 3405 | EY28: 3020 | EZ28: 3019 | FA28: 3113 | FB28: 2866 | FC28: 2713 | FD28: 2717 | FE28: 2650 | FF28: 2703 | FG28: 2699 | FH28: 2787 | FI28: 2899 | FJ28: 2971 | FK28: 3046 | FL28: 3191 | FM28: 3312 | FN28: 3510 | FO28: 3581 | FP28: 3678 | FQ28: 3727 | FR28: 3823 | FS28: 3988 | FT28: 4093 | FU28: 4260 | FV28: 4484 | FW28: 4560 | FX28: 4602 | FY28: 4496 | FZ28: 4363 | GA28: 4322 | GB28: 4064 | GC28: 3819 | GD28: 3795 | GE28: 3706 | GF28: 3525 | GG28: 3551 | GH28: 3613 | GI28: 3638 | GJ28: 3740 | GK28: 3845 | GL28: 3817 | GM28: 3887 | GN28: 3975 | GO28: 4068 | GP28: 4152 | GQ28: 4264 | GR28: 4384 | GS28: 4312 | GT28: 4330 | GU28: 4315 | GV28: 4335 | GW28: 4367 | GX28: 4464 | GY28: 4578 | GZ28: 4716 | HA28: 4850 | HB28: 5066 | HC28: 5152 | HD28: 5279 | HE28: 5462 | HF28: 5650 | HG28: 5934 | HH28: 6153 | HI28: 6295
A29: Bosnia and Herzegovina | B29: 669 | C29: 669 | D29: 669 | E29: 669 | F29: 669 | G29: 669 | H29: 669 | I29: 669 | J29: 669 | K29: 669 | L29: 670 | M29: 670 | N29: 670 | O29: 670 | P29: 670 | Q29: 670 | R29: 670 | S29: 670 | T29: 670 | U29: 670 | V29: 671 | W29: 674 | X29: 677 | Y29: 681 | Z29: 684 | AA29: 688 | AB29: 691 | AC29: 695 | AD29: 698 | AE29: 702 | AF29: 706 | AG29: 709 | AH29: 713 | AI29: 716 | AJ29: 720 | AK29: 724 | AL29: 727 | AM29: 731 | AN29: 735 | AO29: 739 | AP29: 742 | AQ29: 746 | AR29: 750 | AS29: 754 | AT29: 758 | AU29: 762 | AV29: 765 | AW29: 769 | AX29: 773 | AY29: 777 | AZ29: 781 | BA29: 782 | BB29: 782 | BC29: 783 | BD29: 783 | BE29: 783 | BF29: 784 | BG29: 784 | BH29: 785 | BI29: 785 | BJ29: 786 | BK29: 786 | BL29: 787 | BM29: 787 | BN29: 787 | BO29: 788 | BP29: 788 | BQ29: 789 | BR29: 789 | BS29: 790 | BT29: 790 | BU29: 801 | BV29: 812 | BW29: 823 | BX29: 835 | BY29: 846 | BZ29: 858 | CA29: 870 | CB29: 881 | CC29: 894 | CD29: 906 | CE29: 918 | CF29: 931 | CG29: 944 | CH29: 957 | CI29: 970 | CJ29: 983 | CK29: 997 | CL29: 1011 | CM29: 1025 | CN29: 1039 | CO29: 1042 | CP29: 1045 | CQ29: 1048 | CR29: 1052 | CS29: 1055 | CT29: 1058 | CU29: 1062 | CV29: 1065 | CW29: 1068 | CX29: 1072 | CY29: 1085 | CZ29: 1098 | DA29: 1111 | DB29: 1125 | DC29: 1139 | DD29: 1152 | DE29: 1166 | DF29: 1181 | DG29: 1195 | DH29: 1209 | DI29: 1205 | DJ29: 1200 | DK29: 1196 | DL29: 1187 | DM29: 1178 | DN29: 1169 | DO29: 1160 | DP29: 1152 | DQ29: 1143 | DR29: 1135 | DS29: 1136 | DT29: 1142 | DU29: 1174 | DV29: 1230 | DW29: 1261 | DX29: 1318 | DY29: 1266 | DZ29: 1346 | EA29: 1384 | EB29: 1326 | EC29: 1256 | ED29: 1113 | EE29: 1122 | EF29: 1137 | EG29: 1094 | EH29: 1207 | EI29: 1199 | EJ29: 1265 | EK29: 1304 | EL29: 1280 | EM29: 1256 | EN29: 1233 | EO29: 1210 | EP29: 1188 | EQ29: 1166 | ER29: 1144 | ES29: 1123 | ET29: 1308 | EU29: 1404 | EV29: 1284 | EW29: 1304 | EX29: 1174 | EY29: 1318 | EZ29: 1360 | FA29: 1412 | FB29: 1354 | FC29: 1550 | FD29: 1583 | FE29: 1742 | FF29: 1815 | FG29: 1858 | FH29: 1853 | FI29: 2004 | FJ29: 2152 | FK29: 2164 | FL29: 2234 | FM29: 2227 | FN29: 2229 | FO29: 2431 | FP29: 2500 | FQ29: 2732 | FR29: 2768 | FS29: 2803 | FT29: 3100 | FU29: 3036 | FV29: 3064 | FW29: 3217 | FX29: 3325 | FY29: 3480 | FZ29: 3582 | GA29: 3579 | GB29: 3538 | GC29: 3504 | GD29: 3528 | GE29: 3494 | GF29: 3572 | GG29: 3471 | GH29: 3363 | GI29: 3263 | GJ29: 2974 | GK29: 2613 | GL29: 1970 | GM29: 1466 | GN29: 1574 | GO29: 1976 | GP29: 3771 | GQ29: 4996 | GR29: 5609 | GS29: 5965 | GT29: 6158 | GU29: 6354 | GV29: 6660 | GW29: 6929 | GX29: 7369 | GY29: 7751 | GZ29: 8242 | HA29: 8820 | HB29: 9316 | HC29: 9063 | HD29: 9145 | HE29: 9248 | HF29: 9149 | HG29: 9387 | HH29: 9516 | HI29: 9833
A30: Botswana | B30: 397 | C30: 397 | D30: 397 | E30: 397 | F30: 397 | G30: 398 | H30: 398 | I30: 398 | J30: 398 | K30: 398 | L30: 398 | M30: 398 | N30: 398 | O30: 398 | P30: 398 | Q30: 398 | R30: 398 | S30: 398 | T30: 398 | U30: 398 | V30: 398 | W30: 400 | X30: 402 | Y30: 404 | Z30: 406 | AA30: 408 | AB30: 410 | AC30: 412 | AD30: 414 | AE30: 416 | AF30: 418 | AG30: 420 | AH30: 422 | AI30: 424 | AJ30: 426 | AK30: 428 | AL30: 430 | AM30: 432 | AN30: 435 | AO30: 437 | AP30: 439 | AQ30: 441 | AR30: 443 | AS30: 445 | AT30: 447 | AU30: 449 | AV30: 452 | AW30: 454 | AX30: 456 | AY30: 458 | AZ30: 460 | BA30: 463 | BB30: 465 | BC30: 467 | BD30: 469 | BE30: 472 | BF30: 474 | BG30: 476 | BH30: 479 | BI30: 481 | BJ30: 483 | BK30: 486 | BL30: 488 | BM30: 490 | BN30: 493 | BO30: 495 | BP30: 497 | BQ30: 500 | BR30: 502 | BS30: 505 | BT30: 507 | BU30: 510 | BV30: 512 | BW30: 515 | BX30: 517 | BY30: 520 | BZ30: 522 | CA30: 525 | CB30: 527 | CC30: 530 | CD30: 532 | CE30: 535 | CF30: 537 | CG30: 540 | CH30: 543 | CI30: 545 | CJ30: 548 | CK30: 550 | CL30: 553 | CM30: 556 | CN30: 559 | CO30: 561 | CP30: 564 | CQ30: 567 | CR30: 569 | CS30: 572 | CT30: 575 | CU30: 578 | CV30: 581 | CW30: 583 | CX30: 586 | CY30: 589 | CZ30: 592 | DA30: 595 | DB30: 598 | DC30: 600 | DD30: 603 | DE30: 606 | DF30: 609 | DG30: 612 | DH30: 615 | DI30: 618 | DJ30: 621 | DK30: 624 | DL30: 629 | DM30: 633 | DN30: 638 | DO30: 643 | DP30: 648 | DQ30: 653 | DR30: 658 | DS30: 663 | DT30: 668 | DU30: 674 | DV30: 679 | DW30: 684 | DX30: 690 | DY30: 696 | DZ30: 701 | EA30: 707 | EB30: 712 | EC30: 718 | ED30: 724 | EE30: 730 | EF30: 735 | EG30: 741 | EH30: 747 | EI30: 753 | EJ30: 759 | EK30: 765 | EL30: 771 | EM30: 778 | EN30: 784 | EO30: 790 | EP30: 796 | EQ30: 803 | ER30: 809 | ES30: 815 | ET30: 822 | EU30: 828 | EV30: 835 | EW30: 851 | EX30: 862 | EY30: 877 | EZ30: 893 | FA30: 907 | FB30: 920 | FC30: 933 | FD30: 944 | FE30: 960 | FF30: 970 | FG30: 989 | FH30: 1002 | FI30: 1019 | FJ30: 1038 | FK30: 1055 | FL30: 1142 | FM30: 1240 | FN30: 1347 | FO30: 1455 | FP30: 1567 | FQ30: 1810 | FR30: 2317 | FS30: 2722 | FT30: 3152 | FU30: 2969 | FV30: 3354 | FW30: 3298 | FX30: 3736 | FY30: 3920 | FZ30: 4292 | GA30: 4520 | GB30: 4679 | GC30: 5224 | GD30: 5608 | GE30: 5822 | GF30: 6065 | GG30: 6393 | GH30: 7173 | GI30: 7856 | GJ30: 8075 | GK30: 8430 | GL30: 8436 | GM30: 8368 | GN30: 8449 | GO30: 8823 | GP30: 9121 | GQ30: 9637 | GR30: 9507 | GS30: 10228 | GT30: 10250 | GU30: 10115 | GV30: 10577 | GW30: 10923 | GX30: 11085 | GY30: 11460 | GZ30: 12241 | HA30: 13170 | HB30: 13858 | HC30: 12680 | HD30: 13642 | HE30: 14341 | HF30: 14905 | HG30: 16155 | HH30: 16725 | HI30: 17196
A31: Brazil | B31: 1109 | C31: 1109 | D31: 1109 | E31: 1109 | F31: 1109 | G31: 1110 | H31: 1110 | I31: 1110 | J31: 1110 | K31: 1110 | L31: 1110 | M31: 1111 | N31: 1111 | O31: 1111 | P31: 1111 | Q31: 1111 | R31: 1111 | S31: 1112 | T31: 1112 | U31: 1112 | V31: 1112 | W31: 1114 | X31: 1117 | Y31: 1119 | Z31: 1122 | AA31: 1124 | AB31: 1126 | AC31: 1129 | AD31: 1131 | AE31: 1134 | AF31: 1136 | AG31: 1138 | AH31: 1141 | AI31: 1143 | AJ31: 1146 | AK31: 1148 | AL31: 1151 | AM31: 1153 | AN31: 1155 | AO31: 1158 | AP31: 1160 | AQ31: 1163 | AR31: 1165 | AS31: 1168 | AT31: 1170 | AU31: 1173 | AV31: 1175 | AW31: 1178 | AX31: 1180 | AY31: 1183 | AZ31: 1185 | BA31: 1267 | BB31: 1233 | BC31: 1157 | BD31: 1118 | BE31: 1129 | BF31: 1170 | BG31: 1252 | BH31: 1333 | BI31: 1323 | BJ31: 1358 | BK31: 1346 | BL31: 1282 | BM31: 1311 | BN31: 1330 | BO31: 1429 | BP31: 1481 | BQ31: 1604 | BR31: 1604 | BS31: 1605 | BT31: 1488 | BU31: 1488 | BV31: 1540 | BW31: 1494 | BX31: 1518 | BY31: 1541 | BZ31: 1483 | CA31: 1442 | CB31: 1512 | CC31: 1525 | CD31: 1455 | CE31: 1467 | CF31: 1503 | CG31: 1462 | CH31: 1561 | CI31: 1450 | CJ31: 1497 | CK31: 1398 | CL31: 1345 | CM31: 1364 | CN31: 1492 | CO31: 1586 | CP31: 1375 | CQ31: 1170 | CR31: 1171 | CS31: 1388 | CT31: 1260 | CU31: 1241 | CV31: 1271 | CW31: 1248 | CX31: 1201 | CY31: 1354 | CZ31: 1315 | DA31: 1318 | DB31: 1301 | DC31: 1322 | DD31: 1456 | DE31: 1445 | DF31: 1369 | DG31: 1475 | DH31: 1487 | DI31: 1533 | DJ31: 1592 | DK31: 1598 | DL31: 1531 | DM31: 1498 | DN31: 1471 | DO31: 1571 | DP31: 1492 | DQ31: 1569 | DR31: 1722 | DS31: 1702 | DT31: 1785 | DU31: 1879 | DV31: 1853 | DW31: 1797 | DX31: 1834 | DY31: 1977 | DZ31: 2143 | EA31: 2099 | EB31: 1998 | EC31: 1870 | ED31: 1896 | EE31: 2012 | EF31: 2133 | EG31: 2137 | EH31: 2330 | EI31: 2370 | EJ31: 2407 | EK31: 2397 | EL31: 2308 | EM31: 2351 | EN31: 2214 | EO31: 2337 | EP31: 2451 | EQ31: 2457 | ER31: 2662 | ES31: 2643 | ET31: 2811 | EU31: 2932 | EV31: 3030 | EW31: 3074 | EX31: 3191 | EY31: 3228 | EZ31: 3366 | FA31: 3543 | FB31: 3521 | FC31: 3668 | FD31: 3935 | FE31: 4184 | FF31: 4433 | FG31: 4663 | FH31: 4823 | FI31: 4697 | FJ31: 4707 | FK31: 4671 | FL31: 4836 | FM31: 4888 | FN31: 5215 | FO31: 5550 | FP31: 5930 | FQ31: 6463 | FR31: 7082 | FS31: 7904 | FT31: 8362 | FU31: 8595 | FV31: 9274 | FW31: 9512 | FX31: 9759 | FY31: 10187 | FZ31: 10922 | GA31: 10224 | GB31: 10094 | GC31: 9590 | GD31: 9913 | GE31: 10495 | GF31: 11079 | GG31: 11267 | GH31: 11062 | GI31: 11226 | GJ31: 10331 | GK31: 10315 | GL31: 10104 | GM31: 10413 | GN31: 10802 | GO31: 11108 | GP31: 11178 | GQ31: 11382 | GR31: 11250 | GS31: 11139 | GT31: 11461 | GU31: 11446 | GV31: 11638 | GW31: 11627 | GX31: 12135 | GY31: 12373 | GZ31: 12732 | HA31: 13364 | HB31: 13906 | HC31: 13749 | HD31: 14660 | HE31: 15101 | HF31: 15234 | HG31: 15518 | HH31: 15412 | HI31: 15441
A32: British Virgin Islands | B32: 1 | C32: 1 | D32: 1 | E32: 1 | F32: 1 | G32: 1 | H32: 1 | I32: 1 | J32: 1 | K32: 1 | L32: 1 | M32: 1 | N32: 1 | O32: 1 | P32: 1 | Q32: 1 | R32: 1 | S32: 1 | T32: 1 | U32: 1 | V32: 1 | W32: 1 | X32: 1 | Y32: 1 | Z32: 1 | AA32: 1 | AB32: 1 | AC32: 1 | AD32: 1 | AE32: 1 | AF32: 1 | AG32: 1 | AH32: 1 | AI32: 1 | AJ32: 1 | AK32: 1 | AL32: 1 | AM32: 1 | AN32: 1 | AO32: 1 | AP32: 1 | AQ32: 1 | AR32: 1 | AS32: 1 | AT32: 1 | AU32: 1 | AV32: 1 | AW32: 1 | AX32: 1 | AY32: 1 | AZ32: 1 | BA32: 1 | BB32: 1 | BC32: 1 | BD32: 1 | BE32: 1 | BF32: 1 | BG32: 1 | BH32: 1 | BI32: 1 | BJ32: 1 | BK32: 1 | BL32: 1 | BM32: 1 | BN32: 1 | BO32: 1 | BP32: 1 | BQ32: 1 | BR32: 1 | BS32: 1 | BT32: 1 | BU32: 1 | BV32: 1 | BW32: 1 | BX32: 1 | BY32: 1 | BZ32: 1 | CA32: 1 | CB32: 1 | CC32: 1 | CD32: 1 | CE32: 1 | CF32: 1 | CG32: 1 | CH32: 1 | CI32: 1 | CJ32: 1 | CK32: 1 | CL32: 1 | CM32: 1 | CN32: 1 | CO32: 1 | CP32: 1 | CQ32: 1 | CR32: 1 | CS32: 1 | CT32: 1 | CU32: 1 | CV32: 1 | CW32: 1 | CX32: 1 | CY32: 1 | CZ32: 1 | DA32: 1 | DB32: 1 | DC32: 1 | DD32: 1 | DE32: 1 | DF32: 1 | DG32: 1 | DH32: 1 | DI32: 1 | DJ32: 1 | DK32: 1 | DL32: 1 | DM32: 1 | DN32: 1 | DO32: 1 | DP32: 1 | DQ32: 1 | DR32: 1 | DS32: 1 | DT32: 1 | DU32: 1 | DV32: 1 | DW32: 1 | DX32: 1 | DY32: 1 | DZ32: 1 | EA32: 1 | EB32: 1 | EC32: 1 | ED32: 1 | EE32: 1 | EF32: 1 | EG32: 1 | EH32: 1 | EI32: 1 | EJ32: 1 | EK32: 1 | EL32: 1 | EM32: 1 | EN32: 1 | EO32: 1 | EP32: 1 | EQ32: 1 | ER32: 1 | ES32: 1 | ET32: 1 | EU32: 1 | EV32: 1 | EW32: 1 | EX32: 1 | EY32: 1 | EZ32: 1 | FA32: 1 | FB32: 1 | FC32: 1 | FD32: 1 | FE32: 1 | FF32: 1 | FG32: 1 | FH32: 1 | FI32: 1 | FJ32: 1 | FK32: 1 | FL32: 1 | FM32: 1 | FN32: 1 | FO32: 1 | FP32: 1 | FQ32: 1 | FR32: 1 | FS32: 1 | FT32: 1 | FU32: 1 | FV32: 1 | FW32: 1 | FX32: 1 | FY32: 1 | FZ32: 1 | GA32: 1 | GB32: 1 | GC32: 1 | GD32: 1 | GE32: 1 | GF32: 1 | GG32: 1 | GH32: 1 | GI32: 1 | GJ32: 1 | GK32: 1 | GL32: 1 | GM32: 1 | GN32: 1 | GO32: 1 | GP32: 1 | GQ32: 1 | GR32: 1 | GS32: 1 | GT32: 1 | GU32: 1 | GV32: 1 | GW32: 1 | GX32: 1 | GY32: 1 | GZ32: 1 | HA32: 1 | HB32: 1 | HC32: 1 | HD32: 1 | HE32: 1 | HF32: 1 | HG32: 1 | HH32: 1 | HI32: 1
A33: Brunei | B33: 1512 | C33: 1512 | D33: 1512 | E33: 1513 | F33: 1513 | G33: 1513 | H33: 1513 | I33: 1513 | J33: 1514 | K33: 1514 | L33: 1514 | M33: 1514 | N33: 1515 | O33: 1515 | P33: 1515 | Q33: 1515 | R33: 1515 | S33: 1516 | T33: 1516 | U33: 1516 | V33: 1516 | W33: 1522 | X33: 1527 | Y33: 1532 | Z33: 1537 | AA33: 1542 | AB33: 1548 | AC33: 1553 | AD33: 1558 | AE33: 1563 | AF33: 1569 | AG33: 1574 | AH33: 1579 | AI33: 1585 | AJ33: 1590 | AK33: 1596 | AL33: 1601 | AM33: 1606 | AN33: 1612 | AO33: 1617 | AP33: 1623 | AQ33: 1628 | AR33: 1634 | AS33: 1639 | AT33: 1645 | AU33: 1651 | AV33: 1656 | AW33: 1662 | AX33: 1667 | AY33: 1673 | AZ33: 1679 | BA33: 1684 | BB33: 1690 | BC33: 1696 | BD33: 1702 | BE33: 1707 | BF33: 1713 | BG33: 1719 | BH33: 1725 | BI33: 1731 | BJ33: 1737 | BK33: 1743 | BL33: 1748 | BM33: 1754 | BN33: 1760 | BO33: 1766 | BP33: 1772 | BQ33: 1778 | BR33: 1784 | BS33: 1790 | BT33: 1797 | BU33: 1803 | BV33: 1809 | BW33: 1815 | BX33: 1821 | BY33: 1827 | BZ33: 1833 | CA33: 1840 | CB33: 1846 | CC33: 1852 | CD33: 1859 | CE33: 1865 | CF33: 1871 | CG33: 1878 | CH33: 1884 | CI33: 1890 | CJ33: 1897 | CK33: 1903 | CL33: 1910 | CM33: 1916 | CN33: 1923 | CO33: 1929 | CP33: 1936 | CQ33: 1942 | CR33: 1949 | CS33: 1955 | CT33: 1962 | CU33: 1969 | CV33: 1975 | CW33: 1982 | CX33: 1989 | CY33: 1996 | CZ33: 2002 | DA33: 2009 | DB33: 2016 | DC33: 2023 | DD33: 2030 | DE33: 2037 | DF33: 2044 | DG33: 2051 | DH33: 2057 | DI33: 2064 | DJ33: 2071 | DK33: 2078 | DL33: 2086 | DM33: 2093 | DN33: 2100 | DO33: 2107 | DP33: 2114 | DQ33: 2121 | DR33: 2128 | DS33: 2136 | DT33: 2143 | DU33: 2150 | DV33: 2158 | DW33: 2165 | DX33: 2172 | DY33: 2180 | DZ33: 2187 | EA33: 2195 | EB33: 2557 | EC33: 2979 | ED33: 3471 | EE33: 4044 | EF33: 4711 | EG33: 5489 | EH33: 6395 | EI33: 7451 | EJ33: 8680 | EK33: 10113 | EL33: 11782 | EM33: 13727 | EN33: 15992 | EO33: 18631 | EP33: 21706 | EQ33: 25288 | ER33: 29461 | ES33: 34323 | ET33: 39986 | EU33: 46584 | EV33: 54271 | EW33: 55126 | EX33: 55994 | EY33: 56876 | EZ33: 57771 | FA33: 58680 | FB33: 59604 | FC33: 60541 | FD33: 61493 | FE33: 62460 | FF33: 63442 | FG33: 64439 | FH33: 65451 | FI33: 66479 | FJ33: 67522 | FK33: 68582 | FL33: 69658 | FM33: 70751 | FN33: 71861 | FO33: 72988 | FP33: 74132 | FQ33: 78230 | FR33: 82612 | FS33: 86923 | FT33: 93231 | FU33: 89842 | FV33: 103744 | FW33: 110729 | FX33: 113988 | FY33: 134864 | FZ33: 121356 | GA33: 94314 | GB33: 95207 | GC33: 93016 | GD33: 90992 | GE33: 87154 | GF33: 82425 | GG33: 81711 | GH33: 80275 | GI33: 77184 | GJ33: 77076 | GK33: 77275 | GL33: 78688 | GM33: 76750 | GN33: 77038 | GO33: 78406 | GP33: 78661 | GQ33: 75654 | GR33: 73498 | GS33: 74041 | GT33: 74475 | GU33: 74868 | GV33: 76130 | GW33: 76737 | GX33: 75596 | GY33: 74441 | GZ33: 76287 | HA33: 75054 | HB33: 72351 | HC33: 69924 | HD33: 70636 | HE33: 71991 | HF33: 71664 | HG33: 69474 | HH33: 72219 | HI33: 73003
A34: Bulgaria | B34: 1089 | C34: 1089 | D34: 1089 | E34: 1089 | F34: 1090 | G34: 1090 | H34: 1090 | I34: 1090 | J34: 1090 | K34: 1090 | L34: 1091 | M34: 1091 | N34: 1091 | O34: 1091 | P34: 1091 | Q34: 1091 | R34: 1092 | S34: 1092 | T34: 1092 | U34: 1092 | V34: 1092 | W34: 1098 | X34: 1103 | Y34: 1108 | Z34: 1114 | AA34: 1119 | AB34: 1125 | AC34: 1131 | AD34: 1136 | AE34: 1142 | AF34: 1147 | AG34: 1153 | AH34: 1159 | AI34: 1164 | AJ34: 1170 | AK34: 1176 | AL34: 1182 | AM34: 1188 | AN34: 1194 | AO34: 1199 | AP34: 1205 | AQ34: 1211 | AR34: 1217 | AS34: 1223 | AT34: 1229 | AU34: 1235 | AV34: 1242 | AW34: 1248 | AX34: 1254 | AY34: 1260 | AZ34: 1266 | BA34: 1272 | BB34: 1279 | BC34: 1285 | BD34: 1291 | BE34: 1298 | BF34: 1304 | BG34: 1311 | BH34: 1317 | BI34: 1324 | BJ34: 1330 | BK34: 1337 | BL34: 1343 | BM34: 1350 | BN34: 1357 | BO34: 1363 | BP34: 1370 | BQ34: 1377 | BR34: 1384 | BS34: 1391 | BT34: 1397 | BU34: 1419 | BV34: 1440 | BW34: 1462 | BX34: 1484 | BY34: 1506 | BZ34: 1529 | CA34: 1552 | CB34: 1576 | CC34: 1600 | CD34: 1624 | CE34: 1648 | CF34: 1673 | CG34: 1699 | CH34: 1724 | CI34: 1751 | CJ34: 1777 | CK34: 1804 | CL34: 1831 | CM34: 1859 | CN34: 1887 | CO34: 1902 | CP34: 1917 | CQ34: 1933 | CR34: 1948 | CS34: 1964 | CT34: 1980 | CU34: 1995 | CV34: 2011 | CW34: 2028 | CX34: 2044 | CY34: 2080 | CZ34: 2117 | DA34: 2155 | DB34: 2193 | DC34: 2232 | DD34: 2271 | DE34: 2312 | DF34: 2353 | DG34: 2394 | DH34: 2437 | DI34: 2480 | DJ34: 2523 | DK34: 2567 | DL34: 2448 | DM34: 2334 | DN34: 2226 | DO34: 2123 | DP34: 2024 | DQ34: 1930 | DR34: 1840 | DS34: 1755 | DT34: 1673 | DU34: 1595 | DV34: 1521 | DW34: 1544 | DX34: 1957 | DY34: 2100 | DZ34: 2040 | EA34: 1975 | EB34: 2149 | EC34: 2433 | ED34: 2417 | EE34: 2425 | EF34: 2190 | EG34: 2068 | EH34: 2498 | EI34: 2621 | EJ34: 2668 | EK34: 2681 | EL34: 2590 | EM34: 2621 | EN34: 2475 | EO34: 2531 | EP34: 2320 | EQ34: 1794 | ER34: 1956 | ES34: 2132 | ET34: 2323 | EU34: 2533 | EV34: 2761 | EW34: 3325 | EX34: 3165 | EY34: 3486 | EZ34: 3385 | FA34: 3590 | FB34: 3557 | FC34: 3895 | FD34: 4192 | FE34: 4485 | FF34: 4866 | FG34: 5133 | FH34: 5506 | FI34: 5711 | FJ34: 6110 | FK34: 6432 | FL34: 6891 | FM34: 7216 | FN34: 7296 | FO34: 7592 | FP34: 7971 | FQ34: 8186 | FR34: 8534 | FS34: 8824 | FT34: 9040 | FU34: 9736 | FV34: 9987 | FW34: 9844 | FX34: 10048 | FY34: 10425 | FZ34: 10088 | GA34: 10325 | GB34: 10631 | GC34: 10408 | GD34: 10730 | GE34: 10388 | GF34: 10643 | GG34: 10646 | GH34: 10567 | GI34: 10367 | GJ34: 9333 | GK34: 8630 | GL34: 8089 | GM34: 8033 | GN34: 8207 | GO34: 8479 | GP34: 8659 | GQ34: 8617 | GR34: 8976 | GS34: 8516 | GT34: 9075 | GU34: 9596 | GV34: 10220 | GW34: 10829 | GX34: 11602 | GY34: 12359 | GZ34: 13228 | HA34: 14430 | HB34: 15368 | HC34: 14692 | HD34: 14886 | HE34: 15278 | HF34: 15443 | HG34: 15695 | HH34: 16048 | HI34: 16371
A35: Burkina Faso | B35: 480 | C35: 480 | D35: 480 | E35: 480 | F35: 480 | G35: 480 | H35: 480 | I35: 480 | J35: 480 | K35: 480 | L35: 480 | M35: 480 | N35: 480 | O35: 481 | P35: 481 | Q35: 481 | R35: 481 | S35: 481 | T35: 481 | U35: 481 | V35: 481 | W35: 482 | X35: 482 | Y35: 483 | Z35: 483 | AA35: 484 | AB35: 484 | AC35: 485 | AD35: 485 | AE35: 486 | AF35: 486 | AG35: 487 | AH35: 488 | AI35: 488 | AJ35: 489 | AK35: 489 | AL35: 490 | AM35: 490 | AN35: 491 | AO35: 491 | AP35: 492 | AQ35: 493 | AR35: 493 | AS35: 494 | AT35: 494 | AU35: 495 | AV35: 495 | AW35: 496 | AX35: 496 | AY35: 497 | AZ35: 498 | BA35: 498 | BB35: 499 | BC35: 499 | BD35: 500 | BE35: 500 | BF35: 501 | BG35: 501 | BH35: 502 | BI35: 503 | BJ35: 503 | BK35: 504 | BL35: 504 | BM35: 505 | BN35: 505 | BO35: 506 | BP35: 507 | BQ35: 507 | BR35: 508 | BS35: 508 | BT35: 509 | BU35: 509 | BV35: 510 | BW35: 511 | BX35: 511 | BY35: 512 | BZ35: 512 | CA35: 513 | CB35: 513 | CC35: 514 | CD35: 515 | CE35: 515 | CF35: 516 | CG35: 516 | CH35: 517 | CI35: 517 | CJ35: 518 | CK35: 519 | CL35: 519 | CM35: 520 | CN35: 520 | CO35: 521 | CP35: 522 | CQ35: 522 | CR35: 523 | CS35: 523 | CT35: 524 | CU35: 524 | CV35: 525 | CW35: 526 | CX35: 526 | CY35: 527 | CZ35: 527 | DA35: 528 | DB35: 529 | DC35: 529 | DD35: 530 | DE35: 530 | DF35: 531 | DG35: 532 | DH35: 532 | DI35: 533 | DJ35: 533 | DK35: 534 | DL35: 535 | DM35: 535 | DN35: 536 | DO35: 536 | DP35: 537 | DQ35: 538 | DR35: 538 | DS35: 538 | DT35: 537 | DU35: 537 | DV35: 537 | DW35: 536 | DX35: 536 | DY35: 535 | DZ35: 535 | EA35: 534 | EB35: 534 | EC35: 533 | ED35: 533 | EE35: 533 | EF35: 532 | EG35: 532 | EH35: 531 | EI35: 531 | EJ35: 530 | EK35: 530 | EL35: 529 | EM35: 529 | EN35: 528 | EO35: 528 | EP35: 527 | EQ35: 527 | ER35: 526 | ES35: 526 | ET35: 525 | EU35: 525 | EV35: 524 | EW35: 537 | EX35: 550 | EY35: 563 | EZ35: 576 | FA35: 590 | FB35: 605 | FC35: 619 | FD35: 634 | FE35: 649 | FF35: 659 | FG35: 681 | FH35: 717 | FI35: 702 | FJ35: 711 | FK35: 731 | FL35: 726 | FM35: 781 | FN35: 794 | FO35: 799 | FP35: 790 | FQ35: 810 | FR35: 830 | FS35: 774 | FT35: 747 | FU35: 703 | FV35: 683 | FW35: 714 | FX35: 778 | FY35: 766 | FZ35: 759 | GA35: 771 | GB35: 767 | GC35: 738 | GD35: 729 | GE35: 801 | GF35: 900 | GG35: 857 | GH35: 898 | GI35: 858 | GJ35: 821 | GK35: 872 | GL35: 851 | GM35: 857 | GN35: 845 | GO35: 869 | GP35: 938 | GQ35: 970 | GR35: 1012 | GS35: 1057 | GT35: 1046 | GU35: 1084 | GV35: 1099 | GW35: 1150 | GX35: 1167 | GY35: 1232 | GZ35: 1271 | HA35: 1304 | HB35: 1358 | HC35: 1358 | HD35: 1431 | HE35: 1481 | HF35: 1532 | HG35: 1588 | HH35: 1606 | HI35: 1654
A36: Burundi | B36: 418 | C36: 418 | D36: 419 | E36: 419 | F36: 420 | G36: 420 | H36: 420 | I36: 421 | J36: 421 | K36: 422 | L36: 422 | M36: 422 | N36: 423 | O36: 423 | P36: 423 | Q36: 424 | R36: 424 | S36: 425 | T36: 425 | U36: 425 | V36: 426 | W36: 426 | X36: 427 | Y36: 427 | Z36: 427 | AA36: 428 | AB36: 428 | AC36: 429 | AD36: 429 | AE36: 429 | AF36: 430 | AG36: 430 | AH36: 431 | AI36: 431 | AJ36: 431 | AK36: 432 | AL36: 432 | AM36: 433 | AN36: 433 | AO36: 433 | AP36: 434 | AQ36: 434 | AR36: 435 | AS36: 435 | AT36: 435 | AU36: 436 | AV36: 436 | AW36: 437 | AX36: 437 | AY36: 437 | AZ36: 438 | BA36: 438 | BB36: 439 | BC36: 439 | BD36: 439 | BE36: 440 | BF36: 440 | BG36: 441 | BH36: 441 | BI36: 441 | BJ36: 442 | BK36: 442 | BL36: 443 | BM36: 443 | BN36: 444 | BO36: 444 | BP36: 444 | BQ36: 445 | BR36: 445 | BS36: 446 | BT36: 446 | BU36: 446 | BV36: 447 | BW36: 447 | BX36: 448 | BY36: 448 | BZ36: 448 | CA36: 449 | CB36: 449 | CC36: 450 | CD36: 450 | CE36: 451 | CF36: 451 | CG36: 451 | CH36: 452 | CI36: 452 | CJ36: 453 | CK36: 453 | CL36: 453 | CM36: 454 | CN36: 454 | CO36: 455 | CP36: 455 | CQ36: 456 | CR36: 456 | CS36: 456 | CT36: 457 | CU36: 457 | CV36: 458 | CW36: 458 | CX36: 459 | CY36: 459 | CZ36: 459 | DA36: 460 | DB36: 460 | DC36: 461 | DD36: 461 | DE36: 462 | DF36: 462 | DG36: 462 | DH36: 463 | DI36: 463 | DJ36: 464 | DK36: 464 | DL36: 465 | DM36: 465 | DN36: 465 | DO36: 466 | DP36: 466 | DQ36: 467 | DR36: 467 | DS36: 468 | DT36: 470 | DU36: 471 | DV36: 472 | DW36: 473 | DX36: 475 | DY36: 476 | DZ36: 477 | EA36: 478 | EB36: 480 | EC36: 481 | ED36: 482 | EE36: 483 | EF36: 485 | EG36: 486 | EH36: 487 | EI36: 488 | EJ36: 490 | EK36: 491 | EL36: 492 | EM36: 493 | EN36: 495 | EO36: 496 | EP36: 497 | EQ36: 498 | ER36: 500 | ES36: 501 | ET36: 502 | EU36: 503 | EV36: 505 | EW36: 525 | EX36: 533 | EY36: 546 | EZ36: 567 | FA36: 576 | FB36: 588 | FC36: 601 | FD36: 608 | FE36: 633 | FF36: 632 | FG36: 531 | FH36: 567 | FI36: 582 | FJ36: 603 | FK36: 610 | FL36: 623 | FM36: 665 | FN36: 645 | FO36: 627 | FP36: 782 | FQ36: 827 | FR36: 753 | FS36: 806 | FT36: 788 | FU36: 780 | FV36: 826 | FW36: 909 | FX36: 879 | FY36: 856 | FZ36: 887 | GA36: 945 | GB36: 922 | GC36: 929 | GD36: 908 | GE36: 994 | GF36: 1014 | GG36: 1032 | GH36: 1044 | GI36: 1037 | GJ36: 1051 | GK36: 1075 | GL36: 1062 | GM36: 975 | GN36: 921 | GO36: 835 | GP36: 758 | GQ36: 737 | GR36: 763 | GS36: 744 | GT36: 723 | GU36: 720 | GV36: 731 | GW36: 700 | GX36: 709 | GY36: 692 | GZ36: 704 | HA36: 713 | HB36: 723 | HC36: 723 | HD36: 725 | HE36: 731 | HF36: 737 | HG36: 747 | HH36: 758 | HI36: 777
A37: Cambodia | B37: 903 | C37: 904 | D37: 904 | E37: 904 | F37: 904 | G37: 904 | H37: 904 | I37: 904 | J37: 905 | K37: 905 | L37: 905 | M37: 905 | N37: 905 | O37: 905 | P37: 905 | Q37: 905 | R37: 906 | S37: 906 | T37: 906 | U37: 906 | V37: 906 | W37: 908 | X37: 909 | Y37: 910 | Z37: 912 | AA37: 913 | AB37: 914 | AC37: 916 | AD37: 917 | AE37: 918 | AF37: 920 | AG37: 921 | AH37: 922 | AI37: 924 | AJ37: 925 | AK37: 926 | AL37: 928 | AM37: 929 | AN37: 931 | AO37: 932 | AP37: 933 | AQ37: 935 | AR37: 936 | AS37: 937 | AT37: 939 | AU37: 940 | AV37: 942 | AW37: 943 | AX37: 944 | AY37: 946 | AZ37: 947 | BA37: 949 | BB37: 950 | BC37: 951 | BD37: 953 | BE37: 954 | BF37: 956 | BG37: 957 | BH37: 958 | BI37: 960 | BJ37: 961 | BK37: 963 | BL37: 964 | BM37: 966 | BN37: 967 | BO37: 968 | BP37: 970 | BQ37: 971 | BR37: 973 | BS37: 974 | BT37: 976 | BU37: 977 | BV37: 979 | BW37: 980 | BX37: 981 | BY37: 983 | BZ37: 984 | CA37: 986 | CB37: 987 | CC37: 989 | CD37: 990 | CE37: 992 | CF37: 993 | CG37: 995 | CH37: 996 | CI37: 997 | CJ37: 999 | CK37: 1000 | CL37: 1002 | CM37: 1003 | CN37: 1005 | CO37: 1006 | CP37: 1008 | CQ37: 1009 | CR37: 1011 | CS37: 1012 | CT37: 1014 | CU37: 1015 | CV37: 1017 | CW37: 1018 | CX37: 1020 | CY37: 1021 | CZ37: 1023 | DA37: 1024 | DB37: 1026 | DC37: 1027 | DD37: 1029 | DE37: 1030 | DF37: 1032 | DG37: 1033 | DH37: 1035 | DI37: 1037 | DJ37: 1038 | DK37: 1040 | DL37: 1041 | DM37: 1043 | DN37: 1044 | DO37: 1046 | DP37: 1047 | DQ37: 1049 | DR37: 1050 | DS37: 1052 | DT37: 1054 | DU37: 1056 | DV37: 1058 | DW37: 1059 | DX37: 1061 | DY37: 1063 | DZ37: 1065 | EA37: 1066 | EB37: 1068 | EC37: 1070 | ED37: 1072 | EE37: 1074 | EF37: 1075 | EG37: 1077 | EH37: 1079 | EI37: 1081 | EJ37: 1082 | EK37: 1084 | EL37: 1086 | EM37: 1088 | EN37: 1089 | EO37: 1091 | EP37: 1093 | EQ37: 1095 | ER37: 1097 | ES37: 1098 | ET37: 1100 | EU37: 1102 | EV37: 1104 | EW37: 1114 | EX37: 1156 | EY37: 1140 | EZ37: 1242 | FA37: 1187 | FB37: 1311 | FC37: 1363 | FD37: 1394 | FE37: 1491 | FF37: 1539 | FG37: 1484 | FH37: 1562 | FI37: 1634 | FJ37: 1548 | FK37: 1579 | FL37: 1608 | FM37: 1647 | FN37: 1678 | FO37: 1660 | FP37: 1643 | FQ37: 1539 | FR37: 1440 | FS37: 1161 | FT37: 1101 | FU37: 1096 | FV37: 1116 | FW37: 976 | FX37: 1003 | FY37: 891 | FZ37: 839 | GA37: 822 | GB37: 792 | GC37: 791 | GD37: 790 | GE37: 787 | GF37: 792 | GG37: 920 | GH37: 993 | GI37: 1025 | GJ37: 996 | GK37: 1055 | GL37: 1096 | GM37: 1004 | GN37: 1058 | GO37: 1091 | GP37: 1117 | GQ37: 1148 | GR37: 1176 | GS37: 1285 | GT37: 1368 | GU37: 1448 | GV37: 1516 | GW37: 1617 | GX37: 1755 | GY37: 1957 | GZ37: 2136 | HA37: 2321 | HB37: 2442 | HC37: 2409 | HD37: 2513 | HE37: 2646 | HF37: 2790 | HG37: 2942 | HH37: 3093 | HI37: 3267
A38: Cameroon | B38: 626 | C38: 626 | D38: 626 | E38: 626 | F38: 626 | G38: 627 | H38: 627 | I38: 627 | J38: 627 | K38: 627 | L38: 627 | M38: 627 | N38: 627 | O38: 627 | P38: 627 | Q38: 627 | R38: 628 | S38: 628 | T38: 628 | U38: 628 | V38: 628 | W38: 631 | X38: 634 | Y38: 637 | Z38: 640 | AA38: 643 | AB38: 646 | AC38: 650 | AD38: 653 | AE38: 656 | AF38: 659 | AG38: 662 | AH38: 665 | AI38: 669 | AJ38: 672 | AK38: 675 | AL38: 678 | AM38: 682 | AN38: 685 | AO38: 688 | AP38: 692 | AQ38: 695 | AR38: 698 | AS38: 702 | AT38: 705 | AU38: 708 | AV38: 712 | AW38: 715 | AX38: 719 | AY38: 722 | AZ38: 726 | BA38: 729 | BB38: 733 | BC38: 736 | BD38: 740 | BE38: 744 | BF38: 747 | BG38: 751 | BH38: 754 | BI38: 758 | BJ38: 762 | BK38: 765 | BL38: 769 | BM38: 773 | BN38: 777 | BO38: 780 | BP38: 784 | BQ38: 788 | BR38: 792 | BS38: 795 | BT38: 799 | BU38: 803 | BV38: 807 | BW38: 811 | BX38: 815 | BY38: 819 | BZ38: 823 | CA38: 827 | CB38: 831 | CC38: 835 | CD38: 839 | CE38: 843 | CF38: 847 | CG38: 851 | CH38: 855 | CI38: 859 | CJ38: 864 | CK38: 868 | CL38: 872 | CM38: 876 | CN38: 880 | CO38: 885 | CP38: 889 | CQ38: 893 | CR38: 897 | CS38: 902 | CT38: 906 | CU38: 911 | CV38: 915 | CW38: 919 | CX38: 924 | CY38: 928 | CZ38: 933 | DA38: 937 | DB38: 942 | DC38: 946 | DD38: 951 | DE38: 956 | DF38: 960 | DG38: 965 | DH38: 970 | DI38: 974 | DJ38: 979 | DK38: 984 | DL38: 993 | DM38: 1002 | DN38: 1011 | DO38: 1021 | DP38: 1030 | DQ38: 1040 | DR38: 1049 | DS38: 1060 | DT38: 1072 | DU38: 1083 | DV38: 1095 | DW38: 1107 | DX38: 1119 | DY38: 1131 | DZ38: 1143 | EA38: 1155 | EB38: 1167 | EC38: 1180 | ED38: 1192 | EE38: 1205 | EF38: 1218 | EG38: 1231 | EH38: 1244 | EI38: 1257 | EJ38: 1270 | EK38: 1284 | EL38: 1298 | EM38: 1311 | EN38: 1325 | EO38: 1339 | EP38: 1354 | EQ38: 1368 | ER38: 1382 | ES38: 1397 | ET38: 1412 | EU38: 1427 | EV38: 1442 | EW38: 1479 | EX38: 1517 | EY38: 1554 | EZ38: 1592 | FA38: 1632 | FB38: 1671 | FC38: 1710 | FD38: 1750 | FE38: 1790 | FF38: 1813 | FG38: 1808 | FH38: 1836 | FI38: 1874 | FJ38: 1910 | FK38: 1917 | FL38: 1973 | FM38: 1992 | FN38: 2084 | FO38: 2146 | FP38: 2169 | FQ38: 2190 | FR38: 2238 | FS38: 2224 | FT38: 2274 | FU38: 2338 | FV38: 2324 | FW38: 2386 | FX38: 2444 | FY38: 2505 | FZ38: 2671 | GA38: 3034 | GB38: 3188 | GC38: 3319 | GD38: 3476 | GE38: 3675 | GF38: 3821 | GG38: 3526 | GH38: 3271 | GI38: 2895 | GJ38: 2768 | GK38: 2586 | GL38: 2434 | GM38: 2177 | GN38: 2160 | GO38: 2188 | GP38: 2233 | GQ38: 2289 | GR38: 2338 | GS38: 2369 | GT38: 2404 | GU38: 2447 | GV38: 2480 | GW38: 2514 | GX38: 2540 | GY38: 2532 | GZ38: 2547 | HA38: 2564 | HB38: 2571 | HC38: 2554 | HD38: 2571 | HE38: 2610 | HF38: 2661 | HG38: 2739 | HH38: 2829 | HI38: 2897
A39: Canada | B39: 1314 | C39: 1322 | D39: 1330 | E39: 1339 | F39: 1347 | G39: 1356 | H39: 1365 | I39: 1373 | J39: 1382 | K39: 1391 | L39: 1400 | M39: 1409 | N39: 1417 | O39: 1427 | P39: 1436 | Q39: 1445 | R39: 1454 | S39: 1463 | T39: 1472 | U39: 1482 | V39: 1491 | W39: 1507 | X39: 1522 | Y39: 1538 | Z39: 1553 | AA39: 1569 | AB39: 1585 | AC39: 1602 | AD39: 1618 | AE39: 1635 | AF39: 1651 | AG39: 1677 | AH39: 1702 | AI39: 1728 | AJ39: 1755 | AK39: 1781 | AL39: 1809 | AM39: 1836 | AN39: 1864 | AO39: 1893 | AP39: 1922 | AQ39: 1948 | AR39: 1975 | AS39: 2002 | AT39: 2029 | AU39: 2057 | AV39: 2085 | AW39: 2114 | AX39: 2143 | AY39: 2172 | AZ39: 2202 | BA39: 2222 | BB39: 2242 | BC39: 2261 | BD39: 2282 | BE39: 2302 | BF39: 2322 | BG39: 2343 | BH39: 2364 | BI39: 2385 | BJ39: 2406 | BK39: 2444 | BL39: 2483 | BM39: 2522 | BN39: 2562 | BO39: 2603 | BP39: 2644 | BQ39: 2686 | BR39: 2728 | BS39: 2771 | BT39: 2815 | BU39: 2915 | BV39: 2834 | BW39: 3061 | BX39: 3081 | BY39: 2966 | BZ39: 2728 | CA39: 2873 | CB39: 2723 | CC39: 2936 | CD39: 3021 | CE39: 3394 | CF39: 3510 | CG39: 3479 | CH39: 3714 | CI39: 3451 | CJ39: 3456 | CK39: 3530 | CL39: 3746 | CM39: 3730 | CN39: 3963 | CO39: 4014 | CP39: 3951 | CQ39: 3890 | CR39: 4035 | CS39: 3953 | CT39: 3816 | CU39: 4189 | CV39: 4309 | CW39: 4664 | CX39: 4858 | CY39: 5168 | CZ39: 5560 | DA39: 5565 | DB39: 5476 | DC39: 5948 | DD39: 6423 | DE39: 6472 | DF39: 5967 | DG39: 6432 | DH39: 6794 | DI39: 7037 | DJ39: 7309 | DK39: 7423 | DL39: 6717 | DM39: 7061 | DN39: 7747 | DO39: 8002 | DP39: 7399 | DQ39: 6695 | DR39: 6430 | DS39: 5587 | DT39: 6310 | DU39: 6611 | DV39: 6610 | DW39: 7211 | DX39: 7468 | DY39: 8046 | DZ39: 8581 | EA39: 8402 | EB39: 7976 | EC39: 6636 | ED39: 6083 | EE39: 5582 | EF39: 6111 | EG39: 6538 | EH39: 6824 | EI39: 7399 | EJ39: 7517 | EK39: 7882 | EL39: 8871 | EM39: 9996 | EN39: 11617 | EO39: 11993 | EP39: 12287 | EQ39: 11773 | ER39: 11437 | ES39: 11694 | ET39: 11654 | EU39: 11650 | EV39: 12022 | EW39: 12419 | EX39: 12911 | EY39: 13158 | EZ39: 12687 | FA39: 13513 | FB39: 14253 | FC39: 14177 | FD39: 14056 | FE39: 14289 | FF39: 14414 | FG39: 14545 | FH39: 15276 | FI39: 15752 | FJ39: 16464 | FK39: 17243 | FL39: 18022 | FM39: 18240 | FN39: 18900 | FO39: 19614 | FP39: 19842 | FQ39: 20688 | FR39: 21532 | FS39: 22797 | FT39: 23405 | FU39: 23593 | FV39: 24563 | FW39: 25095 | FX39: 25853 | FY39: 26665 | FZ39: 26678 | GA39: 27171 | GB39: 26031 | GC39: 26525 | GD39: 27781 | GE39: 29016 | GF39: 29482 | GG39: 30288 | GH39: 31356 | GI39: 31550 | GJ39: 31163 | GK39: 30090 | GL39: 29977 | GM39: 30424 | GN39: 31505 | GO39: 32101 | GP39: 32290 | GQ39: 33310 | GR39: 34389 | GS39: 35810 | GT39: 37314 | GU39: 37563 | GV39: 38270 | GW39: 38621 | GX39: 39436 | GY39: 40284 | GZ39: 41012 | HA39: 41432 | HB39: 41468 | HC39: 39884 | HD39: 40773 | HE39: 41567 | HF39: 41865 | HG39: 42213 | HH39: 42817 | HI39: 43294
A40: Cape Verde | B40: 529 | C40: 529 | D40: 529 | E40: 529 | F40: 530 | G40: 530 | H40: 530 | I40: 530 | J40: 530 | K40: 530 | L40: 530 | M40: 530 | N40: 530 | O40: 530 | P40: 530 | Q40: 530 | R40: 530 | S40: 531 | T40: 531 | U40: 531 | V40: 531 | W40: 533 | X40: 535 | Y40: 538 | Z40: 540 | AA40: 542 | AB40: 545 | AC40: 547 | AD40: 549 | AE40: 552 | AF40: 554 | AG40: 556 | AH40: 559 | AI40: 561 | AJ40: 563 | AK40: 566 | AL40: 568 | AM40: 571 | AN40: 573 | AO40: 575 | AP40: 578 | AQ40: 580 | AR40: 583 | AS40: 585 | AT40: 588 | AU40: 590 | AV40: 593 | AW40: 595 | AX40: 598 | AY40: 601 | AZ40: 603 | BA40: 606 | BB40: 608 | BC40: 611 | BD40: 613 | BE40: 616 | BF40: 619 | BG40: 621 | BH40: 624 | BI40: 627 | BJ40: 629 | BK40: 632 | BL40: 635 | BM40: 637 | BN40: 640 | BO40: 643 | BP40: 646 | BQ40: 648 | BR40: 651 | BS40: 654 | BT40: 657 | BU40: 659 | BV40: 662 | BW40: 665 | BX40: 668 | BY40: 671 | BZ40: 674 | CA40: 677 | CB40: 679 | CC40: 682 | CD40: 685 | CE40: 688 | CF40: 691 | CG40: 694 | CH40: 697 | CI40: 700 | CJ40: 703 | CK40: 706 | CL40: 709 | CM40: 712 | CN40: 715 | CO40: 718 | CP40: 721 | CQ40: 724 | CR40: 727 | CS40: 730 | CT40: 733 | CU40: 737 | CV40: 740 | CW40: 743 | CX40: 746 | CY40: 749 | CZ40: 752 | DA40: 756 | DB40: 759 | DC40: 762 | DD40: 765 | DE40: 769 | DF40: 772 | DG40: 775 | DH40: 779 | DI40: 782 | DJ40: 785 | DK40: 789 | DL40: 792 | DM40: 795 | DN40: 799 | DO40: 802 | DP40: 805 | DQ40: 809 | DR40: 812 | DS40: 812 | DT40: 811 | DU40: 810 | DV40: 809 | DW40: 808 | DX40: 808 | DY40: 807 | DZ40: 806 | EA40: 805 | EB40: 804 | EC40: 803 | ED40: 802 | EE40: 801 | EF40: 800 | EG40: 799 | EH40: 798 | EI40: 797 | EJ40: 795 | EK40: 794 | EL40: 793 | EM40: 792 | EN40: 790 | EO40: 789 | EP40: 788 | EQ40: 786 | ER40: 785 | ES40: 784 | ET40: 782 | EU40: 781 | EV40: 779 | EW40: 784 | EX40: 790 | EY40: 795 | EZ40: 779 | FA40: 778 | FB40: 782 | FC40: 751 | FD40: 740 | FE40: 797 | FF40: 826 | FG40: 849 | FH40: 867 | FI40: 882 | FJ40: 895 | FK40: 905 | FL40: 915 | FM40: 923 | FN40: 930 | FO40: 936 | FP40: 942 | FQ40: 856 | FR40: 805 | FS40: 788 | FT40: 757 | FU40: 771 | FV40: 759 | FW40: 749 | FX40: 814 | FY40: 886 | FZ40: 1189 | GA40: 1269 | GB40: 1276 | GC40: 1366 | GD40: 1385 | GE40: 1469 | GF40: 1474 | GG40: 1538 | GH40: 1546 | GI40: 1589 | GJ40: 1609 | GK40: 1597 | GL40: 1728 | GM40: 1827 | GN40: 2120 | GO40: 2361 | GP40: 2568 | GQ40: 2794 | GR40: 3082 | GS40: 3363 | GT40: 3772 | GU40: 3784 | GV40: 3910 | GW40: 4006 | GX40: 4352 | GY40: 4604 | GZ40: 4937 | HA40: 5666 | HB40: 6031 | HC40: 5941 | HD40: 6005 | HE40: 6206 | HF40: 6224 | HG40: 6232 | HH40: 6343 | HI40: 6514
A41: Cayman Islands | B41: 1039 | C41: 1039 | D41: 1039 | E41: 1039 | F41: 1040 | G41: 1040 | H41: 1040 | I41: 1040 | J41: 1040 | K41: 1040 | L41: 1041 | M41: 1041 | N41: 1041 | O41: 1041 | P41: 1041 | Q41: 1041 | R41: 1041 | S41: 1042 | T41: 1042 | U41: 1042 | V41: 1042 | W41: 1049 | X41: 1056 | Y41: 1063 | Z41: 1071 | AA41: 1078 | AB41: 1085 | AC41: 1092 | AD41: 1100 | AE41: 1107 | AF41: 1115 | AG41: 1122 | AH41: 1130 | AI41: 1137 | AJ41: 1145 | AK41: 1153 | AL41: 1161 | AM41: 1169 | AN41: 1176 | AO41: 1184 | AP41: 1192 | AQ41: 1200 | AR41: 1209 | AS41: 1217 | AT41: 1225 | AU41: 1233 | AV41: 1242 | AW41: 1250 | AX41: 1258 | AY41: 1267 | AZ41: 1275 | BA41: 1284 | BB41: 1293 | BC41: 1301 | BD41: 1310 | BE41: 1319 | BF41: 1328 | BG41: 1337 | BH41: 1346 | BI41: 1355 | BJ41: 1364 | BK41: 1374 | BL41: 1383 | BM41: 1392 | BN41: 1402 | BO41: 1411 | BP41: 1421 | BQ41: 1430 | BR41: 1440 | BS41: 1450 | BT41: 1459 | BU41: 1469 | BV41: 1479 | BW41: 1489 | BX41: 1499 | BY41: 1509 | BZ41: 1520 | CA41: 1530 | CB41: 1540 | CC41: 1551 | CD41: 1561 | CE41: 1572 | CF41: 1582 | CG41: 1593 | CH41: 1604 | CI41: 1614 | CJ41: 1625 | CK41: 1636 | CL41: 1647 | CM41: 1659 | CN41: 1670 | CO41: 1681 | CP41: 1692 | CQ41: 1704 | CR41: 1715 | CS41: 1727 | CT41: 1739 | CU41: 1750 | CV41: 1762 | CW41: 1774 | CX41: 1786 | CY41: 1798 | CZ41: 1810 | DA41: 1822 | DB41: 1835 | DC41: 1847 | DD41: 1860 | DE41: 1872 | DF41: 1885 | DG41: 1898 | DH41: 1910 | DI41: 1923 | DJ41: 1936 | DK41: 1949 | DL41: 2037 | DM41: 2129 | DN41: 2224 | DO41: 2324 | DP41: 2428 | DQ41: 2538 | DR41: 2652 | DS41: 2772 | DT41: 2898 | DU41: 3030 | DV41: 3168 | DW41: 3312 | DX41: 3462 | DY41: 3620 | DZ41: 3784 | EA41: 3956 | EB41: 4136 | EC41: 4324 | ED41: 4521 | EE41: 4726 | EF41: 4941 | EG41: 5165 | EH41: 5400 | EI41: 5645 | EJ41: 5901 | EK41: 6169 | EL41: 6449 | EM41: 6742 | EN41: 7048 | EO41: 7368 | EP41: 7702 | EQ41: 8052 | ER41: 8417 | ES41: 8799 | ET41: 9198 | EU41: 9615 | EV41: 10051 | EW41: 10507 | EX41: 10983 | EY41: 11481 | EZ41: 12002 | FA41: 12546 | FB41: 13114 | FC41: 13709 | FD41: 14330 | FE41: 14979 | FF41: 15658 | FG41: 16367 | FH41: 17108 | FI41: 17883 | FJ41: 18693 | FK41: 19539 | FL41: 20424 | FM41: 21349 | FN41: 22315 | FO41: 23325 | FP41: 24381 | FQ41: 24132 | FR41: 24808 | FS41: 26809 | FT41: 27775 | FU41: 28751 | FV41: 29750 | FW41: 30787 | FX41: 31934 | FY41: 33318 | FZ41: 34998 | GA41: 37040 | GB41: 39420 | GC41: 43261 | GD41: 44985 | GE41: 44803 | GF41: 46244 | GG41: 48199 | GH41: 52376 | GI41: 54254 | GJ41: 58535 | GK41: 56634 | GL41: 55811 | GM41: 55971 | GN41: 56412 | GO41: 56588 | GP41: 56861 | GQ41: 57445 | GR41: 58314 | GS41: 58007 | GT41: 56574 | GU41: 55159 | GV41: 54590 | GW41: 54335 | GX41: 53625 | GY41: 55970 | GZ41: 56971 | HA41: 57734 | HB41: 56832 | HC41: 51952 | HD41: 49795 | HE41: 49884 | HF41: 49297 | HG41: 49345 | HH41: 49118 | HI41: 49009
A42: Central African Republic | B42: 424 | C42: 424 | D42: 424 | E42: 424 | F42: 424 | G42: 424 | H42: 424 | I42: 425 | J42: 425 | K42: 425 | L42: 425 | M42: 425 | N42: 425 | O42: 425 | P42: 425 | Q42: 425 | R42: 425 | S42: 425 | T42: 425 | U42: 425 | V42: 425 | W42: 427 | X42: 429 | Y42: 432 | Z42: 434 | AA42: 436 | AB42: 438 | AC42: 440 | AD42: 442 | AE42: 444 | AF42: 446 | AG42: 449 | AH42: 451 | AI42: 453 | AJ42: 455 | AK42: 457 | AL42: 460 | AM42: 462 | AN42: 464 | AO42: 466 | AP42: 468 | AQ42: 471 | AR42: 473 | AS42: 475 | AT42: 478 | AU42: 480 | AV42: 482 | AW42: 485 | AX42: 487 | AY42: 489 | AZ42: 492 | BA42: 494 | BB42: 496 | BC42: 499 | BD42: 501 | BE42: 504 | BF42: 506 | BG42: 509 | BH42: 511 | BI42: 513 | BJ42: 516 | BK42: 518 | BL42: 521 | BM42: 523 | BN42: 526 | BO42: 529 | BP42: 531 | BQ42: 534 | BR42: 536 | BS42: 539 | BT42: 541 | BU42: 544 | BV42: 547 | BW42: 549 | BX42: 552 | BY42: 555 | BZ42: 557 | CA42: 560 | CB42: 563 | CC42: 565 | CD42: 568 | CE42: 571 | CF42: 574 | CG42: 577 | CH42: 579 | CI42: 582 | CJ42: 585 | CK42: 588 | CL42: 591 | CM42: 593 | CN42: 596 | CO42: 599 | CP42: 602 | CQ42: 605 | CR42: 608 | CS42: 611 | CT42: 614 | CU42: 617 | CV42: 620 | CW42: 623 | CX42: 626 | CY42: 629 | CZ42: 632 | DA42: 635 | DB42: 638 | DC42: 641 | DD42: 644 | DE42: 647 | DF42: 650 | DG42: 654 | DH42: 657 | DI42: 660 | DJ42: 663 | DK42: 666 | DL42: 678 | DM42: 690 | DN42: 703 | DO42: 715 | DP42: 728 | DQ42: 741 | DR42: 754 | DS42: 766 | DT42: 779 | DU42: 791 | DV42: 804 | DW42: 817 | DX42: 830 | DY42: 844 | DZ42: 857 | EA42: 871 | EB42: 885 | EC42: 899 | ED42: 914 | EE42: 929 | EF42: 944 | EG42: 959 | EH42: 974 | EI42: 990 | EJ42: 1006 | EK42: 1022 | EL42: 1039 | EM42: 1055 | EN42: 1072 | EO42: 1089 | EP42: 1107 | EQ42: 1125 | ER42: 1143 | ES42: 1161 | ET42: 1180 | EU42: 1198 | EV42: 1218 | EW42: 1245 | EX42: 1272 | EY42: 1299 | EZ42: 1325 | FA42: 1352 | FB42: 1377 | FC42: 1403 | FD42: 1428 | FE42: 1452 | FF42: 1436 | FG42: 1461 | FH42: 1393 | FI42: 1360 | FJ42: 1353 | FK42: 1332 | FL42: 1294 | FM42: 1315 | FN42: 1297 | FO42: 1332 | FP42: 1358 | FQ42: 1285 | FR42: 1227 | FS42: 1256 | FT42: 1192 | FU42: 1181 | FV42: 1199 | FW42: 1261 | FX42: 1248 | FY42: 1145 | FZ42: 1103 | GA42: 1088 | GB42: 1077 | GC42: 984 | GD42: 1019 | GE42: 998 | GF42: 991 | GG42: 942 | GH42: 933 | GI42: 939 | GJ42: 944 | GK42: 918 | GL42: 839 | GM42: 821 | GN42: 841 | GO42: 881 | GP42: 827 | GQ42: 852 | GR42: 873 | GS42: 887 | GT42: 848 | GU42: 870 | GV42: 887 | GW42: 825 | GX42: 860 | GY42: 853 | GZ42: 869 | HA42: 892 | HB42: 894 | HC42: 892 | HD42: 901 | HE42: 913 | HF42: 932 | HG42: 584 | HH42: 578 | HI42: 599
A43: Chad | B43: 418 | C43: 418 | D43: 418 | E43: 418 | F43: 418 | G43: 418 | H43: 418 | I43: 419 | J43: 419 | K43: 419 | L43: 419 | M43: 419 | N43: 419 | O43: 419 | P43: 419 | Q43: 419 | R43: 419 | S43: 419 | T43: 419 | U43: 419 | V43: 419 | W43: 421 | X43: 423 | Y43: 425 | Z43: 428 | AA43: 430 | AB43: 432 | AC43: 434 | AD43: 436 | AE43: 438 | AF43: 440 | AG43: 442 | AH43: 444 | AI43: 447 | AJ43: 449 | AK43: 451 | AL43: 453 | AM43: 455 | AN43: 457 | AO43: 460 | AP43: 462 | AQ43: 464 | AR43: 466 | AS43: 469 | AT43: 471 | AU43: 473 | AV43: 475 | AW43: 478 | AX43: 480 | AY43: 482 | AZ43: 485 | BA43: 487 | BB43: 489 | BC43: 492 | BD43: 494 | BE43: 497 | BF43: 499 | BG43: 501 | BH43: 504 | BI43: 506 | BJ43: 509 | BK43: 511 | BL43: 514 | BM43: 516 | BN43: 519 | BO43: 521 | BP43: 524 | BQ43: 526 | BR43: 529 | BS43: 531 | BT43: 534 | BU43: 536 | BV43: 539 | BW43: 542 | BX43: 544 | BY43: 547 | BZ43: 550 | CA43: 552 | CB43: 555 | CC43: 558 | CD43: 560 | CE43: 563 | CF43: 566 | CG43: 568 | CH43: 571 | CI43: 574 | CJ43: 577 | CK43: 579 | CL43: 582 | CM43: 585 | CN43: 588 | CO43: 591 | CP43: 594 | CQ43: 597 | CR43: 599 | CS43: 602 | CT43: 605 | CU43: 608 | CV43: 611 | CW43: 614 | CX43: 617 | CY43: 620 | CZ43: 623 | DA43: 626 | DB43: 629 | DC43: 632 | DD43: 635 | DE43: 638 | DF43: 641 | DG43: 644 | DH43: 648 | DI43: 651 | DJ43: 654 | DK43: 657 | DL43: 668 | DM43: 679 | DN43: 690 | DO43: 701 | DP43: 713 | DQ43: 725 | DR43: 737 | DS43: 749 | DT43: 762 | DU43: 775 | DV43: 789 | DW43: 802 | DX43: 816 | DY43: 830 | DZ43: 844 | EA43: 859 | EB43: 873 | EC43: 888 | ED43: 903 | EE43: 919 | EF43: 935 | EG43: 951 | EH43: 967 | EI43: 983 | EJ43: 1000 | EK43: 1017 | EL43: 1035 | EM43: 1052 | EN43: 1070 | EO43: 1089 | EP43: 1107 | EQ43: 1126 | ER43: 1145 | ES43: 1165 | ET43: 1185 | EU43: 1205 | EV43: 1225 | EW43: 1254 | EX43: 1282 | EY43: 1310 | EZ43: 1339 | FA43: 1369 | FB43: 1398 | FC43: 1428 | FD43: 1459 | FE43: 1488 | FF43: 1475 | FG43: 1470 | FH43: 1522 | FI43: 1474 | FJ43: 1409 | FK43: 1387 | FL43: 1334 | FM43: 1315 | FN43: 1281 | FO43: 1341 | FP43: 1338 | FQ43: 1334 | FR43: 1216 | FS43: 1131 | FT43: 1258 | FU43: 1441 | FV43: 1387 | FW43: 1253 | FX43: 1217 | FY43: 946 | FZ43: 891 | GA43: 880 | GB43: 884 | GC43: 983 | GD43: 994 | GE43: 1202 | GF43: 1122 | GG43: 1058 | GH43: 1185 | GI43: 1221 | GJ43: 1111 | GK43: 1169 | GL43: 1223 | GM43: 999 | GN43: 1066 | GO43: 1044 | GP43: 1032 | GQ43: 1054 | GR43: 1090 | GS43: 1045 | GT43: 998 | GU43: 1073 | GV43: 1120 | GW43: 1237 | GX43: 1592 | GY43: 1803 | GZ43: 1755 | HA43: 1755 | HB43: 1753 | HC43: 1772 | HD43: 1953 | HE43: 1896 | HF43: 2003 | HG43: 2055 | HH43: 2141 | HI43: 2191
A44: Channel Islands | B44: 1 | C44: 1 | D44: 1 | E44: 1 | F44: 1 | G44: 1 | H44: 1 | I44: 1 | J44: 1 | K44: 1 | L44: 1 | M44: 1 | N44: 1 | O44: 1 | P44: 1 | Q44: 1 | R44: 1 | S44: 1 | T44: 1 | U44: 1 | V44: 1 | W44: 1 | X44: 1 | Y44: 1 | Z44: 1 | AA44: 1 | AB44: 1 | AC44: 1 | AD44: 1 | AE44: 1 | AF44: 1 | AG44: 1 | AH44: 1 | AI44: 1 | AJ44: 1 | AK44: 1 | AL44: 1 | AM44: 1 | AN44: 1 | AO44: 1 | AP44: 1 | AQ44: 1 | AR44: 1 | AS44: 1 | AT44: 1 | AU44: 1 | AV44: 1 | AW44: 1 | AX44: 1 | AY44: 1 | AZ44: 1 | BA44: 1 | BB44: 1 | BC44: 1 | BD44: 1 | BE44: 1 | BF44: 1 | BG44: 1 | BH44: 1 | BI44: 1 | BJ44: 1 | BK44: 1 | BL44: 1 | BM44: 1 | BN44: 1 | BO44: 1 | BP44: 1 | BQ44: 1 | BR44: 1 | BS44: 1 | BT44: 1 | BU44: 1 | BV44: 1 | BW44: 1 | BX44: 1 | BY44: 1 | BZ44: 1 | CA44: 1 | CB44: 1 | CC44: 1 | CD44: 1 | CE44: 1 | CF44: 1 | CG44: 1 | CH44: 1 | CI44: 1 | CJ44: 1 | CK44: 1 | CL44: 1 | CM44: 1 | CN44: 1 | CO44: 1 | CP44: 1 | CQ44: 1 | CR44: 1 | CS44: 1 | CT44: 1 | CU44: 1 | CV44: 1 | CW44: 1 | CX44: 1 | CY44: 1 | CZ44: 1 | DA44: 1 | DB44: 1 | DC44: 1 | DD44: 1 | DE44: 1 | DF44: 1 | DG44: 1 | DH44: 1 | DI44: 1 | DJ44: 1 | DK44: 1 | DL44: 1 | DM44: 1 | DN44: 1 | DO44: 1 | DP44: 1 | DQ44: 1 | DR44: 1 | DS44: 1 | DT44: 1 | DU44: 1 | DV44: 1 | DW44: 1 | DX44: 1 | DY44: 1 | DZ44: 1 | EA44: 1 | EB44: 1 | EC44: 1 | ED44: 1 | EE44: 1 | EF44: 1 | EG44: 1 | EH44: 1 | EI44: 1 | EJ44: 1 | EK44: 1 | EL44: 1 | EM44: 1 | EN44: 1 | EO44: 1 | EP44: 1 | EQ44: 1 | ER44: 1 | ES44: 1 | ET44: 1 | EU44: 1 | EV44: 1 | EW44: 1 | EX44: 1 | EY44: 1 | EZ44: 1 | FA44: 1 | FB44: 1 | FC44: 1 | FD44: 1 | FE44: 1 | FF44: 1 | FG44: 1 | FH44: 1 | FI44: 1 | FJ44: 1 | FK44: 1 | FL44: 1 | FM44: 1 | FN44: 1 | FO44: 1 | FP44: 1 | FQ44: 1 | FR44: 1 | FS44: 1 | FT44: 1 | FU44: 1 | FV44: 1 | FW44: 1 | FX44: 1 | FY44: 1 | FZ44: 1 | GA44: 1 | GB44: 1 | GC44: 1 | GD44: 1 | GE44: 1 | GF44: 1 | GG44: 1 | GH44: 1 | GI44: 1 | GJ44: 1 | GK44: 1 | GL44: 1 | GM44: 1 | GN44: 1 | GO44: 1 | GP44: 1 | GQ44: 1 | GR44: 1 | GS44: 1 | GT44: 1 | GU44: 1 | GV44: 1 | GW44: 1 | GX44: 1 | GY44: 1 | GZ44: 1 | HA44: 1 | HB44: 1 | HC44: 1 | HD44: 1 | HE44: 1 | HF44: 1 | HG44: 1 | HH44: 1 | HI44: 1
A45: Chile | B45: 1026 | C45: 1026 | D45: 1027 | E45: 1027 | F45: 1027 | G45: 1027 | H45: 1027 | I45: 1027 | J45: 1028 | K45: 1028 | L45: 1028 | M45: 1028 | N45: 1028 | O45: 1028 | P45: 1028 | Q45: 1029 | R45: 1029 | S45: 1029 | T45: 1029 | U45: 1029 | V45: 1029 | W45: 984 | X45: 990 | Y45: 986 | Z45: 962 | AA45: 991 | AB45: 998 | AC45: 1003 | AD45: 996 | AE45: 1002 | AF45: 986 | AG45: 985 | AH45: 998 | AI45: 994 | AJ45: 1016 | AK45: 1039 | AL45: 1031 | AM45: 1056 | AN45: 1060 | AO45: 1062 | AP45: 1117 | AQ45: 1119 | AR45: 1132 | AS45: 1155 | AT45: 1159 | AU45: 1181 | AV45: 1208 | AW45: 1222 | AX45: 1259 | AY45: 1334 | AZ45: 1389 | BA45: 1413 | BB45: 1440 | BC45: 1395 | BD45: 1421 | BE45: 1472 | BF45: 1475 | BG45: 1508 | BH45: 1559 | BI45: 1594 | BJ45: 1632 | BK45: 1617 | BL45: 1596 | BM45: 1640 | BN45: 1710 | BO45: 1751 | BP45: 1771 | BQ45: 1685 | BR45: 1752 | BS45: 1908 | BT45: 1929 | BU45: 1904 | BV45: 2017 | BW45: 2119 | BX45: 2000 | BY45: 2134 | BZ45: 2080 | CA45: 1983 | CB45: 2073 | CC45: 2353 | CD45: 2605 | CE45: 2658 | CF45: 2838 | CG45: 2815 | CH45: 2800 | CI45: 2678 | CJ45: 2753 | CK45: 2905 | CL45: 2753 | CM45: 2786 | CN45: 2948 | CO45: 3147 | CP45: 3044 | CQ45: 3155 | CR45: 3064 | CS45: 3238 | CT45: 3216 | CU45: 3106 | CV45: 3441 | CW45: 3421 | CX45: 3295 | CY45: 3338 | CZ45: 3443 | DA45: 3213 | DB45: 3437 | DC45: 3395 | DD45: 3620 | DE45: 3769 | DF45: 4123 | DG45: 4098 | DH45: 4512 | DI45: 4333 | DJ45: 4448 | DK45: 4471 | DL45: 3729 | DM45: 3562 | DN45: 4309 | DO45: 4344 | DP45: 4340 | DQ45: 3673 | DR45: 4092 | DS45: 3495 | DT45: 3571 | DU45: 4237 | DV45: 4488 | DW45: 4613 | DX45: 4163 | DY45: 4023 | DZ45: 4849 | EA45: 5019 | EB45: 4145 | EC45: 3210 | ED45: 2666 | EE45: 3227 | EF45: 3826 | EG45: 3973 | EH45: 4091 | EI45: 4564 | EJ45: 4529 | EK45: 4535 | EL45: 4625 | EM45: 4484 | EN45: 4600 | EO45: 4638 | EP45: 4633 | EQ45: 4935 | ER45: 5254 | ES45: 4598 | ET45: 5263 | EU45: 5056 | EV45: 5196 | EW45: 5279 | EX45: 5505 | EY45: 5811 | EZ45: 5519 | FA45: 5613 | FB45: 5584 | FC45: 6016 | FD45: 6194 | FE45: 5699 | FF45: 6020 | FG45: 6155 | FH45: 6293 | FI45: 6538 | FJ45: 6537 | FK45: 6451 | FL45: 7026 | FM45: 7114 | FN45: 7231 | FO45: 7364 | FP45: 7382 | FQ45: 7906 | FR45: 7674 | FS45: 7123 | FT45: 7070 | FU45: 6058 | FV45: 6168 | FW45: 6675 | FX45: 7122 | FY45: 7603 | FZ45: 8088 | GA45: 8454 | GB45: 7182 | GC45: 6867 | GD45: 7160 | GE45: 7193 | GF45: 7483 | GG45: 7851 | GH45: 8288 | GI45: 9016 | GJ45: 9193 | GK45: 9747 | GL45: 10744 | GM45: 11287 | GN45: 11725 | GO45: 12759 | GP45: 13498 | GQ45: 14186 | GR45: 14450 | GS45: 14159 | GT45: 14614 | GU45: 14925 | GV45: 15075 | GW45: 15499 | GX45: 16260 | GY45: 16985 | GZ45: 17554 | HA45: 18278 | HB45: 18698 | HC45: 18329 | HD45: 19204 | HE45: 20141 | HF45: 21050 | HG45: 21746 | HH45: 21967 | HI45: 22465
A46: China | B46: 985 | C46: 985 | D46: 985 | E46: 985 | F46: 985 | G46: 985 | H46: 985 | I46: 985 | J46: 985 | K46: 985 | L46: 985 | M46: 985 | N46: 985 | O46: 985 | P46: 985 | Q46: 985 | R46: 985 | S46: 985 | T46: 985 | U46: 985 | V46: 985 | W46: 985 | X46: 985 | Y46: 985 | Z46: 985 | AA46: 985 | AB46: 985 | AC46: 985 | AD46: 985 | AE46: 986 | AF46: 986 | AG46: 986 | AH46: 986 | AI46: 986 | AJ46: 986 | AK46: 986 | AL46: 986 | AM46: 986 | AN46: 986 | AO46: 986 | AP46: 986 | AQ46: 1031 | AR46: 1033 | AS46: 999 | AT46: 973 | AU46: 980 | AV46: 980 | AW46: 986 | AX46: 995 | AY46: 992 | AZ46: 985 | BA46: 975 | BB46: 1017 | BC46: 1011 | BD46: 991 | BE46: 984 | BF46: 1013 | BG46: 999 | BH46: 1029 | BI46: 1007 | BJ46: 1023 | BK46: 1044 | BL46: 1074 | BM46: 1095 | BN46: 1098 | BO46: 1066 | BP46: 1087 | BQ46: 1087 | BR46: 1113 | BS46: 1101 | BT46: 1099 | BU46: 1084 | BV46: 1090 | BW46: 1057 | BX46: 1000 | BY46: 1026 | BZ46: 1061 | CA46: 1001 | CB46: 1014 | CC46: 1031 | CD46: 1015 | CE46: 1011 | CF46: 1003 | CG46: 1005 | CH46: 977 | CI46: 974 | CJ46: 959 | CK46: 940 | CL46: 945 | CM46: 955 | CN46: 918 | CO46: 933 | CP46: 916 | CQ46: 921 | CR46: 911 | CS46: 940 | CT46: 895 | CU46: 904 | CV46: 876 | CW46: 882 | CX46: 894 | CY46: 893 | CZ46: 922 | DA46: 916 | DB46: 936 | DC46: 856 | DD46: 898 | DE46: 917 | DF46: 945 | DG46: 956 | DH46: 991 | DI46: 983 | DJ46: 938 | DK46: 936 | DL46: 946 | DM46: 957 | DN46: 968 | DO46: 979 | DP46: 990 | DQ46: 1001 | DR46: 1012 | DS46: 1017 | DT46: 1021 | DU46: 1026 | DV46: 1031 | DW46: 1035 | DX46: 1040 | DY46: 1045 | DZ46: 1050 | EA46: 1054 | EB46: 1055 | EC46: 1048 | ED46: 1064 | EE46: 1047 | EF46: 942 | EG46: 1004 | EH46: 1052 | EI46: 1012 | EJ46: 973 | EK46: 905 | EL46: 841 | EM46: 782 | EN46: 727 | EO46: 676 | EP46: 629 | EQ46: 585 | ER46: 570 | ES46: 556 | ET46: 542 | EU46: 529 | EV46: 535 | EW46: 582 | EX46: 631 | EY46: 692 | EZ46: 694 | FA46: 706 | FB46: 736 | FC46: 780 | FD46: 889 | FE46: 958 | FF46: 889 | FG46: 558 | FH46: 567 | FI46: 635 | FJ46: 713 | FK46: 772 | FL46: 826 | FM46: 719 | FN46: 669 | FO46: 732 | FP46: 848 | FQ46: 876 | FR46: 843 | FS46: 894 | FT46: 888 | FU46: 920 | FV46: 891 | FW46: 904 | FX46: 1016 | FY46: 1059 | FZ46: 1073 | GA46: 1099 | GB46: 1175 | GC46: 1229 | GD46: 1456 | GE46: 1557 | GF46: 1604 | GG46: 1652 | GH46: 1597 | GI46: 1474 | GJ46: 1516 | GK46: 1634 | GL46: 1845 | GM46: 2078 | GN46: 2323 | GO46: 2551 | GP46: 2775 | GQ46: 3000 | GR46: 3205 | GS46: 3419 | GT46: 3678 | GU46: 3955 | GV46: 4285 | GW46: 4685 | GX46: 5127 | GY46: 5675 | GZ46: 6360 | HA46: 7225 | HB46: 7880 | HC46: 8565 | HD46: 9430 | HE46: 10274 | HF46: 11017 | HG46: 11805 | HH46: 12609 | HI46: 13334
A47: Christmas Island | B47: 1 | C47: 1 | D47: 1 | E47: 1 | F47: 1 | G47: 1 | H47: 1 | I47: 1 | J47: 1 | K47: 1 | L47: 1 | M47: 1 | N47: 1 | O47: 1 | P47: 1 | Q47: 1 | R47: 1 | S47: 1 | T47: 1 | U47: 1 | V47: 1 | W47: 1 | X47: 1 | Y47: 1 | Z47: 1 | AA47: 1 | AB47: 1 | AC47: 1 | AD47: 1 | AE47: 1 | AF47: 1 | AG47: 1 | AH47: 1 | AI47: 1 | AJ47: 1 | AK47: 1 | AL47: 1 | AM47: 1 | AN47: 1 | AO47: 1 | AP47: 1 | AQ47: 1 | AR47: 1 | AS47: 1 | AT47: 1 | AU47: 1 | AV47: 1 | AW47: 1 | AX47: 1 | AY47: 1 | AZ47: 1 | BA47: 1 | BB47: 1 | BC47: 1 | BD47: 1 | BE47: 1 | BF47: 1 | BG47: 1 | BH47: 1 | BI47: 1 | BJ47: 1 | BK47: 1 | BL47: 1 | BM47: 1 | BN47: 1 | BO47: 1 | BP47: 1 | BQ47: 1 | BR47: 1 | BS47: 1 | BT47: 1 | BU47: 1 | BV47: 1 | BW47: 1 | BX47: 1 | BY47: 1 | BZ47: 1 | CA47: 1 | CB47: 1 | CC47: 1 | CD47: 1 | CE47: 1 | CF47: 1 | CG47: 1 | CH47: 1 | CI47: 1 | CJ47: 1 | CK47: 1 | CL47: 1 | CM47: 1 | CN47: 1 | CO47: 1 | CP47: 1 | CQ47: 1 | CR47: 1 | CS47: 1 | CT47: 1 | CU47: 1 | CV47: 1 | CW47: 1 | CX47: 1 | CY47: 1 | CZ47: 1 | DA47: 1 | DB47: 1 | DC47: 1 | DD47: 1 | DE47: 1 | DF47: 1 | DG47: 1 | DH47: 1 | DI47: 1 | DJ47: 1 | DK47: 1 | DL47: 1 | DM47: 1 | DN47: 1 | DO47: 1 | DP47: 1 | DQ47: 1 | DR47: 1 | DS47: 1 | DT47: 1 | DU47: 1 | DV47: 1 | DW47: 1 | DX47: 1 | DY47: 1 | DZ47: 1 | EA47: 1 | EB47: 1 | EC47: 1 | ED47: 1 | EE47: 1 | EF47: 1 | EG47: 1 | EH47: 1 | EI47: 1 | EJ47: 1 | EK47: 1 | EL47: 1 | EM47: 1 | EN47: 1 | EO47: 1 | EP47: 1 | EQ47: 1 | ER47: 1 | ES47: 1 | ET47: 1 | EU47: 1 | EV47: 1 | EW47: 1 | EX47: 1 | EY47: 1 | EZ47: 1 | FA47: 1 | FB47: 1 | FC47: 1 | FD47: 1 | FE47: 1 | FF47: 1 | FG47: 1 | FH47: 1 | FI47: 1 | FJ47: 1 | FK47: 1 | FL47: 1 | FM47: 1 | FN47: 1 | FO47: 1 | FP47: 1 | FQ47: 1 | FR47: 1 | FS47: 1 | FT47: 1 | FU47: 1 | FV47: 1 | FW47: 1 | FX47: 1 | FY47: 1 | FZ47: 1 | GA47: 1 | GB47: 1 | GC47: 1 | GD47: 1 | GE47: 1 | GF47: 1 | GG47: 1 | GH47: 1 | GI47: 1 | GJ47: 1 | GK47: 1 | GL47: 1 | GM47: 1 | GN47: 1 | GO47: 1 | GP47: 1 | GQ47: 1 | GR47: 1 | GS47: 1 | GT47: 1 | GU47: 1 | GV47: 1 | GW47: 1 | GX47: 1 | GY47: 1 | GZ47: 1 | HA47: 1 | HB47: 1 | HC47: 1 | HD47: 1 | HE47: 1 | HF47: 1 | HG47: 1 | HH47: 1 | HI47: 1
A48: Cocos Island | B48: 1 | C48: 1 | D48: 1 | E48: 1 | F48: 1 | G48: 1 | H48: 1 | I48: 1 | J48: 1 | K48: 1 | L48: 1 | M48: 1 | N48: 1 | O48: 1 | P48: 1 | Q48: 1 | R48: 1 | S48: 1 | T48: 1 | U48: 1 | V48: 1 | W48: 1 | X48: 1 | Y48: 1 | Z48: 1 | AA48: 1 | AB48: 1 | AC48: 1 | AD48: 1 | AE48: 1 | AF48: 1 | AG48: 1 | AH48: 1 | AI48: 1 | AJ48: 1 | AK48: 1 | AL48: 1 | AM48: 1 | AN48: 1 | AO48: 1 | AP48: 1 | AQ48: 1 | AR48: 1 | AS48: 1 | AT48: 1 | AU48: 1 | AV48: 1 | AW48: 1 | AX48: 1 | AY48: 1 | AZ48: 1 | BA48: 1 | BB48: 1 | BC48: 1 | BD48: 1 | BE48: 1 | BF48: 1 | BG48: 1 | BH48: 1 | BI48: 1 | BJ48: 1 | BK48: 1 | BL48: 1 | BM48: 1 | BN48: 1 | BO48: 1 | BP48: 1 | BQ48: 1 | BR48: 1 | BS48: 1 | BT48: 1 | BU48: 1 | BV48: 1 | BW48: 1 | BX48: 1 | BY48: 1 | BZ48: 1 | CA48: 1 | CB48: 1 | CC48: 1 | CD48: 1 | CE48: 1 | CF48: 1 | CG48: 1 | CH48: 1 | CI48: 1 | CJ48: 1 | CK48: 1 | CL48: 1 | CM48: 1 | CN48: 1 | CO48: 1 | CP48: 1 | CQ48: 1 | CR48: 1 | CS48: 1 | CT48: 1 | CU48: 1 | CV48: 1 | CW48: 1 | CX48: 1 | CY48: 1 | CZ48: 1 | DA48: 1 | DB48: 1 | DC48: 1 | DD48: 1 | DE48: 1 | DF48: 1 | DG48: 1 | DH48: 1 | DI48: 1 | DJ48: 1 | DK48: 1 | DL48: 1 | DM48: 1 | DN48: 1 | DO48: 1 | DP48: 1 | DQ48: 1 | DR48: 1 | DS48: 1 | DT48: 1 | DU48: 1 | DV48: 1 | DW48: 1 | DX48: 1 | DY48: 1 | DZ48: 1 | EA48: 1 | EB48: 1 | EC48: 1 | ED48: 1 | EE48: 1 | EF48: 1 | EG48: 1 | EH48: 1 | EI48: 1 | EJ48: 1 | EK48: 1 | EL48: 1 | EM48: 1 | EN48: 1 | EO48: 1 | EP48: 1 | EQ48: 1 | ER48: 1 | ES48: 1 | ET48: 1 | EU48: 1 | EV48: 1 | EW48: 1 | EX48: 1 | EY48: 1 | EZ48: 1 | FA48: 1 | FB48: 1 | FC48: 1 | FD48: 1 | FE48: 1 | FF48: 1 | FG48: 1 | FH48: 1 | FI48: 1 | FJ48: 1 | FK48: 1 | FL48: 1 | FM48: 1 | FN48: 1 | FO48: 1 | FP48: 1 | FQ48: 1 | FR48: 1 | FS48: 1 | FT48: 1 | FU48: 1 | FV48: 1 | FW48: 1 | FX48: 1 | FY48: 1 | FZ48: 1 | GA48: 1 | GB48: 1 | GC48: 1 | GD48: 1 | GE48: 1 | GF48: 1 | GG48: 1 | GH48: 1 | GI48: 1 | GJ48: 1 | GK48: 1 | GL48: 1 | GM48: 1 | GN48: 1 | GO48: 1 | GP48: 1 | GQ48: 1 | GR48: 1 | GS48: 1 | GT48: 1 | GU48: 1 | GV48: 1 | GW48: 1 | GX48: 1 | GY48: 1 | GZ48: 1 | HA48: 1 | HB48: 1 | HC48: 1 | HD48: 1 | HE48: 1 | HF48: 1 | HG48: 1 | HH48: 1 | HI48: 1
A49: Colombia | B49: 963 | C49: 963 | D49: 963 | E49: 963 | F49: 963 | G49: 963 | H49: 964 | I49: 964 | J49: 964 | K49: 964 | L49: 964 | M49: 964 | N49: 964 | O49: 965 | P49: 965 | Q49: 965 | R49: 965 | S49: 965 | T49: 965 | U49: 965 | V49: 966 | W49: 968 | X49: 971 | Y49: 973 | Z49: 976 | AA49: 978 | AB49: 981 | AC49: 983 | AD49: 986 | AE49: 988 | AF49: 991 | AG49: 993 | AH49: 996 | AI49: 999 | AJ49: 1001 | AK49: 1004 | AL49: 1006 | AM49: 1009 | AN49: 1012 | AO49: 1014 | AP49: 1017 | AQ49: 1019 | AR49: 1022 | AS49: 1025 | AT49: 1027 | AU49: 1030 | AV49: 1033 | AW49: 1035 | AX49: 1038 | AY49: 1041 | AZ49: 1043 | BA49: 1046 | BB49: 1049 | BC49: 1051 | BD49: 1054 | BE49: 1057 | BF49: 1060 | BG49: 1062 | BH49: 1065 | BI49: 1068 | BJ49: 1071 | BK49: 1073 | BL49: 1076 | BM49: 1079 | BN49: 1082 | BO49: 1085 | BP49: 1087 | BQ49: 1090 | BR49: 1093 | BS49: 1096 | BT49: 1099 | BU49: 1101 | BV49: 1104 | BW49: 1107 | BX49: 1110 | BY49: 1113 | BZ49: 1116 | CA49: 1119 | CB49: 1122 | CC49: 1124 | CD49: 1127 | CE49: 1130 | CF49: 1133 | CG49: 1136 | CH49: 1139 | CI49: 1142 | CJ49: 1145 | CK49: 1148 | CL49: 1151 | CM49: 1154 | CN49: 1157 | CO49: 1160 | CP49: 1163 | CQ49: 1166 | CR49: 1169 | CS49: 1172 | CT49: 1175 | CU49: 1178 | CV49: 1181 | CW49: 1184 | CX49: 1187 | CY49: 1190 | CZ49: 1193 | DA49: 1196 | DB49: 1199 | DC49: 1202 | DD49: 1212 | DE49: 1268 | DF49: 1313 | DG49: 1356 | DH49: 1405 | DI49: 1440 | DJ49: 1476 | DK49: 1504 | DL49: 1516 | DM49: 1540 | DN49: 1573 | DO49: 1591 | DP49: 1631 | DQ49: 1717 | DR49: 1782 | DS49: 1826 | DT49: 1890 | DU49: 1948 | DV49: 1995 | DW49: 2038 | DX49: 2166 | DY49: 2290 | DZ49: 2383 | EA49: 2393 | EB49: 2329 | EC49: 2251 | ED49: 2359 | EE49: 2449 | EF49: 2559 | EG49: 2577 | EH49: 2668 | EI49: 2663 | EJ49: 2789 | EK49: 2871 | EL49: 2842 | EM49: 2799 | EN49: 2717 | EO49: 2643 | EP49: 2738 | EQ49: 2780 | ER49: 2960 | ES49: 2983 | ET49: 2975 | EU49: 3143 | EV49: 3177 | EW49: 3151 | EX49: 3238 | EY49: 3287 | EZ49: 3404 | FA49: 3418 | FB49: 3459 | FC49: 3452 | FD49: 3396 | FE49: 3519 | FF49: 3535 | FG49: 3592 | FH49: 3655 | FI49: 3650 | FJ49: 3749 | FK49: 3777 | FL49: 3868 | FM49: 3893 | FN49: 4021 | FO49: 4162 | FP49: 4325 | FQ49: 4484 | FR49: 4731 | FS49: 4952 | FT49: 5161 | FU49: 5208 | FV49: 5382 | FW49: 5544 | FX49: 5953 | FY49: 6200 | FZ49: 6373 | GA49: 6441 | GB49: 6405 | GC49: 6421 | GD49: 6518 | GE49: 6613 | GF49: 6887 | GG49: 7158 | GH49: 7371 | GI49: 7519 | GJ49: 7752 | GK49: 7776 | GL49: 8014 | GM49: 8052 | GN49: 8366 | GO49: 8643 | GP49: 8664 | GQ49: 8804 | GR49: 8701 | GS49: 8194 | GT49: 8414 | GU49: 8415 | GV49: 8488 | GW49: 8683 | GX49: 9005 | GY49: 9286 | GZ49: 9759 | HA49: 10278 | HB49: 10489 | HC49: 10511 | HD49: 10777 | HE49: 11332 | HF49: 11636 | HG49: 12054 | HH49: 12447 | HI49: 12761
A50: Comoros | B50: 696 | C50: 697 | D50: 697 | E50: 698 | F50: 699 | G50: 700 | H50: 700 | I50: 701 | J50: 702 | K50: 702 | L50: 703 | M50: 704 | N50: 705 | O50: 705 | P50: 706 | Q50: 707 | R50: 707 | S50: 708 | T50: 709 | U50: 710 | V50: 710 | W50: 711 | X50: 712 | Y50: 712 | Z50: 713 | AA50: 714 | AB50: 715 | AC50: 715 | AD50: 716 | AE50: 717 | AF50: 718 | AG50: 718 | AH50: 719 | AI50: 720 | AJ50: 720 | AK50: 721 | AL50: 722 | AM50: 723 | AN50: 723 | AO50: 724 | AP50: 725 | AQ50: 726 | AR50: 726 | AS50: 727 | AT50: 728 | AU50: 729 | AV50: 729 | AW50: 730 | AX50: 731 | AY50: 732 | AZ50: 732 | BA50: 733 | BB50: 734 | BC50: 735 | BD50: 735 | BE50: 736 | BF50: 737 | BG50: 738 | BH50: 738 | BI50: 739 | BJ50: 740 | BK50: 741 | BL50: 741 | BM50: 742 | BN50: 743 | BO50: 744 | BP50: 744 | BQ50: 745 | BR50: 746 | BS50: 747 | BT50: 747 | BU50: 748 | BV50: 749 | BW50: 750 | BX50: 750 | BY50: 751 | BZ50: 752 | CA50: 753 | CB50: 753 | CC50: 754 | CD50: 755 | CE50: 756 | CF50: 756 | CG50: 757 | CH50: 758 | CI50: 759 | CJ50: 760 | CK50: 760 | CL50: 761 | CM50: 762 | CN50: 763 | CO50: 763 | CP50: 764 | CQ50: 765 | CR50: 766 | CS50: 767 | CT50: 767 | CU50: 768 | CV50: 769 | CW50: 770 | CX50: 770 | CY50: 771 | CZ50: 772 | DA50: 773 | DB50: 774 | DC50: 774 | DD50: 775 | DE50: 776 | DF50: 777 | DG50: 778 | DH50: 778 | DI50: 779 | DJ50: 780 | DK50: 781 | DL50: 781 | DM50: 782 | DN50: 783 | DO50: 784 | DP50: 785 | DQ50: 785 | DR50: 786 | DS50: 787 | DT50: 788 | DU50: 788 | DV50: 789 | DW50: 790 | DX50: 791 | DY50: 791 | DZ50: 792 | EA50: 793 | EB50: 794 | EC50: 794 | ED50: 795 | EE50: 796 | EF50: 796 | EG50: 797 | EH50: 798 | EI50: 799 | EJ50: 799 | EK50: 800 | EL50: 801 | EM50: 801 | EN50: 802 | EO50: 803 | EP50: 803 | EQ50: 804 | ER50: 805 | ES50: 805 | ET50: 806 | EU50: 807 | EV50: 807 | EW50: 837 | EX50: 846 | EY50: 862 | EZ50: 892 | FA50: 901 | FB50: 915 | FC50: 929 | FD50: 935 | FE50: 967 | FF50: 1026 | FG50: 1013 | FH50: 1079 | FI50: 1278 | FJ50: 1342 | FK50: 1308 | FL50: 1416 | FM50: 1530 | FN50: 1494 | FO50: 1425 | FP50: 1425 | FQ50: 1453 | FR50: 1452 | FS50: 1522 | FT50: 1525 | FU50: 1575 | FV50: 1523 | FW50: 1522 | FX50: 1504 | FY50: 1583 | FZ50: 1636 | GA50: 1640 | GB50: 1686 | GC50: 1712 | GD50: 1730 | GE50: 1719 | GF50: 1703 | GG50: 1687 | GH50: 1689 | GI50: 1621 | GJ50: 1595 | GK50: 1473 | GL50: 1561 | GM50: 1569 | GN50: 1451 | GO50: 1467 | GP50: 1413 | GQ50: 1434 | GR50: 1416 | GS50: 1407 | GT50: 1391 | GU50: 1517 | GV50: 1513 | GW50: 1505 | GX50: 1495 | GY50: 1498 | GZ50: 1499 | HA50: 1472 | HB50: 1440 | HC50: 1431 | HD50: 1426 | HE50: 1427 | HF50: 1435 | HG50: 1450 | HH50: 1459 | HI50: 1472
A51: Congo, Dem. Rep. | B51: 485 | C51: 487 | D51: 489 | E51: 491 | F51: 493 | G51: 495 | H51: 497 | I51: 499 | J51: 501 | K51: 503 | L51: 505 | M51: 507 | N51: 509 | O51: 511 | P51: 513 | Q51: 515 | R51: 518 | S51: 520 | T51: 522 | U51: 524 | V51: 526 | W51: 528 | X51: 531 | Y51: 533 | Z51: 535 | AA51: 537 | AB51: 539 | AC51: 542 | AD51: 544 | AE51: 546 | AF51: 548 | AG51: 551 | AH51: 553 | AI51: 555 | AJ51: 558 | AK51: 560 | AL51: 562 | AM51: 565 | AN51: 567 | AO51: 569 | AP51: 572 | AQ51: 574 | AR51: 576 | AS51: 579 | AT51: 581 | AU51: 584 | AV51: 586 | AW51: 588 | AX51: 591 | AY51: 593 | AZ51: 596 | BA51: 598 | BB51: 601 | BC51: 603 | BD51: 606 | BE51: 608 | BF51: 611 | BG51: 613 | BH51: 616 | BI51: 618 | BJ51: 621 | BK51: 623 | BL51: 626 | BM51: 629 | BN51: 631 | BO51: 634 | BP51: 636 | BQ51: 639 | BR51: 642 | BS51: 644 | BT51: 647 | BU51: 650 | BV51: 652 | BW51: 655 | BX51: 658 | BY51: 661 | BZ51: 663 | CA51: 666 | CB51: 669 | CC51: 672 | CD51: 674 | CE51: 677 | CF51: 680 | CG51: 683 | CH51: 686 | CI51: 688 | CJ51: 691 | CK51: 694 | CL51: 697 | CM51: 700 | CN51: 703 | CO51: 706 | CP51: 709 | CQ51: 712 | CR51: 715 | CS51: 717 | CT51: 720 | CU51: 723 | CV51: 726 | CW51: 729 | CX51: 732 | CY51: 735 | CZ51: 739 | DA51: 742 | DB51: 745 | DC51: 748 | DD51: 751 | DE51: 754 | DF51: 757 | DG51: 760 | DH51: 763 | DI51: 766 | DJ51: 770 | DK51: 773 | DL51: 788 | DM51: 803 | DN51: 819 | DO51: 835 | DP51: 852 | DQ51: 868 | DR51: 885 | DS51: 902 | DT51: 920 | DU51: 937 | DV51: 955 | DW51: 973 | DX51: 992 | DY51: 1011 | DZ51: 1030 | EA51: 1050 | EB51: 1070 | EC51: 1091 | ED51: 1112 | EE51: 1133 | EF51: 1155 | EG51: 1177 | EH51: 1199 | EI51: 1222 | EJ51: 1245 | EK51: 1269 | EL51: 1293 | EM51: 1318 | EN51: 1343 | EO51: 1369 | EP51: 1395 | EQ51: 1422 | ER51: 1449 | ES51: 1476 | ET51: 1504 | EU51: 1533 | EV51: 1562 | EW51: 1756 | EX51: 1845 | EY51: 1994 | EZ51: 2041 | FA51: 2128 | FB51: 2202 | FC51: 2177 | FD51: 2085 | FE51: 2084 | FF51: 2225 | FG51: 1948 | FH51: 2158 | FI51: 2147 | FJ51: 2108 | FK51: 2016 | FL51: 2085 | FM51: 1999 | FN51: 2062 | FO51: 2160 | FP51: 2094 | FQ51: 2194 | FR51: 2145 | FS51: 2253 | FT51: 2323 | FU51: 2032 | FV51: 1840 | FW51: 1772 | FX51: 1628 | FY51: 1575 | FZ51: 1567 | GA51: 1567 | GB51: 1517 | GC51: 1496 | GD51: 1535 | GE51: 1498 | GF51: 1523 | GG51: 1517 | GH51: 1478 | GI51: 1410 | GJ51: 1270 | GK51: 1120 | GL51: 963 | GM51: 801 | GN51: 742 | GO51: 724 | GP51: 698 | GQ51: 645 | GR51: 622 | GS51: 583 | GT51: 531 | GU51: 506 | GV51: 507 | GW51: 520 | GX51: 539 | GY51: 556 | GZ51: 569 | HA51: 588 | HB51: 607 | HC51: 607 | HD51: 632 | HE51: 657 | HF51: 685 | HG51: 724 | HH51: 768 | HI51: 809
A52: Congo, Rep. | B52: 575 | C52: 576 | D52: 578 | E52: 580 | F52: 581 | G52: 583 | H52: 585 | I52: 586 | J52: 588 | K52: 590 | L52: 591 | M52: 593 | N52: 595 | O52: 596 | P52: 598 | Q52: 600 | R52: 601 | S52: 603 | T52: 605 | U52: 606 | V52: 608 | W52: 610 | X52: 612 | Y52: 613 | Z52: 615 | AA52: 617 | AB52: 619 | AC52: 620 | AD52: 622 | AE52: 624 | AF52: 626 | AG52: 627 | AH52: 629 | AI52: 631 | AJ52: 633 | AK52: 635 | AL52: 636 | AM52: 638 | AN52: 640 | AO52: 642 | AP52: 644 | AQ52: 645 | AR52: 647 | AS52: 649 | AT52: 651 | AU52: 653 | AV52: 655 | AW52: 656 | AX52: 658 | AY52: 660 | AZ52: 662 | BA52: 664 | BB52: 666 | BC52: 668 | BD52: 670 | BE52: 672 | BF52: 673 | BG52: 675 | BH52: 677 | BI52: 679 | BJ52: 681 | BK52: 683 | BL52: 685 | BM52: 687 | BN52: 689 | BO52: 691 | BP52: 693 | BQ52: 695 | BR52: 697 | BS52: 699 | BT52: 701 | BU52: 703 | BV52: 705 | BW52: 707 | BX52: 709 | BY52: 711 | BZ52: 713 | CA52: 715 | CB52: 717 | CC52: 719 | CD52: 721 | CE52: 723 | CF52: 725 | CG52: 727 | CH52: 729 | CI52: 731 | CJ52: 733 | CK52: 735 | CL52: 737 | CM52: 739 | CN52: 741 | CO52: 743 | CP52: 746 | CQ52: 748 | CR52: 750 | CS52: 752 | CT52: 754 | CU52: 756 | CV52: 758 | CW52: 760 | CX52: 763 | CY52: 765 | CZ52: 767 | DA52: 769 | DB52: 771 | DC52: 773 | DD52: 776 | DE52: 778 | DF52: 780 | DG52: 782 | DH52: 784 | DI52: 787 | DJ52: 789 | DK52: 791 | DL52: 809 | DM52: 827 | DN52: 845 | DO52: 864 | DP52: 883 | DQ52: 903 | DR52: 923 | DS52: 945 | DT52: 967 | DU52: 990 | DV52: 1013 | DW52: 1036 | DX52: 1060 | DY52: 1085 | DZ52: 1111 | EA52: 1136 | EB52: 1163 | EC52: 1190 | ED52: 1218 | EE52: 1246 | EF52: 1275 | EG52: 1305 | EH52: 1335 | EI52: 1366 | EJ52: 1398 | EK52: 1431 | EL52: 1464 | EM52: 1498 | EN52: 1533 | EO52: 1568 | EP52: 1605 | EQ52: 1642 | ER52: 1680 | ES52: 1719 | ET52: 1759 | EU52: 1800 | EV52: 1842 | EW52: 1880 | EX52: 1918 | EY52: 1954 | EZ52: 1991 | FA52: 2028 | FB52: 2063 | FC52: 2099 | FD52: 2135 | FE52: 2170 | FF52: 2198 | FG52: 2535 | FH52: 2435 | FI52: 2263 | FJ52: 2282 | FK52: 2329 | FL52: 2411 | FM52: 2642 | FN52: 2825 | FO52: 3057 | FP52: 3348 | FQ52: 3545 | FR52: 3584 | FS52: 4082 | FT52: 3930 | FU52: 3784 | FV52: 3852 | FW52: 3469 | FX52: 3576 | FY52: 3869 | FZ52: 4238 | GA52: 4993 | GB52: 5995 | GC52: 6153 | GD52: 6414 | GE52: 6166 | GF52: 5586 | GG52: 5448 | GH52: 5398 | GI52: 5350 | GJ52: 5264 | GK52: 5249 | GL52: 5248 | GM52: 5062 | GN52: 4659 | GO52: 4715 | GP52: 4782 | GQ52: 4618 | GR52: 4657 | GS52: 4413 | GT52: 4623 | GU52: 4680 | GV52: 4778 | GW52: 4702 | GX52: 4745 | GY52: 4978 | GZ52: 5138 | HA52: 4905 | HB52: 5022 | HC52: 5236 | HD52: 5533 | HE52: 5569 | HF52: 5631 | HG52: 5680 | HH52: 5905 | HI52: 6220
A53: Cook Is | B53: 1 | C53: 1 | D53: 1 | E53: 1 | F53: 1 | G53: 1 | H53: 1 | I53: 1 | J53: 1 | K53: 1 | L53: 1 | M53: 1 | N53: 1 | O53: 1 | P53: 1 | Q53: 1 | R53: 1 | S53: 1 | T53: 1 | U53: 1 | V53: 1 | W53: 1 | X53: 1 | Y53: 1 | Z53: 1 | AA53: 1 | AB53: 1 | AC53: 1 | AD53: 1 | AE53: 1 | AF53: 1 | AG53: 1 | AH53: 1 | AI53: 1 | AJ53: 1 | AK53: 1 | AL53: 1 | AM53: 1 | AN53: 1 | AO53: 1 | AP53: 1 | AQ53: 1 | AR53: 1 | AS53: 1 | AT53: 1 | AU53: 1 | AV53: 1 | AW53: 1 | AX53: 1 | AY53: 1 | AZ53: 1 | BA53: 1 | BB53: 1 | BC53: 1 | BD53: 1 | BE53: 1 | BF53: 1 | BG53: 1 | BH53: 1 | BI53: 1 | BJ53: 1 | BK53: 1 | BL53: 1 | BM53: 1 | BN53: 1 | BO53: 1 | BP53: 1 | BQ53: 1 | BR53: 1 | BS53: 1 | BT53: 1 | BU53: 1 | BV53: 1 | BW53: 1 | BX53: 1 | BY53: 1 | BZ53: 1 | CA53: 1 | CB53: 1 | CC53: 1 | CD53: 1 | CE53: 1 | CF53: 1 | CG53: 1 | CH53: 1 | CI53: 1 | CJ53: 1 | CK53: 1 | CL53: 1 | CM53: 1 | CN53: 1 | CO53: 1 | CP53: 1 | CQ53: 1 | CR53: 1 | CS53: 1 | CT53: 1 | CU53: 1 | CV53: 1 | CW53: 1 | CX53: 1 | CY53: 1 | CZ53: 1 | DA53: 1 | DB53: 1 | DC53: 1 | DD53: 1 | DE53: 1 | DF53: 1 | DG53: 1 | DH53: 1 | DI53: 1 | DJ53: 1 | DK53: 1 | DL53: 1 | DM53: 1 | DN53: 1 | DO53: 1 | DP53: 1 | DQ53: 1 | DR53: 1 | DS53: 1 | DT53: 1 | DU53: 1 | DV53: 1 | DW53: 1 | DX53: 1 | DY53: 1 | DZ53: 1 | EA53: 1 | EB53: 1 | EC53: 1 | ED53: 1 | EE53: 1 | EF53: 1 | EG53: 1 | EH53: 1 | EI53: 1 | EJ53: 1 | EK53: 1 | EL53: 1 | EM53: 1 | EN53: 1 | EO53: 1 | EP53: 1 | EQ53: 1 | ER53: 1 | ES53: 1 | ET53: 1 | EU53: 1 | EV53: 1 | EW53: 1 | EX53: 1 | EY53: 1 | EZ53: 1 | FA53: 1 | FB53: 1 | FC53: 1 | FD53: 1 | FE53: 1 | FF53: 1 | FG53: 1 | FH53: 1 | FI53: 1 | FJ53: 1 | FK53: 1 | FL53: 1 | FM53: 1 | FN53: 1 | FO53: 1 | FP53: 1 | FQ53: 1 | FR53: 1 | FS53: 1 | FT53: 1 | FU53: 1 | FV53: 1 | FW53: 1 | FX53: 1 | FY53: 1 | FZ53: 1 | GA53: 1 | GB53: 1 | GC53: 1 | GD53: 1 | GE53: 1 | GF53: 1 | GG53: 1 | GH53: 1 | GI53: 1 | GJ53: 1 | GK53: 1 | GL53: 1 | GM53: 1 | GN53: 1 | GO53: 1 | GP53: 1 | GQ53: 1 | GR53: 1 | GS53: 1 | GT53: 1 | GU53: 1 | GV53: 1 | GW53: 1 | GX53: 1 | GY53: 1 | GZ53: 1 | HA53: 1 | HB53: 1 | HC53: 1 | HD53: 1 | HE53: 1 | HF53: 1 | HG53: 1 | HH53: 1 | HI53: 1
A54: Costa Rica | B54: 775 | C54: 775 | D54: 775 | E54: 775 | F54: 775 | G54: 776 | H54: 776 | I54: 776 | J54: 776 | K54: 776 | L54: 776 | M54: 776 | N54: 776 | O54: 776 | P54: 777 | Q54: 777 | R54: 777 | S54: 777 | T54: 777 | U54: 777 | V54: 777 | W54: 786 | X54: 795 | Y54: 804 | Z54: 813 | AA54: 822 | AB54: 831 | AC54: 841 | AD54: 850 | AE54: 860 | AF54: 869 | AG54: 879 | AH54: 889 | AI54: 899 | AJ54: 909 | AK54: 919 | AL54: 929 | AM54: 940 | AN54: 950 | AO54: 961 | AP54: 972 | AQ54: 983 | AR54: 994 | AS54: 1005 | AT54: 1016 | AU54: 1028 | AV54: 1039 | AW54: 1051 | AX54: 1063 | AY54: 1075 | AZ54: 1087 | BA54: 1099 | BB54: 1111 | BC54: 1124 | BD54: 1137 | BE54: 1149 | BF54: 1162 | BG54: 1175 | BH54: 1188 | BI54: 1202 | BJ54: 1215 | BK54: 1229 | BL54: 1243 | BM54: 1257 | BN54: 1271 | BO54: 1285 | BP54: 1300 | BQ54: 1314 | BR54: 1329 | BS54: 1344 | BT54: 1359 | BU54: 1374 | BV54: 1390 | BW54: 1405 | BX54: 1421 | BY54: 1437 | BZ54: 1453 | CA54: 1470 | CB54: 1486 | CC54: 1503 | CD54: 1520 | CE54: 1537 | CF54: 1554 | CG54: 1571 | CH54: 1589 | CI54: 1607 | CJ54: 1625 | CK54: 1643 | CL54: 1662 | CM54: 1680 | CN54: 1699 | CO54: 1718 | CP54: 1738 | CQ54: 1757 | CR54: 1777 | CS54: 1797 | CT54: 1817 | CU54: 1837 | CV54: 1858 | CW54: 1879 | CX54: 1900 | CY54: 1921 | CZ54: 1943 | DA54: 1965 | DB54: 1987 | DC54: 2009 | DD54: 2032 | DE54: 2055 | DF54: 2078 | DG54: 2101 | DH54: 2125 | DI54: 2149 | DJ54: 2173 | DK54: 2197 | DL54: 2222 | DM54: 2247 | DN54: 2272 | DO54: 2297 | DP54: 2323 | DQ54: 2349 | DR54: 2376 | DS54: 2275 | DT54: 2478 | DU54: 2241 | DV54: 2510 | DW54: 2448 | DX54: 2651 | DY54: 2409 | DZ54: 2484 | EA54: 2333 | EB54: 2401 | EC54: 2327 | ED54: 2102 | EE54: 2458 | EF54: 2129 | EG54: 2265 | EH54: 2375 | EI54: 2677 | EJ54: 2790 | EK54: 2779 | EL54: 2626 | EM54: 2896 | EN54: 2518 | EO54: 2477 | EP54: 2180 | EQ54: 2414 | ER54: 2633 | ES54: 3050 | ET54: 3141 | EU54: 3186 | EV54: 2948 | EW54: 2933 | EX54: 3179 | EY54: 3542 | EZ54: 3449 | FA54: 3709 | FB54: 3472 | FC54: 3633 | FD54: 3936 | FE54: 3929 | FF54: 4110 | FG54: 4123 | FH54: 4221 | FI54: 4427 | FJ54: 4495 | FK54: 4749 | FL54: 4953 | FM54: 5094 | FN54: 5324 | FO54: 5518 | FP54: 5723 | FQ54: 5933 | FR54: 6287 | FS54: 6597 | FT54: 6772 | FU54: 6725 | FV54: 6898 | FW54: 7305 | FX54: 7465 | FY54: 7607 | FZ54: 7537 | GA54: 7190 | GB54: 6508 | GC54: 6505 | GD54: 6820 | GE54: 6683 | GF54: 6851 | GG54: 6984 | GH54: 7036 | GI54: 7253 | GJ54: 7333 | GK54: 7337 | GL54: 7816 | GM54: 8196 | GN54: 8378 | GO54: 8495 | GP54: 8357 | GQ54: 8603 | GR54: 9095 | GS54: 9610 | GT54: 9564 | GU54: 9465 | GV54: 9548 | GW54: 9972 | GX54: 10212 | GY54: 10629 | GZ54: 11371 | HA54: 12079 | HB54: 12219 | HC54: 11914 | HD54: 12322 | HE54: 12694 | HF54: 13162 | HG54: 13427 | HH54: 13713 | HI54: 14132
A55: Cote d'Ivoire | B55: 812 | C55: 816 | D55: 819 | E55: 822 | F55: 825 | G55: 829 | H55: 832 | I55: 835 | J55: 839 | K55: 842 | L55: 845 | M55: 849 | N55: 852 | O55: 856 | P55: 859 | Q55: 863 | R55: 866 | S55: 869 | T55: 873 | U55: 876 | V55: 880 | W55: 884 | X55: 887 | Y55: 891 | Z55: 894 | AA55: 898 | AB55: 901 | AC55: 905 | AD55: 909 | AE55: 912 | AF55: 916 | AG55: 920 | AH55: 923 | AI55: 927 | AJ55: 931 | AK55: 934 | AL55: 938 | AM55: 942 | AN55: 946 | AO55: 950 | AP55: 953 | AQ55: 957 | AR55: 961 | AS55: 965 | AT55: 969 | AU55: 973 | AV55: 976 | AW55: 980 | AX55: 984 | AY55: 988 | AZ55: 992 | BA55: 996 | BB55: 1000 | BC55: 1004 | BD55: 1008 | BE55: 1012 | BF55: 1016 | BG55: 1020 | BH55: 1025 | BI55: 1029 | BJ55: 1033 | BK55: 1037 | BL55: 1041 | BM55: 1045 | BN55: 1049 | BO55: 1054 | BP55: 1058 | BQ55: 1062 | BR55: 1066 | BS55: 1071 | BT55: 1075 | BU55: 1079 | BV55: 1084 | BW55: 1088 | BX55: 1092 | BY55: 1097 | BZ55: 1101 | CA55: 1105 | CB55: 1110 | CC55: 1114 | CD55: 1119 | CE55: 1123 | CF55: 1128 | CG55: 1132 | CH55: 1137 | CI55: 1141 | CJ55: 1146 | CK55: 1151 | CL55: 1155 | CM55: 1160 | CN55: 1164 | CO55: 1169 | CP55: 1174 | CQ55: 1179 | CR55: 1183 | CS55: 1188 | CT55: 1193 | CU55: 1198 | CV55: 1202 | CW55: 1207 | CX55: 1212 | CY55: 1217 | CZ55: 1222 | DA55: 1227 | DB55: 1232 | DC55: 1236 | DD55: 1241 | DE55: 1246 | DF55: 1251 | DG55: 1256 | DH55: 1261 | DI55: 1266 | DJ55: 1272 | DK55: 1277 | DL55: 1293 | DM55: 1309 | DN55: 1326 | DO55: 1343 | DP55: 1360 | DQ55: 1377 | DR55: 1394 | DS55: 1413 | DT55: 1432 | DU55: 1451 | DV55: 1470 | DW55: 1489 | DX55: 1509 | DY55: 1529 | DZ55: 1549 | EA55: 1570 | EB55: 1591 | EC55: 1612 | ED55: 1633 | EE55: 1655 | EF55: 1676 | EG55: 1699 | EH55: 1721 | EI55: 1744 | EJ55: 1767 | EK55: 1790 | EL55: 1814 | EM55: 1838 | EN55: 1862 | EO55: 1886 | EP55: 1911 | EQ55: 1936 | ER55: 1962 | ES55: 1988 | ET55: 2014 | EU55: 2040 | EV55: 2067 | EW55: 2102 | EX55: 2138 | EY55: 2173 | EZ55: 2209 | FA55: 2245 | FB55: 2281 | FC55: 2317 | FD55: 2353 | FE55: 2377 | FF55: 2510 | FG55: 2751 | FH55: 2651 | FI55: 2901 | FJ55: 3312 | FK55: 3091 | FL55: 3291 | FM55: 3261 | FN55: 3565 | FO55: 3645 | FP55: 3798 | FQ55: 3983 | FR55: 3975 | FS55: 4029 | FT55: 4020 | FU55: 4159 | FV55: 4488 | FW55: 4602 | FX55: 4878 | FY55: 4776 | FZ55: 4068 | GA55: 4030 | GB55: 3868 | GC55: 3564 | GD55: 3330 | GE55: 3347 | GF55: 3330 | GG55: 3203 | GH55: 3129 | GI55: 3385 | GJ55: 3234 | GK55: 3128 | GL55: 3019 | GM55: 2918 | GN55: 2851 | GO55: 2964 | GP55: 3103 | GQ55: 3131 | GR55: 3202 | GS55: 3178 | GT55: 3049 | GU55: 2999 | GV55: 2904 | GW55: 2825 | GX55: 2820 | GY55: 2828 | GZ55: 2827 | HA55: 2831 | HB55: 2854 | HC55: 2892 | HD55: 2892 | HE55: 2706 | HF55: 2928 | HG55: 3123 | HH55: 3324 | HI55: 3491
A56: Croatia | B56: 1 | C56: 1 | D56: 1 | E56: 1 | F56: 1 | G56: 1 | H56: 1 | I56: 1 | J56: 1 | K56: 1 | L56: 1 | M56: 1 | N56: 1 | O56: 1 | P56: 1 | Q56: 1 | R56: 1 | S56: 1 | T56: 1 | U56: 1 | V56: 1 | W56: 1 | X56: 1 | Y56: 1 | Z56: 1 | AA56: 1 | AB56: 1 | AC56: 1 | AD56: 1 | AE56: 1 | AF56: 1 | AG56: 1 | AH56: 1 | AI56: 1 | AJ56: 1 | AK56: 1 | AL56: 1 | AM56: 1 | AN56: 1 | AO56: 1 | AP56: 1 | AQ56: 1 | AR56: 1 | AS56: 1 | AT56: 1 | AU56: 1 | AV56: 1 | AW56: 1 | AX56: 1 | AY56: 1 | AZ56: 1 | BA56: 1 | BB56: 1 | BC56: 1 | BD56: 1 | BE56: 1 | BF56: 1 | BG56: 1 | BH56: 1 | BI56: 1 | BJ56: 1 | BK56: 1 | BL56: 1 | BM56: 1 | BN56: 1 | BO56: 1 | BP56: 1 | BQ56: 1 | BR56: 1 | BS56: 1 | BT56: 1 | BU56: 1 | BV56: 1 | BW56: 1 | BX56: 1 | BY56: 1 | BZ56: 1 | CA56: 1 | CB56: 1 | CC56: 1 | CD56: 1 | CE56: 1 | CF56: 1 | CG56: 1 | CH56: 1 | CI56: 1 | CJ56: 1 | CK56: 1 | CL56: 1 | CM56: 1 | CN56: 1 | CO56: 1 | CP56: 1 | CQ56: 1 | CR56: 1 | CS56: 1 | CT56: 1 | CU56: 1 | CV56: 1 | CW56: 1 | CX56: 1 | CY56: 1 | CZ56: 1 | DA56: 1 | DB56: 1 | DC56: 1 | DD56: 1 | DE56: 1 | DF56: 1 | DG56: 1 | DH56: 1 | DI56: 1 | DJ56: 1 | DK56: 1 | DL56: 1 | DM56: 1 | DN56: 1 | DO56: 1 | DP56: 1 | DQ56: 1 | DR56: 1 | DS56: 1 | DT56: 1 | DU56: 1 | DV56: 1 | DW56: 1 | DX56: 1 | DY56: 1 | DZ56: 1 | EA56: 1 | EB56: 1 | EC56: 1 | ED56: 1 | EE56: 1 | EF56: 1 | EG56: 1 | EH56: 1 | EI56: 1 | EJ56: 1 | EK56: 1 | EL56: 1 | EM56: 1 | EN56: 1 | EO56: 1 | EP56: 1 | EQ56: 1 | ER56: 1 | ES56: 1 | ET56: 1 | EU56: 1 | EV56: 1 | EW56: 1 | EX56: 1 | EY56: 1 | EZ56: 1 | FA56: 1 | FB56: 1 | FC56: 1 | FD56: 1 | FE56: 1 | FF56: 1 | FG56: 1 | FH56: 1 | FI56: 1 | FJ56: 1 | FK56: 1 | FL56: 1 | FM56: 1 | FN56: 1 | FO56: 1 | FP56: 1 | FQ56: 1 | FR56: 1 | FS56: 1 | FT56: 1 | FU56: 1 | FV56: 1 | FW56: 1 | FX56: 1 | FY56: 1 | FZ56: 1 | GA56: 1 | GB56: 1 | GC56: 1 | GD56: 1 | GE56: 1 | GF56: 1 | GG56: 1 | GH56: 1 | GI56: 1 | GJ56: 1 | GK56: 1 | GL56: 1 | GM56: 1 | GN56: 1 | GO56: 1 | GP56: 1 | GQ56: 1 | GR56: 1 | GS56: 1 | GT56: 1 | GU56: 1 | GV56: 1 | GW56: 1 | GX56: 1 | GY56: 1 | GZ56: 1 | HA56: 1 | HB56: 1 | HC56: 1 | HD56: 1 | HE56: 1 | HF56: 1 | HG56: 1 | HH56: 1 | HI56: 1
A57: Cuba | B57: 864 | C57: 874 | D57: 884 | E57: 895 | F57: 905 | G57: 916 | H57: 926 | I57: 937 | J57: 948 | K57: 959 | L57: 970 | M57: 982 | N57: 993 | O57: 1005 | P57: 1016 | Q57: 1028 | R57: 1040 | S57: 1052 | T57: 1065 | U57: 1077 | V57: 1090 | W57: 1102 | X57: 1115 | Y57: 1128 | Z57: 1141 | AA57: 1155 | AB57: 1168 | AC57: 1182 | AD57: 1196 | AE57: 1210 | AF57: 1224 | AG57: 1238 | AH57: 1252 | AI57: 1267 | AJ57: 1282 | AK57: 1297 | AL57: 1312 | AM57: 1327 | AN57: 1343 | AO57: 1358 | AP57: 1374 | AQ57: 1390 | AR57: 1406 | AS57: 1423 | AT57: 1439 | AU57: 1456 | AV57: 1473 | AW57: 1490 | AX57: 1508 | AY57: 1525 | AZ57: 1543 | BA57: 1561 | BB57: 1579 | BC57: 1598 | BD57: 1616 | BE57: 1635 | BF57: 1654 | BG57: 1674 | BH57: 1693 | BI57: 1713 | BJ57: 1733 | BK57: 1753 | BL57: 1774 | BM57: 1794 | BN57: 1815 | BO57: 1836 | BP57: 1858 | BQ57: 1880 | BR57: 1901 | BS57: 1924 | BT57: 1946 | BU57: 1969 | BV57: 1992 | BW57: 2015 | BX57: 2038 | BY57: 2062 | BZ57: 2086 | CA57: 2111 | CB57: 2135 | CC57: 2160 | CD57: 2185 | CE57: 2211 | CF57: 2237 | CG57: 2263 | CH57: 2289 | CI57: 2316 | CJ57: 2343 | CK57: 2370 | CL57: 2398 | CM57: 2426 | CN57: 2454 | CO57: 2483 | CP57: 2512 | CQ57: 2541 | CR57: 2571 | CS57: 2601 | CT57: 2631 | CU57: 2662 | CV57: 2693 | CW57: 2724 | CX57: 2756 | CY57: 2788 | CZ57: 2821 | DA57: 2854 | DB57: 2887 | DC57: 2920 | DD57: 2955 | DE57: 2989 | DF57: 3024 | DG57: 3059 | DH57: 3095 | DI57: 3182 | DJ57: 3271 | DK57: 3361 | DL57: 3453 | DM57: 3547 | DN57: 3643 | DO57: 3740 | DP57: 3839 | DQ57: 3940 | DR57: 4042 | DS57: 4187 | DT57: 4332 | DU57: 4479 | DV57: 4626 | DW57: 4775 | DX57: 4925 | DY57: 5076 | DZ57: 5228 | EA57: 5381 | EB57: 5027 | EC57: 4212 | ED57: 3369 | EE57: 3631 | EF57: 4246 | EG57: 4937 | EH57: 5740 | EI57: 6578 | EJ57: 5083 | EK57: 5346 | EL57: 4631 | EM57: 6198 | EN57: 5177 | EO57: 5709 | EP57: 6523 | EQ57: 7174 | ER57: 7720 | ES57: 8724 | ET57: 7645 | EU57: 8193 | EV57: 8630 | EW57: 9245 | EX57: 9446 | EY57: 8192 | EZ57: 8492 | FA57: 8757 | FB57: 9424 | FC57: 10636 | FD57: 10501 | FE57: 9234 | FF57: 9213 | FG57: 9248 | FH57: 9273 | FI57: 9244 | FJ57: 9179 | FK57: 9116 | FL57: 9436 | FM57: 10372 | FN57: 9626 | FO57: 9377 | FP57: 8918 | FQ57: 9471 | FR57: 9745 | FS57: 10439 | FT57: 10805 | FU57: 11176 | FV57: 11334 | FW57: 11712 | FX57: 12312 | FY57: 12519 | FZ57: 12284 | GA57: 13224 | GB57: 13421 | GC57: 13669 | GD57: 14019 | GE57: 14135 | GF57: 14025 | GG57: 13805 | GH57: 13925 | GI57: 13829 | GJ57: 13670 | GK57: 12113 | GL57: 10637 | GM57: 9001 | GN57: 9018 | GO57: 9195 | GP57: 9871 | GQ57: 10106 | GR57: 10086 | GS57: 10674 | GT57: 11268 | GU57: 11588 | GV57: 11715 | GW57: 12123 | GX57: 12791 | GY57: 14200 | GZ57: 15901 | HA57: 17055 | HB57: 17765 | HC57: 18035 | HD57: 18477 | HE57: 19005 | HF57: 19586 | HG57: 20122 | HH57: 20704 | HI57: 21291
A58: Cyprus | B58: 853 | C58: 854 | D58: 854 | E58: 854 | F58: 854 | G58: 854 | H58: 854 | I58: 854 | J58: 854 | K58: 855 | L58: 855 | M58: 855 | N58: 855 | O58: 855 | P58: 855 | Q58: 855 | R58: 855 | S58: 856 | T58: 856 | U58: 856 | V58: 856 | W58: 866 | X58: 876 | Y58: 887 | Z58: 897 | AA58: 908 | AB58: 919 | AC58: 930 | AD58: 941 | AE58: 952 | AF58: 963 | AG58: 975 | AH58: 986 | AI58: 998 | AJ58: 1010 | AK58: 1022 | AL58: 1034 | AM58: 1046 | AN58: 1059 | AO58: 1071 | AP58: 1084 | AQ58: 1097 | AR58: 1110 | AS58: 1123 | AT58: 1137 | AU58: 1150 | AV58: 1164 | AW58: 1178 | AX58: 1192 | AY58: 1206 | AZ58: 1220 | BA58: 1235 | BB58: 1249 | BC58: 1264 | BD58: 1279 | BE58: 1295 | BF58: 1310 | BG58: 1325 | BH58: 1341 | BI58: 1357 | BJ58: 1373 | BK58: 1390 | BL58: 1406 | BM58: 1423 | BN58: 1440 | BO58: 1457 | BP58: 1474 | BQ58: 1492 | BR58: 1510 | BS58: 1527 | BT58: 1546 | BU58: 1564 | BV58: 1583 | BW58: 1601 | BX58: 1620 | BY58: 1640 | BZ58: 1659 | CA58: 1679 | CB58: 1699 | CC58: 1719 | CD58: 1740 | CE58: 1760 | CF58: 1781 | CG58: 1802 | CH58: 1824 | CI58: 1845 | CJ58: 1867 | CK58: 1890 | CL58: 1912 | CM58: 1935 | CN58: 1958 | CO58: 1981 | CP58: 2005 | CQ58: 2028 | CR58: 2053 | CS58: 2077 | CT58: 2102 | CU58: 2127 | CV58: 2152 | CW58: 2177 | CX58: 2203 | CY58: 2230 | CZ58: 2256 | DA58: 2283 | DB58: 2310 | DC58: 2337 | DD58: 2365 | DE58: 2393 | DF58: 2422 | DG58: 2451 | DH58: 2480 | DI58: 2509 | DJ58: 2539 | DK58: 2569 | DL58: 2593 | DM58: 2616 | DN58: 2640 | DO58: 2664 | DP58: 2688 | DQ58: 2712 | DR58: 2737 | DS58: 2766 | DT58: 2795 | DU58: 2825 | DV58: 2855 | DW58: 2885 | DX58: 2915 | DY58: 2946 | DZ58: 2977 | EA58: 3009 | EB58: 3040 | EC58: 3072 | ED58: 3105 | EE58: 3138 | EF58: 3171 | EG58: 3204 | EH58: 3238 | EI58: 3272 | EJ58: 3306 | EK58: 3341 | EL58: 3376 | EM58: 3411 | EN58: 3447 | EO58: 3483 | EP58: 3519 | EQ58: 3556 | ER58: 3593 | ES58: 3631 | ET58: 3668 | EU58: 3707 | EV58: 3745 | EW58: 3899 | EX58: 4058 | EY58: 4224 | EZ58: 4397 | FA58: 4577 | FB58: 4764 | FC58: 4959 | FD58: 5161 | FE58: 5372 | FF58: 5592 | FG58: 5820 | FH58: 6058 | FI58: 6306 | FJ58: 6563 | FK58: 6831 | FL58: 7110 | FM58: 7400 | FN58: 7702 | FO58: 8017 | FP58: 8344 | FQ58: 9415 | FR58: 10088 | FS58: 10394 | FT58: 10200 | FU58: 8574 | FV58: 10217 | FW58: 11852 | FX58: 12722 | FY58: 13897 | FZ58: 14582 | GA58: 14858 | GB58: 15638 | GC58: 16279 | GD58: 17500 | GE58: 18130 | GF58: 18626 | GG58: 19748 | GH58: 21185 | GI58: 22598 | GJ58: 23802 | GK58: 23366 | GL58: 24891 | GM58: 24467 | GN58: 25380 | GO58: 26445 | GP58: 26450 | GQ58: 26704 | GR58: 27721 | GS58: 28698 | GT58: 30005 | GU58: 30745 | GV58: 31373 | GW58: 31858 | GX58: 32812 | GY58: 33592 | GZ58: 34528 | HA58: 35455 | HB58: 35828 | HC58: 34166 | HD58: 33747 | HE58: 32983 | HF58: 31710 | HG58: 30081 | HH58: 29673 | HI58: 29797
A59: Czech Republic | B59: 1915 | C59: 1916 | D59: 1916 | E59: 1916 | F59: 1917 | G59: 1917 | H59: 1917 | I59: 1917 | J59: 1918 | K59: 1918 | L59: 1918 | M59: 1919 | N59: 1919 | O59: 1919 | P59: 1919 | Q59: 1920 | R59: 1920 | S59: 1920 | T59: 1921 | U59: 1921 | V59: 1921 | W59: 1937 | X59: 1953 | Y59: 1969 | Z59: 1985 | AA59: 2001 | AB59: 2017 | AC59: 2034 | AD59: 2050 | AE59: 2067 | AF59: 2084 | AG59: 2101 | AH59: 2118 | AI59: 2136 | AJ59: 2153 | AK59: 2171 | AL59: 2188 | AM59: 2206 | AN59: 2224 | AO59: 2242 | AP59: 2261 | AQ59: 2279 | AR59: 2298 | AS59: 2317 | AT59: 2336 | AU59: 2355 | AV59: 2374 | AW59: 2393 | AX59: 2413 | AY59: 2433 | AZ59: 2452 | BA59: 2462 | BB59: 2472 | BC59: 2482 | BD59: 2491 | BE59: 2501 | BF59: 2511 | BG59: 2521 | BH59: 2531 | BI59: 2541 | BJ59: 2551 | BK59: 2561 | BL59: 2571 | BM59: 2581 | BN59: 2591 | BO59: 2602 | BP59: 2612 | BQ59: 2622 | BR59: 2633 | BS59: 2643 | BT59: 2653 | BU59: 2688 | BV59: 2723 | BW59: 2759 | BX59: 2795 | BY59: 2831 | BZ59: 2869 | CA59: 2906 | CB59: 2944 | CC59: 2983 | CD59: 3022 | CE59: 3061 | CF59: 3101 | CG59: 3142 | CH59: 3183 | CI59: 3224 | CJ59: 3267 | CK59: 3309 | CL59: 3353 | CM59: 3397 | CN59: 3441 | CO59: 3490 | CP59: 3539 | CQ59: 3589 | CR59: 3640 | CS59: 3691 | CT59: 3743 | CU59: 3796 | CV59: 3850 | CW59: 3904 | CX59: 3959 | CY59: 4016 | CZ59: 4073 | DA59: 4132 | DB59: 4191 | DC59: 4251 | DD59: 4312 | DE59: 4374 | DF59: 4437 | DG59: 4501 | DH59: 4566 | DI59: 4645 | DJ59: 4725 | DK59: 4807 | DL59: 4753 | DM59: 4699 | DN59: 4646 | DO59: 4594 | DP59: 4542 | DQ59: 4490 | DR59: 4440 | DS59: 4789 | DT59: 4610 | DU59: 4944 | DV59: 5411 | DW59: 5995 | DX59: 5927 | DY59: 6334 | DZ59: 6856 | EA59: 7008 | EB59: 6742 | EC59: 6474 | ED59: 6179 | EE59: 5885 | EF59: 5636 | EG59: 5561 | EH59: 5999 | EI59: 6654 | EJ59: 6698 | EK59: 6742 | EL59: 6786 | EM59: 6831 | EN59: 6876 | EO59: 6921 | EP59: 6967 | EQ59: 7013 | ER59: 7059 | ES59: 7105 | ET59: 7152 | EU59: 7550 | EV59: 8110 | EW59: 8166 | EX59: 8339 | EY59: 8217 | EZ59: 8468 | FA59: 9096 | FB59: 9535 | FC59: 10023 | FD59: 10699 | FE59: 11095 | FF59: 11860 | FG59: 12223 | FH59: 12318 | FI59: 12009 | FJ59: 12482 | FK59: 12857 | FL59: 13342 | FM59: 13864 | FN59: 14467 | FO59: 14774 | FP59: 15038 | FQ59: 15487 | FR59: 15954 | FS59: 16382 | FT59: 16853 | FU59: 17220 | FV59: 17366 | FW59: 18025 | FX59: 18127 | FY59: 18171 | FZ59: 18586 | GA59: 18426 | GB59: 18738 | GC59: 18977 | GD59: 19380 | GE59: 19492 | GF59: 19820 | GG59: 19884 | GH59: 20293 | GI59: 20432 | GJ59: 19839 | GK59: 17577 | GL59: 17470 | GM59: 17462 | GN59: 17964 | GO59: 19093 | GP59: 19934 | GQ59: 19821 | GR59: 19777 | GS59: 20082 | GT59: 21003 | GU59: 21726 | GV59: 22126 | GW59: 22930 | GX59: 24057 | GY59: 25571 | GZ59: 27256 | HA59: 28595 | HB59: 29128 | HC59: 27560 | HD59: 28111 | HE59: 28603 | HF59: 28333 | HG59: 28124 | HH59: 28695 | HI59: 29437
A60: Czechoslovakia | B60: 1 | C60: 1 | D60: 1 | E60: 1 | F60: 1 | G60: 1 | H60: 1 | I60: 1 | J60: 1 | K60: 1 | L60: 1 | M60: 1 | N60: 1 | O60: 1 | P60: 1 | Q60: 1 | R60: 1 | S60: 1 | T60: 1 | U60: 1 | V60: 1 | W60: 1 | X60: 1 | Y60: 1 | Z60: 1 | AA60: 1 | AB60: 1 | AC60: 1 | AD60: 1 | AE60: 1 | AF60: 1 | AG60: 1 | AH60: 1 | AI60: 1 | AJ60: 1 | AK60: 1 | AL60: 1 | AM60: 1 | AN60: 1 | AO60: 1 | AP60: 1 | AQ60: 1 | AR60: 1 | AS60: 1 | AT60: 1 | AU60: 1 | AV60: 1 | AW60: 1 | AX60: 1 | AY60: 1 | AZ60: 1 | BA60: 1 | BB60: 1 | BC60: 1 | BD60: 1 | BE60: 1 | BF60: 1 | BG60: 1 | BH60: 1 | BI60: 1 | BJ60: 1 | BK60: 1 | BL60: 1 | BM60: 1 | BN60: 1 | BO60: 1 | BP60: 1 | BQ60: 1 | BR60: 1 | BS60: 1 | BT60: 1 | BU60: 1 | BV60: 1 | BW60: 1 | BX60: 1 | BY60: 1 | BZ60: 1 | CA60: 1 | CB60: 1 | CC60: 1 | CD60: 1 | CE60: 1 | CF60: 1 | CG60: 1 | CH60: 1 | CI60: 1 | CJ60: 1 | CK60: 1 | CL60: 1 | CM60: 1 | CN60: 1 | CO60: 1 | CP60: 1 | CQ60: 1 | CR60: 1 | CS60: 1 | CT60: 1 | CU60: 1 | CV60: 1 | CW60: 1 | CX60: 1 | CY60: 1 | CZ60: 1 | DA60: 1 | DB60: 1 | DC60: 1 | DD60: 1 | DE60: 1 | DF60: 1 | DG60: 1 | DH60: 1 | DI60: 1 | DJ60: 1 | DK60: 1 | DL60: 1 | DM60: 1 | DN60: 1 | DO60: 1 | DP60: 1 | DQ60: 1 | DR60: 1 | DS60: 1 | DT60: 1 | DU60: 1 | DV60: 1 | DW60: 1 | DX60: 1 | DY60: 1 | DZ60: 1 | EA60: 1 | EB60: 1 | EC60: 1 | ED60: 1 | EE60: 1 | EF60: 1 | EG60: 1 | EH60: 1 | EI60: 1 | EJ60: 1 | EK60: 1 | EL60: 1 | EM60: 1 | EN60: 1 | EO60: 1 | EP60: 1 | EQ60: 1 | ER60: 1 | ES60: 1 | ET60: 1 | EU60: 1 | EV60: 1 | EW60: 1 | EX60: 1 | EY60: 1 | EZ60: 1 | FA60: 1 | FB60: 1 | FC60: 1 | FD60: 1 | FE60: 1 | FF60: 1 | FG60: 1 | FH60: 1 | FI60: 1 | FJ60: 1 | FK60: 1 | FL60: 1 | FM60: 1 | FN60: 1 | FO60: 1 | FP60: 1 | FQ60: 1 | FR60: 1 | FS60: 1 | FT60: 1 | FU60: 1 | FV60: 1 | FW60: 1 | FX60: 1 | FY60: 1 | FZ60: 1 | GA60: 1 | GB60: 1 | GC60: 1 | GD60: 1 | GE60: 1 | GF60: 1 | GG60: 1 | GH60: 1 | GI60: 1 | GJ60: 1 | GK60: 1 | GL60: 1 | GM60: 1 | GN60: 1 | GO60: 1 | GP60: 1 | GQ60: 1 | GR60: 1 | GS60: 1 | GT60: 1 | GU60: 1 | GV60: 1 | GW60: 1 | GX60: 1 | GY60: 1 | GZ60: 1 | HA60: 1 | HB60: 1 | HC60: 1 | HD60: 1 | HE60: 1 | HF60: 1 | HG60: 1 | HH60: 1 | HI60: 1
A61: Denmark | B61: 2013 | C61: 2017 | D61: 2020 | E61: 2024 | F61: 2028 | G61: 2032 | H61: 2035 | I61: 2039 | J61: 2043 | K61: 2047 | L61: 2050 | M61: 2054 | N61: 2058 | O61: 2062 | P61: 2066 | Q61: 2070 | R61: 2073 | S61: 2077 | T61: 2081 | U61: 2085 | V61: 2089 | W61: 2169 | X61: 2182 | Y61: 2154 | Z61: 2191 | AA61: 2184 | AB61: 2191 | AC61: 2235 | AD61: 2251 | AE61: 2200 | AF61: 2214 | AG61: 2198 | AH61: 2261 | AI61: 2234 | AJ61: 2339 | AK61: 2308 | AL61: 2296 | AM61: 2340 | AN61: 2341 | AO61: 2353 | AP61: 2412 | AQ61: 2391 | AR61: 2384 | AS61: 2503 | AT61: 2594 | AU61: 2639 | AV61: 2673 | AW61: 2641 | AX61: 2755 | AY61: 2895 | AZ61: 3029 | BA61: 2853 | BB61: 2927 | BC61: 2913 | BD61: 2899 | BE61: 3182 | BF61: 2967 | BG61: 2982 | BH61: 2927 | BI61: 3089 | BJ61: 3029 | BK61: 3044 | BL61: 3103 | BM61: 3266 | BN61: 3207 | BO61: 3286 | BP61: 3263 | BQ61: 3234 | BR61: 3262 | BS61: 3420 | BT61: 3536 | BU61: 3524 | BV61: 3695 | BW61: 3647 | BX61: 3723 | BY61: 3755 | BZ61: 3794 | CA61: 3650 | CB61: 3755 | CC61: 3844 | CD61: 3908 | CE61: 3917 | CF61: 4026 | CG61: 4137 | CH61: 4118 | CI61: 4104 | CJ61: 4222 | CK61: 4334 | CL61: 4330 | CM61: 4356 | CN61: 4587 | CO61: 4652 | CP61: 4737 | CQ61: 4800 | CR61: 4860 | CS61: 5074 | CT61: 5201 | CU61: 5259 | CV61: 5279 | CW61: 5439 | CX61: 5566 | CY61: 5736 | CZ61: 5812 | DA61: 6098 | DB61: 6172 | DC61: 6219 | DD61: 6332 | DE61: 6499 | DF61: 6631 | DG61: 6810 | DH61: 6937 | DI61: 7210 | DJ61: 7116 | DK61: 7292 | DL61: 7649 | DM61: 7020 | DN61: 7219 | DO61: 6699 | DP61: 6396 | DQ61: 7126 | DR61: 7359 | DS61: 7031 | DT61: 7633 | DU61: 8327 | DV61: 8247 | DW61: 7951 | DX61: 8326 | DY61: 8412 | DZ61: 8620 | EA61: 9118 | EB61: 9571 | EC61: 9581 | ED61: 9219 | EE61: 9414 | EF61: 9591 | EG61: 9708 | EH61: 9856 | EI61: 10001 | EJ61: 10148 | EK61: 10534 | EL61: 8977 | EM61: 8012 | EN61: 8095 | EO61: 8871 | EP61: 9666 | EQ61: 8822 | ER61: 10047 | ES61: 10484 | ET61: 10643 | EU61: 11258 | EV61: 12025 | EW61: 12004 | EX61: 12027 | EY61: 12601 | EZ61: 12732 | FA61: 12767 | FB61: 12837 | FC61: 13741 | FD61: 13963 | FE61: 14896 | FF61: 15198 | FG61: 16061 | FH61: 16815 | FI61: 16793 | FJ61: 18228 | FK61: 18917 | FL61: 19284 | FM61: 19775 | FN61: 20482 | FO61: 21701 | FP61: 21990 | FQ61: 22464 | FR61: 23562 | FS61: 24318 | FT61: 24027 | FU61: 23846 | FV61: 25376 | FW61: 25758 | FX61: 26108 | FY61: 27020 | FZ61: 26921 | GA61: 26741 | GB61: 27622 | GC61: 28392 | GD61: 29711 | GE61: 31032 | GF61: 32181 | GG61: 32297 | GH61: 32720 | GI61: 32849 | GJ61: 33256 | GK61: 33601 | GL61: 34152 | GM61: 34008 | GN61: 35766 | GO61: 36670 | GP61: 37521 | GQ61: 38584 | GR61: 39297 | GS61: 40321 | GT61: 41693 | GU61: 41886 | GV61: 41947 | GW61: 41996 | GX61: 42993 | GY61: 43919 | GZ61: 45437 | HA61: 45609 | HB61: 45017 | HC61: 42498 | HD61: 42997 | HE61: 43314 | HF61: 42869 | HG61: 42483 | HH61: 42777 | HI61: 43495
A62: Djibouti | B62: 752 | C62: 754 | D62: 757 | E62: 759 | F62: 762 | G62: 764 | H62: 766 | I62: 769 | J62: 771 | K62: 774 | L62: 776 | M62: 779 | N62: 781 | O62: 784 | P62: 786 | Q62: 789 | R62: 791 | S62: 794 | T62: 796 | U62: 799 | V62: 801 | W62: 804 | X62: 806 | Y62: 809 | Z62: 811 | AA62: 814 | AB62: 816 | AC62: 819 | AD62: 822 | AE62: 824 | AF62: 827 | AG62: 830 | AH62: 832 | AI62: 835 | AJ62: 837 | AK62: 840 | AL62: 843 | AM62: 845 | AN62: 848 | AO62: 851 | AP62: 853 | AQ62: 856 | AR62: 859 | AS62: 862 | AT62: 864 | AU62: 867 | AV62: 870 | AW62: 873 | AX62: 875 | AY62: 878 | AZ62: 881 | BA62: 884 | BB62: 886 | BC62: 889 | BD62: 892 | BE62: 895 | BF62: 898 | BG62: 901 | BH62: 903 | BI62: 906 | BJ62: 909 | BK62: 912 | BL62: 915 | BM62: 918 | BN62: 921 | BO62: 924 | BP62: 927 | BQ62: 930 | BR62: 932 | BS62: 935 | BT62: 938 | BU62: 941 | BV62: 944 | BW62: 947 | BX62: 950 | BY62: 953 | BZ62: 956 | CA62: 959 | CB62: 962 | CC62: 965 | CD62: 969 | CE62: 972 | CF62: 975 | CG62: 978 | CH62: 981 | CI62: 984 | CJ62: 987 | CK62: 990 | CL62: 993 | CM62: 997 | CN62: 1000 | CO62: 1003 | CP62: 1006 | CQ62: 1009 | CR62: 1012 | CS62: 1016 | CT62: 1019 | CU62: 1022 | CV62: 1025 | CW62: 1029 | CX62: 1032 | CY62: 1035 | CZ62: 1038 | DA62: 1042 | DB62: 1045 | DC62: 1048 | DD62: 1052 | DE62: 1055 | DF62: 1058 | DG62: 1062 | DH62: 1065 | DI62: 1068 | DJ62: 1072 | DK62: 1075 | DL62: 1107 | DM62: 1139 | DN62: 1173 | DO62: 1207 | DP62: 1243 | DQ62: 1280 | DR62: 1317 | DS62: 1356 | DT62: 1396 | DU62: 1438 | DV62: 1480 | DW62: 1524 | DX62: 1569 | DY62: 1615 | DZ62: 1663 | EA62: 1712 | EB62: 1762 | EC62: 1815 | ED62: 1868 | EE62: 1923 | EF62: 1980 | EG62: 2038 | EH62: 2099 | EI62: 2160 | EJ62: 2224 | EK62: 2290 | EL62: 2357 | EM62: 2427 | EN62: 2498 | EO62: 2572 | EP62: 2648 | EQ62: 2726 | ER62: 2806 | ES62: 2889 | ET62: 2974 | EU62: 3061 | EV62: 3151 | EW62: 3248 | EX62: 3267 | EY62: 3311 | EZ62: 3411 | FA62: 3432 | FB62: 3473 | FC62: 3508 | FD62: 3502 | FE62: 3601 | FF62: 3727 | FG62: 3752 | FH62: 3701 | FI62: 3734 | FJ62: 3700 | FK62: 3693 | FL62: 3708 | FM62: 3701 | FN62: 3676 | FO62: 3668 | FP62: 4357 | FQ62: 4510 | FR62: 4529 | FS62: 4602 | FT62: 4381 | FU62: 4350 | FV62: 4538 | FW62: 3779 | FX62: 3632 | FY62: 3555 | FZ62: 3500 | GA62: 3526 | GB62: 3531 | GC62: 3461 | GD62: 3795 | GE62: 3704 | GF62: 3616 | GG62: 3532 | GH62: 3364 | GI62: 3165 | GJ62: 3050 | GK62: 2811 | GL62: 2736 | GM62: 2505 | GN62: 2440 | GO62: 2315 | GP62: 2181 | GQ62: 2127 | GR62: 2092 | GS62: 2103 | GT62: 2079 | GU62: 2090 | GV62: 2114 | GW62: 2150 | GX62: 2202 | GY62: 2240 | GZ62: 2315 | HA62: 2399 | HB62: 2502 | HC62: 2590 | HD62: 2665 | HE62: 2767 | HF62: 2807 | HG62: 2903 | HH62: 3016 | HI62: 3139
A63: Dominica | B63: 663 | C63: 663 | D63: 663 | E63: 663 | F63: 663 | G63: 664 | H63: 664 | I63: 664 | J63: 664 | K63: 664 | L63: 664 | M63: 664 | N63: 664 | O63: 664 | P63: 664 | Q63: 665 | R63: 665 | S63: 665 | T63: 665 | U63: 665 | V63: 665 | W63: 670 | X63: 674 | Y63: 679 | Z63: 683 | AA63: 688 | AB63: 692 | AC63: 697 | AD63: 702 | AE63: 707 | AF63: 711 | AG63: 716 | AH63: 721 | AI63: 726 | AJ63: 731 | AK63: 736 | AL63: 741 | AM63: 746 | AN63: 751 | AO63: 756 | AP63: 761 | AQ63: 766 | AR63: 771 | AS63: 776 | AT63: 782 | AU63: 787 | AV63: 792 | AW63: 798 | AX63: 803 | AY63: 808 | AZ63: 814 | BA63: 819 | BB63: 825 | BC63: 831 | BD63: 836 | BE63: 842 | BF63: 847 | BG63: 853 | BH63: 859 | BI63: 865 | BJ63: 871 | BK63: 877 | BL63: 882 | BM63: 888 | BN63: 894 | BO63: 900 | BP63: 907 | BQ63: 913 | BR63: 919 | BS63: 925 | BT63: 931 | BU63: 938 | BV63: 944 | BW63: 950 | BX63: 957 | BY63: 963 | BZ63: 970 | CA63: 976 | CB63: 983 | CC63: 989 | CD63: 996 | CE63: 1003 | CF63: 1010 | CG63: 1016 | CH63: 1023 | CI63: 1030 | CJ63: 1037 | CK63: 1044 | CL63: 1051 | CM63: 1058 | CN63: 1066 | CO63: 1073 | CP63: 1080 | CQ63: 1087 | CR63: 1095 | CS63: 1102 | CT63: 1109 | CU63: 1117 | CV63: 1125 | CW63: 1132 | CX63: 1140 | CY63: 1147 | CZ63: 1155 | DA63: 1163 | DB63: 1171 | DC63: 1179 | DD63: 1187 | DE63: 1195 | DF63: 1203 | DG63: 1211 | DH63: 1219 | DI63: 1227 | DJ63: 1236 | DK63: 1244 | DL63: 1263 | DM63: 1282 | DN63: 1301 | DO63: 1321 | DP63: 1340 | DQ63: 1361 | DR63: 1381 | DS63: 1402 | DT63: 1423 | DU63: 1444 | DV63: 1465 | DW63: 1487 | DX63: 1509 | DY63: 1532 | DZ63: 1555 | EA63: 1578 | EB63: 1601 | EC63: 1625 | ED63: 1649 | EE63: 1674 | EF63: 1699 | EG63: 1724 | EH63: 1750 | EI63: 1776 | EJ63: 1802 | EK63: 1829 | EL63: 1856 | EM63: 1884 | EN63: 1912 | EO63: 1940 | EP63: 1969 | EQ63: 1998 | ER63: 2028 | ES63: 2058 | ET63: 2088 | EU63: 2119 | EV63: 2151 | EW63: 2175 | EX63: 2199 | EY63: 2224 | EZ63: 2249 | FA63: 2274 | FB63: 2299 | FC63: 2325 | FD63: 2351 | FE63: 2378 | FF63: 2404 | FG63: 2431 | FH63: 2458 | FI63: 2486 | FJ63: 2513 | FK63: 2541 | FL63: 2570 | FM63: 2599 | FN63: 2628 | FO63: 2657 | FP63: 2686 | FQ63: 2857 | FR63: 3048 | FS63: 3280 | FT63: 3458 | FU63: 3520 | FV63: 3705 | FW63: 3737 | FX63: 4106 | FY63: 3299 | FZ63: 3739 | GA63: 4176 | GB63: 4355 | GC63: 4496 | GD63: 4778 | GE63: 4878 | GF63: 5266 | GG63: 5720 | GH63: 6271 | GI63: 6291 | GJ63: 6661 | GK63: 6709 | GL63: 6833 | GM63: 6926 | GN63: 7009 | GO63: 7148 | GP63: 7359 | GQ63: 7510 | GR63: 7936 | GS63: 8035 | GT63: 8091 | GU63: 8131 | GV63: 7972 | GW63: 8554 | GX63: 8799 | GY63: 8764 | GZ63: 9172 | HA63: 9713 | HB63: 10425 | HC63: 10289 | HD63: 10375 | HE63: 10333 | HF63: 10149 | HG63: 10011 | HH63: 10207 | HI63: 10503
A64: Dominican Republic | B64: 667 | C64: 667 | D64: 667 | E64: 667 | F64: 667 | G64: 667 | H64: 668 | I64: 668 | J64: 668 | K64: 668 | L64: 668 | M64: 668 | N64: 668 | O64: 668 | P64: 668 | Q64: 668 | R64: 669 | S64: 669 | T64: 669 | U64: 669 | V64: 669 | W64: 673 | X64: 676 | Y64: 680 | Z64: 684 | AA64: 687 | AB64: 691 | AC64: 695 | AD64: 699 | AE64: 702 | AF64: 706 | AG64: 710 | AH64: 714 | AI64: 718 | AJ64: 722 | AK64: 726 | AL64: 730 | AM64: 734 | AN64: 738 | AO64: 742 | AP64: 746 | AQ64: 750 | AR64: 754 | AS64: 758 | AT64: 762 | AU64: 766 | AV64: 770 | AW64: 774 | AX64: 779 | AY64: 783 | AZ64: 787 | BA64: 791 | BB64: 796 | BC64: 800 | BD64: 804 | BE64: 809 | BF64: 813 | BG64: 818 | BH64: 822 | BI64: 826 | BJ64: 831 | BK64: 835 | BL64: 840 | BM64: 845 | BN64: 849 | BO64: 854 | BP64: 858 | BQ64: 863 | BR64: 868 | BS64: 873 | BT64: 877 | BU64: 882 | BV64: 887 | BW64: 892 | BX64: 896 | BY64: 901 | BZ64: 906 | CA64: 911 | CB64: 916 | CC64: 921 | CD64: 926 | CE64: 931 | CF64: 936 | CG64: 941 | CH64: 946 | CI64: 952 | CJ64: 957 | CK64: 962 | CL64: 967 | CM64: 972 | CN64: 978 | CO64: 983 | CP64: 988 | CQ64: 994 | CR64: 999 | CS64: 1005 | CT64: 1010 | CU64: 1016 | CV64: 1021 | CW64: 1027 | CX64: 1032 | CY64: 1038 | CZ64: 1043 | DA64: 1049 | DB64: 1055 | DC64: 1060 | DD64: 1066 | DE64: 1072 | DF64: 1078 | DG64: 1084 | DH64: 1090 | DI64: 1096 | DJ64: 1101 | DK64: 1107 | DL64: 1125 | DM64: 1142 | DN64: 1160 | DO64: 1178 | DP64: 1196 | DQ64: 1215 | DR64: 1234 | DS64: 1255 | DT64: 1277 | DU64: 1299 | DV64: 1321 | DW64: 1344 | DX64: 1367 | DY64: 1391 | DZ64: 1415 | EA64: 1439 | EB64: 1464 | EC64: 1489 | ED64: 1515 | EE64: 1541 | EF64: 1568 | EG64: 1595 | EH64: 1622 | EI64: 1650 | EJ64: 1678 | EK64: 1707 | EL64: 1737 | EM64: 1766 | EN64: 1797 | EO64: 1828 | EP64: 1859 | EQ64: 1891 | ER64: 1923 | ES64: 1956 | ET64: 1990 | EU64: 2024 | EV64: 2058 | EW64: 2242 | EX64: 2358 | EY64: 2262 | EZ64: 2321 | FA64: 2390 | FB64: 2550 | FC64: 2627 | FD64: 2681 | FE64: 2612 | FF64: 2655 | FG64: 2514 | FH64: 2851 | FI64: 2943 | FJ64: 3044 | FK64: 2586 | FL64: 2848 | FM64: 2859 | FN64: 2784 | FO64: 3004 | FP64: 3234 | FQ64: 3484 | FR64: 3816 | FS64: 4172 | FT64: 4306 | FU64: 4407 | FV64: 4595 | FW64: 4710 | FX64: 4712 | FY64: 4807 | FZ64: 4988 | GA64: 5081 | GB64: 5062 | GC64: 5176 | GD64: 5085 | GE64: 4857 | GF64: 4903 | GG64: 5169 | GH64: 5104 | GI64: 5645 | GJ64: 5278 | GK64: 5222 | GL64: 5657 | GM64: 5949 | GN64: 5973 | GO64: 6188 | GP64: 6514 | GQ64: 6918 | GR64: 7283 | GS64: 7649 | GT64: 7955 | GU64: 7974 | GV64: 8307 | GW64: 8162 | GX64: 8147 | GY64: 8772 | GZ64: 9568 | HA64: 10233 | HB64: 10408 | HC64: 10363 | HD64: 11075 | HE64: 11241 | HF64: 11391 | HG64: 11790 | HH64: 12505 | HI64: 12837
A65: East Germany | B65: 1 | C65: 1 | D65: 1 | E65: 1 | F65: 1 | G65: 1 | H65: 1 | I65: 1 | J65: 1 | K65: 1 | L65: 1 | M65: 1 | N65: 1 | O65: 1 | P65: 1 | Q65: 1 | R65: 1 | S65: 1 | T65: 1 | U65: 1 | V65: 1 | W65: 1 | X65: 1 | Y65: 1 | Z65: 1 | AA65: 1 | AB65: 1 | AC65: 1 | AD65: 1 | AE65: 1 | AF65: 1 | AG65: 1 | AH65: 1 | AI65: 1 | AJ65: 1 | AK65: 1 | AL65: 1 | AM65: 1 | AN65: 1 | AO65: 1 | AP65: 1 | AQ65: 1 | AR65: 1 | AS65: 1 | AT65: 1 | AU65: 1 | AV65: 1 | AW65: 1 | AX65: 1 | AY65: 1 | AZ65: 1 | BA65: 1 | BB65: 1 | BC65: 1 | BD65: 1 | BE65: 1 | BF65: 1 | BG65: 1 | BH65: 1 | BI65: 1 | BJ65: 1 | BK65: 1 | BL65: 1 | BM65: 1 | BN65: 1 | BO65: 1 | BP65: 1 | BQ65: 1 | BR65: 1 | BS65: 1 | BT65: 1 | BU65: 1 | BV65: 1 | BW65: 1 | BX65: 1 | BY65: 1 | BZ65: 1 | CA65: 1 | CB65: 1 | CC65: 1 | CD65: 1 | CE65: 1 | CF65: 1 | CG65: 1 | CH65: 1 | CI65: 1 | CJ65: 1 | CK65: 1 | CL65: 1 | CM65: 1 | CN65: 1 | CO65: 1 | CP65: 1 | CQ65: 1 | CR65: 1 | CS65: 1 | CT65: 1 | CU65: 1 | CV65: 1 | CW65: 1 | CX65: 1 | CY65: 1 | CZ65: 1 | DA65: 1 | DB65: 1 | DC65: 1 | DD65: 1 | DE65: 1 | DF65: 1 | DG65: 1 | DH65: 1 | DI65: 1 | DJ65: 1 | DK65: 1 | DL65: 1 | DM65: 1 | DN65: 1 | DO65: 1 | DP65: 1 | DQ65: 1 | DR65: 1 | DS65: 1 | DT65: 1 | DU65: 1 | DV65: 1 | DW65: 1 | DX65: 1 | DY65: 1 | DZ65: 1 | EA65: 1 | EB65: 1 | EC65: 1 | ED65: 1 | EE65: 1 | EF65: 1 | EG65: 1 | EH65: 1 | EI65: 1 | EJ65: 1 | EK65: 1 | EL65: 1 | EM65: 1 | EN65: 1 | EO65: 1 | EP65: 1 | EQ65: 1 | ER65: 1 | ES65: 1 | ET65: 1 | EU65: 1 | EV65: 1 | EW65: 1 | EX65: 1 | EY65: 1 | EZ65: 1 | FA65: 1 | FB65: 1 | FC65: 1 | FD65: 1 | FE65: 1 | FF65: 1 | FG65: 1 | FH65: 1 | FI65: 1 | FJ65: 1 | FK65: 1 | FL65: 1 | FM65: 1 | FN65: 1 | FO65: 1 | FP65: 1 | FQ65: 1 | FR65: 1 | FS65: 1 | FT65: 1 | FU65: 1 | FV65: 1 | FW65: 1 | FX65: 1 | FY65: 1 | FZ65: 1 | GA65: 1 | GB65: 1 | GC65: 1 | GD65: 1 | GE65: 1 | GF65: 1 | GG65: 1 | GH65: 1 | GI65: 1 | GJ65: 1 | GK65: 1 | GL65: 1 | GM65: 1 | GN65: 1 | GO65: 1 | GP65: 1 | GQ65: 1 | GR65: 1 | GS65: 1 | GT65: 1 | GU65: 1 | GV65: 1 | GW65: 1 | GX65: 1 | GY65: 1 | GZ65: 1 | HA65: 1 | HB65: 1 | HC65: 1 | HD65: 1 | HE65: 1 | HF65: 1 | HG65: 1 | HH65: 1 | HI65: 1
A66: Ecuador | B66: 529 | C66: 529 | D66: 529 | E66: 529 | F66: 530 | G66: 530 | H66: 530 | I66: 530 | J66: 530 | K66: 530 | L66: 530 | M66: 530 | N66: 530 | O66: 530 | P66: 530 | Q66: 530 | R66: 530 | S66: 531 | T66: 531 | U66: 531 | V66: 531 | W66: 534 | X66: 538 | Y66: 541 | Z66: 545 | AA66: 548 | AB66: 552 | AC66: 555 | AD66: 559 | AE66: 562 | AF66: 566 | AG66: 569 | AH66: 573 | AI66: 577 | AJ66: 580 | AK66: 584 | AL66: 588 | AM66: 592 | AN66: 595 | AO66: 599 | AP66: 603 | AQ66: 607 | AR66: 611 | AS66: 615 | AT66: 619 | AU66: 623 | AV66: 627 | AW66: 631 | AX66: 635 | AY66: 639 | AZ66: 643 | BA66: 647 | BB66: 651 | BC66: 655 | BD66: 660 | BE66: 664 | BF66: 668 | BG66: 672 | BH66: 677 | BI66: 681 | BJ66: 685 | BK66: 690 | BL66: 694 | BM66: 699 | BN66: 703 | BO66: 708 | BP66: 712 | BQ66: 717 | BR66: 721 | BS66: 726 | BT66: 731 | BU66: 735 | BV66: 740 | BW66: 745 | BX66: 749 | BY66: 754 | BZ66: 759 | CA66: 764 | CB66: 769 | CC66: 774 | CD66: 779 | CE66: 784 | CF66: 789 | CG66: 794 | CH66: 799 | CI66: 804 | CJ66: 809 | CK66: 814 | CL66: 820 | CM66: 825 | CN66: 830 | CO66: 835 | CP66: 841 | CQ66: 846 | CR66: 852 | CS66: 857 | CT66: 863 | CU66: 868 | CV66: 874 | CW66: 879 | CX66: 885 | CY66: 891 | CZ66: 896 | DA66: 902 | DB66: 908 | DC66: 914 | DD66: 919 | DE66: 925 | DF66: 931 | DG66: 937 | DH66: 943 | DI66: 973 | DJ66: 1004 | DK66: 1035 | DL66: 1066 | DM66: 1097 | DN66: 1129 | DO66: 1161 | DP66: 1194 | DQ66: 1227 | DR66: 1260 | DS66: 1307 | DT66: 1354 | DU66: 1401 | DV66: 1448 | DW66: 1495 | DX66: 1541 | DY66: 1587 | DZ66: 1633 | EA66: 1678 | EB66: 1723 | EC66: 1768 | ED66: 1813 | EE66: 1857 | EF66: 1901 | EG66: 1945 | EH66: 1988 | EI66: 2032 | EJ66: 2074 | EK66: 2117 | EL66: 2237 | EM66: 2210 | EN66: 2300 | EO66: 2557 | EP66: 2551 | EQ66: 2525 | ER66: 2783 | ES66: 3034 | ET66: 3388 | EU66: 3383 | EV66: 3416 | EW66: 3393 | EX66: 3742 | EY66: 3750 | EZ66: 3975 | FA66: 3997 | FB66: 4058 | FC66: 4151 | FD66: 4178 | FE66: 4302 | FF66: 4473 | FG66: 4474 | FH66: 4594 | FI66: 4590 | FJ66: 4786 | FK66: 5108 | FL66: 5102 | FM66: 5226 | FN66: 5364 | FO66: 5501 | FP66: 5723 | FQ66: 5866 | FR66: 6035 | FS66: 6580 | FT66: 6752 | FU66: 6891 | FV66: 7330 | FW66: 7560 | FX66: 7844 | FY66: 8023 | FZ66: 8145 | GA66: 8231 | GB66: 8083 | GC66: 7689 | GD66: 7777 | GE66: 7880 | GF66: 7887 | GG66: 7189 | GH66: 7739 | GI66: 7540 | GJ66: 7542 | GK66: 7685 | GL66: 7672 | GM66: 7652 | GN66: 7805 | GO66: 7811 | GP66: 7781 | GQ66: 7951 | GR66: 8045 | GS66: 7511 | GT66: 7444 | GU66: 7593 | GV66: 7753 | GW66: 7814 | GX66: 8300 | GY66: 8582 | GZ66: 8802 | HA66: 8840 | HB66: 9244 | HC66: 9143 | HD66: 9311 | HE66: 9882 | HF66: 10233 | HG66: 10541 | HH66: 10774 | HI66: 10996
A67: Egypt | B67: 791 | C67: 791 | D67: 791 | E67: 791 | F67: 791 | G67: 791 | H67: 792 | I67: 792 | J67: 792 | K67: 792 | L67: 792 | M67: 792 | N67: 792 | O67: 792 | P67: 792 | Q67: 793 | R67: 793 | S67: 793 | T67: 793 | U67: 793 | V67: 793 | W67: 797 | X67: 801 | Y67: 804 | Z67: 808 | AA67: 812 | AB67: 815 | AC67: 819 | AD67: 823 | AE67: 827 | AF67: 831 | AG67: 834 | AH67: 838 | AI67: 842 | AJ67: 846 | AK67: 850 | AL67: 854 | AM67: 858 | AN67: 862 | AO67: 866 | AP67: 870 | AQ67: 874 | AR67: 878 | AS67: 882 | AT67: 886 | AU67: 890 | AV67: 894 | AW67: 898 | AX67: 903 | AY67: 907 | AZ67: 911 | BA67: 915 | BB67: 919 | BC67: 924 | BD67: 928 | BE67: 932 | BF67: 936 | BG67: 941 | BH67: 945 | BI67: 950 | BJ67: 954 | BK67: 958 | BL67: 963 | BM67: 967 | BN67: 972 | BO67: 976 | BP67: 981 | BQ67: 985 | BR67: 990 | BS67: 994 | BT67: 999 | BU67: 1004 | BV67: 1008 | BW67: 1000 | BX67: 992 | BY67: 984 | BZ67: 976 | CA67: 968 | CB67: 961 | CC67: 953 | CD67: 960 | CE67: 988 | CF67: 1016 | CG67: 1045 | CH67: 1075 | CI67: 1106 | CJ67: 1118 | CK67: 1130 | CL67: 1142 | CM67: 1154 | CN67: 1166 | CO67: 1178 | CP67: 1191 | CQ67: 1203 | CR67: 1216 | CS67: 1229 | CT67: 1241 | CU67: 1255 | CV67: 1268 | CW67: 1281 | CX67: 1295 | CY67: 1308 | CZ67: 1322 | DA67: 1336 | DB67: 1350 | DC67: 1364 | DD67: 1333 | DE67: 1340 | DF67: 1366 | DG67: 1349 | DH67: 1365 | DI67: 1393 | DJ67: 1395 | DK67: 1418 | DL67: 1363 | DM67: 1397 | DN67: 1392 | DO67: 1352 | DP67: 1328 | DQ67: 1372 | DR67: 1254 | DS67: 1273 | DT67: 1350 | DU67: 1431 | DV67: 1503 | DW67: 1523 | DX67: 1518 | DY67: 1538 | DZ67: 1562 | EA67: 1567 | EB67: 1513 | EC67: 1536 | ED67: 1580 | EE67: 1634 | EF67: 1638 | EG67: 1674 | EH67: 1693 | EI67: 1708 | EJ67: 1662 | EK67: 1625 | EL67: 1642 | EM67: 1642 | EN67: 1572 | EO67: 1587 | EP67: 1607 | EQ67: 1645 | ER67: 1663 | ES67: 1682 | ET67: 1700 | EU67: 1718 | EV67: 1736 | EW67: 1738 | EX67: 1818 | EY67: 1868 | EZ67: 1781 | FA67: 1741 | FB67: 1736 | FC67: 1780 | FD67: 1908 | FE67: 1947 | FF67: 2052 | FG67: 2105 | FH67: 2103 | FI67: 2128 | FJ67: 2443 | FK67: 2509 | FL67: 2447 | FM67: 2377 | FN67: 2460 | FO67: 2614 | FP67: 3055 | FQ67: 3090 | FR67: 3140 | FS67: 3095 | FT67: 3105 | FU67: 3193 | FV67: 3552 | FW67: 3745 | FX67: 3953 | FY67: 4262 | FZ67: 4580 | GA67: 4553 | GB67: 4757 | GC67: 5044 | GD67: 5303 | GE67: 5539 | GF67: 5658 | GG67: 5774 | GH67: 5886 | GI67: 5933 | GJ67: 6020 | GK67: 5974 | GL67: 6134 | GM67: 6212 | GN67: 6360 | GO67: 6553 | GP67: 6774 | GQ67: 7036 | GR67: 7207 | GS67: 7528 | GT67: 7807 | GU67: 7955 | GV67: 8013 | GW67: 8134 | GX67: 8328 | GY67: 8556 | GZ67: 8990 | HA67: 9467 | HB67: 9974 | HC67: 10267 | HD67: 10615 | HE67: 10629 | HF67: 10683 | HG67: 10731 | HH67: 10792 | HI67: 11031
A68: El Salvador | B68: 974 | C68: 975 | D68: 975 | E68: 975 | F68: 975 | G68: 975 | H68: 975 | I68: 975 | J68: 976 | K68: 976 | L68: 976 | M68: 976 | N68: 976 | O68: 976 | P68: 976 | Q68: 977 | R68: 977 | S68: 977 | T68: 977 | U68: 977 | V68: 977 | W68: 986 | X68: 994 | Y68: 1002 | Z68: 1011 | AA68: 1019 | AB68: 1028 | AC68: 1036 | AD68: 1045 | AE68: 1054 | AF68: 1063 | AG68: 1072 | AH68: 1081 | AI68: 1090 | AJ68: 1099 | AK68: 1108 | AL68: 1118 | AM68: 1127 | AN68: 1137 | AO68: 1146 | AP68: 1156 | AQ68: 1166 | AR68: 1175 | AS68: 1185 | AT68: 1195 | AU68: 1205 | AV68: 1216 | AW68: 1226 | AX68: 1236 | AY68: 1247 | AZ68: 1257 | BA68: 1268 | BB68: 1278 | BC68: 1289 | BD68: 1300 | BE68: 1311 | BF68: 1322 | BG68: 1333 | BH68: 1344 | BI68: 1356 | BJ68: 1367 | BK68: 1379 | BL68: 1390 | BM68: 1402 | BN68: 1414 | BO68: 1426 | BP68: 1438 | BQ68: 1450 | BR68: 1462 | BS68: 1474 | BT68: 1487 | BU68: 1499 | BV68: 1512 | BW68: 1525 | BX68: 1538 | BY68: 1551 | BZ68: 1564 | CA68: 1577 | CB68: 1590 | CC68: 1603 | CD68: 1617 | CE68: 1631 | CF68: 1644 | CG68: 1658 | CH68: 1672 | CI68: 1686 | CJ68: 1700 | CK68: 1715 | CL68: 1729 | CM68: 1744 | CN68: 1758 | CO68: 1773 | CP68: 1788 | CQ68: 1803 | CR68: 1818 | CS68: 1834 | CT68: 1849 | CU68: 1865 | CV68: 1881 | CW68: 1896 | CX68: 1912 | CY68: 1929 | CZ68: 1945 | DA68: 1961 | DB68: 1978 | DC68: 1994 | DD68: 2011 | DE68: 2028 | DF68: 2045 | DG68: 2062 | DH68: 2080 | DI68: 2097 | DJ68: 2115 | DK68: 2133 | DL68: 2151 | DM68: 2169 | DN68: 2187 | DO68: 2206 | DP68: 2224 | DQ68: 2243 | DR68: 2262 | DS68: 2226 | DT68: 2296 | DU68: 2350 | DV68: 2450 | DW68: 2225 | DX68: 2566 | DY68: 2218 | DZ68: 2522 | EA68: 2485 | EB68: 2490 | EC68: 2197 | ED68: 1954 | EE68: 2185 | EF68: 2222 | EG68: 2410 | EH68: 2321 | EI68: 2504 | EJ68: 2294 | EK68: 2426 | EL68: 2598 | EM68: 2506 | EN68: 2669 | EO68: 2871 | EP68: 2671 | EQ68: 2526 | ER68: 2532 | ES68: 3143 | ET68: 3930 | EU68: 3504 | EV68: 3414 | EW68: 3387 | EX68: 3540 | EY68: 3683 | EZ68: 3616 | FA68: 3688 | FB68: 3855 | FC68: 3933 | FD68: 3891 | FE68: 3935 | FF68: 3963 | FG68: 3966 | FH68: 4297 | FI68: 4333 | FJ68: 4585 | FK68: 4671 | FL68: 4819 | FM68: 4906 | FN68: 4882 | FO68: 4863 | FP68: 4810 | FQ68: 4878 | FR68: 5033 | FS68: 5119 | FT68: 5312 | FU68: 5448 | FV68: 5498 | FW68: 5659 | FX68: 5867 | FY68: 5618 | FZ68: 5064 | GA68: 4692 | GB68: 4463 | GC68: 4436 | GD68: 4459 | GE68: 4478 | GF68: 4434 | GG68: 4457 | GH68: 4449 | GI68: 4408 | GJ68: 4454 | GK68: 4545 | GL68: 4811 | GM68: 5086 | GN68: 5318 | GO68: 5589 | GP68: 5626 | GQ68: 5817 | GR68: 5994 | GS68: 6165 | GT68: 6266 | GU68: 6345 | GV68: 6469 | GW68: 6595 | GX68: 6693 | GY68: 6907 | GZ68: 7148 | HA68: 7391 | HB68: 7450 | HC68: 7180 | HD68: 7237 | HE68: 7352 | HF68: 7442 | HG68: 7515 | HH68: 7613 | HI68: 7776
A69: Equatorial Guinea | B69: 356 | C69: 356 | D69: 357 | E69: 357 | F69: 357 | G69: 358 | H69: 358 | I69: 359 | J69: 359 | K69: 360 | L69: 360 | M69: 361 | N69: 361 | O69: 362 | P69: 362 | Q69: 363 | R69: 363 | S69: 364 | T69: 364 | U69: 365 | V69: 365 | W69: 366 | X69: 366 | Y69: 367 | Z69: 367 | AA69: 368 | AB69: 368 | AC69: 369 | AD69: 369 | AE69: 370 | AF69: 370 | AG69: 370 | AH69: 371 | AI69: 371 | AJ69: 372 | AK69: 372 | AL69: 373 | AM69: 373 | AN69: 374 | AO69: 374 | AP69: 375 | AQ69: 375 | AR69: 376 | AS69: 376 | AT69: 377 | AU69: 377 | AV69: 378 | AW69: 378 | AX69: 379 | AY69: 379 | AZ69: 380 | BA69: 380 | BB69: 381 | BC69: 381 | BD69: 382 | BE69: 382 | BF69: 383 | BG69: 383 | BH69: 384 | BI69: 385 | BJ69: 385 | BK69: 386 | BL69: 386 | BM69: 387 | BN69: 387 | BO69: 388 | BP69: 388 | BQ69: 389 | BR69: 389 | BS69: 390 | BT69: 390 | BU69: 391 | BV69: 391 | BW69: 392 | BX69: 392 | BY69: 393 | BZ69: 393 | CA69: 394 | CB69: 394 | CC69: 395 | CD69: 395 | CE69: 396 | CF69: 396 | CG69: 397 | CH69: 397 | CI69: 398 | CJ69: 399 | CK69: 399 | CL69: 400 | CM69: 400 | CN69: 401 | CO69: 401 | CP69: 402 | CQ69: 402 | CR69: 403 | CS69: 403 | CT69: 404 | CU69: 404 | CV69: 405 | CW69: 405 | CX69: 406 | CY69: 407 | CZ69: 409 | DA69: 410 | DB69: 412 | DC69: 413 | DD69: 415 | DE69: 416 | DF69: 418 | DG69: 419 | DH69: 420 | DI69: 422 | DJ69: 423 | DK69: 425 | DL69: 426 | DM69: 428 | DN69: 429 | DO69: 431 | DP69: 432 | DQ69: 434 | DR69: 435 | DS69: 437 | DT69: 439 | DU69: 441 | DV69: 442 | DW69: 444 | DX69: 446 | DY69: 447 | DZ69: 449 | EA69: 451 | EB69: 453 | EC69: 454 | ED69: 456 | EE69: 458 | EF69: 460 | EG69: 461 | EH69: 463 | EI69: 465 | EJ69: 467 | EK69: 468 | EL69: 470 | EM69: 472 | EN69: 474 | EO69: 476 | EP69: 477 | EQ69: 479 | ER69: 481 | ES69: 483 | ET69: 485 | EU69: 486 | EV69: 488 | EW69: 507 | EX69: 517 | EY69: 531 | EZ69: 553 | FA69: 562 | FB69: 577 | FC69: 588 | FD69: 598 | FE69: 624 | FF69: 678 | FG69: 732 | FH69: 806 | FI69: 915 | FJ69: 1041 | FK69: 1169 | FL69: 1203 | FM69: 1268 | FN69: 1296 | FO69: 1242 | FP69: 1193 | FQ69: 1081 | FR69: 933 | FS69: 971 | FT69: 1029 | FU69: 1181 | FV69: 1325 | FW69: 1331 | FX69: 1436 | FY69: 1407 | FZ69: 1349 | GA69: 1301 | GB69: 1290 | GC69: 1248 | GD69: 1169 | GE69: 1240 | GF69: 1154 | GG69: 1161 | GH69: 1155 | GI69: 1108 | GJ69: 1050 | GK69: 1005 | GL69: 1310 | GM69: 1406 | GN69: 1586 | GO69: 1803 | GP69: 2907 | GQ69: 7037 | GR69: 8437 | GS69: 10273 | GT69: 11768 | GU69: 18637 | GV69: 21586 | GW69: 23856 | GX69: 31942 | GY69: 36200 | GZ69: 33468 | HA69: 36788 | HB69: 40143 | HC69: 35880 | HD69: 34431 | HE69: 35150 | HF69: 35282 | HG69: 32654 | HH69: 30783 | HI69: 31087
A70: Eritrea | B70: 532 | C70: 532 | D70: 532 | E70: 532 | F70: 532 | G70: 532 | H70: 532 | I70: 533 | J70: 533 | K70: 533 | L70: 533 | M70: 533 | N70: 533 | O70: 533 | P70: 533 | Q70: 533 | R70: 533 | S70: 533 | T70: 533 | U70: 534 | V70: 534 | W70: 535 | X70: 536 | Y70: 538 | Z70: 539 | AA70: 540 | AB70: 542 | AC70: 543 | AD70: 545 | AE70: 546 | AF70: 547 | AG70: 549 | AH70: 550 | AI70: 552 | AJ70: 553 | AK70: 554 | AL70: 556 | AM70: 557 | AN70: 559 | AO70: 560 | AP70: 561 | AQ70: 563 | AR70: 564 | AS70: 566 | AT70: 567 | AU70: 569 | AV70: 570 | AW70: 572 | AX70: 573 | AY70: 575 | AZ70: 576 | BA70: 577 | BB70: 579 | BC70: 580 | BD70: 582 | BE70: 583 | BF70: 585 | BG70: 586 | BH70: 588 | BI70: 589 | BJ70: 591 | BK70: 592 | BL70: 594 | BM70: 595 | BN70: 597 | BO70: 598 | BP70: 600 | BQ70: 601 | BR70: 603 | BS70: 605 | BT70: 606 | BU70: 608 | BV70: 609 | BW70: 611 | BX70: 612 | BY70: 614 | BZ70: 615 | CA70: 617 | CB70: 619 | CC70: 620 | CD70: 622 | CE70: 623 | CF70: 625 | CG70: 627 | CH70: 628 | CI70: 630 | CJ70: 631 | CK70: 633 | CL70: 635 | CM70: 636 | CN70: 638 | CO70: 639 | CP70: 641 | CQ70: 643 | CR70: 644 | CS70: 646 | CT70: 648 | CU70: 649 | CV70: 651 | CW70: 653 | CX70: 654 | CY70: 656 | CZ70: 658 | DA70: 659 | DB70: 661 | DC70: 663 | DD70: 664 | DE70: 666 | DF70: 668 | DG70: 669 | DH70: 671 | DI70: 673 | DJ70: 675 | DK70: 676 | DL70: 679 | DM70: 683 | DN70: 686 | DO70: 689 | DP70: 692 | DQ70: 696 | DR70: 699 | DS70: 702 | DT70: 705 | DU70: 708 | DV70: 711 | DW70: 713 | DX70: 716 | DY70: 719 | DZ70: 722 | EA70: 725 | EB70: 728 | EC70: 731 | ED70: 734 | EE70: 737 | EF70: 740 | EG70: 743 | EH70: 746 | EI70: 749 | EJ70: 752 | EK70: 755 | EL70: 758 | EM70: 761 | EN70: 764 | EO70: 767 | EP70: 771 | EQ70: 774 | ER70: 777 | ES70: 780 | ET70: 783 | EU70: 786 | EV70: 789 | EW70: 798 | EX70: 806 | EY70: 838 | EZ70: 823 | FA70: 851 | FB70: 863 | FC70: 841 | FD70: 852 | FE70: 858 | FF70: 885 | FG70: 899 | FH70: 912 | FI70: 927 | FJ70: 937 | FK70: 974 | FL70: 998 | FM70: 1039 | FN70: 1068 | FO70: 1080 | FP70: 1037 | FQ70: 1054 | FR70: 1068 | FS70: 1061 | FT70: 1035 | FU70: 965 | FV70: 948 | FW70: 931 | FX70: 864 | FY70: 940 | FZ70: 942 | GA70: 943 | GB70: 925 | GC70: 966 | GD70: 913 | GE70: 783 | GF70: 831 | GG70: 915 | GH70: 891 | GI70: 858 | GJ70: 850 | GK70: 939 | GL70: 1040 | GM70: 1175 | GN70: 1416 | GO70: 1438 | GP70: 1542 | GQ70: 1623 | GR70: 1603 | GS70: 1550 | GT70: 1446 | GU70: 1511 | GV70: 1491 | GW70: 1389 | GX70: 1351 | GY70: 1332 | GZ70: 1272 | HA70: 1246 | HB70: 1088 | HC70: 1095 | HD70: 1083 | HE70: 1139 | HF70: 1180 | HG70: 1157 | HH70: 1140 | HI70: 1129
A71: Eritrea and Ethiopia | B71: 1 | C71: 1 | D71: 1 | E71: 1 | F71: 1 | G71: 1 | H71: 1 | I71: 1 | J71: 1 | K71: 1 | L71: 1 | M71: 1 | N71: 1 | O71: 1 | P71: 1 | Q71: 1 | R71: 1 | S71: 1 | T71: 1 | U71: 1 | V71: 1 | W71: 1 | X71: 1 | Y71: 1 | Z71: 1 | AA71: 1 | AB71: 1 | AC71: 1 | AD71: 1 | AE71: 1 | AF71: 1 | AG71: 1 | AH71: 1 | AI71: 1 | AJ71: 1 | AK71: 1 | AL71: 1 | AM71: 1 | AN71: 1 | AO71: 1 | AP71: 1 | AQ71: 1 | AR71: 1 | AS71: 1 | AT71: 1 | AU71: 1 | AV71: 1 | AW71: 1 | AX71: 1 | AY71: 1 | AZ71: 1 | BA71: 1 | BB71: 1 | BC71: 1 | BD71: 1 | BE71: 1 | BF71: 1 | BG71: 1 | BH71: 1 | BI71: 1 | BJ71: 1 | BK71: 1 | BL71: 1 | BM71: 1 | BN71: 1 | BO71: 1 | BP71: 1 | BQ71: 1 | BR71: 1 | BS71: 1 | BT71: 1 | BU71: 1 | BV71: 1 | BW71: 1 | BX71: 1 | BY71: 1 | BZ71: 1 | CA71: 1 | CB71: 1 | CC71: 1 | CD71: 1 | CE71: 1 | CF71: 1 | CG71: 1 | CH71: 1 | CI71: 1 | CJ71: 1 | CK71: 1 | CL71: 1 | CM71: 1 | CN71: 1 | CO71: 1 | CP71: 1 | CQ71: 1 | CR71: 1 | CS71: 1 | CT71: 1 | CU71: 1 | CV71: 1 | CW71: 1 | CX71: 1 | CY71: 1 | CZ71: 1 | DA71: 1 | DB71: 1 | DC71: 1 | DD71: 1 | DE71: 1 | DF71: 1 | DG71: 1 | DH71: 1 | DI71: 1 | DJ71: 1 | DK71: 1 | DL71: 1 | DM71: 1 | DN71: 1 | DO71: 1 | DP71: 1 | DQ71: 1 | DR71: 1 | DS71: 1 | DT71: 1 | DU71: 1 | DV71: 1 | DW71: 1 | DX71: 1 | DY71: 1 | DZ71: 1 | EA71: 1 | EB71: 1 | EC71: 1 | ED71: 1 | EE71: 1 | EF71: 1 | EG71: 1 | EH71: 1 | EI71: 1 | EJ71: 1 | EK71: 1 | EL71: 1 | EM71: 1 | EN71: 1 | EO71: 1 | EP71: 1 | EQ71: 1 | ER71: 1 | ES71: 1 | ET71: 1 | EU71: 1 | EV71: 1 | EW71: 1 | EX71: 1 | EY71: 1 | EZ71: 1 | FA71: 1 | FB71: 1 | FC71: 1 | FD71: 1 | FE71: 1 | FF71: 1 | FG71: 1 | FH71: 1 | FI71: 1 | FJ71: 1 | FK71: 1 | FL71: 1 | FM71: 1 | FN71: 1 | FO71: 1 | FP71: 1 | FQ71: 1 | FR71: 1 | FS71: 1 | FT71: 1 | FU71: 1 | FV71: 1 | FW71: 1 | FX71: 1 | FY71: 1 | FZ71: 1 | GA71: 1 | GB71: 1 | GC71: 1 | GD71: 1 | GE71: 1 | GF71: 1 | GG71: 1 | GH71: 1 | GI71: 1 | GJ71: 1 | GK71: 1 | GL71: 1 | GM71: 1 | GN71: 1 | GO71: 1 | GP71: 1 | GQ71: 1 | GR71: 1 | GS71: 1 | GT71: 1 | GU71: 1 | GV71: 1 | GW71: 1 | GX71: 1 | GY71: 1 | GZ71: 1 | HA71: 1 | HB71: 1 | HC71: 1 | HD71: 1 | HE71: 1 | HF71: 1 | HG71: 1 | HH71: 1 | HI71: 1
A72: Estonia | B72: 938 | C72: 939 | D72: 940 | E72: 941 | F72: 942 | G72: 943 | H72: 944 | I72: 945 | J72: 947 | K72: 948 | L72: 949 | M72: 950 | N72: 951 | O72: 952 | P72: 953 | Q72: 954 | R72: 956 | S72: 957 | T72: 958 | U72: 959 | V72: 960 | W72: 966 | X72: 973 | Y72: 979 | Z72: 985 | AA72: 992 | AB72: 998 | AC72: 1005 | AD72: 1011 | AE72: 1018 | AF72: 1024 | AG72: 1031 | AH72: 1038 | AI72: 1044 | AJ72: 1051 | AK72: 1058 | AL72: 1065 | AM72: 1072 | AN72: 1079 | AO72: 1086 | AP72: 1093 | AQ72: 1100 | AR72: 1107 | AS72: 1114 | AT72: 1121 | AU72: 1128 | AV72: 1136 | AW72: 1143 | AX72: 1151 | AY72: 1158 | AZ72: 1166 | BA72: 1173 | BB72: 1181 | BC72: 1188 | BD72: 1196 | BE72: 1204 | BF72: 1212 | BG72: 1219 | BH72: 1227 | BI72: 1235 | BJ72: 1243 | BK72: 1251 | BL72: 1260 | BM72: 1268 | BN72: 1276 | BO72: 1284 | BP72: 1292 | BQ72: 1301 | BR72: 1309 | BS72: 1318 | BT72: 1326 | BU72: 1335 | BV72: 1344 | BW72: 1352 | BX72: 1361 | BY72: 1370 | BZ72: 1379 | CA72: 1388 | CB72: 1397 | CC72: 1406 | CD72: 1415 | CE72: 1424 | CF72: 1433 | CG72: 1443 | CH72: 1452 | CI72: 1461 | CJ72: 1405 | CK72: 1643 | CL72: 1581 | CM72: 1470 | CN72: 1464 | CO72: 1342 | CP72: 1469 | CQ72: 1665 | CR72: 1893 | CS72: 1752 | CT72: 1930 | CU72: 1898 | CV72: 1949 | CW72: 2068 | CX72: 2024 | CY72: 2075 | CZ72: 2255 | DA72: 2100 | DB72: 2322 | DC72: 2056 | DD72: 1965 | DE72: 1889 | DF72: 2063 | DG72: 2142 | DH72: 2286 | DI72: 2112 | DJ72: 2283 | DK72: 2398 | DL72: 2291 | DM72: 2358 | DN72: 2097 | DO72: 1841 | DP72: 1473 | DQ72: 1355 | DR72: 1762 | DS72: 2028 | DT72: 2333 | DU72: 2497 | DV72: 2541 | DW72: 2661 | DX72: 2735 | DY72: 2925 | DZ72: 3098 | EA72: 3110 | EB72: 3053 | EC72: 2957 | ED72: 2923 | EE72: 3098 | EF72: 3428 | EG72: 3549 | EH72: 3765 | EI72: 3953 | EJ72: 4124 | EK72: 3917 | EL72: 3703 | EM72: 3635 | EN72: 3568 | EO72: 3503 | EP72: 3438 | EQ72: 3375 | ER72: 3313 | ES72: 3682 | ET72: 4161 | EU72: 4546 | EV72: 4926 | EW72: 4866 | EX72: 5094 | EY72: 5228 | EZ72: 5392 | FA72: 5752 | FB72: 6195 | FC72: 6213 | FD72: 6565 | FE72: 6379 | FF72: 6861 | FG72: 7128 | FH72: 7204 | FI72: 6936 | FJ72: 7728 | FK72: 8069 | FL72: 8368 | FM72: 8647 | FN72: 9066 | FO72: 9109 | FP72: 9721 | FQ72: 9885 | FR72: 9844 | FS72: 10573 | FT72: 10839 | FU72: 10829 | FV72: 11297 | FW72: 11525 | FX72: 11778 | FY72: 11690 | FZ72: 11676 | GA72: 11753 | GB72: 12010 | GC72: 12358 | GD72: 12470 | GE72: 12540 | GF72: 13014 | GG72: 13144 | GH72: 13392 | GI72: 13601 | GJ72: 13260 | GK72: 12008 | GL72: 10523 | GM72: 9870 | GN72: 9870 | GO72: 10464 | GP72: 11245 | GQ72: 12709 | GR72: 13705 | GS72: 13723 | GT72: 14877 | GU72: 15894 | GV72: 16974 | GW72: 18359 | GX72: 19665 | GY72: 21651 | GZ72: 24047 | HA72: 26066 | HB72: 24743 | HC72: 21137 | HD72: 21710 | HE72: 23576 | HF72: 24761 | HG72: 25254 | HH72: 25865 | HI72: 26812
A73: Ethiopia | B73: 523 | C73: 523 | D73: 523 | E73: 523 | F73: 523 | G73: 523 | H73: 523 | I73: 523 | J73: 523 | K73: 523 | L73: 523 | M73: 523 | N73: 524 | O73: 524 | P73: 524 | Q73: 524 | R73: 524 | S73: 524 | T73: 524 | U73: 524 | V73: 524 | W73: 524 | X73: 524 | Y73: 525 | Z73: 525 | AA73: 525 | AB73: 525 | AC73: 525 | AD73: 526 | AE73: 526 | AF73: 526 | AG73: 526 | AH73: 526 | AI73: 526 | AJ73: 527 | AK73: 527 | AL73: 527 | AM73: 527 | AN73: 527 | AO73: 528 | AP73: 528 | AQ73: 528 | AR73: 528 | AS73: 528 | AT73: 529 | AU73: 529 | AV73: 529 | AW73: 529 | AX73: 529 | AY73: 529 | AZ73: 530 | BA73: 530 | BB73: 530 | BC73: 530 | BD73: 530 | BE73: 531 | BF73: 531 | BG73: 531 | BH73: 531 | BI73: 531 | BJ73: 531 | BK73: 532 | BL73: 532 | BM73: 532 | BN73: 532 | BO73: 532 | BP73: 533 | BQ73: 533 | BR73: 533 | BS73: 533 | BT73: 533 | BU73: 533 | BV73: 534 | BW73: 534 | BX73: 534 | BY73: 534 | BZ73: 534 | CA73: 535 | CB73: 535 | CC73: 535 | CD73: 535 | CE73: 535 | CF73: 535 | CG73: 536 | CH73: 536 | CI73: 536 | CJ73: 536 | CK73: 536 | CL73: 537 | CM73: 537 | CN73: 537 | CO73: 537 | CP73: 537 | CQ73: 538 | CR73: 538 | CS73: 538 | CT73: 538 | CU73: 538 | CV73: 538 | CW73: 539 | CX73: 539 | CY73: 539 | CZ73: 539 | DA73: 539 | DB73: 540 | DC73: 540 | DD73: 540 | DE73: 540 | DF73: 540 | DG73: 541 | DH73: 541 | DI73: 541 | DJ73: 541 | DK73: 541 | DL73: 542 | DM73: 543 | DN73: 544 | DO73: 545 | DP73: 545 | DQ73: 546 | DR73: 547 | DS73: 548 | DT73: 549 | DU73: 550 | DV73: 551 | DW73: 552 | DX73: 554 | DY73: 555 | DZ73: 556 | EA73: 557 | EB73: 558 | EC73: 559 | ED73: 560 | EE73: 561 | EF73: 562 | EG73: 563 | EH73: 564 | EI73: 565 | EJ73: 567 | EK73: 568 | EL73: 569 | EM73: 570 | EN73: 571 | EO73: 572 | EP73: 573 | EQ73: 574 | ER73: 575 | ES73: 576 | ET73: 577 | EU73: 578 | EV73: 579 | EW73: 586 | EX73: 593 | EY73: 617 | EZ73: 607 | FA73: 629 | FB73: 638 | FC73: 622 | FD73: 631 | FE73: 636 | FF73: 657 | FG73: 668 | FH73: 678 | FI73: 690 | FJ73: 698 | FK73: 727 | FL73: 746 | FM73: 777 | FN73: 800 | FO73: 810 | FP73: 778 | FQ73: 792 | FR73: 803 | FS73: 799 | FT73: 780 | FU73: 729 | FV73: 716 | FW73: 704 | FX73: 655 | FY73: 713 | FZ73: 715 | GA73: 717 | GB73: 704 | GC73: 736 | GD73: 696 | GE73: 597 | GF73: 635 | GG73: 700 | GH73: 682 | GI73: 657 | GJ73: 653 | GK73: 585 | GL73: 516 | GM73: 564 | GN73: 562 | GO73: 578 | GP73: 630 | GQ73: 630 | GR73: 591 | GS73: 604 | GT73: 623 | GU73: 656 | GV73: 647 | GW73: 615 | GX73: 679 | GY73: 738 | GZ73: 796 | HA73: 863 | HB73: 931 | HC73: 986 | HD73: 1081 | HE73: 1171 | HF73: 1240 | HG73: 1336 | HH73: 1432 | HI73: 1520
A74: Faeroe Islands | B74: 1 | C74: 1 | D74: 1 | E74: 1 | F74: 1 | G74: 1 | H74: 1 | I74: 1 | J74: 1 | K74: 1 | L74: 1 | M74: 1 | N74: 1 | O74: 1 | P74: 1 | Q74: 1 | R74: 1 | S74: 1 | T74: 1 | U74: 1 | V74: 1 | W74: 1 | X74: 1 | Y74: 1 | Z74: 1 | AA74: 1 | AB74: 1 | AC74: 1 | AD74: 1 | AE74: 1 | AF74: 1 | AG74: 1 | AH74: 1 | AI74: 1 | AJ74: 1 | AK74: 1 | AL74: 1 | AM74: 1 | AN74: 1 | AO74: 1 | AP74: 1 | AQ74: 1 | AR74: 1 | AS74: 1 | AT74: 1 | AU74: 1 | AV74: 1 | AW74: 1 | AX74: 1 | AY74: 1 | AZ74: 1 | BA74: 1 | BB74: 1 | BC74: 1 | BD74: 1 | BE74: 1 | BF74: 1 | BG74: 1 | BH74: 1 | BI74: 1 | BJ74: 1 | BK74: 1 | BL74: 1 | BM74: 1 | BN74: 1 | BO74: 1 | BP74: 1 | BQ74: 1 | BR74: 1 | BS74: 1 | BT74: 1 | BU74: 1 | BV74: 1 | BW74: 1 | BX74: 1 | BY74: 1 | BZ74: 1 | CA74: 1 | CB74: 1 | CC74: 1 | CD74: 1 | CE74: 1 | CF74: 1 | CG74: 1 | CH74: 1 | CI74: 1 | CJ74: 1 | CK74: 1 | CL74: 1 | CM74: 1 | CN74: 1 | CO74: 1 | CP74: 1 | CQ74: 1 | CR74: 1 | CS74: 1 | CT74: 1 | CU74: 1 | CV74: 1 | CW74: 1 | CX74: 1 | CY74: 1 | CZ74: 1 | DA74: 1 | DB74: 1 | DC74: 1 | DD74: 1 | DE74: 1 | DF74: 1 | DG74: 1 | DH74: 1 | DI74: 1 | DJ74: 1 | DK74: 1 | DL74: 1 | DM74: 1 | DN74: 1 | DO74: 1 | DP74: 1 | DQ74: 1 | DR74: 1 | DS74: 1 | DT74: 1 | DU74: 1 | DV74: 1 | DW74: 1 | DX74: 1 | DY74: 1 | DZ74: 1 | EA74: 1 | EB74: 1 | EC74: 1 | ED74: 1 | EE74: 1 | EF74: 1 | EG74: 1 | EH74: 1 | EI74: 1 | EJ74: 1 | EK74: 1 | EL74: 1 | EM74: 1 | EN74: 1 | EO74: 1 | EP74: 1 | EQ74: 1 | ER74: 1 | ES74: 1 | ET74: 1 | EU74: 1 | EV74: 1 | EW74: 1 | EX74: 1 | EY74: 1 | EZ74: 1 | FA74: 1 | FB74: 1 | FC74: 1 | FD74: 1 | FE74: 1 | FF74: 1 | FG74: 1 | FH74: 1 | FI74: 1 | FJ74: 1 | FK74: 1 | FL74: 1 | FM74: 1 | FN74: 1 | FO74: 1 | FP74: 1 | FQ74: 1 | FR74: 1 | FS74: 1 | FT74: 1 | FU74: 1 | FV74: 1 | FW74: 1 | FX74: 1 | FY74: 1 | FZ74: 1 | GA74: 1 | GB74: 1 | GC74: 1 | GD74: 1 | GE74: 1 | GF74: 1 | GG74: 1 | GH74: 1 | GI74: 1 | GJ74: 1 | GK74: 1 | GL74: 1 | GM74: 1 | GN74: 1 | GO74: 1 | GP74: 1 | GQ74: 1 | GR74: 1 | GS74: 1 | GT74: 1 | GU74: 1 | GV74: 1 | GW74: 1 | GX74: 1 | GY74: 1 | GZ74: 1 | HA74: 1 | HB74: 1 | HC74: 1 | HD74: 1 | HE74: 1 | HF74: 1 | HG74: 1 | HH74: 1 | HI74: 1
A75: Falkland Is (Malvinas) | B75: 1 | C75: 1 | D75: 1 | E75: 1 | F75: 1 | G75: 1 | H75: 1 | I75: 1 | J75: 1 | K75: 1 | L75: 1 | M75: 1 | N75: 1 | O75: 1 | P75: 1 | Q75: 1 | R75: 1 | S75: 1 | T75: 1 | U75: 1 | V75: 1 | W75: 1 | X75: 1 | Y75: 1 | Z75: 1 | AA75: 1 | AB75: 1 | AC75: 1 | AD75: 1 | AE75: 1 | AF75: 1 | AG75: 1 | AH75: 1 | AI75: 1 | AJ75: 1 | AK75: 1 | AL75: 1 | AM75: 1 | AN75: 1 | AO75: 1 | AP75: 1 | AQ75: 1 | AR75: 1 | AS75: 1 | AT75: 1 | AU75: 1 | AV75: 1 | AW75: 1 | AX75: 1 | AY75: 1 | AZ75: 1 | BA75: 1 | BB75: 1 | BC75: 1 | BD75: 1 | BE75: 1 | BF75: 1 | BG75: 1 | BH75: 1 | BI75: 1 | BJ75: 1 | BK75: 1 | BL75: 1 | BM75: 1 | BN75: 1 | BO75: 1 | BP75: 1 | BQ75: 1 | BR75: 1 | BS75: 1 | BT75: 1 | BU75: 1 | BV75: 1 | BW75: 1 | BX75: 1 | BY75: 1 | BZ75: 1 | CA75: 1 | CB75: 1 | CC75: 1 | CD75: 1 | CE75: 1 | CF75: 1 | CG75: 1 | CH75: 1 | CI75: 1 | CJ75: 1 | CK75: 1 | CL75: 1 | CM75: 1 | CN75: 1 | CO75: 1 | CP75: 1 | CQ75: 1 | CR75: 1 | CS75: 1 | CT75: 1 | CU75: 1 | CV75: 1 | CW75: 1 | CX75: 1 | CY75: 1 | CZ75: 1 | DA75: 1 | DB75: 1 | DC75: 1 | DD75: 1 | DE75: 1 | DF75: 1 | DG75: 1 | DH75: 1 | DI75: 1 | DJ75: 1 | DK75: 1 | DL75: 1 | DM75: 1 | DN75: 1 | DO75: 1 | DP75: 1 | DQ75: 1 | DR75: 1 | DS75: 1 | DT75: 1 | DU75: 1 | DV75: 1 | DW75: 1 | DX75: 1 | DY75: 1 | DZ75: 1 | EA75: 1 | EB75: 1 | EC75: 1 | ED75: 1 | EE75: 1 | EF75: 1 | EG75: 1 | EH75: 1 | EI75: 1 | EJ75: 1 | EK75: 1 | EL75: 1 | EM75: 1 | EN75: 1 | EO75: 1 | EP75: 1 | EQ75: 1 | ER75: 1 | ES75: 1 | ET75: 1 | EU75: 1 | EV75: 1 | EW75: 1 | EX75: 1 | EY75: 1 | EZ75: 1 | FA75: 1 | FB75: 1 | FC75: 1 | FD75: 1 | FE75: 1 | FF75: 1 | FG75: 1 | FH75: 1 | FI75: 1 | FJ75: 1 | FK75: 1 | FL75: 1 | FM75: 1 | FN75: 1 | FO75: 1 | FP75: 1 | FQ75: 1 | FR75: 1 | FS75: 1 | FT75: 1 | FU75: 1 | FV75: 1 | FW75: 1 | FX75: 1 | FY75: 1 | FZ75: 1 | GA75: 1 | GB75: 1 | GC75: 1 | GD75: 1 | GE75: 1 | GF75: 1 | GG75: 1 | GH75: 1 | GI75: 1 | GJ75: 1 | GK75: 1 | GL75: 1 | GM75: 1 | GN75: 1 | GO75: 1 | GP75: 1 | GQ75: 1 | GR75: 1 | GS75: 1 | GT75: 1 | GU75: 1 | GV75: 1 | GW75: 1 | GX75: 1 | GY75: 1 | GZ75: 1 | HA75: 1 | HB75: 1 | HC75: 1 | HD75: 1 | HE75: 1 | HF75: 1 | HG75: 1 | HH75: 1 | HI75: 1
A76: Fiji | B76: 785 | C76: 785 | D76: 785 | E76: 785 | F76: 785 | G76: 785 | H76: 786 | I76: 786 | J76: 786 | K76: 786 | L76: 786 | M76: 786 | N76: 786 | O76: 786 | P76: 787 | Q76: 787 | R76: 787 | S76: 787 | T76: 787 | U76: 787 | V76: 787 | W76: 790 | X76: 793 | Y76: 795 | Z76: 798 | AA76: 801 | AB76: 803 | AC76: 806 | AD76: 809 | AE76: 812 | AF76: 814 | AG76: 817 | AH76: 820 | AI76: 823 | AJ76: 826 | AK76: 828 | AL76: 831 | AM76: 834 | AN76: 837 | AO76: 840 | AP76: 842 | AQ76: 845 | AR76: 848 | AS76: 851 | AT76: 854 | AU76: 857 | AV76: 860 | AW76: 863 | AX76: 866 | AY76: 869 | AZ76: 872 | BA76: 875 | BB76: 877 | BC76: 880 | BD76: 883 | BE76: 886 | BF76: 889 | BG76: 892 | BH76: 896 | BI76: 899 | BJ76: 902 | BK76: 905 | BL76: 908 | BM76: 911 | BN76: 914 | BO76: 917 | BP76: 920 | BQ76: 923 | BR76: 926 | BS76: 930 | BT76: 933 | BU76: 936 | BV76: 939 | BW76: 942 | BX76: 945 | BY76: 949 | BZ76: 952 | CA76: 955 | CB76: 958 | CC76: 962 | CD76: 965 | CE76: 968 | CF76: 971 | CG76: 975 | CH76: 978 | CI76: 981 | CJ76: 985 | CK76: 988 | CL76: 991 | CM76: 995 | CN76: 998 | CO76: 1002 | CP76: 1005 | CQ76: 1008 | CR76: 1012 | CS76: 1015 | CT76: 1019 | CU76: 1022 | CV76: 1026 | CW76: 1029 | CX76: 1033 | CY76: 1036 | CZ76: 1040 | DA76: 1043 | DB76: 1047 | DC76: 1050 | DD76: 1054 | DE76: 1057 | DF76: 1061 | DG76: 1065 | DH76: 1068 | DI76: 1072 | DJ76: 1075 | DK76: 1079 | DL76: 1106 | DM76: 1134 | DN76: 1163 | DO76: 1192 | DP76: 1222 | DQ76: 1252 | DR76: 1284 | DS76: 1317 | DT76: 1350 | DU76: 1385 | DV76: 1420 | DW76: 1456 | DX76: 1493 | DY76: 1531 | DZ76: 1570 | EA76: 1610 | EB76: 1651 | EC76: 1694 | ED76: 1737 | EE76: 1781 | EF76: 1826 | EG76: 1873 | EH76: 1920 | EI76: 1969 | EJ76: 2019 | EK76: 2071 | EL76: 2123 | EM76: 2177 | EN76: 2233 | EO76: 2289 | EP76: 2348 | EQ76: 2407 | ER76: 2468 | ES76: 2531 | ET76: 2595 | EU76: 2661 | EV76: 2729 | EW76: 2798 | EX76: 2869 | EY76: 2942 | EZ76: 3016 | FA76: 3093 | FB76: 3171 | FC76: 3252 | FD76: 3334 | FE76: 3419 | FF76: 3505 | FG76: 3508 | FH76: 3513 | FI76: 3613 | FJ76: 3671 | FK76: 3471 | FL76: 3382 | FM76: 3744 | FN76: 3953 | FO76: 3971 | FP76: 4384 | FQ76: 4590 | FR76: 4834 | FS76: 5287 | FT76: 5319 | FU76: 5245 | FV76: 5291 | FW76: 5506 | FX76: 5510 | FY76: 6066 | FZ76: 5843 | GA76: 6066 | GB76: 5560 | GC76: 5208 | GD76: 5528 | GE76: 5193 | GF76: 5545 | GG76: 5160 | GH76: 5204 | GI76: 5583 | GJ76: 5694 | GK76: 5488 | GL76: 5751 | GM76: 5792 | GN76: 6002 | GO76: 6073 | GP76: 6291 | GQ76: 6087 | GR76: 6108 | GS76: 6594 | GT76: 6444 | GU76: 6548 | GV76: 6745 | GW76: 6804 | GX76: 7149 | GY76: 7169 | GZ76: 7253 | HA76: 7128 | HB76: 7129 | HC76: 6959 | HD76: 7098 | HE76: 7228 | HF76: 7303 | HG76: 7502 | HH76: 7735 | HI76: 7925
A77: Finland | B77: 1244 | C77: 1246 | D77: 1248 | E77: 1251 | F77: 1253 | G77: 1255 | H77: 1257 | I77: 1260 | J77: 1262 | K77: 1264 | L77: 1267 | M77: 1269 | N77: 1271 | O77: 1274 | P77: 1276 | Q77: 1278 | R77: 1281 | S77: 1283 | T77: 1286 | U77: 1288 | V77: 1290 | W77: 1297 | X77: 1304 | Y77: 1311 | Z77: 1318 | AA77: 1325 | AB77: 1332 | AC77: 1339 | AD77: 1346 | AE77: 1353 | AF77: 1360 | AG77: 1367 | AH77: 1375 | AI77: 1382 | AJ77: 1389 | AK77: 1397 | AL77: 1404 | AM77: 1411 | AN77: 1419 | AO77: 1426 | AP77: 1434 | AQ77: 1442 | AR77: 1449 | AS77: 1457 | AT77: 1465 | AU77: 1472 | AV77: 1480 | AW77: 1488 | AX77: 1496 | AY77: 1504 | AZ77: 1512 | BA77: 1520 | BB77: 1528 | BC77: 1536 | BD77: 1544 | BE77: 1552 | BF77: 1561 | BG77: 1569 | BH77: 1577 | BI77: 1586 | BJ77: 1594 | BK77: 1592 | BL77: 1490 | BM77: 1592 | BN77: 1611 | BO77: 1582 | BP77: 1594 | BQ77: 1474 | BR77: 1670 | BS77: 1833 | BT77: 1897 | BU77: 1876 | BV77: 1906 | BW77: 1987 | BX77: 2005 | BY77: 2017 | BZ77: 2098 | CA77: 2018 | CB77: 1954 | CC77: 1946 | CD77: 1925 | CE77: 1851 | CF77: 2006 | CG77: 2051 | CH77: 2034 | CI77: 2054 | CJ77: 2128 | CK77: 2128 | CL77: 2173 | CM77: 2214 | CN77: 2305 | CO77: 2255 | CP77: 2137 | CQ77: 2239 | CR77: 2338 | CS77: 2493 | CT77: 2623 | CU77: 2714 | CV77: 2788 | CW77: 2686 | CX77: 2789 | CY77: 2736 | CZ77: 2661 | DA77: 2820 | DB77: 2896 | DC77: 2914 | DD77: 3002 | DE77: 3070 | DF77: 3061 | DG77: 3154 | DH77: 3192 | DI77: 3247 | DJ77: 3388 | DK77: 3536 | DL77: 3353 | DM77: 3154 | DN77: 3174 | DO77: 2651 | DP77: 2298 | DQ77: 2782 | DR77: 3097 | DS77: 3164 | DT77: 3456 | DU77: 3674 | DV77: 3738 | DW77: 3914 | DX77: 4023 | DY77: 4302 | DZ77: 4556 | EA77: 4574 | EB77: 4489 | EC77: 4347 | ED77: 4297 | EE77: 4554 | EF77: 5039 | EG77: 5216 | EH77: 5531 | EI77: 5807 | EJ77: 6059 | EK77: 5753 | EL77: 5439 | EM77: 5612 | EN77: 5622 | EO77: 6247 | EP77: 6228 | EQ77: 5832 | ER77: 6228 | ES77: 6287 | ET77: 6695 | EU77: 7011 | EV77: 7198 | EW77: 7738 | EX77: 7914 | EY77: 7877 | EZ77: 8470 | FA77: 8802 | FB77: 8971 | FC77: 9302 | FD77: 9276 | FE77: 9751 | FF77: 10560 | FG77: 11286 | FH77: 11560 | FI77: 11858 | FJ77: 12389 | FK77: 13006 | FL77: 13269 | FM77: 13477 | FN77: 13726 | FO77: 15058 | FP77: 16245 | FQ77: 16564 | FR77: 17722 | FS77: 18804 | FT77: 19273 | FU77: 19409 | FV77: 19268 | FW77: 19261 | FX77: 19608 | FY77: 20918 | FZ77: 21965 | GA77: 22279 | GB77: 22873 | GC77: 23351 | GD77: 23926 | GE77: 24630 | GF77: 25133 | GG77: 26086 | GH77: 27282 | GI77: 28735 | GJ77: 28599 | GK77: 26761 | GL77: 25726 | GM77: 25414 | GN77: 26301 | GO77: 27303 | GP77: 28210 | GQ77: 29884 | GR77: 31423 | GS77: 32743 | GT77: 34517 | GU77: 35327 | GV77: 35834 | GW77: 36461 | GX77: 37783 | GY77: 38700 | GZ77: 40115 | HA77: 42016 | HB77: 42122 | HC77: 38455 | HD77: 39425 | HE77: 40251 | HF77: 39489 | HG77: 38788 | HH77: 38569 | HI77: 38923
A78: France | B78: 1803 | C78: 1806 | D78: 1810 | E78: 1813 | F78: 1817 | G78: 1821 | H78: 1824 | I78: 1828 | J78: 1832 | K78: 1835 | L78: 1839 | M78: 1842 | N78: 1846 | O78: 1850 | P78: 1854 | Q78: 1857 | R78: 1861 | S78: 1865 | T78: 1868 | U78: 1872 | V78: 1876 | W78: 1992 | X78: 1844 | Y78: 1834 | Z78: 1789 | AA78: 1798 | AB78: 1851 | AC78: 1860 | AD78: 1742 | AE78: 1836 | AF78: 1799 | AG78: 1783 | AH78: 1910 | AI78: 1905 | AJ78: 1879 | AK78: 1974 | AL78: 2008 | AM78: 2029 | AN78: 2069 | AO78: 2033 | AP78: 2184 | AQ78: 2119 | AR78: 2074 | AS78: 2148 | AT78: 2209 | AU78: 2284 | AV78: 2424 | AW78: 2638 | AX78: 2055 | AY78: 2047 | AZ78: 2146 | BA78: 2106 | BB78: 2379 | BC78: 2641 | BD78: 2958 | BE78: 3114 | BF78: 3228 | BG78: 3112 | BH78: 2900 | BI78: 2902 | BJ78: 3086 | BK78: 3147 | BL78: 3255 | BM78: 3342 | BN78: 3396 | BO78: 3333 | BP78: 3469 | BQ78: 3413 | BR78: 3644 | BS78: 3417 | BT78: 3297 | BU78: 3449 | BV78: 3631 | BW78: 3581 | BX78: 3730 | BY78: 3653 | BZ78: 3607 | CA78: 3591 | CB78: 3389 | CC78: 3354 | CD78: 3555 | CE78: 3782 | CF78: 3910 | CG78: 3739 | CH78: 3543 | CI78: 3438 | CJ78: 3393 | CK78: 3420 | CL78: 3500 | CM78: 3510 | CN78: 3639 | CO78: 3678 | CP78: 3755 | CQ78: 3613 | CR78: 3964 | CS78: 3883 | CT78: 4005 | CU78: 3888 | CV78: 4117 | CW78: 4261 | CX78: 4314 | CY78: 4100 | CZ78: 4048 | DA78: 4181 | DB78: 4261 | DC78: 4367 | DD78: 4304 | DE78: 4648 | DF78: 4629 | DG78: 4774 | DH78: 4542 | DI78: 5004 | DJ78: 5420 | DK78: 5373 | DL78: 4506 | DM78: 3968 | DN78: 4548 | DO78: 4506 | DP78: 3861 | DQ78: 4258 | DR78: 4550 | DS78: 4326 | DT78: 5188 | DU78: 5434 | DV78: 6032 | DW78: 6075 | DX78: 6284 | DY78: 6157 | DZ78: 6522 | EA78: 7078 | EB78: 6835 | EC78: 6534 | ED78: 5962 | EE78: 6140 | EF78: 5929 | EG78: 5785 | EH78: 5869 | EI78: 6008 | EJ78: 5861 | EK78: 6106 | EL78: 4821 | EM78: 4666 | EN78: 4700 | EO78: 4691 | EP78: 3594 | EQ78: 4423 | ER78: 5909 | ES78: 6228 | ET78: 6988 | EU78: 7367 | EV78: 7914 | EW78: 8301 | EX78: 8446 | EY78: 8622 | EZ78: 9006 | FA78: 9453 | FB78: 9907 | FC78: 10442 | FD78: 10681 | FE78: 10911 | FF78: 11642 | FG78: 12168 | FH78: 12767 | FI78: 13235 | FJ78: 13969 | FK78: 14514 | FL78: 15158 | FM78: 15759 | FN78: 16321 | FO78: 17339 | FP78: 18185 | FQ78: 18891 | FR78: 19570 | FS78: 20486 | FT78: 20997 | FU78: 20851 | FV78: 21661 | FW78: 22270 | FX78: 22928 | FY78: 23647 | FZ78: 23962 | GA78: 24186 | GB78: 24753 | GC78: 25188 | GD78: 25497 | GE78: 25917 | GF78: 26453 | GG78: 26963 | GH78: 28101 | GI78: 28942 | GJ78: 29476 | GK78: 29707 | GL78: 30033 | GM78: 29719 | GN78: 30303 | GO78: 30823 | GP78: 31141 | GQ78: 31756 | GR78: 32764 | GS78: 33707 | GT78: 34774 | GU78: 35197 | GV78: 35333 | GW78: 35371 | GX78: 36090 | GY78: 36395 | GZ78: 37001 | HA78: 37641 | HB78: 37505 | HC78: 36215 | HD78: 36745 | HE78: 37328 | HF78: 37227 | HG78: 37309 | HH78: 37218 | HI78: 37599
A79: French Guiana | B79: 1 | C79: 1 | D79: 1 | E79: 1 | F79: 1 | G79: 1 | H79: 1 | I79: 1 | J79: 1 | K79: 1 | L79: 1 | M79: 1 | N79: 1 | O79: 1 | P79: 1 | Q79: 1 | R79: 1 | S79: 1 | T79: 1 | U79: 1 | V79: 1 | W79: 1 | X79: 1 | Y79: 1 | Z79: 1 | AA79: 1 | AB79: 1 | AC79: 1 | AD79: 1 | AE79: 1 | AF79: 1 | AG79: 1 | AH79: 1 | AI79: 1 | AJ79: 1 | AK79: 1 | AL79: 1 | AM79: 1 | AN79: 1 | AO79: 1 | AP79: 1 | AQ79: 1 | AR79: 1 | AS79: 1 | AT79: 1 | AU79: 1 | AV79: 1 | AW79: 1 | AX79: 1 | AY79: 1 | AZ79: 1 | BA79: 1 | BB79: 1 | BC79: 1 | BD79: 1 | BE79: 1 | BF79: 1 | BG79: 1 | BH79: 1 | BI79: 1 | BJ79: 1 | BK79: 1 | BL79: 1 | BM79: 1 | BN79: 1 | BO79: 1 | BP79: 1 | BQ79: 1 | BR79: 1 | BS79: 1 | BT79: 1 | BU79: 1 | BV79: 1 | BW79: 1 | BX79: 1 | BY79: 1 | BZ79: 1 | CA79: 1 | CB79: 1 | CC79: 1 | CD79: 1 | CE79: 1 | CF79: 1 | CG79: 1 | CH79: 1 | CI79: 1 | CJ79: 1 | CK79: 1 | CL79: 1 | CM79: 1 | CN79: 1 | CO79: 1 | CP79: 1 | CQ79: 1 | CR79: 1 | CS79: 1 | CT79: 1 | CU79: 1 | CV79: 1 | CW79: 1 | CX79: 1 | CY79: 1 | CZ79: 1 | DA79: 1 | DB79: 1 | DC79: 1 | DD79: 1 | DE79: 1 | DF79: 1 | DG79: 1 | DH79: 1 | DI79: 1 | DJ79: 1 | DK79: 1 | DL79: 1 | DM79: 1 | DN79: 1 | DO79: 1 | DP79: 1 | DQ79: 1 | DR79: 1 | DS79: 1 | DT79: 1 | DU79: 1 | DV79: 1 | DW79: 1 | DX79: 1 | DY79: 1 | DZ79: 1 | EA79: 1 | EB79: 1 | EC79: 1 | ED79: 1 | EE79: 1 | EF79: 1 | EG79: 1 | EH79: 1 | EI79: 1 | EJ79: 1 | EK79: 1 | EL79: 1 | EM79: 1 | EN79: 1 | EO79: 1 | EP79: 1 | EQ79: 1 | ER79: 1 | ES79: 1 | ET79: 1 | EU79: 1 | EV79: 1 | EW79: 1 | EX79: 1 | EY79: 1 | EZ79: 1 | FA79: 1 | FB79: 1 | FC79: 1 | FD79: 1 | FE79: 1 | FF79: 1 | FG79: 1 | FH79: 1 | FI79: 1 | FJ79: 1 | FK79: 1 | FL79: 1 | FM79: 1 | FN79: 1 | FO79: 1 | FP79: 1 | FQ79: 1 | FR79: 1 | FS79: 1 | FT79: 1 | FU79: 1 | FV79: 1 | FW79: 1 | FX79: 1 | FY79: 1 | FZ79: 1 | GA79: 1 | GB79: 1 | GC79: 1 | GD79: 1 | GE79: 1 | GF79: 1 | GG79: 1 | GH79: 1 | GI79: 1 | GJ79: 1 | GK79: 1 | GL79: 1 | GM79: 1 | GN79: 1 | GO79: 1 | GP79: 1 | GQ79: 1 | GR79: 1 | GS79: 1 | GT79: 1 | GU79: 1 | GV79: 1 | GW79: 1 | GX79: 1 | GY79: 1 | GZ79: 1 | HA79: 1 | HB79: 1 | HC79: 1 | HD79: 1 | HE79: 1 | HF79: 1 | HG79: 1 | HH79: 1 | HI79: 1
A80: French Polynesia | B80: 1 | C80: 1 | D80: 1 | E80: 1 | F80: 1 | G80: 1 | H80: 1 | I80: 1 | J80: 1 | K80: 1 | L80: 1 | M80: 1 | N80: 1 | O80: 1 | P80: 1 | Q80: 1 | R80: 1 | S80: 1 | T80: 1 | U80: 1 | V80: 1 | W80: 1 | X80: 1 | Y80: 1 | Z80: 1 | AA80: 1 | AB80: 1 | AC80: 1 | AD80: 1 | AE80: 1 | AF80: 1 | AG80: 1 | AH80: 1 | AI80: 1 | AJ80: 1 | AK80: 1 | AL80: 1 | AM80: 1 | AN80: 1 | AO80: 1 | AP80: 1 | AQ80: 1 | AR80: 1 | AS80: 1 | AT80: 1 | AU80: 1 | AV80: 1 | AW80: 1 | AX80: 1 | AY80: 1 | AZ80: 1 | BA80: 1 | BB80: 1 | BC80: 1 | BD80: 1 | BE80: 1 | BF80: 1 | BG80: 1 | BH80: 1 | BI80: 1 | BJ80: 1 | BK80: 1 | BL80: 1 | BM80: 1 | BN80: 1 | BO80: 1 | BP80: 1 | BQ80: 1 | BR80: 1 | BS80: 1 | BT80: 1 | BU80: 1 | BV80: 1 | BW80: 1 | BX80: 1 | BY80: 1 | BZ80: 1 | CA80: 1 | CB80: 1 | CC80: 1 | CD80: 1 | CE80: 1 | CF80: 1 | CG80: 1 | CH80: 1 | CI80: 1 | CJ80: 1 | CK80: 1 | CL80: 1 | CM80: 1 | CN80: 1 | CO80: 1 | CP80: 1 | CQ80: 1 | CR80: 1 | CS80: 1 | CT80: 1 | CU80: 1 | CV80: 1 | CW80: 1 | CX80: 1 | CY80: 1 | CZ80: 1 | DA80: 1 | DB80: 1 | DC80: 1 | DD80: 1 | DE80: 1 | DF80: 1 | DG80: 1 | DH80: 1 | DI80: 1 | DJ80: 1 | DK80: 1 | DL80: 1 | DM80: 1 | DN80: 1 | DO80: 1 | DP80: 1 | DQ80: 1 | DR80: 1 | DS80: 1 | DT80: 1 | DU80: 1 | DV80: 1 | DW80: 1 | DX80: 1 | DY80: 1 | DZ80: 1 | EA80: 1 | EB80: 1 | EC80: 1 | ED80: 1 | EE80: 1 | EF80: 1 | EG80: 1 | EH80: 1 | EI80: 1 | EJ80: 1 | EK80: 1 | EL80: 1 | EM80: 1 | EN80: 1 | EO80: 1 | EP80: 1 | EQ80: 1 | ER80: 1 | ES80: 1 | ET80: 1 | EU80: 1 | EV80: 1 | EW80: 1 | EX80: 1 | EY80: 1 | EZ80: 1 | FA80: 1 | FB80: 1 | FC80: 1 | FD80: 1 | FE80: 1 | FF80: 1 | FG80: 1 | FH80: 1 | FI80: 1 | FJ80: 1 | FK80: 1 | FL80: 1 | FM80: 1 | FN80: 1 | FO80: 1 | FP80: 1 | FQ80: 1 | FR80: 1 | FS80: 1 | FT80: 1 | FU80: 1 | FV80: 1 | FW80: 1 | FX80: 1 | FY80: 1 | FZ80: 1 | GA80: 1 | GB80: 1 | GC80: 1 | GD80: 1 | GE80: 1 | GF80: 1 | GG80: 1 | GH80: 1 | GI80: 1 | GJ80: 1 | GK80: 1 | GL80: 1 | GM80: 1 | GN80: 1 | GO80: 1 | GP80: 1 | GQ80: 1 | GR80: 1 | GS80: 1 | GT80: 1 | GU80: 1 | GV80: 1 | GW80: 1 | GX80: 1 | GY80: 1 | GZ80: 1 | HA80: 1 | HB80: 1 | HC80: 1 | HD80: 1 | HE80: 1 | HF80: 1 | HG80: 1 | HH80: 1 | HI80: 1
A81: Gabon | B81: 390 | C81: 390 | D81: 390 | E81: 390 | F81: 390 | G81: 391 | H81: 391 | I81: 391 | J81: 391 | K81: 391 | L81: 391 | M81: 391 | N81: 391 | O81: 391 | P81: 391 | Q81: 391 | R81: 391 | S81: 391 | T81: 391 | U81: 391 | V81: 391 | W81: 391 | X81: 392 | Y81: 392 | Z81: 392 | AA81: 392 | AB81: 392 | AC81: 392 | AD81: 392 | AE81: 392 | AF81: 392 | AG81: 392 | AH81: 392 | AI81: 392 | AJ81: 392 | AK81: 392 | AL81: 392 | AM81: 392 | AN81: 392 | AO81: 393 | AP81: 393 | AQ81: 393 | AR81: 393 | AS81: 393 | AT81: 393 | AU81: 393 | AV81: 393 | AW81: 393 | AX81: 393 | AY81: 393 | AZ81: 393 | BA81: 393 | BB81: 393 | BC81: 393 | BD81: 393 | BE81: 393 | BF81: 394 | BG81: 394 | BH81: 394 | BI81: 394 | BJ81: 394 | BK81: 394 | BL81: 394 | BM81: 394 | BN81: 394 | BO81: 394 | BP81: 394 | BQ81: 394 | BR81: 394 | BS81: 394 | BT81: 394 | BU81: 394 | BV81: 394 | BW81: 395 | BX81: 395 | BY81: 395 | BZ81: 395 | CA81: 395 | CB81: 395 | CC81: 395 | CD81: 395 | CE81: 395 | CF81: 395 | CG81: 395 | CH81: 395 | CI81: 395 | CJ81: 395 | CK81: 395 | CL81: 395 | CM81: 395 | CN81: 396 | CO81: 396 | CP81: 396 | CQ81: 396 | CR81: 396 | CS81: 396 | CT81: 396 | CU81: 396 | CV81: 396 | CW81: 396 | CX81: 396 | CY81: 398 | CZ81: 399 | DA81: 401 | DB81: 403 | DC81: 404 | DD81: 406 | DE81: 408 | DF81: 409 | DG81: 411 | DH81: 413 | DI81: 414 | DJ81: 416 | DK81: 418 | DL81: 420 | DM81: 421 | DN81: 423 | DO81: 425 | DP81: 427 | DQ81: 428 | DR81: 430 | DS81: 437 | DT81: 444 | DU81: 451 | DV81: 458 | DW81: 465 | DX81: 472 | DY81: 479 | DZ81: 487 | EA81: 494 | EB81: 501 | EC81: 509 | ED81: 516 | EE81: 523 | EF81: 531 | EG81: 538 | EH81: 546 | EI81: 554 | EJ81: 561 | EK81: 569 | EL81: 577 | EM81: 585 | EN81: 593 | EO81: 601 | EP81: 609 | EQ81: 617 | ER81: 625 | ES81: 633 | ET81: 641 | EU81: 650 | EV81: 658 | EW81: 711 | EX81: 769 | EY81: 831 | EZ81: 899 | FA81: 971 | FB81: 1050 | FC81: 1134 | FD81: 1226 | FE81: 1324 | FF81: 1431 | FG81: 1638 | FH81: 1874 | FI81: 2144 | FJ81: 2454 | FK81: 2807 | FL81: 2679 | FM81: 3219 | FN81: 3423 | FO81: 3836 | FP81: 4656 | FQ81: 5793 | FR81: 6180 | FS81: 8349 | FT81: 18287 | FU81: 18169 | FV81: 21774 | FW81: 20699 | FX81: 22649 | FY81: 24502 | FZ81: 27736 | GA81: 27631 | GB81: 24800 | GC81: 26740 | GD81: 25707 | GE81: 23142 | GF81: 18203 | GG81: 16383 | GH81: 15076 | GI81: 19870 | GJ81: 19358 | GK81: 19995 | GL81: 18868 | GM81: 19101 | GN81: 19298 | GO81: 19738 | GP81: 19933 | GQ81: 20545 | GR81: 20729 | GS81: 18413 | GT81: 17630 | GU81: 17579 | GV81: 17126 | GW81: 17105 | GX81: 16822 | GY81: 17069 | GZ81: 16059 | HA81: 16693 | HB81: 15800 | HC81: 15238 | HD81: 15982 | HE81: 16590 | HF81: 17252 | HG81: 17580 | HH81: 17912 | HI81: 18627
A82: Gambia | B82: 813 | C82: 813 | D82: 814 | E82: 814 | F82: 815 | G82: 815 | H82: 816 | I82: 816 | J82: 817 | K82: 817 | L82: 818 | M82: 818 | N82: 819 | O82: 819 | P82: 820 | Q82: 820 | R82: 821 | S82: 821 | T82: 822 | U82: 822 | V82: 823 | W82: 823 | X82: 824 | Y82: 824 | Z82: 825 | AA82: 825 | AB82: 826 | AC82: 826 | AD82: 827 | AE82: 827 | AF82: 828 | AG82: 828 | AH82: 829 | AI82: 829 | AJ82: 830 | AK82: 830 | AL82: 831 | AM82: 831 | AN82: 832 | AO82: 832 | AP82: 833 | AQ82: 833 | AR82: 834 | AS82: 834 | AT82: 835 | AU82: 835 | AV82: 836 | AW82: 836 | AX82: 837 | AY82: 837 | AZ82: 838 | BA82: 839 | BB82: 839 | BC82: 840 | BD82: 840 | BE82: 841 | BF82: 841 | BG82: 842 | BH82: 842 | BI82: 843 | BJ82: 843 | BK82: 844 | BL82: 844 | BM82: 845 | BN82: 845 | BO82: 846 | BP82: 846 | BQ82: 847 | BR82: 847 | BS82: 848 | BT82: 848 | BU82: 849 | BV82: 849 | BW82: 850 | BX82: 850 | BY82: 851 | BZ82: 851 | CA82: 852 | CB82: 852 | CC82: 853 | CD82: 853 | CE82: 854 | CF82: 854 | CG82: 855 | CH82: 856 | CI82: 856 | CJ82: 857 | CK82: 857 | CL82: 858 | CM82: 858 | CN82: 859 | CO82: 859 | CP82: 860 | CQ82: 860 | CR82: 861 | CS82: 861 | CT82: 862 | CU82: 862 | CV82: 863 | CW82: 863 | CX82: 864 | CY82: 865 | CZ82: 867 | DA82: 869 | DB82: 870 | DC82: 872 | DD82: 873 | DE82: 875 | DF82: 877 | DG82: 878 | DH82: 880 | DI82: 881 | DJ82: 883 | DK82: 885 | DL82: 886 | DM82: 888 | DN82: 890 | DO82: 891 | DP82: 893 | DQ82: 895 | DR82: 896 | DS82: 899 | DT82: 902 | DU82: 906 | DV82: 909 | DW82: 912 | DX82: 915 | DY82: 918 | DZ82: 921 | EA82: 924 | EB82: 927 | EC82: 931 | ED82: 934 | EE82: 937 | EF82: 940 | EG82: 943 | EH82: 946 | EI82: 950 | EJ82: 953 | EK82: 956 | EL82: 959 | EM82: 962 | EN82: 965 | EO82: 969 | EP82: 972 | EQ82: 975 | ER82: 978 | ES82: 981 | ET82: 985 | EU82: 988 | EV82: 991 | EW82: 1025 | EX82: 1034 | EY82: 1050 | EZ82: 1084 | FA82: 1092 | FB82: 1106 | FC82: 1119 | FD82: 1120 | FE82: 1154 | FF82: 1196 | FG82: 1353 | FH82: 1298 | FI82: 1268 | FJ82: 1312 | FK82: 1412 | FL82: 1597 | FM82: 1602 | FN82: 1575 | FO82: 1691 | FP82: 1478 | FQ82: 1597 | FR82: 1660 | FS82: 1684 | FT82: 1956 | FU82: 1778 | FV82: 1923 | FW82: 1957 | FX82: 1799 | FY82: 2028 | FZ82: 1772 | GA82: 1703 | GB82: 1861 | GC82: 1586 | GD82: 1494 | GE82: 1323 | GF82: 1347 | GG82: 1371 | GH82: 1463 | GI82: 1510 | GJ82: 1517 | GK82: 1510 | GL82: 1513 | GM82: 1515 | GN82: 1475 | GO82: 1448 | GP82: 1439 | GQ82: 1468 | GR82: 1477 | GS82: 1527 | GT82: 1564 | GU82: 1606 | GV82: 1506 | GW82: 1559 | GX82: 1617 | GY82: 1552 | GZ82: 1521 | HA82: 1528 | HB82: 1566 | HC82: 1615 | HD82: 1667 | HE82: 1545 | HF82: 1584 | HG82: 1608 | HH82: 1555 | HI82: 1644
A83: Georgia | B83: 543 | C83: 543 | D83: 543 | E83: 543 | F83: 543 | G83: 543 | H83: 543 | I83: 543 | J83: 544 | K83: 544 | L83: 544 | M83: 544 | N83: 544 | O83: 544 | P83: 544 | Q83: 544 | R83: 544 | S83: 544 | T83: 544 | U83: 544 | V83: 545 | W83: 547 | X83: 550 | Y83: 552 | Z83: 555 | AA83: 558 | AB83: 560 | AC83: 563 | AD83: 566 | AE83: 568 | AF83: 571 | AG83: 574 | AH83: 576 | AI83: 579 | AJ83: 582 | AK83: 585 | AL83: 587 | AM83: 590 | AN83: 593 | AO83: 596 | AP83: 599 | AQ83: 602 | AR83: 604 | AS83: 607 | AT83: 610 | AU83: 613 | AV83: 616 | AW83: 619 | AX83: 622 | AY83: 625 | AZ83: 628 | BA83: 631 | BB83: 634 | BC83: 637 | BD83: 640 | BE83: 643 | BF83: 646 | BG83: 649 | BH83: 652 | BI83: 655 | BJ83: 658 | BK83: 661 | BL83: 665 | BM83: 668 | BN83: 671 | BO83: 674 | BP83: 677 | BQ83: 681 | BR83: 684 | BS83: 687 | BT83: 690 | BU83: 694 | BV83: 697 | BW83: 700 | BX83: 704 | BY83: 707 | BZ83: 710 | CA83: 714 | CB83: 717 | CC83: 720 | CD83: 724 | CE83: 727 | CF83: 731 | CG83: 734 | CH83: 738 | CI83: 741 | CJ83: 712 | CK83: 831 | CL83: 798 | CM83: 741 | CN83: 737 | CO83: 674 | CP83: 737 | CQ83: 834 | CR83: 947 | CS83: 875 | CT83: 962 | CU83: 945 | CV83: 969 | CW83: 1026 | CX83: 1003 | CY83: 1027 | CZ83: 1114 | DA83: 1036 | DB83: 1144 | DC83: 1011 | DD83: 965 | DE83: 926 | DF83: 1010 | DG83: 1047 | DH83: 1115 | DI83: 1029 | DJ83: 1110 | DK83: 1165 | DL83: 1111 | DM83: 1141 | DN83: 1139 | DO83: 890 | DP83: 695 | DQ83: 543 | DR83: 520 | DS83: 499 | DT83: 560 | DU83: 629 | DV83: 706 | DW83: 793 | DX83: 890 | DY83: 999 | DZ83: 1122 | EA83: 1136 | EB83: 1188 | EC83: 1199 | ED83: 1181 | EE83: 1226 | EF83: 1339 | EG83: 1532 | EH83: 1637 | EI83: 1773 | EJ83: 1769 | EK83: 1842 | EL83: 1766 | EM83: 1733 | EN83: 1701 | EO83: 1670 | EP83: 1639 | EQ83: 1609 | ER83: 1579 | ES83: 1756 | ET83: 1984 | EU83: 2168 | EV83: 2349 | EW83: 2320 | EX83: 2429 | EY83: 2493 | EZ83: 2571 | FA83: 2743 | FB83: 2954 | FC83: 2962 | FD83: 3130 | FE83: 3041 | FF83: 3271 | FG83: 3404 | FH83: 3445 | FI83: 3322 | FJ83: 3707 | FK83: 3877 | FL83: 4128 | FM83: 4347 | FN83: 4505 | FO83: 4685 | FP83: 5212 | FQ83: 5303 | FR83: 5415 | FS83: 5727 | FT83: 6192 | FU83: 6611 | FV83: 6979 | FW83: 7425 | FX83: 7941 | FY83: 8485 | FZ83: 8825 | GA83: 9236 | GB83: 9363 | GC83: 9703 | GD83: 10158 | GE83: 10580 | GF83: 9633 | GG83: 9670 | GH83: 10135 | GI83: 9379 | GJ83: 8018 | GK83: 6282 | GL83: 3435 | GM83: 2410 | GN83: 2181 | GO83: 2298 | GP83: 2621 | GQ83: 2951 | GR83: 3072 | GS83: 3185 | GT83: 3269 | GU83: 3451 | GV83: 3664 | GW83: 4096 | GX83: 4346 | GY83: 4716 | GZ83: 5116 | HA83: 5760 | HB83: 5900 | HC83: 5642 | HD83: 5938 | HE83: 6322 | HF83: 6702 | HG83: 6930 | HH83: 7233 | HI83: 7474
A84: Germany | B84: 1639 | C84: 1651 | D84: 1663 | E84: 1674 | F84: 1686 | G84: 1698 | H84: 1710 | I84: 1722 | J84: 1734 | K84: 1746 | L84: 1759 | M84: 1771 | N84: 1784 | O84: 1796 | P84: 1809 | Q84: 1822 | R84: 1834 | S84: 1847 | T84: 1860 | U84: 1874 | V84: 1887 | W84: 1900 | X84: 1913 | Y84: 1927 | Z84: 1941 | AA84: 1954 | AB84: 1968 | AC84: 1982 | AD84: 1996 | AE84: 2010 | AF84: 2024 | AG84: 2032 | AH84: 2039 | AI84: 2047 | AJ84: 2055 | AK84: 2063 | AL84: 2070 | AM84: 2078 | AN84: 2086 | AO84: 2094 | AP84: 2102 | AQ84: 2110 | AR84: 2118 | AS84: 2126 | AT84: 2134 | AU84: 2142 | AV84: 2150 | AW84: 2158 | AX84: 2166 | AY84: 2174 | AZ84: 2182 | BA84: 2152 | BB84: 2180 | BC84: 2161 | BD84: 2207 | BE84: 2173 | BF84: 2343 | BG84: 2440 | BH84: 2409 | BI84: 2396 | BJ84: 2509 | BK84: 2423 | BL84: 2519 | BM84: 2678 | BN84: 2726 | BO84: 2711 | BP84: 2713 | BQ84: 2706 | BR84: 2852 | BS84: 2851 | BT84: 2819 | BU84: 2785 | BV84: 2962 | BW84: 3065 | BX84: 3258 | BY84: 3241 | BZ84: 3177 | CA84: 3119 | CB84: 3228 | CC84: 3114 | CD84: 3057 | CE84: 3110 | CF84: 3140 | CG84: 3292 | CH84: 3347 | CI84: 3405 | CJ84: 3398 | CK84: 3497 | CL84: 3598 | CM84: 3658 | CN84: 3733 | CO84: 3685 | CP84: 3798 | CQ84: 3946 | CR84: 3996 | CS84: 4133 | CT84: 4216 | CU84: 4271 | CV84: 4384 | CW84: 4473 | CX84: 4596 | CY84: 4422 | CZ84: 4457 | DA84: 4634 | DB84: 4751 | DC84: 4783 | DD84: 4858 | DE84: 5002 | DF84: 5017 | DG84: 5049 | DH84: 5162 | DI84: 5277 | DJ84: 5477 | DK84: 5692 | DL84: 4793 | DM84: 4559 | DN84: 4633 | DO84: 4679 | DP84: 4746 | DQ84: 4131 | DR84: 4482 | DS84: 4969 | DT84: 5415 | DU84: 4500 | DV84: 5270 | DW84: 5857 | DX84: 6015 | DY84: 6618 | DZ84: 6909 | EA84: 6884 | EB84: 6791 | EC84: 6276 | ED84: 5809 | EE84: 6178 | EF84: 6738 | EG84: 7232 | EH84: 7852 | EI84: 8305 | EJ84: 8894 | EK84: 9674 | EL84: 9711 | EM84: 10310 | EN84: 10407 | EO84: 10722 | EP84: 11120 | EQ84: 8284 | ER84: 4084 | ES84: 4504 | ET84: 5258 | EU84: 6112 | EV84: 7251 | EW84: 7884 | EX84: 8561 | EY84: 9252 | EZ84: 9926 | FA84: 10998 | FB84: 11751 | FC84: 12385 | FD84: 12884 | FE84: 13759 | FF84: 14808 | FG84: 15317 | FH84: 15872 | FI84: 16221 | FJ84: 17100 | FK84: 17838 | FL84: 18262 | FM84: 18311 | FN84: 19254 | FO84: 20409 | FP84: 21218 | FQ84: 21695 | FR84: 22497 | FS84: 23461 | FT84: 23662 | FU84: 23630 | FV84: 24904 | FW84: 25678 | FX84: 26444 | FY84: 27515 | FZ84: 27765 | GA84: 27846 | GB84: 27645 | GC84: 28227 | GD84: 29135 | GE84: 29851 | GF84: 30514 | GG84: 30986 | GH84: 31906 | GI84: 32706 | GJ84: 31476 | GK84: 32844 | GL84: 33221 | GM84: 32689 | GN84: 33375 | GO84: 33843 | GP84: 34008 | GQ84: 34578 | GR84: 35254 | GS84: 35931 | GT84: 36953 | GU84: 37517 | GV84: 37458 | GW84: 37167 | GX84: 37614 | GY84: 37901 | GZ84: 39352 | HA84: 40693 | HB84: 41199 | HC84: 38975 | HD84: 40632 | HE84: 42080 | HF84: 42959 | HG84: 42887 | HH84: 43444 | HI84: 44053
A85: Ghana | B85: 696 | C85: 696 | D85: 697 | E85: 698 | F85: 698 | G85: 699 | H85: 699 | I85: 700 | J85: 700 | K85: 701 | L85: 701 | M85: 702 | N85: 703 | O85: 703 | P85: 704 | Q85: 704 | R85: 705 | S85: 705 | T85: 706 | U85: 707 | V85: 707 | W85: 708 | X85: 708 | Y85: 709 | Z85: 709 | AA85: 710 | AB85: 710 | AC85: 711 | AD85: 712 | AE85: 712 | AF85: 713 | AG85: 713 | AH85: 714 | AI85: 714 | AJ85: 715 | AK85: 716 | AL85: 716 | AM85: 717 | AN85: 717 | AO85: 718 | AP85: 718 | AQ85: 719 | AR85: 720 | AS85: 720 | AT85: 721 | AU85: 721 | AV85: 722 | AW85: 722 | AX85: 723 | AY85: 724 | AZ85: 724 | BA85: 725 | BB85: 725 | BC85: 726 | BD85: 727 | BE85: 727 | BF85: 728 | BG85: 728 | BH85: 729 | BI85: 729 | BJ85: 730 | BK85: 731 | BL85: 731 | BM85: 732 | BN85: 732 | BO85: 733 | BP85: 734 | BQ85: 734 | BR85: 735 | BS85: 735 | BT85: 736 | BU85: 738 | BV85: 739 | BW85: 741 | BX85: 742 | BY85: 744 | BZ85: 746 | CA85: 747 | CB85: 749 | CC85: 751 | CD85: 752 | CE85: 754 | CF85: 756 | CG85: 757 | CH85: 759 | CI85: 761 | CJ85: 762 | CK85: 764 | CL85: 766 | CM85: 768 | CN85: 769 | CO85: 771 | CP85: 768 | CQ85: 773 | CR85: 763 | CS85: 768 | CT85: 743 | CU85: 747 | CV85: 745 | CW85: 742 | CX85: 725 | CY85: 701 | CZ85: 738 | DA85: 756 | DB85: 789 | DC85: 808 | DD85: 867 | DE85: 896 | DF85: 909 | DG85: 958 | DH85: 952 | DI85: 1138 | DJ85: 1131 | DK85: 1190 | DL85: 1183 | DM85: 1395 | DN85: 1305 | DO85: 1437 | DP85: 1149 | DQ85: 2015 | DR85: 1570 | DS85: 1580 | DT85: 1881 | DU85: 2001 | DV85: 2147 | DW85: 2094 | DX85: 2144 | DY85: 1966 | DZ85: 2031 | EA85: 2079 | EB85: 1763 | EC85: 1804 | ED85: 1853 | EE85: 1902 | EF85: 1952 | EG85: 2023 | EH85: 2095 | EI85: 2170 | EJ85: 1951 | EK85: 1906 | EL85: 1861 | EM85: 1818 | EN85: 1775 | EO85: 1733 | EP85: 1692 | EQ85: 1652 | ER85: 1435 | ES85: 1232 | ET85: 1287 | EU85: 1416 | EV85: 1682 | EW85: 1704 | EX85: 1634 | EY85: 1816 | EZ85: 1996 | FA85: 1822 | FB85: 2167 | FC85: 1936 | FD85: 2092 | FE85: 2145 | FF85: 2246 | FG85: 2267 | FH85: 2316 | FI85: 2334 | FJ85: 2322 | FK85: 2290 | FL85: 2230 | FM85: 2208 | FN85: 2177 | FO85: 2240 | FP85: 2455 | FQ85: 2527 | FR85: 2396 | FS85: 2458 | FT85: 2559 | FU85: 2190 | FV85: 2072 | FW85: 2085 | FX85: 2226 | FY85: 2130 | FZ85: 2090 | GA85: 1960 | GB85: 1766 | GC85: 1628 | GD85: 1710 | GE85: 1740 | GF85: 1778 | GG85: 1813 | GH85: 1865 | GI85: 1909 | GJ85: 1920 | GK85: 1965 | GL85: 1985 | GM85: 2024 | GN85: 2036 | GO85: 2066 | GP85: 2110 | GQ85: 2148 | GR85: 2199 | GS85: 2244 | GT85: 2273 | GU85: 2306 | GV85: 2350 | GW85: 2409 | GX85: 2479 | GY85: 2558 | GZ85: 2652 | HA85: 2751 | HB85: 2907 | HC85: 2934 | HD85: 3091 | HE85: 3446 | HF85: 3685 | HG85: 3873 | HH85: 3953 | HI85: 4099
A86: Gibraltar | B86: 1 | C86: 1 | D86: 1 | E86: 1 | F86: 1 | G86: 1 | H86: 1 | I86: 1 | J86: 1 | K86: 1 | L86: 1 | M86: 1 | N86: 1 | O86: 1 | P86: 1 | Q86: 1 | R86: 1 | S86: 1 | T86: 1 | U86: 1 | V86: 1 | W86: 1 | X86: 1 | Y86: 1 | Z86: 1 | AA86: 1 | AB86: 1 | AC86: 1 | AD86: 1 | AE86: 1 | AF86: 1 | AG86: 1 | AH86: 1 | AI86: 1 | AJ86: 1 | AK86: 1 | AL86: 1 | AM86: 1 | AN86: 1 | AO86: 1 | AP86: 1 | AQ86: 1 | AR86: 1 | AS86: 1 | AT86: 1 | AU86: 1 | AV86: 1 | AW86: 1 | AX86: 1 | AY86: 1 | AZ86: 1 | BA86: 1 | BB86: 1 | BC86: 1 | BD86: 1 | BE86: 1 | BF86: 1 | BG86: 1 | BH86: 1 | BI86: 1 | BJ86: 1 | BK86: 1 | BL86: 1 | BM86: 1 | BN86: 1 | BO86: 1 | BP86: 1 | BQ86: 1 | BR86: 1 | BS86: 1 | BT86: 1 | BU86: 1 | BV86: 1 | BW86: 1 | BX86: 1 | BY86: 1 | BZ86: 1 | CA86: 1 | CB86: 1 | CC86: 1 | CD86: 1 | CE86: 1 | CF86: 1 | CG86: 1 | CH86: 1 | CI86: 1 | CJ86: 1 | CK86: 1 | CL86: 1 | CM86: 1 | CN86: 1 | CO86: 1 | CP86: 1 | CQ86: 1 | CR86: 1 | CS86: 1 | CT86: 1 | CU86: 1 | CV86: 1 | CW86: 1 | CX86: 1 | CY86: 1 | CZ86: 1 | DA86: 1 | DB86: 1 | DC86: 1 | DD86: 1 | DE86: 1 | DF86: 1 | DG86: 1 | DH86: 1 | DI86: 1 | DJ86: 1 | DK86: 1 | DL86: 1 | DM86: 1 | DN86: 1 | DO86: 1 | DP86: 1 | DQ86: 1 | DR86: 1 | DS86: 1 | DT86: 1 | DU86: 1 | DV86: 1 | DW86: 1 | DX86: 1 | DY86: 1 | DZ86: 1 | EA86: 1 | EB86: 1 | EC86: 1 | ED86: 1 | EE86: 1 | EF86: 1 | EG86: 1 | EH86: 1 | EI86: 1 | EJ86: 1 | EK86: 1 | EL86: 1 | EM86: 1 | EN86: 1 | EO86: 1 | EP86: 1 | EQ86: 1 | ER86: 1 | ES86: 1 | ET86: 1 | EU86: 1 | EV86: 1 | EW86: 1 | EX86: 1 | EY86: 1 | EZ86: 1 | FA86: 1 | FB86: 1 | FC86: 1 | FD86: 1 | FE86: 1 | FF86: 1 | FG86: 1 | FH86: 1 | FI86: 1 | FJ86: 1 | FK86: 1 | FL86: 1 | FM86: 1 | FN86: 1 | FO86: 1 | FP86: 1 | FQ86: 1 | FR86: 1 | FS86: 1 | FT86: 1 | FU86: 1 | FV86: 1 | FW86: 1 | FX86: 1 | FY86: 1 | FZ86: 1 | GA86: 1 | GB86: 1 | GC86: 1 | GD86: 1 | GE86: 1 | GF86: 1 | GG86: 1 | GH86: 1 | GI86: 1 | GJ86: 1 | GK86: 1 | GL86: 1 | GM86: 1 | GN86: 1 | GO86: 1 | GP86: 1 | GQ86: 1 | GR86: 1 | GS86: 1 | GT86: 1 | GU86: 1 | GV86: 1 | GW86: 1 | GX86: 1 | GY86: 1 | GZ86: 1 | HA86: 1 | HB86: 1 | HC86: 1 | HD86: 1 | HE86: 1 | HF86: 1 | HG86: 1 | HH86: 1 | HI86: 1
A87: Greece | B87: 1371 | C87: 1374 | D87: 1376 | E87: 1378 | F87: 1381 | G87: 1383 | H87: 1386 | I87: 1388 | J87: 1390 | K87: 1393 | L87: 1395 | M87: 1398 | N87: 1400 | O87: 1402 | P87: 1405 | Q87: 1407 | R87: 1410 | S87: 1412 | T87: 1415 | U87: 1417 | V87: 1420 | W87: 1431 | X87: 1443 | Y87: 1455 | Z87: 1467 | AA87: 1479 | AB87: 1491 | AC87: 1503 | AD87: 1516 | AE87: 1528 | AF87: 1541 | AG87: 1554 | AH87: 1566 | AI87: 1579 | AJ87: 1592 | AK87: 1605 | AL87: 1619 | AM87: 1632 | AN87: 1645 | AO87: 1659 | AP87: 1672 | AQ87: 1686 | AR87: 1700 | AS87: 1714 | AT87: 1728 | AU87: 1742 | AV87: 1757 | AW87: 1771 | AX87: 1786 | AY87: 1801 | AZ87: 1815 | BA87: 1822 | BB87: 1830 | BC87: 1837 | BD87: 1844 | BE87: 1851 | BF87: 1859 | BG87: 1866 | BH87: 1873 | BI87: 1881 | BJ87: 1888 | BK87: 1895 | BL87: 1903 | BM87: 1910 | BN87: 1918 | BO87: 1925 | BP87: 1933 | BQ87: 1940 | BR87: 1948 | BS87: 1956 | BT87: 1963 | BU87: 1993 | BV87: 2022 | BW87: 2052 | BX87: 2083 | BY87: 2113 | BZ87: 2145 | CA87: 2177 | CB87: 2209 | CC87: 2242 | CD87: 2275 | CE87: 2309 | CF87: 2343 | CG87: 2378 | CH87: 2413 | CI87: 2449 | CJ87: 2485 | CK87: 2522 | CL87: 2560 | CM87: 2598 | CN87: 2636 | CO87: 2673 | CP87: 2710 | CQ87: 2748 | CR87: 2786 | CS87: 2825 | CT87: 2865 | CU87: 2905 | CV87: 2945 | CW87: 2986 | CX87: 3028 | CY87: 3067 | CZ87: 3106 | DA87: 3146 | DB87: 3186 | DC87: 3227 | DD87: 3269 | DE87: 3311 | DF87: 3353 | DG87: 3396 | DH87: 3440 | DI87: 3470 | DJ87: 3500 | DK87: 3530 | DL87: 3604 | DM87: 3680 | DN87: 3757 | DO87: 3836 | DP87: 3916 | DQ87: 3998 | DR87: 4081 | DS87: 4159 | DT87: 4239 | DU87: 4273 | DV87: 4403 | DW87: 4562 | DX87: 4628 | DY87: 4696 | DZ87: 4708 | EA87: 4916 | EB87: 4723 | EC87: 4449 | ED87: 4754 | EE87: 4958 | EF87: 4990 | EG87: 5102 | EH87: 5036 | EI87: 5662 | EJ87: 5459 | EK87: 5365 | EL87: 4510 | EM87: 3792 | EN87: 3188 | EO87: 2673 | EP87: 2243 | EQ87: 1881 | ER87: 2776 | ES87: 3524 | ET87: 3589 | EU87: 3723 | EV87: 3811 | EW87: 4098 | EX87: 4076 | EY87: 4581 | EZ87: 4673 | FA87: 4978 | FB87: 5355 | FC87: 5656 | FD87: 5860 | FE87: 6011 | FF87: 6219 | FG87: 6708 | FH87: 6920 | FI87: 7598 | FJ87: 8197 | FK87: 8931 | FL87: 9414 | FM87: 9822 | FN87: 10458 | FO87: 11466 | FP87: 12366 | FQ87: 13227 | FR87: 14818 | FS87: 15373 | FT87: 14801 | FU87: 15594 | FV87: 16413 | FW87: 16765 | FX87: 17707 | FY87: 18184 | FZ87: 18373 | GA87: 18270 | GB87: 18286 | GC87: 18309 | GD87: 18776 | GE87: 19345 | GF87: 19657 | GG87: 19575 | GH87: 20486 | GI87: 21229 | GJ87: 21085 | GK87: 21528 | GL87: 21442 | GM87: 20906 | GN87: 21147 | GO87: 21426 | GP87: 21905 | GQ87: 22739 | GR87: 23535 | GS87: 24152 | GT87: 25030 | GU87: 25884 | GV87: 26625 | GW87: 28303 | GX87: 29604 | GY87: 29768 | GZ87: 31399 | HA87: 32408 | HB87: 32197 | HC87: 30780 | HD87: 29190 | HE87: 26675 | HF87: 24991 | HG87: 24159 | HH87: 24502 | HI87: 25430
A88: Greenland | B88: 393 | C88: 393 | D88: 393 | E88: 393 | F88: 394 | G88: 394 | H88: 394 | I88: 394 | J88: 394 | K88: 394 | L88: 394 | M88: 394 | N88: 394 | O88: 394 | P88: 394 | Q88: 394 | R88: 394 | S88: 394 | T88: 394 | U88: 394 | V88: 394 | W88: 399 | X88: 403 | Y88: 407 | Z88: 412 | AA88: 416 | AB88: 421 | AC88: 425 | AD88: 430 | AE88: 434 | AF88: 439 | AG88: 444 | AH88: 448 | AI88: 453 | AJ88: 458 | AK88: 463 | AL88: 468 | AM88: 473 | AN88: 478 | AO88: 483 | AP88: 488 | AQ88: 493 | AR88: 499 | AS88: 504 | AT88: 509 | AU88: 515 | AV88: 520 | AW88: 526 | AX88: 532 | AY88: 537 | AZ88: 543 | BA88: 549 | BB88: 555 | BC88: 561 | BD88: 567 | BE88: 573 | BF88: 579 | BG88: 585 | BH88: 591 | BI88: 598 | BJ88: 604 | BK88: 611 | BL88: 617 | BM88: 624 | BN88: 630 | BO88: 637 | BP88: 644 | BQ88: 651 | BR88: 658 | BS88: 665 | BT88: 672 | BU88: 679 | BV88: 687 | BW88: 694 | BX88: 701 | BY88: 709 | BZ88: 716 | CA88: 724 | CB88: 732 | CC88: 740 | CD88: 748 | CE88: 756 | CF88: 764 | CG88: 772 | CH88: 780 | CI88: 789 | CJ88: 797 | CK88: 806 | CL88: 814 | CM88: 823 | CN88: 832 | CO88: 841 | CP88: 850 | CQ88: 859 | CR88: 868 | CS88: 877 | CT88: 887 | CU88: 896 | CV88: 906 | CW88: 915 | CX88: 925 | CY88: 935 | CZ88: 945 | DA88: 955 | DB88: 966 | DC88: 976 | DD88: 986 | DE88: 997 | DF88: 1008 | DG88: 1018 | DH88: 1029 | DI88: 1040 | DJ88: 1051 | DK88: 1063 | DL88: 1096 | DM88: 1130 | DN88: 1165 | DO88: 1201 | DP88: 1239 | DQ88: 1277 | DR88: 1317 | DS88: 1359 | DT88: 1402 | DU88: 1446 | DV88: 1492 | DW88: 1539 | DX88: 1587 | DY88: 1637 | DZ88: 1689 | EA88: 1742 | EB88: 1798 | EC88: 1854 | ED88: 1913 | EE88: 1973 | EF88: 2035 | EG88: 2100 | EH88: 2166 | EI88: 2234 | EJ88: 2305 | EK88: 2377 | EL88: 2452 | EM88: 2530 | EN88: 2609 | EO88: 2692 | EP88: 2776 | EQ88: 2864 | ER88: 2954 | ES88: 3047 | ET88: 3143 | EU88: 3242 | EV88: 3344 | EW88: 3532 | EX88: 3730 | EY88: 3940 | EZ88: 4161 | FA88: 4394 | FB88: 4641 | FC88: 4901 | FD88: 5176 | FE88: 5466 | FF88: 5773 | FG88: 6097 | FH88: 6439 | FI88: 6800 | FJ88: 7181 | FK88: 7583 | FL88: 8009 | FM88: 8457 | FN88: 8932 | FO88: 9432 | FP88: 9961 | FQ88: 11000 | FR88: 11470 | FS88: 12088 | FT88: 12655 | FU88: 12652 | FV88: 13356 | FW88: 14522 | FX88: 15396 | FY88: 16124 | FZ88: 17449 | GA88: 17429 | GB88: 16479 | GC88: 16832 | GD88: 15754 | GE88: 16134 | GF88: 17089 | GG88: 17848 | GH88: 18680 | GI88: 19780 | GJ88: 17371 | GK88: 17295 | GL88: 16391 | GM88: 15569 | GN88: 16500 | GO88: 17117 | GP88: 17372 | GQ88: 17613 | GR88: 18955 | GS88: 19182 | GT88: 20499 | GU88: 20699 | GV88: 20426 | GW88: 20278 | GX88: 21086 | GY88: 21846 | GZ88: 23031 | HA88: 23858 | HB88: 24413 | HC88: 23789 | HD88: 24966 | HE88: 25730 | HF88: 26213 | HG88: 26688 | HH88: 27216 | HI88: 27763
A89: Grenada | B89: 959 | C89: 959 | D89: 959 | E89: 959 | F89: 959 | G89: 959 | H89: 959 | I89: 960 | J89: 960 | K89: 960 | L89: 960 | M89: 960 | N89: 960 | O89: 960 | P89: 961 | Q89: 961 | R89: 961 | S89: 961 | T89: 961 | U89: 961 | V89: 961 | W89: 965 | X89: 970 | Y89: 974 | Z89: 978 | AA89: 982 | AB89: 986 | AC89: 990 | AD89: 995 | AE89: 999 | AF89: 1003 | AG89: 1007 | AH89: 1012 | AI89: 1016 | AJ89: 1020 | AK89: 1025 | AL89: 1029 | AM89: 1033 | AN89: 1038 | AO89: 1042 | AP89: 1046 | AQ89: 1051 | AR89: 1055 | AS89: 1060 | AT89: 1064 | AU89: 1069 | AV89: 1073 | AW89: 1078 | AX89: 1083 | AY89: 1087 | AZ89: 1092 | BA89: 1096 | BB89: 1101 | BC89: 1106 | BD89: 1111 | BE89: 1115 | BF89: 1120 | BG89: 1125 | BH89: 1130 | BI89: 1134 | BJ89: 1139 | BK89: 1144 | BL89: 1149 | BM89: 1154 | BN89: 1159 | BO89: 1164 | BP89: 1168 | BQ89: 1173 | BR89: 1178 | BS89: 1183 | BT89: 1188 | BU89: 1194 | BV89: 1199 | BW89: 1204 | BX89: 1209 | BY89: 1214 | BZ89: 1219 | CA89: 1224 | CB89: 1229 | CC89: 1235 | CD89: 1240 | CE89: 1245 | CF89: 1251 | CG89: 1256 | CH89: 1261 | CI89: 1267 | CJ89: 1272 | CK89: 1277 | CL89: 1283 | CM89: 1288 | CN89: 1294 | CO89: 1299 | CP89: 1305 | CQ89: 1310 | CR89: 1316 | CS89: 1321 | CT89: 1327 | CU89: 1333 | CV89: 1338 | CW89: 1344 | CX89: 1350 | CY89: 1355 | CZ89: 1361 | DA89: 1367 | DB89: 1373 | DC89: 1379 | DD89: 1384 | DE89: 1390 | DF89: 1396 | DG89: 1402 | DH89: 1408 | DI89: 1414 | DJ89: 1420 | DK89: 1426 | DL89: 1432 | DM89: 1438 | DN89: 1444 | DO89: 1451 | DP89: 1457 | DQ89: 1463 | DR89: 1469 | DS89: 1476 | DT89: 1482 | DU89: 1489 | DV89: 1496 | DW89: 1503 | DX89: 1509 | DY89: 1516 | DZ89: 1523 | EA89: 1530 | EB89: 1537 | EC89: 1544 | ED89: 1550 | EE89: 1557 | EF89: 1564 | EG89: 1571 | EH89: 1578 | EI89: 1585 | EJ89: 1592 | EK89: 1599 | EL89: 1607 | EM89: 1614 | EN89: 1621 | EO89: 1628 | EP89: 1635 | EQ89: 1642 | ER89: 1650 | ES89: 1657 | ET89: 1664 | EU89: 1672 | EV89: 1679 | EW89: 1718 | EX89: 1758 | EY89: 1799 | EZ89: 1841 | FA89: 1884 | FB89: 1927 | FC89: 1972 | FD89: 2018 | FE89: 2065 | FF89: 2113 | FG89: 2162 | FH89: 2212 | FI89: 2263 | FJ89: 2316 | FK89: 2370 | FL89: 2425 | FM89: 2481 | FN89: 2539 | FO89: 2597 | FP89: 2658 | FQ89: 2852 | FR89: 3074 | FS89: 3354 | FT89: 3588 | FU89: 3724 | FV89: 4106 | FW89: 4401 | FX89: 4820 | FY89: 4964 | FZ89: 4949 | GA89: 4945 | GB89: 4959 | GC89: 4888 | GD89: 5019 | GE89: 5253 | GF89: 5756 | GG89: 6341 | GH89: 6583 | GI89: 7057 | GJ89: 7488 | GK89: 7646 | GL89: 7565 | GM89: 7283 | GN89: 7401 | GO89: 7522 | GP89: 7785 | GQ89: 8117 | GR89: 8633 | GS89: 9489 | GT89: 9650 | GU89: 9433 | GV89: 9734 | GW89: 10627 | GX89: 10529 | GY89: 11892 | GZ89: 11380 | HA89: 12042 | HB89: 12116 | HC89: 11273 | HD89: 11178 | HE89: 11219 | HF89: 11046 | HG89: 11273 | HH89: 11400 | HI89: 11593
A90: Guadeloupe | B90: 1 | C90: 1 | D90: 1 | E90: 1 | F90: 1 | G90: 1 | H90: 1 | I90: 1 | J90: 1 | K90: 1 | L90: 1 | M90: 1 | N90: 1 | O90: 1 | P90: 1 | Q90: 1 | R90: 1 | S90: 1 | T90: 1 | U90: 1 | V90: 1 | W90: 1 | X90: 1 | Y90: 1 | Z90: 1 | AA90: 1 | AB90: 1 | AC90: 1 | AD90: 1 | AE90: 1 | AF90: 1 | AG90: 1 | AH90: 1 | AI90: 1 | AJ90: 1 | AK90: 1 | AL90: 1 | AM90: 1 | AN90: 1 | AO90: 1 | AP90: 1 | AQ90: 1 | AR90: 1 | AS90: 1 | AT90: 1 | AU90: 1 | AV90: 1 | AW90: 1 | AX90: 1 | AY90: 1 | AZ90: 1 | BA90: 1 | BB90: 1 | BC90: 1 | BD90: 1 | BE90: 1 | BF90: 1 | BG90: 1 | BH90: 1 | BI90: 1 | BJ90: 1 | BK90: 1 | BL90: 1 | BM90: 1 | BN90: 1 | BO90: 1 | BP90: 1 | BQ90: 1 | BR90: 1 | BS90: 1 | BT90: 1 | BU90: 1 | BV90: 1 | BW90: 1 | BX90: 1 | BY90: 1 | BZ90: 1 | CA90: 1 | CB90: 1 | CC90: 1 | CD90: 1 | CE90: 1 | CF90: 1 | CG90: 1 | CH90: 1 | CI90: 1 | CJ90: 1 | CK90: 1 | CL90: 1 | CM90: 1 | CN90: 1 | CO90: 1 | CP90: 1 | CQ90: 1 | CR90: 1 | CS90: 1 | CT90: 1 | CU90: 1 | CV90: 1 | CW90: 1 | CX90: 1 | CY90: 1 | CZ90: 1 | DA90: 1 | DB90: 1 | DC90: 1 | DD90: 1 | DE90: 1 | DF90: 1 | DG90: 1 | DH90: 1 | DI90: 1 | DJ90: 1 | DK90: 1 | DL90: 1 | DM90: 1 | DN90: 1 | DO90: 1 | DP90: 1 | DQ90: 1 | DR90: 1 | DS90: 1 | DT90: 1 | DU90: 1 | DV90: 1 | DW90: 1 | DX90: 1 | DY90: 1 | DZ90: 1 | EA90: 1 | EB90: 1 | EC90: 1 | ED90: 1 | EE90: 1 | EF90: 1 | EG90: 1 | EH90: 1 | EI90: 1 | EJ90: 1 | EK90: 1 | EL90: 1 | EM90: 1 | EN90: 1 | EO90: 1 | EP90: 1 | EQ90: 1 | ER90: 1 | ES90: 1 | ET90: 1 | EU90: 1 | EV90: 1 | EW90: 1 | EX90: 1 | EY90: 1 | EZ90: 1 | FA90: 1 | FB90: 1 | FC90: 1 | FD90: 1 | FE90: 1 | FF90: 1 | FG90: 1 | FH90: 1 | FI90: 1 | FJ90: 1 | FK90: 1 | FL90: 1 | FM90: 1 | FN90: 1 | FO90: 1 | FP90: 1 | FQ90: 1 | FR90: 1 | FS90: 1 | FT90: 1 | FU90: 1 | FV90: 1 | FW90: 1 | FX90: 1 | FY90: 1 | FZ90: 1 | GA90: 1 | GB90: 1 | GC90: 1 | GD90: 1 | GE90: 1 | GF90: 1 | GG90: 1 | GH90: 1 | GI90: 1 | GJ90: 1 | GK90: 1 | GL90: 1 | GM90: 1 | GN90: 1 | GO90: 1 | GP90: 1 | GQ90: 1 | GR90: 1 | GS90: 1 | GT90: 1 | GU90: 1 | GV90: 1 | GW90: 1 | GX90: 1 | GY90: 1 | GZ90: 1 | HA90: 1 | HB90: 1 | HC90: 1 | HD90: 1 | HE90: 1 | HF90: 1 | HG90: 1 | HH90: 1 | HI90: 1
A91: Guam | B91: 1 | C91: 1 | D91: 1 | E91: 1 | F91: 1 | G91: 1 | H91: 1 | I91: 1 | J91: 1 | K91: 1 | L91: 1 | M91: 1 | N91: 1 | O91: 1 | P91: 1 | Q91: 1 | R91: 1 | S91: 1 | T91: 1 | U91: 1 | V91: 1 | W91: 1 | X91: 1 | Y91: 1 | Z91: 1 | AA91: 1 | AB91: 1 | AC91: 1 | AD91: 1 | AE91: 1 | AF91: 1 | AG91: 1 | AH91: 1 | AI91: 1 | AJ91: 1 | AK91: 1 | AL91: 1 | AM91: 1 | AN91: 1 | AO91: 1 | AP91: 1 | AQ91: 1 | AR91: 1 | AS91: 1 | AT91: 1 | AU91: 1 | AV91: 1 | AW91: 1 | AX91: 1 | AY91: 1 | AZ91: 1 | BA91: 1 | BB91: 1 | BC91: 1 | BD91: 1 | BE91: 1 | BF91: 1 | BG91: 1 | BH91: 1 | BI91: 1 | BJ91: 1 | BK91: 1 | BL91: 1 | BM91: 1 | BN91: 1 | BO91: 1 | BP91: 1 | BQ91: 1 | BR91: 1 | BS91: 1 | BT91: 1 | BU91: 1 | BV91: 1 | BW91: 1 | BX91: 1 | BY91: 1 | BZ91: 1 | CA91: 1 | CB91: 1 | CC91: 1 | CD91: 1 | CE91: 1 | CF91: 1 | CG91: 1 | CH91: 1 | CI91: 1 | CJ91: 1 | CK91: 1 | CL91: 1 | CM91: 1 | CN91: 1 | CO91: 1 | CP91: 1 | CQ91: 1 | CR91: 1 | CS91: 1 | CT91: 1 | CU91: 1 | CV91: 1 | CW91: 1 | CX91: 1 | CY91: 1 | CZ91: 1 | DA91: 1 | DB91: 1 | DC91: 1 | DD91: 1 | DE91: 1 | DF91: 1 | DG91: 1 | DH91: 1 | DI91: 1 | DJ91: 1 | DK91: 1 | DL91: 1 | DM91: 1 | DN91: 1 | DO91: 1 | DP91: 1 | DQ91: 1 | DR91: 1 | DS91: 1 | DT91: 1 | DU91: 1 | DV91: 1 | DW91: 1 | DX91: 1 | DY91: 1 | DZ91: 1 | EA91: 1 | EB91: 1 | EC91: 1 | ED91: 1 | EE91: 1 | EF91: 1 | EG91: 1 | EH91: 1 | EI91: 1 | EJ91: 1 | EK91: 1 | EL91: 1 | EM91: 1 | EN91: 1 | EO91: 1 | EP91: 1 | EQ91: 1 | ER91: 1 | ES91: 1 | ET91: 1 | EU91: 1 | EV91: 1 | EW91: 1 | EX91: 1 | EY91: 1 | EZ91: 1 | FA91: 1 | FB91: 1 | FC91: 1 | FD91: 1 | FE91: 1 | FF91: 1 | FG91: 1 | FH91: 1 | FI91: 1 | FJ91: 1 | FK91: 1 | FL91: 1 | FM91: 1 | FN91: 1 | FO91: 1 | FP91: 1 | FQ91: 1 | FR91: 1 | FS91: 1 | FT91: 1 | FU91: 1 | FV91: 1 | FW91: 1 | FX91: 1 | FY91: 1 | FZ91: 1 | GA91: 1 | GB91: 1 | GC91: 1 | GD91: 1 | GE91: 1 | GF91: 1 | GG91: 1 | GH91: 1 | GI91: 1 | GJ91: 1 | GK91: 1 | GL91: 1 | GM91: 1 | GN91: 1 | GO91: 1 | GP91: 1 | GQ91: 1 | GR91: 1 | GS91: 1 | GT91: 1 | GU91: 1 | GV91: 1 | GW91: 1 | GX91: 1 | GY91: 1 | GZ91: 1 | HA91: 1 | HB91: 1 | HC91: 1 | HD91: 1 | HE91: 1 | HF91: 1 | HG91: 1 | HH91: 1 | HI91: 1
A92: Guatemala | B92: 857 | C92: 857 | D92: 857 | E92: 857 | F92: 858 | G92: 858 | H92: 858 | I92: 858 | J92: 858 | K92: 858 | L92: 858 | M92: 858 | N92: 859 | O92: 859 | P92: 859 | Q92: 859 | R92: 859 | S92: 859 | T92: 859 | U92: 860 | V92: 860 | W92: 867 | X92: 874 | Y92: 881 | Z92: 888 | AA92: 895 | AB92: 903 | AC92: 910 | AD92: 917 | AE92: 925 | AF92: 932 | AG92: 940 | AH92: 948 | AI92: 956 | AJ92: 963 | AK92: 971 | AL92: 979 | AM92: 987 | AN92: 995 | AO92: 1003 | AP92: 1011 | AQ92: 1020 | AR92: 1028 | AS92: 1036 | AT92: 1045 | AU92: 1053 | AV92: 1062 | AW92: 1071 | AX92: 1079 | AY92: 1088 | AZ92: 1097 | BA92: 1106 | BB92: 1115 | BC92: 1124 | BD92: 1133 | BE92: 1143 | BF92: 1152 | BG92: 1161 | BH92: 1171 | BI92: 1180 | BJ92: 1190 | BK92: 1200 | BL92: 1210 | BM92: 1220 | BN92: 1229 | BO92: 1240 | BP92: 1250 | BQ92: 1260 | BR92: 1270 | BS92: 1281 | BT92: 1291 | BU92: 1302 | BV92: 1312 | BW92: 1323 | BX92: 1334 | BY92: 1345 | BZ92: 1356 | CA92: 1367 | CB92: 1378 | CC92: 1389 | CD92: 1400 | CE92: 1412 | CF92: 1423 | CG92: 1435 | CH92: 1447 | CI92: 1458 | CJ92: 1470 | CK92: 1482 | CL92: 1494 | CM92: 1507 | CN92: 1519 | CO92: 1531 | CP92: 1544 | CQ92: 1556 | CR92: 1569 | CS92: 1582 | CT92: 1595 | CU92: 1608 | CV92: 1621 | CW92: 1634 | CX92: 1648 | CY92: 1661 | CZ92: 1675 | DA92: 1688 | DB92: 1702 | DC92: 1716 | DD92: 1730 | DE92: 1744 | DF92: 1758 | DG92: 1773 | DH92: 1787 | DI92: 1802 | DJ92: 1817 | DK92: 1831 | DL92: 1846 | DM92: 1861 | DN92: 1877 | DO92: 1892 | DP92: 1907 | DQ92: 1923 | DR92: 1939 | DS92: 2105 | DT92: 1966 | DU92: 2138 | DV92: 2287 | DW92: 2220 | DX92: 2218 | DY92: 2338 | DZ92: 2365 | EA92: 2611 | EB92: 2694 | EC92: 2457 | ED92: 2092 | EE92: 2057 | EF92: 2289 | EG92: 2591 | EH92: 3487 | EI92: 3336 | EJ92: 3361 | EK92: 3711 | EL92: 4140 | EM92: 4263 | EN92: 4222 | EO92: 2766 | EP92: 2624 | EQ92: 2608 | ER92: 3014 | ES92: 2971 | ET92: 2989 | EU92: 3172 | EV92: 3131 | EW92: 3083 | EX92: 3055 | EY92: 3075 | EZ92: 3041 | FA92: 3024 | FB92: 3202 | FC92: 3284 | FD92: 3336 | FE92: 3397 | FF92: 3377 | FG92: 3421 | FH92: 3441 | FI92: 3661 | FJ92: 3722 | FK92: 3815 | FL92: 3955 | FM92: 4044 | FN92: 4320 | FO92: 4441 | FP92: 4606 | FQ92: 4766 | FR92: 5012 | FS92: 5242 | FT92: 5460 | FU92: 5450 | FV92: 5730 | FW92: 6047 | FX92: 6215 | FY92: 6373 | FZ92: 6475 | GA92: 6361 | GB92: 5953 | GC92: 5662 | GD92: 5534 | GE92: 5345 | GF92: 5198 | GG92: 5225 | GH92: 5269 | GI92: 5314 | GJ92: 5315 | GK92: 5383 | GL92: 5514 | GM92: 5598 | GN92: 5691 | GO92: 5836 | GP92: 5873 | GQ92: 5992 | GR92: 6149 | GS92: 6239 | GT92: 6313 | GU92: 6305 | GV92: 6389 | GW92: 6390 | GX92: 6429 | GY92: 6475 | GZ92: 6658 | HA92: 6906 | HB92: 6960 | HC92: 6826 | HD92: 6849 | HE92: 6957 | HF92: 6985 | HG92: 7063 | HH92: 7181 | HI92: 7279
A93: Guernsey | B93: 1 | C93: 1 | D93: 1 | E93: 1 | F93: 1 | G93: 1 | H93: 1 | I93: 1 | J93: 1 | K93: 1 | L93: 1 | M93: 1 | N93: 1 | O93: 1 | P93: 1 | Q93: 1 | R93: 1 | S93: 1 | T93: 1 | U93: 1 | V93: 1 | W93: 1 | X93: 1 | Y93: 1 | Z93: 1 | AA93: 1 | AB93: 1 | AC93: 1 | AD93: 1 | AE93: 1 | AF93: 1 | AG93: 1 | AH93: 1 | AI93: 1 | AJ93: 1 | AK93: 1 | AL93: 1 | AM93: 1 | AN93: 1 | AO93: 1 | AP93: 1 | AQ93: 1 | AR93: 1 | AS93: 1 | AT93: 1 | AU93: 1 | AV93: 1 | AW93: 1 | AX93: 1 | AY93: 1 | AZ93: 1 | BA93: 1 | BB93: 1 | BC93: 1 | BD93: 1 | BE93: 1 | BF93: 1 | BG93: 1 | BH93: 1 | BI93: 1 | BJ93: 1 | BK93: 1 | BL93: 1 | BM93: 1 | BN93: 1 | BO93: 1 | BP93: 1 | BQ93: 1 | BR93: 1 | BS93: 1 | BT93: 1 | BU93: 1 | BV93: 1 | BW93: 1 | BX93: 1 | BY93: 1 | BZ93: 1 | CA93: 1 | CB93: 1 | CC93: 1 | CD93: 1 | CE93: 1 | CF93: 1 | CG93: 1 | CH93: 1 | CI93: 1 | CJ93: 1 | CK93: 1 | CL93: 1 | CM93: 1 | CN93: 1 | CO93: 1 | CP93: 1 | CQ93: 1 | CR93: 1 | CS93: 1 | CT93: 1 | CU93: 1 | CV93: 1 | CW93: 1 | CX93: 1 | CY93: 1 | CZ93: 1 | DA93: 1 | DB93: 1 | DC93: 1 | DD93: 1 | DE93: 1 | DF93: 1 | DG93: 1 | DH93: 1 | DI93: 1 | DJ93: 1 | DK93: 1 | DL93: 1 | DM93: 1 | DN93: 1 | DO93: 1 | DP93: 1 | DQ93: 1 | DR93: 1 | DS93: 1 | DT93: 1 | DU93: 1 | DV93: 1 | DW93: 1 | DX93: 1 | DY93: 1 | DZ93: 1 | EA93: 1 | EB93: 1 | EC93: 1 | ED93: 1 | EE93: 1 | EF93: 1 | EG93: 1 | EH93: 1 | EI93: 1 | EJ93: 1 | EK93: 1 | EL93: 1 | EM93: 1 | EN93: 1 | EO93: 1 | EP93: 1 | EQ93: 1 | ER93: 1 | ES93: 1 | ET93: 1 | EU93: 1 | EV93: 1 | EW93: 1 | EX93: 1 | EY93: 1 | EZ93: 1 | FA93: 1 | FB93: 1 | FC93: 1 | FD93: 1 | FE93: 1 | FF93: 1 | FG93: 1 | FH93: 1 | FI93: 1 | FJ93: 1 | FK93: 1 | FL93: 1 | FM93: 1 | FN93: 1 | FO93: 1 | FP93: 1 | FQ93: 1 | FR93: 1 | FS93: 1 | FT93: 1 | FU93: 1 | FV93: 1 | FW93: 1 | FX93: 1 | FY93: 1 | FZ93: 1 | GA93: 1 | GB93: 1 | GC93: 1 | GD93: 1 | GE93: 1 | GF93: 1 | GG93: 1 | GH93: 1 | GI93: 1 | GJ93: 1 | GK93: 1 | GL93: 1 | GM93: 1 | GN93: 1 | GO93: 1 | GP93: 1 | GQ93: 1 | GR93: 1 | GS93: 1 | GT93: 1 | GU93: 1 | GV93: 1 | GW93: 1 | GX93: 1 | GY93: 1 | GZ93: 1 | HA93: 1 | HB93: 1 | HC93: 1 | HD93: 1 | HE93: 1 | HF93: 1 | HG93: 1 | HH93: 1 | HI93: 1
A94: Guinea | B94: 450 | C94: 450 | D94: 450 | E94: 450 | F94: 450 | G94: 451 | H94: 451 | I94: 451 | J94: 451 | K94: 451 | L94: 451 | M94: 451 | N94: 451 | O94: 451 | P94: 451 | Q94: 451 | R94: 451 | S94: 451 | T94: 451 | U94: 451 | V94: 452 | W94: 452 | X94: 453 | Y94: 454 | Z94: 455 | AA94: 456 | AB94: 457 | AC94: 458 | AD94: 459 | AE94: 460 | AF94: 461 | AG94: 462 | AH94: 463 | AI94: 464 | AJ94: 465 | AK94: 466 | AL94: 467 | AM94: 467 | AN94: 468 | AO94: 469 | AP94: 470 | AQ94: 471 | AR94: 472 | AS94: 473 | AT94: 474 | AU94: 475 | AV94: 476 | AW94: 477 | AX94: 478 | AY94: 479 | AZ94: 480 | BA94: 481 | BB94: 482 | BC94: 483 | BD94: 484 | BE94: 485 | BF94: 486 | BG94: 487 | BH94: 488 | BI94: 489 | BJ94: 490 | BK94: 491 | BL94: 492 | BM94: 493 | BN94: 494 | BO94: 495 | BP94: 496 | BQ94: 497 | BR94: 498 | BS94: 499 | BT94: 500 | BU94: 501 | BV94: 502 | BW94: 503 | BX94: 504 | BY94: 505 | BZ94: 506 | CA94: 507 | CB94: 508 | CC94: 509 | CD94: 510 | CE94: 511 | CF94: 513 | CG94: 514 | CH94: 515 | CI94: 516 | CJ94: 517 | CK94: 518 | CL94: 519 | CM94: 520 | CN94: 521 | CO94: 522 | CP94: 523 | CQ94: 524 | CR94: 525 | CS94: 526 | CT94: 527 | CU94: 528 | CV94: 530 | CW94: 531 | CX94: 532 | CY94: 533 | CZ94: 534 | DA94: 535 | DB94: 536 | DC94: 537 | DD94: 538 | DE94: 539 | DF94: 540 | DG94: 542 | DH94: 543 | DI94: 544 | DJ94: 545 | DK94: 546 | DL94: 547 | DM94: 548 | DN94: 549 | DO94: 551 | DP94: 552 | DQ94: 553 | DR94: 554 | DS94: 556 | DT94: 558 | DU94: 560 | DV94: 562 | DW94: 564 | DX94: 566 | DY94: 568 | DZ94: 570 | EA94: 572 | EB94: 574 | EC94: 576 | ED94: 578 | EE94: 580 | EF94: 582 | EG94: 584 | EH94: 586 | EI94: 588 | EJ94: 590 | EK94: 592 | EL94: 594 | EM94: 596 | EN94: 599 | EO94: 601 | EP94: 603 | EQ94: 605 | ER94: 607 | ES94: 609 | ET94: 611 | EU94: 613 | EV94: 615 | EW94: 643 | EX94: 654 | EY94: 669 | EZ94: 699 | FA94: 713 | FB94: 730 | FC94: 745 | FD94: 755 | FE94: 786 | FF94: 806 | FG94: 846 | FH94: 893 | FI94: 831 | FJ94: 870 | FK94: 914 | FL94: 917 | FM94: 929 | FN94: 940 | FO94: 950 | FP94: 966 | FQ94: 977 | FR94: 979 | FS94: 1003 | FT94: 1053 | FU94: 1076 | FV94: 1159 | FW94: 1162 | FX94: 1170 | FY94: 1149 | FZ94: 1166 | GA94: 1149 | GB94: 1147 | GC94: 1137 | GD94: 1117 | GE94: 1085 | GF94: 1077 | GG94: 1085 | GH94: 1122 | GI94: 1139 | GJ94: 1128 | GK94: 1097 | GL94: 1068 | GM94: 1059 | GN94: 1046 | GO94: 1049 | GP94: 1061 | GQ94: 1089 | GR94: 1107 | GS94: 1130 | GT94: 1139 | GU94: 1161 | GV94: 1200 | GW94: 1194 | GX94: 1200 | GY94: 1210 | GZ94: 1212 | HA94: 1203 | HB94: 1230 | HC94: 1194 | HD94: 1185 | HE94: 1200 | HF94: 1216 | HG94: 1213 | HH94: 1179 | HI94: 1225
A95: Guinea-Bissau | B95: 777 | C95: 777 | D95: 777 | E95: 777 | F95: 778 | G95: 778 | H95: 778 | I95: 778 | J95: 778 | K95: 778 | L95: 778 | M95: 778 | N95: 779 | O95: 779 | P95: 779 | Q95: 779 | R95: 779 | S95: 779 | T95: 779 | U95: 779 | V95: 779 | W95: 780 | X95: 781 | Y95: 781 | Z95: 782 | AA95: 783 | AB95: 783 | AC95: 784 | AD95: 785 | AE95: 785 | AF95: 786 | AG95: 786 | AH95: 787 | AI95: 788 | AJ95: 788 | AK95: 789 | AL95: 790 | AM95: 790 | AN95: 791 | AO95: 792 | AP95: 792 | AQ95: 793 | AR95: 793 | AS95: 794 | AT95: 795 | AU95: 795 | AV95: 796 | AW95: 797 | AX95: 797 | AY95: 798 | AZ95: 799 | BA95: 799 | BB95: 800 | BC95: 801 | BD95: 801 | BE95: 802 | BF95: 803 | BG95: 803 | BH95: 804 | BI95: 804 | BJ95: 805 | BK95: 806 | BL95: 806 | BM95: 807 | BN95: 808 | BO95: 808 | BP95: 809 | BQ95: 810 | BR95: 810 | BS95: 811 | BT95: 812 | BU95: 812 | BV95: 813 | BW95: 814 | BX95: 814 | BY95: 815 | BZ95: 816 | CA95: 816 | CB95: 817 | CC95: 818 | CD95: 818 | CE95: 819 | CF95: 820 | CG95: 820 | CH95: 821 | CI95: 822 | CJ95: 822 | CK95: 823 | CL95: 824 | CM95: 824 | CN95: 825 | CO95: 826 | CP95: 826 | CQ95: 827 | CR95: 828 | CS95: 828 | CT95: 829 | CU95: 830 | CV95: 830 | CW95: 831 | CX95: 832 | CY95: 832 | CZ95: 833 | DA95: 834 | DB95: 834 | DC95: 835 | DD95: 836 | DE95: 836 | DF95: 837 | DG95: 838 | DH95: 838 | DI95: 839 | DJ95: 840 | DK95: 840 | DL95: 841 | DM95: 842 | DN95: 842 | DO95: 843 | DP95: 844 | DQ95: 844 | DR95: 845 | DS95: 845 | DT95: 845 | DU95: 844 | DV95: 844 | DW95: 844 | DX95: 843 | DY95: 843 | DZ95: 843 | EA95: 843 | EB95: 842 | EC95: 842 | ED95: 842 | EE95: 841 | EF95: 841 | EG95: 841 | EH95: 840 | EI95: 840 | EJ95: 840 | EK95: 839 | EL95: 839 | EM95: 839 | EN95: 838 | EO95: 838 | EP95: 837 | EQ95: 837 | ER95: 837 | ES95: 836 | ET95: 836 | EU95: 836 | EV95: 835 | EW95: 867 | EX95: 900 | EY95: 935 | EZ95: 1096 | FA95: 1027 | FB95: 1140 | FC95: 1184 | FD95: 1190 | FE95: 1175 | FF95: 1208 | FG95: 1260 | FH95: 1308 | FI95: 1332 | FJ95: 1440 | FK95: 1511 | FL95: 1577 | FM95: 1639 | FN95: 1659 | FO95: 1708 | FP95: 1756 | FQ95: 1676 | FR95: 1775 | FS95: 1770 | FT95: 1829 | FU95: 1852 | FV95: 1803 | FW95: 1644 | FX95: 1825 | FY95: 1827 | FZ95: 1500 | GA95: 1730 | GB95: 1790 | GC95: 1605 | GD95: 1631 | GE95: 1679 | GF95: 1626 | GG95: 1562 | GH95: 1585 | GI95: 1553 | GJ95: 1564 | GK95: 1607 | GL95: 1588 | GM95: 1585 | GN95: 1599 | GO95: 1632 | GP95: 1781 | GQ95: 1855 | GR95: 1305 | GS95: 1289 | GT95: 1330 | GU95: 1329 | GV95: 1287 | GW95: 1266 | GX95: 1273 | GY95: 1299 | GZ95: 1300 | HA95: 1313 | HB95: 1326 | HC95: 1340 | HD95: 1368 | HE95: 1457 | HF95: 1391 | HG95: 1362 | HH95: 1363 | HI95: 1386
A96: Guyana | B96: 1214 | C96: 1214 | D96: 1214 | E96: 1215 | F96: 1215 | G96: 1215 | H96: 1215 | I96: 1215 | J96: 1215 | K96: 1216 | L96: 1216 | M96: 1216 | N96: 1216 | O96: 1216 | P96: 1217 | Q96: 1217 | R96: 1217 | S96: 1217 | T96: 1217 | U96: 1217 | V96: 1218 | W96: 1226 | X96: 1234 | Y96: 1242 | Z96: 1251 | AA96: 1259 | AB96: 1268 | AC96: 1276 | AD96: 1285 | AE96: 1294 | AF96: 1302 | AG96: 1311 | AH96: 1320 | AI96: 1329 | AJ96: 1338 | AK96: 1347 | AL96: 1356 | AM96: 1365 | AN96: 1375 | AO96: 1384 | AP96: 1393 | AQ96: 1403 | AR96: 1412 | AS96: 1422 | AT96: 1431 | AU96: 1441 | AV96: 1451 | AW96: 1460 | AX96: 1470 | AY96: 1480 | AZ96: 1490 | BA96: 1500 | BB96: 1510 | BC96: 1521 | BD96: 1531 | BE96: 1541 | BF96: 1552 | BG96: 1562 | BH96: 1573 | BI96: 1583 | BJ96: 1594 | BK96: 1605 | BL96: 1616 | BM96: 1627 | BN96: 1638 | BO96: 1649 | BP96: 1660 | BQ96: 1671 | BR96: 1682 | BS96: 1694 | BT96: 1705 | BU96: 1717 | BV96: 1728 | BW96: 1740 | BX96: 1752 | BY96: 1764 | BZ96: 1775 | CA96: 1787 | CB96: 1800 | CC96: 1812 | CD96: 1824 | CE96: 1836 | CF96: 1849 | CG96: 1861 | CH96: 1874 | CI96: 1886 | CJ96: 1899 | CK96: 1912 | CL96: 1925 | CM96: 1938 | CN96: 1951 | CO96: 1964 | CP96: 1977 | CQ96: 1991 | CR96: 2004 | CS96: 2018 | CT96: 2031 | CU96: 2045 | CV96: 2059 | CW96: 2073 | CX96: 2087 | CY96: 2101 | CZ96: 2115 | DA96: 2129 | DB96: 2144 | DC96: 2158 | DD96: 2173 | DE96: 2188 | DF96: 2202 | DG96: 2217 | DH96: 2232 | DI96: 2247 | DJ96: 2262 | DK96: 2278 | DL96: 2312 | DM96: 2347 | DN96: 2382 | DO96: 2418 | DP96: 2454 | DQ96: 2491 | DR96: 2529 | DS96: 2575 | DT96: 2621 | DU96: 2669 | DV96: 2717 | DW96: 2766 | DX96: 2816 | DY96: 2867 | DZ96: 2919 | EA96: 2972 | EB96: 3025 | EC96: 3080 | ED96: 3135 | EE96: 3192 | EF96: 3249 | EG96: 3308 | EH96: 3367 | EI96: 3427 | EJ96: 3489 | EK96: 3551 | EL96: 3615 | EM96: 3679 | EN96: 3745 | EO96: 3812 | EP96: 3880 | EQ96: 3949 | ER96: 4020 | ES96: 4091 | ET96: 4164 | EU96: 4238 | EV96: 4314 | EW96: 4207 | EX96: 4103 | EY96: 4001 | EZ96: 3902 | FA96: 3805 | FB96: 3711 | FC96: 3619 | FD96: 3529 | FE96: 3442 | FF96: 3356 | FG96: 3426 | FH96: 3383 | FI96: 2902 | FJ96: 3164 | FK96: 3427 | FL96: 3535 | FM96: 3618 | FN96: 3593 | FO96: 3788 | FP96: 3905 | FQ96: 3996 | FR96: 3846 | FS96: 3883 | FT96: 4172 | FU96: 4509 | FV96: 4556 | FW96: 4409 | FX96: 4304 | FY96: 4206 | FZ96: 4270 | GA96: 4337 | GB96: 3775 | GC96: 3535 | GD96: 3378 | GE96: 3485 | GF96: 3485 | GG96: 3551 | GH96: 3454 | GI96: 3312 | GJ96: 3231 | GK96: 3432 | GL96: 3703 | GM96: 4001 | GN96: 4331 | GO96: 4533 | GP96: 4872 | GQ96: 5153 | GR96: 5041 | GS96: 5166 | GT96: 5071 | GU96: 5163 | GV96: 5197 | GW96: 5124 | GX96: 5270 | GY96: 5140 | GZ96: 4837 | HA96: 5143 | HB96: 5208 | HC96: 5344 | HD96: 5542 | HE96: 5808 | HF96: 6054 | HG96: 6336 | HH96: 6545 | HI96: 6816
A97: Haiti | B97: 633 | C97: 633 | D97: 634 | E97: 634 | F97: 634 | G97: 634 | H97: 634 | I97: 634 | J97: 634 | K97: 634 | L97: 634 | M97: 634 | N97: 634 | O97: 635 | P97: 635 | Q97: 635 | R97: 635 | S97: 635 | T97: 635 | U97: 635 | V97: 635 | W97: 642 | X97: 648 | Y97: 655 | Z97: 662 | AA97: 668 | AB97: 675 | AC97: 682 | AD97: 689 | AE97: 696 | AF97: 703 | AG97: 710 | AH97: 718 | AI97: 725 | AJ97: 732 | AK97: 740 | AL97: 748 | AM97: 755 | AN97: 763 | AO97: 771 | AP97: 779 | AQ97: 787 | AR97: 795 | AS97: 803 | AT97: 811 | AU97: 819 | AV97: 828 | AW97: 836 | AX97: 845 | AY97: 853 | AZ97: 862 | BA97: 871 | BB97: 880 | BC97: 889 | BD97: 898 | BE97: 907 | BF97: 916 | BG97: 926 | BH97: 935 | BI97: 945 | BJ97: 954 | BK97: 964 | BL97: 974 | BM97: 984 | BN97: 994 | BO97: 1004 | BP97: 1014 | BQ97: 1025 | BR97: 1035 | BS97: 1046 | BT97: 1056 | BU97: 1067 | BV97: 1078 | BW97: 1089 | BX97: 1100 | BY97: 1112 | BZ97: 1123 | CA97: 1134 | CB97: 1146 | CC97: 1158 | CD97: 1170 | CE97: 1182 | CF97: 1194 | CG97: 1206 | CH97: 1218 | CI97: 1231 | CJ97: 1243 | CK97: 1256 | CL97: 1269 | CM97: 1282 | CN97: 1295 | CO97: 1308 | CP97: 1322 | CQ97: 1335 | CR97: 1349 | CS97: 1362 | CT97: 1376 | CU97: 1390 | CV97: 1405 | CW97: 1419 | CX97: 1434 | CY97: 1448 | CZ97: 1463 | DA97: 1478 | DB97: 1493 | DC97: 1508 | DD97: 1524 | DE97: 1539 | DF97: 1555 | DG97: 1571 | DH97: 1587 | DI97: 1603 | DJ97: 1620 | DK97: 1636 | DL97: 1653 | DM97: 1670 | DN97: 1687 | DO97: 1704 | DP97: 1722 | DQ97: 1739 | DR97: 1757 | DS97: 1775 | DT97: 1793 | DU97: 1812 | DV97: 1831 | DW97: 1849 | DX97: 1868 | DY97: 1888 | DZ97: 1907 | EA97: 1927 | EB97: 1946 | EC97: 1966 | ED97: 1986 | EE97: 2007 | EF97: 2027 | EG97: 2048 | EH97: 2069 | EI97: 2090 | EJ97: 2112 | EK97: 2133 | EL97: 2155 | EM97: 2177 | EN97: 2199 | EO97: 2222 | EP97: 2244 | EQ97: 2267 | ER97: 2261 | ES97: 2274 | ET97: 2271 | EU97: 2270 | EV97: 2281 | EW97: 2278 | EX97: 2367 | EY97: 2252 | EZ97: 2394 | FA97: 2256 | FB97: 2408 | FC97: 2222 | FD97: 2351 | FE97: 2196 | FF97: 2292 | FG97: 2154 | FH97: 2312 | FI97: 2116 | FJ97: 2024 | FK97: 2003 | FL97: 1949 | FM97: 1869 | FN97: 1902 | FO97: 1922 | FP97: 1970 | FQ97: 2076 | FR97: 2130 | FS97: 2204 | FT97: 2322 | FU97: 2249 | FV97: 2421 | FW97: 2412 | FX97: 2507 | FY97: 2666 | FZ97: 2848 | GA97: 2727 | GB97: 2588 | GC97: 2559 | GD97: 2515 | GE97: 2469 | GF97: 2414 | GG97: 2346 | GH97: 2314 | GI97: 2290 | GJ97: 2242 | GK97: 2208 | GL97: 1873 | GM97: 1799 | GN97: 1621 | GO97: 1672 | GP97: 1710 | GQ97: 1726 | GR97: 1733 | GS97: 1748 | GT97: 1734 | GU97: 1688 | GV97: 1657 | GW97: 1637 | GX97: 1557 | GY97: 1562 | GZ97: 1576 | HA97: 1607 | HB97: 1600 | HC97: 1628 | HD97: 1518 | HE97: 1580 | HF97: 1603 | HG97: 1648 | HH97: 1670 | HI97: 1710
A98: Holy See | B98: 1 | C98: 1 | D98: 1 | E98: 1 | F98: 1 | G98: 1 | H98: 1 | I98: 1 | J98: 1 | K98: 1 | L98: 1 | M98: 1 | N98: 1 | O98: 1 | P98: 1 | Q98: 1 | R98: 1 | S98: 1 | T98: 1 | U98: 1 | V98: 1 | W98: 1 | X98: 1 | Y98: 1 | Z98: 1 | AA98: 1 | AB98: 1 | AC98: 1 | AD98: 1 | AE98: 1 | AF98: 1 | AG98: 1 | AH98: 1 | AI98: 1 | AJ98: 1 | AK98: 1 | AL98: 1 | AM98: 1 | AN98: 1 | AO98: 1 | AP98: 1 | AQ98: 1 | AR98: 1 | AS98: 1 | AT98: 1 | AU98: 1 | AV98: 1 | AW98: 1 | AX98: 1 | AY98: 1 | AZ98: 1 | BA98: 1 | BB98: 1 | BC98: 1 | BD98: 1 | BE98: 1 | BF98: 1 | BG98: 1 | BH98: 1 | BI98: 1 | BJ98: 1 | BK98: 1 | BL98: 1 | BM98: 1 | BN98: 1 | BO98: 1 | BP98: 1 | BQ98: 1 | BR98: 1 | BS98: 1 | BT98: 1 | BU98: 1 | BV98: 1 | BW98: 1 | BX98: 1 | BY98: 1 | BZ98: 1 | CA98: 1 | CB98: 1 | CC98: 1 | CD98: 1 | CE98: 1 | CF98: 1 | CG98: 1 | CH98: 1 | CI98: 1 | CJ98: 1 | CK98: 1 | CL98: 1 | CM98: 1 | CN98: 1 | CO98: 1 | CP98: 1 | CQ98: 1 | CR98: 1 | CS98: 1 | CT98: 1 | CU98: 1 | CV98: 1 | CW98: 1 | CX98: 1 | CY98: 1 | CZ98: 1 | DA98: 1 | DB98: 1 | DC98: 1 | DD98: 1 | DE98: 1 | DF98: 1 | DG98: 1 | DH98: 1 | DI98: 1 | DJ98: 1 | DK98: 1 | DL98: 1 | DM98: 1 | DN98: 1 | DO98: 1 | DP98: 1 | DQ98: 1 | DR98: 1 | DS98: 1 | DT98: 1 | DU98: 1 | DV98: 1 | DW98: 1 | DX98: 1 | DY98: 1 | DZ98: 1 | EA98: 1 | EB98: 1 | EC98: 1 | ED98: 1 | EE98: 1 | EF98: 1 | EG98: 1 | EH98: 1 | EI98: 1 | EJ98: 1 | EK98: 1 | EL98: 1 | EM98: 1 | EN98: 1 | EO98: 1 | EP98: 1 | EQ98: 1 | ER98: 1 | ES98: 1 | ET98: 1 | EU98: 1 | EV98: 1 | EW98: 1 | EX98: 1 | EY98: 1 | EZ98: 1 | FA98: 1 | FB98: 1 | FC98: 1 | FD98: 1 | FE98: 1 | FF98: 1 | FG98: 1 | FH98: 1 | FI98: 1 | FJ98: 1 | FK98: 1 | FL98: 1 | FM98: 1 | FN98: 1 | FO98: 1 | FP98: 1 | FQ98: 1 | FR98: 1 | FS98: 1 | FT98: 1 | FU98: 1 | FV98: 1 | FW98: 1 | FX98: 1 | FY98: 1 | FZ98: 1 | GA98: 1 | GB98: 1 | GC98: 1 | GD98: 1 | GE98: 1 | GF98: 1 | GG98: 1 | GH98: 1 | GI98: 1 | GJ98: 1 | GK98: 1 | GL98: 1 | GM98: 1 | GN98: 1 | GO98: 1 | GP98: 1 | GQ98: 1 | GR98: 1 | GS98: 1 | GT98: 1 | GU98: 1 | GV98: 1 | GW98: 1 | GX98: 1 | GY98: 1 | GZ98: 1 | HA98: 1 | HB98: 1 | HC98: 1 | HD98: 1 | HE98: 1 | HF98: 1 | HG98: 1 | HH98: 1 | HI98: 1
A99: Honduras | B99: 675 | C99: 675 | D99: 675 | E99: 675 | F99: 675 | G99: 675 | H99: 675 | I99: 675 | J99: 675 | K99: 675 | L99: 676 | M99: 676 | N99: 676 | O99: 676 | P99: 676 | Q99: 676 | R99: 676 | S99: 676 | T99: 676 | U99: 676 | V99: 677 | W99: 685 | X99: 694 | Y99: 703 | Z99: 712 | AA99: 721 | AB99: 730 | AC99: 740 | AD99: 749 | AE99: 759 | AF99: 769 | AG99: 779 | AH99: 789 | AI99: 799 | AJ99: 809 | AK99: 819 | AL99: 830 | AM99: 841 | AN99: 851 | AO99: 862 | AP99: 873 | AQ99: 885 | AR99: 896 | AS99: 907 | AT99: 919 | AU99: 931 | AV99: 943 | AW99: 955 | AX99: 967 | AY99: 980 | AZ99: 992 | BA99: 1005 | BB99: 1018 | BC99: 1031 | BD99: 1044 | BE99: 1058 | BF99: 1071 | BG99: 1085 | BH99: 1099 | BI99: 1113 | BJ99: 1127 | BK99: 1142 | BL99: 1156 | BM99: 1171 | BN99: 1186 | BO99: 1202 | BP99: 1217 | BQ99: 1233 | BR99: 1248 | BS99: 1265 | BT99: 1281 | BU99: 1297 | BV99: 1314 | BW99: 1331 | BX99: 1348 | BY99: 1365 | BZ99: 1383 | CA99: 1400 | CB99: 1418 | CC99: 1437 | CD99: 1455 | CE99: 1474 | CF99: 1493 | CG99: 1512 | CH99: 1531 | CI99: 1551 | CJ99: 1571 | CK99: 1591 | CL99: 1612 | CM99: 1632 | CN99: 1653 | CO99: 1674 | CP99: 1696 | CQ99: 1718 | CR99: 1740 | CS99: 1762 | CT99: 1785 | CU99: 1808 | CV99: 1831 | CW99: 1854 | CX99: 1878 | CY99: 1902 | CZ99: 1927 | DA99: 1952 | DB99: 1977 | DC99: 2002 | DD99: 2028 | DE99: 2054 | DF99: 2080 | DG99: 2107 | DH99: 2134 | DI99: 2161 | DJ99: 2189 | DK99: 2217 | DL99: 2246 | DM99: 2275 | DN99: 2304 | DO99: 2333 | DP99: 2363 | DQ99: 2394 | DR99: 2424 | DS99: 2382 | DT99: 2486 | DU99: 2376 | DV99: 2162 | DW99: 2515 | DX99: 2448 | DY99: 2655 | DZ99: 2917 | EA99: 2822 | EB99: 2940 | EC99: 2937 | ED99: 2575 | EE99: 2365 | EF99: 2266 | EG99: 2120 | EH99: 2115 | EI99: 1981 | EJ99: 2056 | EK99: 2073 | EL99: 2154 | EM99: 2110 | EN99: 1878 | EO99: 1863 | EP99: 1858 | EQ99: 2249 | ER99: 2361 | ES99: 2453 | ET99: 2446 | EU99: 2405 | EV99: 2407 | EW99: 2460 | EX99: 2478 | EY99: 2593 | EZ99: 2369 | FA99: 2353 | FB99: 2460 | FC99: 2490 | FD99: 2483 | FE99: 2461 | FF99: 2526 | FG99: 2501 | FH99: 2551 | FI99: 2549 | FJ99: 2583 | FK99: 2703 | FL99: 2756 | FM99: 2805 | FN99: 2864 | FO99: 2781 | FP99: 2771 | FQ99: 2778 | FR99: 2775 | FS99: 2803 | FT99: 3089 | FU99: 3061 | FV99: 3266 | FW99: 3488 | FX99: 3700 | FY99: 3738 | FZ99: 3616 | GA99: 3557 | GB99: 3373 | GC99: 3233 | GD99: 3241 | GE99: 3261 | GF99: 3170 | GG99: 3240 | GH99: 3288 | GI99: 3304 | GJ99: 3205 | GK99: 3219 | GL99: 3308 | GM99: 3423 | GN99: 3293 | GO99: 3344 | GP99: 3385 | GQ99: 3475 | GR99: 3500 | GS99: 3362 | GT99: 3483 | GU99: 3505 | GV99: 3563 | GW99: 3651 | GX99: 3801 | GY99: 3952 | GZ99: 4128 | HA99: 4297 | HB99: 4391 | HC99: 4200 | HD99: 4270 | HE99: 4345 | HF99: 4131 | HG99: 4154 | HH99: 4214 | HI99: 4270
A100: Hong Kong, China | B100: 1007 | C100: 1007 | D100: 1007 | E100: 1007 | F100: 1007 | G100: 1008 | H100: 1008 | I100: 1008 | J100: 1008 | K100: 1008 | L100: 1008 | M100: 1008 | N100: 1009 | O100: 1009 | P100: 1009 | Q100: 1009 | R100: 1009 | S100: 1009 | T100: 1009 | U100: 1010 | V100: 1010 | W100: 1012 | X100: 1014 | Y100: 1017 | Z100: 1019 | AA100: 1021 | AB100: 1023 | AC100: 1026 | AD100: 1028 | AE100: 1030 | AF100: 1033 | AG100: 1035 | AH100: 1037 | AI100: 1040 | AJ100: 1042 | AK100: 1044 | AL100: 1047 | AM100: 1049 | AN100: 1051 | AO100: 1054 | AP100: 1056 | AQ100: 1059 | AR100: 1061 | AS100: 1063 | AT100: 1066 | AU100: 1068 | AV100: 1070 | AW100: 1073 | AX100: 1075 | AY100: 1078 | AZ100: 1080 | BA100: 1083 | BB100: 1085 | BC100: 1087 | BD100: 1090 | BE100: 1092 | BF100: 1095 | BG100: 1097 | BH100: 1100 | BI100: 1102 | BJ100: 1105 | BK100: 1107 | BL100: 1110 | BM100: 1112 | BN100: 1115 | BO100: 1117 | BP100: 1120 | BQ100: 1122 | BR100: 1125 | BS100: 1127 | BT100: 1130 | BU100: 1146 | BV100: 1163 | BW100: 1181 | BX100: 1198 | BY100: 1216 | BZ100: 1234 | CA100: 1253 | CB100: 1271 | CC100: 1290 | CD100: 1309 | CE100: 1329 | CF100: 1348 | CG100: 1368 | CH100: 1389 | CI100: 1409 | CJ100: 1430 | CK100: 1451 | CL100: 1473 | CM100: 1495 | CN100: 1517 | CO100: 1540 | CP100: 1563 | CQ100: 1586 | CR100: 1609 | CS100: 1633 | CT100: 1657 | CU100: 1682 | CV100: 1707 | CW100: 1732 | CX100: 1758 | CY100: 1784 | CZ100: 1811 | DA100: 1838 | DB100: 1865 | DC100: 1893 | DD100: 1921 | DE100: 1949 | DF100: 1978 | DG100: 2008 | DH100: 2037 | DI100: 2063 | DJ100: 2088 | DK100: 2114 | DL100: 2141 | DM100: 2168 | DN100: 2196 | DO100: 2224 | DP100: 2252 | DQ100: 2280 | DR100: 2309 | DS100: 2337 | DT100: 2365 | DU100: 2393 | DV100: 2422 | DW100: 2451 | DX100: 2481 | DY100: 2511 | DZ100: 2542 | EA100: 2574 | EB100: 2606 | EC100: 2638 | ED100: 2671 | EE100: 2705 | EF100: 2739 | EG100: 2774 | EH100: 2810 | EI100: 2846 | EJ100: 2883 | EK100: 2920 | EL100: 2958 | EM100: 2997 | EN100: 3037 | EO100: 3077 | EP100: 3118 | EQ100: 3160 | ER100: 3202 | ES100: 3246 | ET100: 3290 | EU100: 3335 | EV100: 3381 | EW100: 3494 | EX100: 3615 | EY100: 3736 | EZ100: 3864 | FA100: 3997 | FB100: 4135 | FC100: 4276 | FD100: 4424 | FE100: 4576 | FF100: 4736 | FG100: 4900 | FH100: 5515 | FI100: 6164 | FJ100: 6530 | FK100: 7280 | FL100: 7340 | FM100: 7278 | FN100: 7363 | FO100: 8065 | FP100: 8596 | FQ100: 9017 | FR100: 9788 | FS100: 10755 | FT100: 10744 | FU100: 10602 | FV100: 12001 | FW100: 13230 | FX100: 14110 | FY100: 14913 | FZ100: 16005 | GA100: 17086 | GB100: 17302 | GC100: 18027 | GD100: 19648 | GE100: 19539 | GF100: 21391 | GG100: 23920 | GH100: 25660 | GI100: 26186 | GJ100: 26974 | GK100: 28277 | GL100: 29789 | GM100: 31097 | GN100: 32240 | GO100: 32358 | GP100: 32272 | GQ100: 33636 | GR100: 31394 | GS100: 31875 | GT100: 34017 | GU100: 33956 | GV100: 34366 | GW100: 35487 | GX100: 38274 | GY100: 40923 | GZ100: 43521 | HA100: 45937 | HB100: 46635 | HC100: 45390 | HD100: 48108 | HE100: 50086 | HF100: 50347 | HG100: 51656 | HH100: 52552 | HI100: 53874
A101: Hungary | B101: 1249 | C101: 1249 | D101: 1250 | E101: 1250 | F101: 1250 | G101: 1250 | H101: 1250 | I101: 1250 | J101: 1251 | K101: 1251 | L101: 1251 | M101: 1251 | N101: 1251 | O101: 1252 | P101: 1252 | Q101: 1252 | R101: 1252 | S101: 1252 | T101: 1253 | U101: 1253 | V101: 1253 | W101: 1263 | X101: 1273 | Y101: 1283 | Z101: 1293 | AA101: 1303 | AB101: 1313 | AC101: 1323 | AD101: 1333 | AE101: 1344 | AF101: 1354 | AG101: 1365 | AH101: 1376 | AI101: 1386 | AJ101: 1397 | AK101: 1408 | AL101: 1419 | AM101: 1430 | AN101: 1441 | AO101: 1453 | AP101: 1464 | AQ101: 1476 | AR101: 1487 | AS101: 1499 | AT101: 1510 | AU101: 1522 | AV101: 1534 | AW101: 1546 | AX101: 1558 | AY101: 1570 | AZ101: 1583 | BA101: 1595 | BB101: 1607 | BC101: 1620 | BD101: 1633 | BE101: 1645 | BF101: 1658 | BG101: 1671 | BH101: 1684 | BI101: 1698 | BJ101: 1711 | BK101: 1724 | BL101: 1738 | BM101: 1751 | BN101: 1765 | BO101: 1779 | BP101: 1793 | BQ101: 1807 | BR101: 1821 | BS101: 1835 | BT101: 1849 | BU101: 1878 | BV101: 1906 | BW101: 1935 | BX101: 1965 | BY101: 1995 | BZ101: 2025 | CA101: 2056 | CB101: 2087 | CC101: 2119 | CD101: 2151 | CE101: 2184 | CF101: 2217 | CG101: 2251 | CH101: 2285 | CI101: 2320 | CJ101: 2355 | CK101: 2391 | CL101: 2428 | CM101: 2465 | CN101: 2502 | CO101: 2536 | CP101: 2570 | CQ101: 2605 | CR101: 2641 | CS101: 2676 | CT101: 2713 | CU101: 2750 | CV101: 2787 | CW101: 2825 | CX101: 2863 | CY101: 2913 | CZ101: 2965 | DA101: 3017 | DB101: 3070 | DC101: 3124 | DD101: 3179 | DE101: 3235 | DF101: 3292 | DG101: 3350 | DH101: 3409 | DI101: 3488 | DJ101: 3569 | DK101: 3652 | DL101: 3571 | DM101: 3492 | DN101: 3414 | DO101: 3338 | DP101: 3264 | DQ101: 3191 | DR101: 3120 | DS101: 3250 | DT101: 3384 | DU101: 3523 | DV101: 3666 | DW101: 4419 | DX101: 4239 | DY101: 4434 | DZ101: 4837 | EA101: 5010 | EB101: 4913 | EC101: 4681 | ED101: 4567 | EE101: 4991 | EF101: 5027 | EG101: 5288 | EH101: 5650 | EI101: 5533 | EJ101: 5824 | EK101: 6273 | EL101: 5850 | EM101: 5893 | EN101: 6199 | EO101: 5555 | EP101: 4977 | EQ101: 4459 | ER101: 3994 | ES101: 4141 | ET101: 5168 | EU101: 5562 | EV101: 5893 | EW101: 6439 | EX101: 6633 | EY101: 6724 | EZ101: 6914 | FA101: 7483 | FB101: 7115 | FC101: 7795 | FD101: 8317 | FE101: 8641 | FF101: 9087 | FG101: 9539 | FH101: 9939 | FI101: 10492 | FJ101: 11083 | FK101: 11173 | FL101: 11809 | FM101: 12475 | FN101: 12612 | FO101: 12973 | FP101: 12917 | FQ101: 13471 | FR101: 13736 | FS101: 14420 | FT101: 14746 | FU101: 14991 | FV101: 14970 | FW101: 15853 | FX101: 16199 | FY101: 16209 | FZ101: 16369 | GA101: 16500 | GB101: 17122 | GC101: 16989 | GD101: 17485 | GE101: 17103 | GF101: 17493 | GG101: 17811 | GH101: 18395 | GI101: 18077 | GJ101: 16930 | GK101: 14926 | GL101: 14474 | GM101: 14407 | GN101: 14852 | GO101: 15095 | GP101: 15126 | GQ101: 15667 | GR101: 16365 | GS101: 16943 | GT101: 17707 | GU101: 18411 | GV101: 19292 | GW101: 20079 | GX101: 21087 | GY101: 22029 | GZ101: 22938 | HA101: 23091 | HB101: 23334 | HC101: 21839 | HD101: 22062 | HE101: 22524 | HF101: 22306 | HG101: 22708 | HH101: 23609 | HI101: 24200
A102: Iceland | B102: 926 | C102: 926 | D102: 927 | E102: 927 | F102: 927 | G102: 927 | H102: 927 | I102: 927 | J102: 927 | K102: 928 | L102: 928 | M102: 928 | N102: 928 | O102: 928 | P102: 928 | Q102: 928 | R102: 929 | S102: 929 | T102: 929 | U102: 929 | V102: 929 | W102: 939 | X102: 950 | Y102: 960 | Z102: 970 | AA102: 981 | AB102: 992 | AC102: 1002 | AD102: 1013 | AE102: 1025 | AF102: 1036 | AG102: 1047 | AH102: 1058 | AI102: 1070 | AJ102: 1082 | AK102: 1093 | AL102: 1105 | AM102: 1118 | AN102: 1130 | AO102: 1142 | AP102: 1155 | AQ102: 1167 | AR102: 1180 | AS102: 1193 | AT102: 1206 | AU102: 1219 | AV102: 1232 | AW102: 1246 | AX102: 1259 | AY102: 1273 | AZ102: 1287 | BA102: 1301 | BB102: 1315 | BC102: 1330 | BD102: 1344 | BE102: 1359 | BF102: 1374 | BG102: 1389 | BH102: 1404 | BI102: 1419 | BJ102: 1435 | BK102: 1450 | BL102: 1466 | BM102: 1482 | BN102: 1498 | BO102: 1515 | BP102: 1531 | BQ102: 1548 | BR102: 1565 | BS102: 1582 | BT102: 1599 | BU102: 1628 | BV102: 1622 | BW102: 1696 | BX102: 1747 | BY102: 1740 | BZ102: 1712 | CA102: 1749 | CB102: 1814 | CC102: 1920 | CD102: 2035 | CE102: 2039 | CF102: 1820 | CG102: 1751 | CH102: 1772 | CI102: 1810 | CJ102: 1816 | CK102: 1786 | CL102: 1848 | CM102: 1927 | CN102: 2009 | CO102: 2057 | CP102: 2189 | CQ102: 2331 | CR102: 2357 | CS102: 2307 | CT102: 2353 | CU102: 2338 | CV102: 2268 | CW102: 2266 | CX102: 2352 | CY102: 2455 | CZ102: 2522 | DA102: 2522 | DB102: 2526 | DC102: 2699 | DD102: 2760 | DE102: 2866 | DF102: 2844 | DG102: 2812 | DH102: 3012 | DI102: 3140 | DJ102: 3162 | DK102: 3305 | DL102: 3232 | DM102: 3171 | DN102: 2796 | DO102: 2736 | DP102: 2576 | DQ102: 2982 | DR102: 2514 | DS102: 2762 | DT102: 3097 | DU102: 2927 | DV102: 3117 | DW102: 3108 | DX102: 3343 | DY102: 3669 | DZ102: 3807 | EA102: 4022 | EB102: 4444 | EC102: 4371 | ED102: 4170 | EE102: 4595 | EF102: 4624 | EG102: 4451 | EH102: 4439 | EI102: 4603 | EJ102: 4601 | EK102: 5111 | EL102: 5373 | EM102: 6087 | EN102: 7013 | EO102: 7387 | EP102: 7986 | EQ102: 8487 | ER102: 8702 | ES102: 9451 | ET102: 9452 | EU102: 9085 | EV102: 8670 | EW102: 8350 | EX102: 8120 | EY102: 9169 | EZ102: 9821 | FA102: 10548 | FB102: 10575 | FC102: 10295 | FD102: 10896 | FE102: 10865 | FF102: 10993 | FG102: 10801 | FH102: 11489 | FI102: 12447 | FJ102: 13450 | FK102: 14173 | FL102: 15166 | FM102: 14734 | FN102: 13752 | FO102: 13983 | FP102: 14937 | FQ102: 16687 | FR102: 17413 | FS102: 18360 | FT102: 19123 | FU102: 19023 | FV102: 19978 | FW102: 21583 | FX102: 22659 | FY102: 23523 | FZ102: 24580 | GA102: 25312 | GB102: 25455 | GC102: 24594 | GD102: 25356 | GE102: 25997 | GF102: 27379 | GG102: 29335 | GH102: 28780 | GI102: 28629 | GJ102: 28666 | GK102: 28272 | GL102: 26977 | GM102: 27055 | GN102: 27789 | GO102: 27671 | GP102: 28839 | GQ102: 30009 | GR102: 31601 | GS102: 32521 | GT102: 33599 | GU102: 34403 | GV102: 34252 | GW102: 34938 | GX102: 37482 | GY102: 39108 | GZ102: 39818 | HA102: 42598 | HB102: 42294 | HC102: 39979 | HD102: 38809 | HE102: 39619 | HF102: 39925 | HG102: 40958 | HH102: 41237 | HI102: 42182
A103: India | B103: 1052 | C103: 1052 | D103: 1052 | E103: 1052 | F103: 1052 | G103: 1052 | H103: 1052 | I103: 1052 | J103: 1051 | K103: 1051 | L103: 1051 | M103: 1051 | N103: 1051 | O103: 1051 | P103: 1051 | Q103: 1051 | R103: 1051 | S103: 1050 | T103: 1050 | U103: 1050 | V103: 1050 | W103: 1050 | X103: 1050 | Y103: 1051 | Z103: 1051 | AA103: 1051 | AB103: 1051 | AC103: 1051 | AD103: 1051 | AE103: 1051 | AF103: 1052 | AG103: 1052 | AH103: 1052 | AI103: 1052 | AJ103: 1052 | AK103: 1052 | AL103: 1052 | AM103: 1053 | AN103: 1053 | AO103: 1053 | AP103: 1053 | AQ103: 1053 | AR103: 1053 | AS103: 1054 | AT103: 1054 | AU103: 1054 | AV103: 1054 | AW103: 1054 | AX103: 1054 | AY103: 1054 | AZ103: 1055 | BA103: 1055 | BB103: 1055 | BC103: 1055 | BD103: 1055 | BE103: 1055 | BF103: 1056 | BG103: 1056 | BH103: 1056 | BI103: 1056 | BJ103: 1056 | BK103: 1056 | BL103: 1057 | BM103: 1057 | BN103: 1057 | BO103: 1057 | BP103: 1057 | BQ103: 1057 | BR103: 1058 | BS103: 1058 | BT103: 1058 | BU103: 1061 | BV103: 1063 | BW103: 1066 | BX103: 1068 | BY103: 1071 | BZ103: 1074 | CA103: 1076 | CB103: 1079 | CC103: 1081 | CD103: 1084 | CE103: 1087 | CF103: 1089 | CG103: 1092 | CH103: 1095 | CI103: 1127 | CJ103: 1090 | CK103: 1137 | CL103: 1146 | CM103: 1113 | CN103: 1163 | CO103: 1054 | CP103: 1137 | CQ103: 1164 | CR103: 1180 | CS103: 1149 | CT103: 1063 | CU103: 1255 | CV103: 1255 | CW103: 1156 | CX103: 1194 | CY103: 1212 | CZ103: 1305 | DA103: 1316 | DB103: 1314 | DC103: 1283 | DD103: 1311 | DE103: 1225 | DF103: 1235 | DG103: 1396 | DH103: 1391 | DI103: 1371 | DJ103: 1359 | DK103: 1320 | DL103: 1383 | DM103: 1340 | DN103: 1370 | DO103: 1336 | DP103: 1158 | DQ103: 1309 | DR103: 1197 | DS103: 1268 | DT103: 1296 | DU103: 1229 | DV103: 1264 | DW103: 1254 | DX103: 1268 | DY103: 1244 | DZ103: 1232 | EA103: 1259 | EB103: 1244 | EC103: 1208 | ED103: 1194 | EE103: 1168 | EF103: 1153 | EG103: 1116 | EH103: 1134 | EI103: 1091 | EJ103: 1069 | EK103: 1069 | EL103: 1081 | EM103: 1079 | EN103: 1054 | EO103: 1075 | EP103: 1043 | EQ103: 1007 | ER103: 937 | ES103: 924 | ET103: 917 | EU103: 922 | EV103: 908 | EW103: 908 | EX103: 912 | EY103: 947 | EZ103: 962 | FA103: 963 | FB103: 993 | FC103: 959 | FD103: 1005 | FE103: 1002 | FF103: 1048 | FG103: 1051 | FH103: 1046 | FI103: 1071 | FJ103: 1125 | FK103: 1053 | FL103: 1037 | FM103: 1096 | FN103: 1095 | FO103: 1141 | FP103: 1170 | FQ103: 1154 | FR103: 1125 | FS103: 1151 | FT103: 1139 | FU103: 1212 | FV103: 1201 | FW103: 1266 | FX103: 1305 | FY103: 1211 | FZ103: 1270 | GA103: 1322 | GB103: 1334 | GC103: 1412 | GD103: 1436 | GE103: 1462 | GF103: 1493 | GG103: 1525 | GH103: 1649 | GI103: 1723 | GJ103: 1777 | GK103: 1760 | GL103: 1821 | GM103: 1871 | GN103: 1959 | GO103: 2069 | GP103: 2186 | GQ103: 2235 | GR103: 2332 | GS103: 2496 | GT103: 2548 | GU103: 2628 | GV103: 2684 | GW103: 2850 | GX103: 3029 | GY103: 3262 | GZ103: 3514 | HA103: 3806 | HB103: 3901 | HC103: 4177 | HD103: 4547 | HE103: 4787 | HF103: 4967 | HG103: 5244 | HH103: 5565 | HI103: 5903
A104: Indonesia | B104: 994 | C104: 994 | D104: 995 | E104: 995 | F104: 995 | G104: 995 | H104: 995 | I104: 995 | J104: 996 | K104: 996 | L104: 996 | M104: 996 | N104: 996 | O104: 996 | P104: 996 | Q104: 997 | R104: 997 | S104: 997 | T104: 997 | U104: 997 | V104: 997 | W104: 999 | X104: 1000 | Y104: 1002 | Z104: 1003 | AA104: 1005 | AB104: 1006 | AC104: 1008 | AD104: 1009 | AE104: 1011 | AF104: 1012 | AG104: 1014 | AH104: 1015 | AI104: 1017 | AJ104: 1018 | AK104: 1020 | AL104: 1021 | AM104: 1023 | AN104: 1024 | AO104: 1026 | AP104: 1027 | AQ104: 1029 | AR104: 1030 | AS104: 1032 | AT104: 1033 | AU104: 1035 | AV104: 1036 | AW104: 1038 | AX104: 1039 | AY104: 1041 | AZ104: 1043 | BA104: 1044 | BB104: 1046 | BC104: 1047 | BD104: 1049 | BE104: 1050 | BF104: 1052 | BG104: 1054 | BH104: 1055 | BI104: 1057 | BJ104: 1058 | BK104: 1060 | BL104: 1062 | BM104: 1063 | BN104: 1065 | BO104: 1067 | BP104: 1068 | BQ104: 1070 | BR104: 1071 | BS104: 1073 | BT104: 1075 | BU104: 1060 | BV104: 1047 | BW104: 1057 | BX104: 1070 | BY104: 1079 | BZ104: 1101 | CA104: 1103 | CB104: 1079 | CC104: 1092 | CD104: 1088 | CE104: 1143 | CF104: 1101 | CG104: 1077 | CH104: 1155 | CI104: 1154 | CJ104: 1136 | CK104: 1137 | CL104: 1127 | CM104: 1117 | CN104: 1077 | CO104: 1096 | CP104: 1127 | CQ104: 1150 | CR104: 1154 | CS104: 1144 | CT104: 1139 | CU104: 1140 | CV104: 1132 | CW104: 1175 | CX104: 1198 | CY104: 1169 | CZ104: 1135 | DA104: 1184 | DB104: 1187 | DC104: 1188 | DD104: 1207 | DE104: 1223 | DF104: 1210 | DG104: 1253 | DH104: 1313 | DI104: 1359 | DJ104: 1366 | DK104: 1411 | DL104: 1396 | DM104: 1398 | DN104: 1395 | DO104: 1383 | DP104: 1409 | DQ104: 1520 | DR104: 1460 | DS104: 1449 | DT104: 1474 | DU104: 1489 | DV104: 1548 | DW104: 1562 | DX104: 1636 | DY104: 1720 | DZ104: 1764 | EA104: 1791 | EB104: 1795 | EC104: 1637 | ED104: 1609 | EE104: 1599 | EF104: 1608 | EG104: 1662 | EH104: 1766 | EI104: 1879 | EJ104: 1910 | EK104: 1912 | EL104: 2053 | EM104: 2048 | EN104: 1505 | EO104: 1336 | EP104: 1066 | EQ104: 940 | ER104: 972 | ES104: 1075 | ET104: 1249 | EU104: 1363 | EV104: 1443 | EW104: 1527 | EX104: 1541 | EY104: 1587 | EZ104: 1665 | FA104: 1701 | FB104: 1664 | FC104: 1779 | FD104: 1643 | FE104: 1696 | FF104: 1737 | FG104: 1791 | FH104: 1772 | FI104: 1668 | FJ104: 1694 | FK104: 1682 | FL104: 1666 | FM104: 1602 | FN104: 1741 | FO104: 1920 | FP104: 2082 | FQ104: 2162 | FR104: 2351 | FS104: 2637 | FT104: 2679 | FU104: 2612 | FV104: 2797 | FW104: 2946 | FX104: 3026 | FY104: 3111 | FZ104: 3314 | GA104: 3445 | GB104: 3254 | GC104: 3294 | GD104: 3461 | GE104: 3489 | GF104: 3646 | GG104: 3775 | GH104: 3940 | GI104: 4234 | GJ104: 4548 | GK104: 4868 | GL104: 5131 | GM104: 5412 | GN104: 5727 | GO104: 6111 | GP104: 6478 | GQ104: 6683 | GR104: 5721 | GS104: 5684 | GT104: 5878 | GU104: 6005 | GV104: 6186 | GW104: 6389 | GX104: 6615 | GY104: 6892 | GZ104: 7168 | HA104: 7516 | HB104: 7856 | HC104: 8108 | HD104: 8498 | HE104: 8907 | HF104: 9327 | HG104: 9729 | HH104: 10099 | HI104: 10504
A105: Iran | B105: 977 | C105: 977 | D105: 977 | E105: 977 | F105: 978 | G105: 978 | H105: 978 | I105: 978 | J105: 978 | K105: 978 | L105: 979 | M105: 979 | N105: 979 | O105: 979 | P105: 979 | Q105: 979 | R105: 979 | S105: 980 | T105: 980 | U105: 980 | V105: 980 | W105: 982 | X105: 984 | Y105: 986 | Z105: 988 | AA105: 989 | AB105: 991 | AC105: 993 | AD105: 995 | AE105: 997 | AF105: 999 | AG105: 1001 | AH105: 1003 | AI105: 1004 | AJ105: 1006 | AK105: 1008 | AL105: 1010 | AM105: 1012 | AN105: 1014 | AO105: 1016 | AP105: 1018 | AQ105: 1020 | AR105: 1022 | AS105: 1024 | AT105: 1026 | AU105: 1027 | AV105: 1029 | AW105: 1031 | AX105: 1033 | AY105: 1035 | AZ105: 1037 | BA105: 1039 | BB105: 1041 | BC105: 1043 | BD105: 1045 | BE105: 1047 | BF105: 1049 | BG105: 1051 | BH105: 1053 | BI105: 1055 | BJ105: 1057 | BK105: 1059 | BL105: 1061 | BM105: 1063 | BN105: 1065 | BO105: 1067 | BP105: 1069 | BQ105: 1071 | BR105: 1073 | BS105: 1075 | BT105: 1077 | BU105: 1085 | BV105: 1092 | BW105: 1099 | BX105: 1107 | BY105: 1115 | BZ105: 1122 | CA105: 1130 | CB105: 1138 | CC105: 1146 | CD105: 1153 | CE105: 1161 | CF105: 1169 | CG105: 1177 | CH105: 1185 | CI105: 1193 | CJ105: 1202 | CK105: 1210 | CL105: 1218 | CM105: 1227 | CN105: 1235 | CO105: 1243 | CP105: 1252 | CQ105: 1261 | CR105: 1269 | CS105: 1278 | CT105: 1287 | CU105: 1296 | CV105: 1304 | CW105: 1313 | CX105: 1322 | CY105: 1331 | CZ105: 1341 | DA105: 1350 | DB105: 1359 | DC105: 1368 | DD105: 1378 | DE105: 1387 | DF105: 1397 | DG105: 1406 | DH105: 1416 | DI105: 1431 | DJ105: 1446 | DK105: 1461 | DL105: 1497 | DM105: 1534 | DN105: 1572 | DO105: 1611 | DP105: 1650 | DQ105: 1691 | DR105: 1733 | DS105: 1785 | DT105: 1839 | DU105: 1894 | DV105: 1950 | DW105: 2008 | DX105: 2067 | DY105: 2127 | DZ105: 2189 | EA105: 2252 | EB105: 2317 | EC105: 2383 | ED105: 2451 | EE105: 2520 | EF105: 2591 | EG105: 2664 | EH105: 2738 | EI105: 2814 | EJ105: 2891 | EK105: 2970 | EL105: 3051 | EM105: 3134 | EN105: 3219 | EO105: 3306 | EP105: 3394 | EQ105: 3485 | ER105: 3577 | ES105: 3672 | ET105: 3768 | EU105: 3867 | EV105: 3968 | EW105: 3881 | EX105: 3796 | EY105: 3717 | EZ105: 3635 | FA105: 3554 | FB105: 3783 | FC105: 4211 | FD105: 4591 | FE105: 4863 | FF105: 5203 | FG105: 5505 | FH105: 5472 | FI105: 5921 | FJ105: 6188 | FK105: 6768 | FL105: 7252 | FM105: 7862 | FN105: 8816 | FO105: 9709 | FP105: 10467 | FQ105: 11475 | FR105: 13019 | FS105: 13782 | FT105: 14316 | FU105: 14690 | FV105: 16697 | FW105: 16033 | FX105: 13827 | FY105: 12312 | FZ105: 10366 | GA105: 9691 | GB105: 10715 | GC105: 11655 | GD105: 11274 | GE105: 11047 | GF105: 9675 | GG105: 9335 | GH105: 8626 | GI105: 8753 | GJ105: 9511 | GK105: 10502 | GL105: 10792 | GM105: 10500 | GN105: 10344 | GO105: 10477 | GP105: 11043 | GQ105: 11216 | GR105: 11311 | GS105: 11327 | GT105: 11719 | GU105: 11977 | GV105: 12712 | GW105: 13454 | GX105: 13975 | GY105: 14452 | GZ105: 15127 | HA105: 15903 | HB105: 15955 | HC105: 16123 | HD105: 16980 | HE105: 17425 | HF105: 16068 | HG105: 15552 | HH105: 15573 | HI105: 15573
A106: Iraq | B106: 970 | C106: 970 | D106: 970 | E106: 970 | F106: 970 | G106: 970 | H106: 971 | I106: 971 | J106: 971 | K106: 971 | L106: 971 | M106: 971 | N106: 971 | O106: 972 | P106: 972 | Q106: 972 | R106: 972 | S106: 972 | T106: 972 | U106: 972 | V106: 973 | W106: 977 | X106: 981 | Y106: 985 | Z106: 989 | AA106: 993 | AB106: 997 | AC106: 1001 | AD106: 1005 | AE106: 1009 | AF106: 1013 | AG106: 1017 | AH106: 1021 | AI106: 1026 | AJ106: 1030 | AK106: 1034 | AL106: 1038 | AM106: 1043 | AN106: 1047 | AO106: 1051 | AP106: 1055 | AQ106: 1060 | AR106: 1064 | AS106: 1068 | AT106: 1073 | AU106: 1077 | AV106: 1082 | AW106: 1086 | AX106: 1090 | AY106: 1095 | AZ106: 1099 | BA106: 1104 | BB106: 1108 | BC106: 1113 | BD106: 1117 | BE106: 1122 | BF106: 1127 | BG106: 1131 | BH106: 1136 | BI106: 1140 | BJ106: 1145 | BK106: 1150 | BL106: 1155 | BM106: 1159 | BN106: 1164 | BO106: 1169 | BP106: 1174 | BQ106: 1178 | BR106: 1183 | BS106: 1188 | BT106: 1193 | BU106: 1202 | BV106: 1212 | BW106: 1221 | BX106: 1231 | BY106: 1241 | BZ106: 1250 | CA106: 1260 | CB106: 1270 | CC106: 1280 | CD106: 1290 | CE106: 1300 | CF106: 1311 | CG106: 1321 | CH106: 1331 | CI106: 1342 | CJ106: 1352 | CK106: 1363 | CL106: 1374 | CM106: 1385 | CN106: 1396 | CO106: 1407 | CP106: 1418 | CQ106: 1429 | CR106: 1440 | CS106: 1452 | CT106: 1463 | CU106: 1474 | CV106: 1486 | CW106: 1498 | CX106: 1510 | CY106: 1522 | CZ106: 1534 | DA106: 1546 | DB106: 1558 | DC106: 1570 | DD106: 1582 | DE106: 1595 | DF106: 1607 | DG106: 1620 | DH106: 1633 | DI106: 1647 | DJ106: 1661 | DK106: 1675 | DL106: 1702 | DM106: 1730 | DN106: 1759 | DO106: 1788 | DP106: 1818 | DQ106: 1848 | DR106: 1878 | DS106: 1908 | DT106: 1939 | DU106: 1970 | DV106: 2001 | DW106: 2033 | DX106: 2066 | DY106: 2099 | DZ106: 2132 | EA106: 2166 | EB106: 2200 | EC106: 2235 | ED106: 2270 | EE106: 2306 | EF106: 2343 | EG106: 2379 | EH106: 2417 | EI106: 2455 | EJ106: 2493 | EK106: 2532 | EL106: 2572 | EM106: 2612 | EN106: 2653 | EO106: 2694 | EP106: 2736 | EQ106: 2779 | ER106: 2822 | ES106: 2866 | ET106: 2910 | EU106: 2955 | EV106: 3001 | EW106: 3178 | EX106: 3423 | EY106: 4678 | EZ106: 5410 | FA106: 5045 | FB106: 5242 | FC106: 5045 | FD106: 5465 | FE106: 5528 | FF106: 5989 | FG106: 6480 | FH106: 6599 | FI106: 6278 | FJ106: 6805 | FK106: 7178 | FL106: 7306 | FM106: 6898 | FN106: 7852 | FO106: 7846 | FP106: 7555 | FQ106: 7785 | FR106: 7354 | FS106: 8648 | FT106: 9508 | FU106: 10522 | FV106: 11920 | FW106: 11575 | FX106: 13210 | FY106: 16718 | FZ106: 16614 | GA106: 13478 | GB106: 12681 | GC106: 10779 | GD106: 10666 | GE106: 10711 | GF106: 11057 | GG106: 13010 | GH106: 13153 | GI106: 11519 | GJ106: 11212 | GK106: 3921 | GL106: 5048 | GM106: 6379 | GN106: 6420 | GO106: 6353 | GP106: 6834 | GQ106: 8027 | GR106: 10490 | GS106: 11958 | GT106: 11764 | GU106: 11684 | GV106: 10567 | GW106: 6873 | GX106: 10311 | GY106: 10489 | GZ106: 11271 | HA106: 11157 | HB106: 11616 | HC106: 11992 | HD106: 12330 | HE106: 13248 | HF106: 14545 | HG106: 15368 | HH106: 14018 | HI106: 14646
A107: Ireland | B107: 1447 | C107: 1447 | D107: 1447 | E107: 1448 | F107: 1448 | G107: 1448 | H107: 1448 | I107: 1449 | J107: 1449 | K107: 1449 | L107: 1449 | M107: 1449 | N107: 1450 | O107: 1450 | P107: 1450 | Q107: 1450 | R107: 1450 | S107: 1451 | T107: 1451 | U107: 1451 | V107: 1451 | W107: 1472 | X107: 1493 | Y107: 1515 | Z107: 1536 | AA107: 1558 | AB107: 1581 | AC107: 1603 | AD107: 1626 | AE107: 1650 | AF107: 1673 | AG107: 1697 | AH107: 1722 | AI107: 1746 | AJ107: 1772 | AK107: 1797 | AL107: 1823 | AM107: 1849 | AN107: 1875 | AO107: 1902 | AP107: 1930 | AQ107: 1957 | AR107: 1985 | AS107: 2014 | AT107: 2043 | AU107: 1709 | AV107: 1430 | AW107: 1625 | AX107: 1430 | AY107: 1394 | AZ107: 1800 | BA107: 2091 | BB107: 2289 | BC107: 2322 | BD107: 2355 | BE107: 2389 | BF107: 2423 | BG107: 2458 | BH107: 2493 | BI107: 2529 | BJ107: 2565 | BK107: 2602 | BL107: 2639 | BM107: 2677 | BN107: 2716 | BO107: 2755 | BP107: 2794 | BQ107: 2834 | BR107: 2875 | BS107: 2916 | BT107: 2958 | BU107: 2988 | BV107: 3019 | BW107: 3050 | BX107: 3081 | BY107: 3113 | BZ107: 3145 | CA107: 3177 | CB107: 3210 | CC107: 3243 | CD107: 3276 | CE107: 3309 | CF107: 3343 | CG107: 3378 | CH107: 3412 | CI107: 3447 | CJ107: 3483 | CK107: 3518 | CL107: 3555 | CM107: 3591 | CN107: 3628 | CO107: 3665 | CP107: 3703 | CQ107: 3741 | CR107: 3779 | CS107: 3818 | CT107: 3857 | CU107: 3897 | CV107: 3937 | CW107: 3977 | CX107: 4018 | CY107: 4059 | CZ107: 4101 | DA107: 4143 | DB107: 4185 | DC107: 4228 | DD107: 4272 | DE107: 4316 | DF107: 4360 | DG107: 4405 | DH107: 4450 | DI107: 4499 | DJ107: 4549 | DK107: 4599 | DL107: 4559 | DM107: 4519 | DN107: 4479 | DO107: 4440 | DP107: 4402 | DQ107: 4363 | DR107: 4325 | DS107: 4295 | DT107: 4418 | DU107: 4389 | DV107: 4391 | DW107: 4409 | DX107: 4417 | DY107: 4569 | DZ107: 4725 | EA107: 4886 | EB107: 5025 | EC107: 5166 | ED107: 5027 | EE107: 4891 | EF107: 5045 | EG107: 5203 | EH107: 5367 | EI107: 5210 | EJ107: 5390 | EK107: 5401 | EL107: 5412 | EM107: 5423 | EN107: 5434 | EO107: 5444 | EP107: 5455 | EQ107: 5407 | ER107: 5476 | ES107: 5559 | ET107: 5818 | EU107: 6142 | EV107: 6241 | EW107: 6417 | EX107: 6607 | EY107: 6808 | EZ107: 6905 | FA107: 7147 | FB107: 7116 | FC107: 7159 | FD107: 7089 | FE107: 7409 | FF107: 7869 | FG107: 8297 | FH107: 8544 | FI107: 8899 | FJ107: 9215 | FK107: 9350 | FL107: 9416 | FM107: 9933 | FN107: 10722 | FO107: 11331 | FP107: 11551 | FQ107: 11850 | FR107: 12440 | FS107: 12834 | FT107: 13176 | FU107: 13703 | FV107: 13691 | FW107: 14631 | FX107: 15499 | FY107: 15734 | FZ107: 16078 | GA107: 16425 | GB107: 16640 | GC107: 16502 | GD107: 17116 | GE107: 17606 | GF107: 17546 | GG107: 18385 | GH107: 19420 | GI107: 20665 | GJ107: 22468 | GK107: 22770 | GL107: 23371 | GM107: 23881 | GN107: 25156 | GO107: 27439 | GP107: 29695 | GQ107: 32568 | GR107: 34985 | GS107: 38122 | GT107: 41198 | GU107: 42686 | GV107: 44423 | GW107: 44998 | GX107: 46205 | GY107: 47775 | GZ107: 49048 | HA107: 50001 | HB107: 47713 | HC107: 44222 | HD107: 43860 | HE107: 44913 | HF107: 44673 | HG107: 44640 | HH107: 46633 | HI107: 47758
A108: Isle of Man | B108: 1 | C108: 1 | D108: 1 | E108: 1 | F108: 1 | G108: 1 | H108: 1 | I108: 1 | J108: 1 | K108: 1 | L108: 1 | M108: 1 | N108: 1 | O108: 1 | P108: 1 | Q108: 1 | R108: 1 | S108: 1 | T108: 1 | U108: 1 | V108: 1 | W108: 1 | X108: 1 | Y108: 1 | Z108: 1 | AA108: 1 | AB108: 1 | AC108: 1 | AD108: 1 | AE108: 1 | AF108: 1 | AG108: 1 | AH108: 1 | AI108: 1 | AJ108: 1 | AK108: 1 | AL108: 1 | AM108: 1 | AN108: 1 | AO108: 1 | AP108: 1 | AQ108: 1 | AR108: 1 | AS108: 1 | AT108: 1 | AU108: 1 | AV108: 1 | AW108: 1 | AX108: 1 | AY108: 1 | AZ108: 1 | BA108: 1 | BB108: 1 | BC108: 1 | BD108: 1 | BE108: 1 | BF108: 1 | BG108: 1 | BH108: 1 | BI108: 1 | BJ108: 1 | BK108: 1 | BL108: 1 | BM108: 1 | BN108: 1 | BO108: 1 | BP108: 1 | BQ108: 1 | BR108: 1 | BS108: 1 | BT108: 1 | BU108: 1 | BV108: 1 | BW108: 1 | BX108: 1 | BY108: 1 | BZ108: 1 | CA108: 1 | CB108: 1 | CC108: 1 | CD108: 1 | CE108: 1 | CF108: 1 | CG108: 1 | CH108: 1 | CI108: 1 | CJ108: 1 | CK108: 1 | CL108: 1 | CM108: 1 | CN108: 1 | CO108: 1 | CP108: 1 | CQ108: 1 | CR108: 1 | CS108: 1 | CT108: 1 | CU108: 1 | CV108: 1 | CW108: 1 | CX108: 1 | CY108: 1 | CZ108: 1 | DA108: 1 | DB108: 1 | DC108: 1 | DD108: 1 | DE108: 1 | DF108: 1 | DG108: 1 | DH108: 1 | DI108: 1 | DJ108: 1 | DK108: 1 | DL108: 1 | DM108: 1 | DN108: 1 | DO108: 1 | DP108: 1 | DQ108: 1 | DR108: 1 | DS108: 1 | DT108: 1 | DU108: 1 | DV108: 1 | DW108: 1 | DX108: 1 | DY108: 1 | DZ108: 1 | EA108: 1 | EB108: 1 | EC108: 1 | ED108: 1 | EE108: 1 | EF108: 1 | EG108: 1 | EH108: 1 | EI108: 1 | EJ108: 1 | EK108: 1 | EL108: 1 | EM108: 1 | EN108: 1 | EO108: 1 | EP108: 1 | EQ108: 1 | ER108: 1 | ES108: 1 | ET108: 1 | EU108: 1 | EV108: 1 | EW108: 1 | EX108: 1 | EY108: 1 | EZ108: 1 | FA108: 1 | FB108: 1 | FC108: 1 | FD108: 1 | FE108: 1 | FF108: 1 | FG108: 1 | FH108: 1 | FI108: 1 | FJ108: 1 | FK108: 1 | FL108: 1 | FM108: 1 | FN108: 1 | FO108: 1 | FP108: 1 | FQ108: 1 | FR108: 1 | FS108: 1 | FT108: 1 | FU108: 1 | FV108: 1 | FW108: 1 | FX108: 1 | FY108: 1 | FZ108: 1 | GA108: 1 | GB108: 1 | GC108: 1 | GD108: 1 | GE108: 1 | GF108: 1 | GG108: 1 | GH108: 1 | GI108: 1 | GJ108: 1 | GK108: 1 | GL108: 1 | GM108: 1 | GN108: 1 | GO108: 1 | GP108: 1 | GQ108: 1 | GR108: 1 | GS108: 1 | GT108: 1 | GU108: 1 | GV108: 1 | GW108: 1 | GX108: 1 | GY108: 1 | GZ108: 1 | HA108: 1 | HB108: 1 | HC108: 1 | HD108: 1 | HE108: 1 | HF108: 1 | HG108: 1 | HH108: 1 | HI108: 1
A109: Israel | B109: 879 | C109: 880 | D109: 880 | E109: 880 | F109: 880 | G109: 880 | H109: 880 | I109: 880 | J109: 881 | K109: 881 | L109: 881 | M109: 881 | N109: 881 | O109: 881 | P109: 881 | Q109: 881 | R109: 882 | S109: 882 | T109: 882 | U109: 882 | V109: 882 | W109: 882 | X109: 882 | Y109: 882 | Z109: 883 | AA109: 883 | AB109: 883 | AC109: 883 | AD109: 883 | AE109: 883 | AF109: 883 | AG109: 884 | AH109: 884 | AI109: 884 | AJ109: 884 | AK109: 884 | AL109: 884 | AM109: 884 | AN109: 884 | AO109: 885 | AP109: 885 | AQ109: 885 | AR109: 885 | AS109: 885 | AT109: 885 | AU109: 885 | AV109: 886 | AW109: 886 | AX109: 886 | AY109: 886 | AZ109: 886 | BA109: 886 | BB109: 886 | BC109: 886 | BD109: 887 | BE109: 887 | BF109: 887 | BG109: 887 | BH109: 887 | BI109: 887 | BJ109: 887 | BK109: 887 | BL109: 888 | BM109: 888 | BN109: 888 | BO109: 888 | BP109: 888 | BQ109: 888 | BR109: 888 | BS109: 889 | BT109: 889 | BU109: 894 | BV109: 899 | BW109: 904 | BX109: 909 | BY109: 914 | BZ109: 919 | CA109: 924 | CB109: 929 | CC109: 934 | CD109: 940 | CE109: 945 | CF109: 950 | CG109: 956 | CH109: 961 | CI109: 966 | CJ109: 972 | CK109: 977 | CL109: 983 | CM109: 988 | CN109: 994 | CO109: 999 | CP109: 1005 | CQ109: 1010 | CR109: 1016 | CS109: 1022 | CT109: 1028 | CU109: 1033 | CV109: 1039 | CW109: 1045 | CX109: 1051 | CY109: 1057 | CZ109: 1063 | DA109: 1069 | DB109: 1074 | DC109: 1081 | DD109: 1087 | DE109: 1093 | DF109: 1099 | DG109: 1105 | DH109: 1111 | DI109: 1117 | DJ109: 1124 | DK109: 1130 | DL109: 1077 | DM109: 1026 | DN109: 978 | DO109: 932 | DP109: 965 | DQ109: 998 | DR109: 1032 | DS109: 1067 | DT109: 1102 | DU109: 1049 | DV109: 1316 | DW109: 1405 | DX109: 1193 | DY109: 1316 | DZ109: 1434 | EA109: 1641 | EB109: 1961 | EC109: 2218 | ED109: 2531 | EE109: 3007 | EF109: 3351 | EG109: 3195 | EH109: 2642 | EI109: 2330 | EJ109: 2131 | EK109: 2045 | EL109: 2064 | EM109: 2334 | EN109: 2765 | EO109: 2873 | EP109: 2947 | EQ109: 3031 | ER109: 3304 | ES109: 3448 | ET109: 3612 | EU109: 3782 | EV109: 3961 | EW109: 4435 | EX109: 4247 | EY109: 4075 | EZ109: 4718 | FA109: 5167 | FB109: 5382 | FC109: 5557 | FD109: 5712 | FE109: 6249 | FF109: 6464 | FG109: 6915 | FH109: 7279 | FI109: 7719 | FJ109: 8152 | FK109: 8630 | FL109: 8504 | FM109: 8535 | FN109: 9634 | FO109: 10562 | FP109: 11062 | FQ109: 11878 | FR109: 12903 | FS109: 13110 | FT109: 13606 | FU109: 13751 | FV109: 13626 | FW109: 13324 | FX109: 13656 | FY109: 14159 | FZ109: 14768 | GA109: 15245 | GB109: 15265 | GC109: 15501 | GD109: 15310 | GE109: 15542 | GF109: 16015 | GG109: 16871 | GH109: 16906 | GI109: 16743 | GJ109: 17152 | GK109: 17394 | GL109: 17749 | GM109: 18244 | GN109: 19010 | GO109: 22550 | GP109: 23240 | GQ109: 23544 | GR109: 24009 | GS109: 24263 | GT109: 25739 | GU109: 25167 | GV109: 24650 | GW109: 24470 | GX109: 25256 | GY109: 25891 | GZ109: 26908 | HA109: 28091 | HB109: 28562 | HC109: 28419 | HD109: 29509 | HE109: 30183 | HF109: 30518 | HG109: 30927 | HH109: 31180 | HI109: 31590
